Workbook

Sheet Country Profile
B3: ="UNICEF STRATEGIC PLAN GOAL AREA 2 COUNTRY PROFILE : " & UPPER($I$6)&" - "&'Data for country profile'!M2 -> UNICEF STRATEGIC PLAN GOAL AREA 2 COUNTRY PROFILE : COMOROS - 2018 | AT3: Please select a country
F5: Region | I5: =VLOOKUP(I6,Names!A2:D158,4,FALSE) -> ESAR | V5: Education strategy | Z5: Equity & Access | AF5: Learning | AL5: Humanit. Situation
F6: Country | I6: Comoros | AS6: =VLOOKUP(I6,Names!$A$1:$C$158,3,FALSE) -> Comoros
C8: Key highlights | Y8: Challenges è | AC8: =IFERROR('Data for country profile'!H158,"No data") -> High | AI8: =IFERROR('Data for country profile'!J158,"No data") -> High | AO8: =IFERROR('Data for country profile'!H169,"No data") -> No
AT9: Output
C10: Major issues (Outcome level) | X10: Areas for improvement (System strengthening only) | AT10: 1 | AU10: =VLOOKUP(AT10,'Data for country profile'!$J$282:$L$295,2,FALSE) -> Learning outcomes - Community participation
C11: =IFERROR(" "&AT14&": "&AU14," Outcome level data are not available") -> 1: Low upper secondary education adjusted net attendance rate for the poorest quintile | X11: =IFERROR(" "&AT10&": "&AU10," -") -> 1: Learning outcomes - Community participation | AT11: 2 | AU11: =VLOOKUP(AT11,'Data for country profile'!$J$282:$L$295,2,FALSE) -> Learning outcomes - Teachers development
C12: =IFERROR(" "&AT15&": "&AU15," -") -> 2: Low gross enrolment ratio in Pre-primary education | X12: =IFERROR(" "&AT11&": "&AU11," -") -> 2: Learning outcomes - Teachers development | AT12: 3 | AU12: =VLOOKUP(AT12,'Data for country profile'!$J$282:$L$295,2,FALSE) -> Equitable access - Inclusive education for children with disabilities
C13: =IFERROR(" "&AT16&": "&AU16," -") -> 3: Low lower secondary education adjusted net attendance rate for the poorest quintile | X13: =IFERROR(" "&AT12&": "&AU12," -") -> 3: Equitable access - Inclusive education for children with disabilities | AT13: Outcome
C14: =IF(RIGHT(C11,13)="not available",""," Source: International data sources") -> Source: International data sources | X14: Source: Country Office SMQ responses | AT14: 1 | AU14: =VLOOKUP(AT14,'Data for country profile'!$J$318:$K$330,2,FALSE) -> Low upper secondary education adjusted net attendance rate for the poorest quintile
AT15: 2 | AU15: =VLOOKUP(AT15,'Data for country profile'!$J$318:$K$330,2,FALSE) -> Low gross enrolment ratio in Pre-primary education
C16: A. CONTEXT INDICATORS | AT16: 3 | AU16: =VLOOKUP(AT16,'Data for country profile'!$J$318:$K$330,2,FALSE) -> Low lower secondary education adjusted net attendance rate for the poorest quintile
C18: =IF('Data for country profile'!C141=0,"Education system classification, No data","Education system classification, Source: UIS-ISCED") -> Education system classification, Source: UIS-ISCED | X18: =IF(ISERROR('Data for country profile'!H170),"Education expenditure as percentage of total government expenditure, No data","Education expenditure as % of total government expenditure, Source: UIS") -> Education expenditure as % of total government expenditure, Source: UIS
D19: Duration of education cycles
E20: Data on duration of education cycles are not available
X21: =IF('Data for country profile'!B172=0,"Expenditure by level of education as share of total, No data","Expenditure by level of education as share of total, Source: UIS") -> Expenditure by level of education as share of total, Source: UIS
D22: Of which compulsory education
E23: Data on compulsory education are not available
C25: =IF('Data for country profile'!O153=0,"Enrolment and school-age populations, No data","Enrolment and school-age populations (thousands), Source: UIS and UNPD") -> Enrolment and school-age populations (thousands), Source: UIS and UNPD
X27: =IF(ISERROR('Data for country profile'!H175),"Public education spending on richest children / public education spending on poorest children, No data", "Public education spending on richest children / public education spending on poorest children") -> Public education spending on richest children / public education spending on poorest children, No data
W32: =$AS$6 -> Comoros | AB32: =I5 -> ESAR | AG32: ='Data for country profile'!I147 -> Low income | AM32: Global
D33: Human Capital Index, Source: World Bank | W33: =IFERROR(TEXT('Data for country profile'!H162,"0.00"),"No data") -> 0.41 | AB33: ='Data for country profile'!G162 -> 0.3965222036 | AG33: =IFERROR('Data for country profile'!J162,"No data") -> 0.3800265308 | AM33: ='Data for country profile'!F162 -> 0.4981666983
D34: Learning-Adjusted Years of School, Source: World Bank | W34: =IFERROR(TEXT('Data for country profile'!H163,"0.0"),"No data") -> 5.3 | AB34: ='Data for country profile'!G163 -> 5.004380352 | AG34: =IFERROR('Data for country profile'!J163,"No data") -> 4.528285668 | AM34: ='Data for country profile'!F163 -> 6.70896687
D35: Harmonized test score, Source: World Bank | W35: =IFERROR(TEXT('Data for country profile'!H166,"0"),"No data") -> 392 | AB35: ='Data for country profile'!G166 -> 386.1144847 | AG35: =IFERROR('Data for country profile'!J166,"No data") -> 362.9903107 | AM35: ='Data for country profile'!F166 -> 430.2092126
D36: GDP per capita, PPP (constant 2011 international $), Source: World Bank | W36: =IF('Data for country profile'!H147="N/A","No data",TEXT('Data for country profile'!H147,"$#,###")&" ("&'Data for country profile'!G146&")") -> $1,414 (2017) | AB36: ='Data for country profile'!G147 -> 3972.246466 | AG36: =IFERROR('Data for country profile'!J147,"No data") -> 1829.84474 | AM36: ='Data for country profile'!F147 -> 11302.665
D37: % of children living in extreme poverty, Source: World Bank | W37: =IF(ISERROR('Data for country profile'!H164),"No data",TEXT('Data for country profile'!H164,"0.0")&"% ("&'Data for country profile'!B164&")") -> 18.1% (2013) | AB37: =TEXT('Data for country profile'!G164,"0.0")&"%" -> 43.6% | AG37: =IFERROR(TEXT('Data for country profile'!J164,"0.0")&"%","No data") -> 46.9% | AM37: =TEXT('Data for country profile'!F164,"0.0")&"%" -> 19.6%
D38: Under 5 mortality rate (/000), Source: UN Inter-agency Group for Child Mortality | W38: =IF(ISERROR('Data for country profile'!H165),"No data",TEXT('Data for country profile'!H165,"0.0")&" ("&'Data for country profile'!B165&")") -> 73.3 (2016) | AB38: =TEXT('Data for country profile'!G165,"0.0") -> 63.6 | AG38: =IFERROR(TEXT('Data for country profile'!J165,"0.0"), "No data") -> 73.1 | AM38: =TEXT('Data for country profile'!F165,"0.0") -> 37.9
C40: B. IMPACT INDICATORS
C42: I.1 Primary completion rate, Source: UIS | Q42: I.2 Lower secondary completion rate, Source: UIS | AE42: J. GER upper secondary, Source: UIS
F43: ='Data for country profile'!D179 -> Comoros, 2017 | I43: =I5 -> ESAR | K43: Global | M43: SP Target | T43: ='Data for country profile'!D183 -> Comoros, 2014 | W43: =I43 -> ESAR | Y43: Global | AA43: SP Target | AH43: ='Data for country profile'!D188 -> Comoros, 2017 | AK43: =W43 -> ESAR | AM43: Global | AO43: SP Target
C44: - Total | F44: =IFERROR(TEXT('Data for country profile'!H179/100,"0%"),"No data") -> 77% | I44: =IFERROR(TEXT('Data for country profile'!G179/100,"0%"),"No data") -> 66% | K44: =IFERROR(TEXT('Data for country profile'!F179/100,"0%"),"No data") -> 90% | M44: =IFERROR(TEXT('Data for country profile'!I179/100,"0%"),"No data") -> 92% | Q44: - Total | T44: =IFERROR(TEXT('Data for country profile'!H183/100,"0%"),"No data") -> 48% | W44: =IFERROR(TEXT('Data for country profile'!G183/100,"0%"),"No data") -> 47% | Y44: =IFERROR(TEXT('Data for country profile'!F183/100,"0%"),"No data") -> 77% | AA44: =IFERROR(TEXT('Data for country profile'!I183/100,"0%"),"No data") -> 83% | AE44: - Total | AH44: =IFERROR(TEXT('Data for country profile'!H188/100,"0%"),"No data") -> 46% | AK44: =IFERROR(TEXT('Data for country profile'!G188/100,"0%"),"No data") -> 33% | AM44: =IFERROR(TEXT('Data for country profile'!F188/100,"0%"),"No data") -> 65% | AO44: =IFERROR(TEXT('Data for country profile'!I188/100,"0%"),"No data") -> 77%
C45: - Girls | F45: =IFERROR(TEXT('Data for country profile'!H180/100,"0%"),"No data") -> 77% | I45: =IFERROR(TEXT('Data for country profile'!G180/100,"0%"),"No data") -> 67% | K45: =IFERROR(TEXT('Data for country profile'!F180/100,"0%"),"No data") -> 89% | M45: =IFERROR(TEXT('Data for country profile'!I180/100,"0%"),"No data") -> 92% | Q45: - Girls | T45: =IFERROR(TEXT('Data for country profile'!H184/100,"0%"),"No data") -> 50% | W45: =IFERROR(TEXT('Data for country profile'!G184/100,"0%"),"No data") -> 48% | Y45: =IFERROR(TEXT('Data for country profile'!F184/100,"0%"),"No data") -> 77% | AA45: =IFERROR(TEXT('Data for country profile'!I184/100,"0%"),"No data") -> 83% | AE45: - Girls | AH45: =IFERROR(TEXT('Data for country profile'!H189/100,"0%"),"No data") -> 48% | AK45: =IFERROR(TEXT('Data for country profile'!G189/100,"0%"),"No data") -> 33% | AM45: =IFERROR(TEXT('Data for country profile'!F189/100,"0%"),"No data") -> 64% | AO45: =IFERROR(TEXT('Data for country profile'!I189/100,"0%"),"No data") -> 77%
C46: - Boys | F46: =IFERROR(TEXT('Data for country profile'!H181/100,"0%"),"No data") -> 76% | I46: =IFERROR(TEXT('Data for country profile'!G181/100,"0%"),"No data") -> 66% | K46: =IFERROR(TEXT('Data for country profile'!F181/100,"0%"),"No data") -> 90% | M46: =IFERROR(TEXT('Data for country profile'!I181/100,"0%"),"No data") -> 92% | Q46: - Boys | T46: =IFERROR(TEXT('Data for country profile'!H185/100,"0%"),"No data") -> 47% | W46: =IFERROR(TEXT('Data for country profile'!G185/100,"0%"),"No data") -> 45% | Y46: =IFERROR(TEXT('Data for country profile'!F185/100,"0%"),"No data") -> 76% | AA46: =IFERROR(TEXT('Data for country profile'!I185/100,"0%"),"No data") -> 83% | AE46: - Boys | AH46: =IFERROR(TEXT('Data for country profile'!H190/100,"0%"),"No data") -> 43% | AK46: =IFERROR(TEXT('Data for country profile'!G190/100,"0%"),"No data") -> 33% | AM46: =IFERROR(TEXT('Data for country profile'!F190/100,"0%"),"No data") -> 65% | AO46: =IFERROR(TEXT('Data for country profile'!I190/100,"0%"),"No data") -> 77%
C49: C. KEY OUTCOME INDICATORS (most recent data available)
C51: 2.1. Gender parity index, Source: UIS | Q51: =IFERROR("2.2. Adjusted net attendance rate for the poorest quintile, Source: "&'Data for country profile'!L218,"2.2. Education Net Attendance Rate of Poorest Quintile, No data") -> 2.2. Adjusted net attendance rate for the poorest quintile, Source: DHS 2012 | AE51: 2.3. Gross enrolment ratio pre-primary, Source: UIS
F52: =AS6 -> Comoros | I52: =I43 -> ESAR | K52: Global | M52: SP Target | T52: =AS6 -> Comoros | W52: =I52 -> ESAR | Y52: Global | AA52: SP Target | AH52: ='Data for country profile'!D193 -> Comoros, 2017 | AK52: =AK43 -> ESAR | AM52: Global | AO52: SP Target
Q53: - Pre-primary | T53: =IFERROR(TEXT('Data for country profile'!H221/100,"0%"),"No data") -> No data | W53: =IFERROR(TEXT('Data for country profile'!G221/100,"0%"),"No data") -> 11% | Y53: =IFERROR(TEXT('Data for country profile'!F221/100,"0%"),"No data") -> 18% | AA53: =IFERROR(TEXT('Data for country profile'!I221/100,"0%"),"No data") -> 30%
C54: - Primary | F54: =IFERROR(TEXT('Data for country profile'!H198,"0.00"),"No data") -> 1.01 | I54: =IFERROR(TEXT('Data for country profile'!G198,"0.00"),"No data") -> 1.02 | K54: =IFERROR(TEXT('Data for country profile'!F198,"0.00"),"No data") -> 0.99 | M54: =IFERROR(TEXT('Data for country profile'!I198,"0.00"),"No data") -> 1.00 | Q54: - Primary | T54: =IFERROR(TEXT('Data for country profile'!H218/100,"0%"),"No data") -> 72% | W54: =IFERROR(TEXT('Data for country profile'!G218/100,"0%"),"No data") -> 72% | Y54: =IFERROR(TEXT('Data for country profile'!F218/100,"0%"),"No data") -> 76% | AA54: =IFERROR(TEXT('Data for country profile'!I218/100,"0%"),"No data") -> 75% | AE54: - Total | AH54: =IFERROR(TEXT('Data for country profile'!H193/100,"0%"),"No data") -> 20% | AK54: =IFERROR(TEXT('Data for country profile'!G193/100,"0%"),"No data") -> 35% | AM54: =IFERROR(TEXT('Data for country profile'!F193/100,"0%"),"No data") -> 46% | AO54: =IFERROR(TEXT('Data for country profile'!I193/100,"0%"),"No data") -> 50%
C55: - Lower Sec. | F55: =IFERROR(TEXT('Data for country profile'!H199,"0.00"),"No data") -> 1.05 | I55: =IFERROR(TEXT('Data for country profile'!G199,"0.00"),"No data") -> 1.07 | K55: =IFERROR(TEXT('Data for country profile'!F199,"0.00"),"No data") -> 1.02 | M55: =IFERROR(TEXT('Data for country profile'!I199,"0.00"),"No data") -> 1.00 | Q55: - Lower Sec. | T55: =IFERROR(TEXT('Data for country profile'!H219/100,"0%"),"No data") -> 23% | W55: =IFERROR(TEXT('Data for country profile'!G219/100,"0%"),"No data") -> 18% | Y55: =IFERROR(TEXT('Data for country profile'!F219/100,"0%"),"No data") -> 45% | AA55: =IFERROR(TEXT('Data for country profile'!I219/100,"0%"),"No data") -> 44% | AE55: - Girls | AH55: =IFERROR(TEXT('Data for country profile'!H194/100,"0%"),"No data") -> 21% | AK55: =IFERROR(TEXT('Data for country profile'!G194/100,"0%"),"No data") -> 35% | AM55: =IFERROR(TEXT('Data for country profile'!F194/100,"0%"),"No data") -> 45% | AO55: =IFERROR(TEXT('Data for country profile'!I194/100,"0%"),"No data") -> 50%
C56: - Upper Sec. | F56: =IFERROR(TEXT('Data for country profile'!H200,"0.00"),"No data") -> 1.10 | I56: =IFERROR(TEXT('Data for country profile'!G200,"0.00"),"No data") -> 0.99 | K56: =IFERROR(TEXT('Data for country profile'!F200,"0.00"),"No data") -> 0.98 | M56: =IFERROR(TEXT('Data for country profile'!I200,"0.00"),"No data") -> 1.00 | Q56: - Upper Sec. | T56: =IFERROR(TEXT('Data for country profile'!H220/100,"0%"),"No data") -> 8% | W56: =IFERROR(TEXT('Data for country profile'!G220/100,"0%"),"No data") -> 8% | Y56: =IFERROR(TEXT('Data for country profile'!F220/100,"0%"),"No data") -> 29% | AA56: =IFERROR(TEXT('Data for country profile'!I220/100,"0%"),"No data") -> 28% | AE56: - Boys | AH56: =IFERROR(TEXT('Data for country profile'!H195/100,"0%"),"No data") -> 20% | AK56: =IFERROR(TEXT('Data for country profile'!G195/100,"0%"),"No data") -> 35% | AM56: =IFERROR(TEXT('Data for country profile'!F195/100,"0%"),"No data") -> 46% | AO56: =IFERROR(TEXT('Data for country profile'!I195/100,"0%"),"No data") -> 50%
C58: =IF(ISERROR("2.4.1 Out-of-school rate for children of primary school age, Source: UIS: "&TEXT('Data for country profile'!H204,"0")&"%"),"2.4.1 Out-of-school rate for children of primary school age, No data","2.4.1 Out-of-school rate for children of primary school age, Source: UIS") -> 2.4.1 Out-of-school rate for children of primary school age, Source: UIS | Q58: =IF(ISERROR("2.4.2 Out-of-school rate for adolescents (Boys & Girls) of lower secondary school age, Source: UIS: "&TEXT('Data for country profile'!H207,"0")&"%"),"2.4.2 Out-of-school rate for adolescents of lower secondary school age, No data","2.4.2 Out-of-school rate for adolescents of lower secondary school age, Source: UIS") -> 2.4.2 Out-of-school rate for adolescents of lower secondary school age, Source: UIS | AE58: =IF((IFERROR(F211,1)+IFERROR(G211,1)=2),"Number of primary and lower secondary school-age children/adolescents out-of-school: No data","Number of primary and lower secondary school-age children/adolescents out-of-school, Source: UIS") -> Number of primary and lower secondary school-age children/adolescents out-of-school, Source: UIS
F59: ='Data for country profile'!D205 -> Comoros, 2017 | I59: =$I$5 -> ESAR | K59: Global | M59: SP Target | T59: =F59 -> Comoros, 2017 | W59: =I59 -> ESAR | Y59: Global | AA59: SP Target
C60: - Total | F60: =IFERROR(TEXT('Data for country profile'!H204/100,"0%"),"No data") -> 16% | I60: =IFERROR(TEXT('Data for country profile'!G204/100,"0%"),"No data") -> 16% | K60: =IFERROR(TEXT('Data for country profile'!F204/100,"0%"),"No data") -> 9% | M60: =IFERROR(TEXT('Data for country profile'!I204/100,"0%"),"No data") -> 7% | Q60: =C60 -> - Total | T60: =IFERROR(TEXT('Data for country profile'!H207/100,"0%"),"No data") -> 30% | W60: =IFERROR(TEXT('Data for country profile'!G207/100,"0%"),"No data") -> 10% | Y60: =IFERROR(TEXT('Data for country profile'!F207/100,"0%"),"No data") -> 19% | AA60: =IFERROR(TEXT('Data for country profile'!I207/100,"0%"),"No data") -> 16%
C61: - Girls | F61: =IFERROR(TEXT('Data for country profile'!H205/100,"0%"),"No data") -> 16% | I61: =IFERROR(TEXT('Data for country profile'!G205/100,"0%"),"No data") -> 16% | K61: =IFERROR(TEXT('Data for country profile'!F205/100,"0%"),"No data") -> 9% | M61: =IFERROR(TEXT('Data for country profile'!I205/100,"0%"),"No data") -> 7% | Q61: =C61 -> - Girls | T61: =IFERROR(TEXT('Data for country profile'!H208/100,"0%"),"No data") -> 29% | W61: =IFERROR(TEXT('Data for country profile'!G208/100,"0%"),"No data") -> 9% | Y61: =IFERROR(TEXT('Data for country profile'!F208/100,"0%"),"No data") -> 19% | AA61: =IFERROR(TEXT('Data for country profile'!I208/100,"0%"),"No data") -> 16%
C62: - Boys | F62: =IFERROR(TEXT('Data for country profile'!H206/100,"0%"),"No data") -> 15% | I62: =IFERROR(TEXT('Data for country profile'!G206/100,"0%"),"No data") -> 16% | K62: =IFERROR(TEXT('Data for country profile'!F206/100,"0%"),"No data") -> 9% | M62: =IFERROR(TEXT('Data for country profile'!I206/100,"0%"),"No data") -> 7% | Q62: =C62 -> - Boys | T62: =IFERROR(TEXT('Data for country profile'!H209/100,"0%"),"No data") -> 30% | W62: =IFERROR(TEXT('Data for country profile'!G209/100,"0%"),"No data") -> 9% | Y62: =IFERROR(TEXT('Data for country profile'!F209/100,"0%"),"No data") -> 19% | AA62: =IFERROR(TEXT('Data for country profile'!I209/100,"0%"),"No data") -> 16%
C65: =IFERROR("Poorest quintile adolescents (10-19 years old) education attainment, Source: "&'Data for country profile'!D248,"Poorest quintile adolescents (10-19 years old) education attainment, No data") -> Poorest quintile adolescents (10-19 years old) education attainment, Source: DHS, 2012 | X65: =IF('Data for country profile'!H247=0,"2.5. Proportion of students achieving a minimum proficiency level , No data","2.5. Proportion of students achieving a minimum proficiency level, Source: UIS") -> 2.5. Proportion of students achieving a minimum proficiency level , No data
C76: 2.6. Education equity index (Gender, wealth, location) Ranges 0 to 1; 1 is perfect parity Source : WIDE, UIS | J76: =AS6 -> Comoros | M76: =IF(ISERROR('Data for country profile'!H215),"No data",TEXT('Data for country profile'!H215,"0.00")) -> 0.65 | P76: =IF(ISERROR((CONCATENATE("2.7. % of 15-24 years old Not in Education, Employment, or Training, ", TEXT('Data for country profile'!J225,0)))),"2.7. Percentage of 15-24 years old Not in Education, Employment, or Training: No data","2.7. Percentage of 15-24 years old Not in Education, Employment, or Training, Source: ILO") -> 2.7. Percentage of 15-24 years old Not in Education, Employment, or Training: No data
T77: ='Data for country profile'!D224 -> Comoros | Z77: =I5 -> ESAR | AF77: Global | AL77: SP Target
J78: =I5 -> ESAR | M78: =TEXT('Data for country profile'!G215,"0.00") -> 0.48 | P78: - Total | T78: =IFERROR(TEXT('Data for country profile'!H225/100,"0%"),"No data") -> No data | Z78: =IFERROR(TEXT('Data for country profile'!G225/100,"0%"),"No data") -> 12% | AF78: =IFERROR(TEXT('Data for country profile'!F225/100,"0%"),"No data") -> 24% | AL78: =IFERROR(TEXT('Data for country profile'!I225/100,"0%"),"No data") -> 20%
J79: Global | M79: =TEXT('Data for country profile'!F215,"0.00") -> 0.67 | P79: - Girls | T79: =IFERROR(TEXT('Data for country profile'!H224/100,"0%"),"No data") -> No data | Z79: =IFERROR(TEXT('Data for country profile'!G224/100,"0%"),"No data") -> 10% | AF79: =IFERROR(TEXT('Data for country profile'!F224/100,"0%"),"No data") -> 12%
J80: SP Target | M80: =TEXT('Data for country profile'!I215,"0.00") -> 0.66 | P80: - Boys | T80: =IFERROR(TEXT('Data for country profile'!H223/100,"0%"),"No data") -> No data | Z80: =IFERROR(TEXT('Data for country profile'!G223/100,"0%"),"No data") -> 14% | AF80: =IFERROR(TEXT('Data for country profile'!F223/100,"0%"),"No data") -> 37%
C85: D. OUTPUT INDICATORS, Source: Country office SMQ 2018 responses
C87: How to read SP Output qualitative indicators (1 - 4 score)
C89: Qualitative indicators: Each qualitative indicator takes a value from 1 (Weak) to 4 (Championing). In the example to the right, the country has a score of 2.7 (UNICEF blue circle) for "2.a.2.d EMIS providing disaggregated data". An indicator’s overall score is based on 1 to 6 subscores. In the case of "2.a.2.d EMIS providing disaggregated data", there are 3 subscores: i) Quality and Timeliness; ii) Disaggregation and iii) Attendance/Dropout. Like the overall score these also range in value from 1 to 4. The green triangle represents the ideal situation i.e. a score of 4 in each subscore. In this example, the country scores respectively 2, 3 and 3 in Quality/Timeliness, Disaggregation and Attendance/Dropout. In addition to the comparison to the ideal situation, a comparison to the regional average (in gray) is provided. In this example, the country performs the same as the region on two out of the 3 subscores and below it on disaggregation.
C105: RESULT AREA : EQUITABLE ACCESS
C107: Provision (Service delivery)
C109: =IFERROR(CONCATENATE("2.a.1. Children participated in formal or non-formal education",CHAR(10)," through UNICEF support = ", TEXT('Data for country profile'!H108,"###,###,###")), "2.a.1. Children participated in formal or non-formal education through UNICEF support :"&CHAR(10)&"CO not working on") -> 2.a.1. Children participated in formal or non-formal education through UNICEF support = 4,471 | X109: =IFERROR(CONCATENATE("2.a 5. Percentage of UNICEF-targeted children in humanitarian situations reached through UNICEF-supported programmes. TARGET: ",TEXT('Data for country profile'!H129,"###,###,###")," REACHED : ",TEXT('Data for country profile'!H130,"###,###,###")),"2.a 5. Percentage of UNICEF-targeted children in humanitarian situations reached through UNICEF-supported programmes: CO not working on") -> 2.a 5. Percentage of UNICEF-targeted children in humanitarian situations reached through UNICEF-supported programmes: CO not working on
C112: Disaggregation by sex not available
C115: Disaggregation by level of education not available | X115: =IFERROR(TEXT('Data for country profile'!H130,"###,###,###")&" children in humanitarian situations reached through UNICEF-supported programmes of which: ","Children in humanitarian situations reached through UNICEF-supported programmes : CO not working on") -> Children in humanitarian situations reached through UNICEF-supported programmes : CO not working on
C117: Disaggregation by level of education not available
X118: Disaggregation by level of education not available
C120: =IFERROR(CONCATENATE("2.a.4. Children targeted by UNICEF as a share of",CHAR(10),"Children targeted by all partners = ", TEXT('Data for country profile'!J114,"0"), "%"), "2.a.4. Children targeted by UNICEF as a share of children targeted by all partners : CO not working on") -> 2.a.4. Children targeted by UNICEF as a share of children targeted by all partners : CO not working on
X122: Disaggregation by level of education not available
C125: System Strengthening
C127: Legend for all diamond charts:
C131: =IFERROR(CONCATENATE("2.a.2.a Inclusive education for children with disabilities, 2016 Baseline = ",TEXT('Data for country profile'!J40,"0.0")), "2a.2.a Inclusive education for children with disabilities, "&CHAR(10)&"2016 Baseline: CO was not working on") -> 2.a.2.a Inclusive education for children with disabilities, 2016 Baseline = 1.7 | Q131: =IFERROR(CONCATENATE("2.a.2.b Education sector plan/strategy addressing equity issues, 2016 Baseline = ", TEXT('Data for country profile'!J41, "0.0")),"2.a.2.b Education sector plan/strategy addressing equity issues, 2016 Baseline: CO was not working on") -> 2.a.2.b Education sector plan/strategy addressing equity issues, 2016 Baseline = 1.5 | AE131: =IFERROR("2a.2.c Emergency preparedness/resilience,"&CHAR(10)&"2016 Baseline = "&TEXT('Data for country profile'!J42, "0.0"),"2a.2.c Emergency preparedness/resilience, "&CHAR(10)&"2016 Baseline: CO was not working on") -> 2a.2.c Emergency preparedness/resilience, 2016 Baseline = 2.7
C135: =IF(ISERROR('Data for country profile'!H40),"CO not working on","") ->  | Q135: =IF(ISERROR('Data for country profile'!H41),"CO not working on","") -> CO not working on | AE135: =IF(ISERROR('Data for country profile'!H42),"CO not working on","") -> 
C146: =IFERROR(CONCATENATE("2.a.2.d EMIS providing disaggregated data, 2016 Baseline = ", TEXT('Data for country profile'!J43, "0.0")),"2.a.2.d EMIS providing disaggregated data; 2016 Baseline: CO was not working on") -> 2.a.2.d EMIS providing disaggregated data, 2016 Baseline = 2.0 | X146: =IFERROR(CONCATENATE("2.a.3 Gender-responsive education systems, 2016 Baseline = ", TEXT('Data for country profile'!H39,"0.0")), "2a.3 Gender-responsive education systems, 2016 Baseline: CO was not working on") -> 2a.3 Gender-responsive education systems, 2016 Baseline: CO was not working on
C150: =IF(ISERROR('Data for country profile'!H43),"CO not working on","") ->  | X150: =IF(ISERROR('Data for country profile'!H39),"CO not working on","") -> CO not working on
C160: RESULT AREA : LEARNING OUTCOMES
C162: Provision (Service delivery)
C164: =IFERROR(CONCATENATE("2.b.1. Children provided with individual learning materials through UNICEF-supported programmes= ", TEXT('Data for country profile'!$H$117, "###,###,###")), "2b.1. Children provided with individual learning materials through UNICEF-supported programmes: CO not working on") -> 2.b.1. Children provided with individual learning materials through UNICEF-supported programmes= 120,629 | X164: =IFERROR(CONCATENATE("2.b.2. Number of school management committees trained through UNICEF-supported programmes= ", TEXT('Data for country profile'!$H$118, "###,###,###")), "2b.2. Number of school management committees trained through UNICEF-supported programmes: CO not working on") -> 2.b.2. Number of school management committees trained through UNICEF-supported programmes= 99
C167: System Strengthening
C169: =IFERROR(CONCATENATE("2.b.3.a Early learning, 2016 Baseline = ", TEXT('Data for country profile'!J44, "0.0")), "2b.3.a Early learning, 2016 Baseline: CO was not working on") -> 2.b.3.a Early learning, 2016 Baseline = 1.8 | X169: =IFERROR(CONCATENATE("2.b.3.b Learning assessment systems, 2016 Baseline = ",TEXT('Data for country profile'!J45,"0.0")),"2.b.3.b Learning assessment systems, 2016 Baseline: CO was not working on") -> 2.b.3.b Learning assessment systems, 2016 Baseline = 2.2
C173: =IF(ISERROR('Data for country profile'!H44),"CO not working on","") ->  | X173: =IF(ISERROR('Data for country profile'!H45),"CO not working on","") -> 
C187: =IFERROR(CONCATENATE("2.b.3.c Mother tongue/multilingual education, 2016 Baseline = ",TEXT('Data for country profile'!J50,"0.0")),"2.b.3.c Mother tongue/multilingual education, 2016 Baseline: CO was not working on") -> 2.b.3.c Mother tongue/multilingual education, 2016 Baseline = 1.5 | X187: =IFERROR(CONCATENATE("2.b.3.d Teachers, 2016 Baseline = ",TEXT('Data for country profile'!J51,"0.0")),"2.b.3.d Teachers, 2016 Baseline: CO was not working on") -> 2.b.3.d Teachers, 2016 Baseline: CO was not working on
C191: =IF(ISERROR('Data for country profile'!H50),"CO not working on","") -> CO not working on | X191: =IF(ISERROR('Data for country profile'!H51),"CO not working on","") -> 
C202: =IFERROR(CONCATENATE("2.b.3.e Community participation, 2016 Baseline = ",TEXT('Data for country profile'!J52,"0.0")),"2.b.3.e Community participation, 2016 Baseline: CO was not working on") -> 2.b.3.e Community participation, 2016 Baseline = 1.5 | X202: =IFERROR(CONCATENATE("2.b.4. Gender-responsive teaching and learning, 2016 Baseline = ",TEXT('Data for country profile'!J46,"0.0")),"2.b.4. Gender-responsive teaching and learning, 2016 Baseline: CO was not working on") -> 2.b.4. Gender-responsive teaching and learning, 2016 Baseline = 1.0
C206: =IF(ISERROR('Data for country profile'!H52),"CO not working on","") ->  | X206: =IF(ISERROR('Data for country profile'!H46),"CO not working on","") -> CO not working on
C218: RESULT AREA: SKILLS
C219: =IFERROR('Data for country profile'!H121,"No data") -> No data
C220: Provision (Service delivery) | R220: System strengthening
C221: =IF('Data for country profile'!H126=0,"No data") -> No data
C222: =IFERROR(CONCATENATE("2.c.1. Children in skills dev. Prog through UNICEF-supported programmes : ",TEXT('Data for country profile'!$H$120,"###,###,###")),"2.c.1. Children in skills dev. Prog through UNICEF-supported programmes: CO not working on") -> 2.c.1. Children in skills dev. Prog through UNICEF-supported programmes: CO not working on | Q222: =IFERROR(CONCATENATE("2.c.2. Maintsreaming of skills development in the national system, 2016 Baseline = ",TEXT('Data for country profile'!$J$53,"0.0")),"2.c.2.a Maintsreaming of skills development in the national system, 2016 Baseline: CO was not working on") -> 2.c.2.a Maintsreaming of skills development in the national system, 2016 Baseline: CO was not working on | AE222: =IFERROR(CONCATENATE("2.c.2.b Responsiveness to the demands of the labour market, 2016 Baseline = ",TEXT('Data for country profile'!J54,"0.0")),"2.c.2.b Responsiveness to the demands of the labour market, 2016 Baseline: CO was not working on") -> 2.c.2.b Responsiveness to the demands of the labour market, 2016 Baseline: CO was not working on
AG224: =IF(ISERROR('Data for country profile'!H54),"Not Applicable","") -> Not Applicable
C225: Disaggregation by sex not available | Q225: =IF(ISERROR('Data for country profile'!H53),"CO not working on","") -> CO not working on | AE225: =IF(ISERROR('Data for country profile'!H54),"CO not working on","") -> CO not working on
Q226: =IF(ISERROR('Data for country profile'!H55),"CO not working on","") -> CO not working on
AE228: =IFERROR(CONCATENATE("2.c.2.c Gender equity in opportunities for skills development, 2016 Baseline = ",IF('Data for country profile'!J106=0,"Not available",TEXT('Data for country profile'!J55,"0.0"))),"2.c.2.c Gender equity in opportunities for skills development, 2016 Baseline: CO was not working on") -> 2.c.2.c Gender equity in opportunities for skills development, 2016 Baseline: CO was not working on
C229: Disaggregation by level of education not available
AG231: =IF(ISERROR('Data for country profile'!H55),"Not Applicable","") -> Not Applicable
AE232: =IF(ISERROR('Data for country profile'!H55),"CO not working on","") -> CO not working on
C236: E. UNICEF Education 2018 spending, Source: Division of Financial and Administrative Management (DFAM)
C238: =" UNICEF "&I6&", "&I5&" and global education expenditure by result area. In US$ and excluding cross-cutting expenditure" -> UNICEF Comoros, ESAR and global education expenditure by result area. In US$ and excluding cross-cutting expenditure | X238: ="Five largest expenditures as percentage of the total UNICEF "&J240&" education expenditure, excluding 'Technical assistance' SICs"&IF(J245="-",": -","") -> Five largest expenditures as percentage of the total UNICEF Comoros education expenditure, excluding 'Technical assistance' SICs
J240: ='Data for country profile'!H6 -> Comoros | N240: =I5 -> ESAR | R240: Global
D241: Equitable access | J241: =IFERROR('Data for country profile'!H228/1,"-") -> 833606.92 | N241: =IFERROR('Data for country profile'!G228,"") -> 47840026.27 | R241: =IFERROR('Data for country profile'!F228,"") -> 519947742.7
D242: Learning outcomes | J242: =IFERROR('Data for country profile'!H229/1,"-") -> 152005.62 | N242: =IFERROR('Data for country profile'!G229,"") -> 63629193.99 | R242: =IFERROR('Data for country profile'!F229,"") -> 208634414.1
D243: Skills | J243: =IFERROR('Data for country profile'!H230/1,"-") -> - | N243: =IFERROR('Data for country profile'!G230,"") -> 1866692.56 | R243: =IFERROR('Data for country profile'!F230,"") -> 47374358.15
D244: Cross result areas | J244: =IFERROR('Data for country profile'!H231,"-") -> 824394.41 | N244: =IFERROR('Data for country profile'!G231,"") -> 57615656.45 | R244: =IFERROR('Data for country profile'!F231,"") -> 236627254.2
D245: Total | J245: =IF(COUNTIF(J241:L244,"-")=4,"-",SUM(J241:L244)) -> 1810006.95 | N245: =SUM(N241:N244) -> 170951569.3 | R245: =SUM(P241:R244) -> 1012583769
D246: =J240 -> Comoros | E246: =N240 -> ESAR | F246: Global
C247: Equitable access | D247: =J241/J$245 -> 0.460554541 | E247: =N241/N$245 -> 0.2798454935 | F247: =R241/R$245 -> 0.5134861515
C248: =D242 -> Learning outcomes | D248: =J242/J$245 -> 0.08398068306 | E248: =N242/N$245 -> 0.3722059661 | F248: =R242/R$245 -> 0.2060416338
C249: Skills | D249: =J243/J$245 ->  | E249: =N243/N$245 -> 0.01091942337 | F249: =R243/R$245 -> 0.04678561872
C250: Cross result areas | D250: =J244/J$245 -> 0.455464776 | E250: =N244/N$245 -> 0.3370291171 | F250: =R244/R$245 -> 0.233686596 | T250: =IFERROR(IF('Data for country profile'!#REF!<0.7, CONCATENATE(TEXT('Data for country profile'!#REF!,"0.00"),"…"),""), "") ->  | AQ250: =IFERROR(IF('Data for country profile'!#REF!>1.3, CONCATENATE("...",TEXT('Data for country profile'!#REF!,"0.00")),""), "") -> 
C251: Total
C254: F. Summary of Country Program, Source: Results Assessment Module (RAM)
C256: ="CPD cycle: "&'Data for country profile'!I313 -> CPD cycle: 2015 - 2021
C258: Outcome statement | L258: Output statements | AC258: Output headline statements
C259: Children, especially the most deprived, access and utilize quality and equitable protection, education, health and nutrition services | L259: - National capacity enhanced to ensure equitable, universal access to early learning - Political commitment, accountability and national capacity enhanced to legislate, plan and budget for scaling-up quality and inclusive education | AC259: - Access and quality of school readiness and early learning programmes further enhanced; teacher capacity support continuing; family and community capacities to support early learning improved. - National capacity for implementing Inclusive Education improved through support from the EU. The programme results are aligned with and contribute to the implementation of the State Programme on Inclusive Education. Modelling inclusive education was continued by the government. Capacity was strengthened for teaching environmental education in extra-curricular educational institutions.
C261: Government and other actors monitor child rights and contribute to evidence-based equitable State policy formulation, programming and budgeting. | L261: - Relevant Government agencies adequately equipped to generate, collect and analyse disaggregated data from an equity and gender perspective | AC261: - The capacity of key government agencies on generation, collection and analysis of disaggregated data on Child Deprivation and Child Functioning studies was enhanced. A Knowledge and Attitudes towards Children with Disabilities survey contributed to an improved body of evidence on the situation of vulnerable children in the country.

Sheet Data for global profile (hidden)
L2: Current Year | M2: 2018
G4: World | I4: 1
C5: Selected country data
E6: PRE PRIMARY EDUCATION | L6: Baseline
G7: =$G$4 -> World | H7: Benchmark | I7: # c. reaching Benchmark | J7: # countries | L7: World | M7: # c. reaching Benchmark | N7: # countries | S7: Reach Benchmark | T7: # countries
F9: GER (%) MF | L9: 65
F10: GER(%) F | L10: 55
F11: GER (%) M | L11: 55
D12: P54b | E12: ECD NAR Poorest Quint | F12: NAR_PQ | G12: =Master!AC179 -> 18 | H12: 25 | I12: =VLOOKUP($G$7,Master!$A$215:$AH$223,$P12,FALSE) -> 16 | J12: =Master!AC212 -> 59 | K12: =I12/J12 -> 0.2711864407 | L12: 13.9 | M12: =VLOOKUP($G$7,'BL Master'!$A$278:$AH$286,$P12,FALSE) -> 9 | N12: =VLOOKUP($G$7,'BL Master'!$A$265:$AH$275,$P12,FALSE) -> 53 | O12: =M12/N12 -> 0.1698113208 | P12: 29 | Q12: =VLOOKUP(Q$16,Master!$A$3:$AV$183,$P12,FALSE) -> ECD NAR-PQ | R12: ECD NAR-PQ | S12: 9 | T12: 53
E14: PRIMARY EDUCATION
Q15: Check | R15: Check
A16: Current Year | B16: Baseline Year | G16: =$G$4 -> World | H16: Benchmark | I16: # c. reaching Benchmark | J16: # countries | L16: World | M16: # c. reaching Benchmark | N16: # countries | Q16: UIS country name | R16: UIS country name
D17: P51 | E17: Primary OOSC | F17: OOSCR (%) MF | G17: =Master!U236 -> 0 | H17: 5 | I17: =Master!U223 -> 51 | J17: =Master!U212 -> 124 | K17: =I17/J17 -> 0.4112903226 | L17: 8.9 | M17: =VLOOKUP($G$7,'BL Master'!$A$278:$AH$286,$P17,FALSE) -> 51 | N17: =VLOOKUP($G$7,'BL Master'!$A$265:$AH$275,$P17,FALSE) -> 117 | O17: =M17/N17 -> 0.4358974359 | P17: 21 | Q17: =VLOOKUP(Q$16,Master!$A$3:$AV$183,$P17,FALSE) -> P-OOSCR MF | R17: P-OOSCR MF | S17: 57 | T17: 131
A18: =CONCATENATE("World"," (",Master!$I$229,")") -> World () | B18: =VLOOKUP(G$16,'BL Learning and Regional Avg'!$D$30:$AM$30,15,FALSE) -> 2012 | C18: Impact | D18: P5a | E18: Number of OSC - M | F18: Boys | G18: =Master!L236 -> 28851548 | I18: =VLOOKUP($G$7,Master!$A$215:$AH$223,$P18,FALSE) ->  | L18: 27289636 | M18: =VLOOKUP($G$7,'BL Master'!$A$278:$AH$286,$P18,FALSE) ->  | P18: 12 | Q18: =VLOOKUP(Q$16,Master!$A$3:$AV$183,$P18,FALSE) -> P-NB-OOSC M | R18: P-NB-OOSCR M
A19: =CONCATENATE("World"," (",Master!$I$229,")") -> World () | B19: =VLOOKUP(G$16,'BL Learning and Regional Avg'!$D$30:$AM$30,15,FALSE) -> 2012 | E19: Number of OSC - F | F19: Girls | G19: =Master!J236 -> 32043282 | I19: =VLOOKUP($G$7,Master!$A$215:$AH$223,$P19,FALSE) ->  | L19: 30549241 | M19: =VLOOKUP($G$7,'BL Master'!$A$278:$AH$286,$P19,FALSE) ->  | P19: 10 | Q19: =VLOOKUP(Q$16,Master!$A$3:$AV$183,$P19,FALSE) -> P-NB-OOSC F | R19: P-NB-OOSCR F
A20: =CONCATENATE("World"," (",Master!$I$229,")") -> World () | B20: =VLOOKUP(G$16,'BL Learning and Regional Avg'!$D$30:$AM$30,15,FALSE) -> 2012 | E20: Number of OSC - MF | F20: =CONCATENATE("All children: ",A20) -> All children: World () | G20: =Master!H236 -> 60894830 | I20: =VLOOKUP($G$7,Master!$A$215:$AH$223,$P20,FALSE) ->  | L20: 57838877 | M20: =VLOOKUP($G$7,'BL Master'!$A$278:$AH$286,$P20,FALSE) ->  | P20: 8 | Q20: =VLOOKUP(Q$16,Master!$A$3:$AV$183,$P20,FALSE) -> P-NB-OOSC MF | R20: P-NB-OOSCR MF
A21: =CONCATENATE("World"," (",Master!$I$229,")") -> World () | B21: =VLOOKUP(G$16,'BL Learning and Regional Avg'!$D$30:$AM$30,15,FALSE) -> 2012 | D21: P5b | E21: PCR - M | F21: GIR LG (%) M | G21: =Master!R179 -> 89.90863 | I21: =VLOOKUP($G$7,Master!$A$215:$AH$223,$P21,FALSE) ->  | L21: =VLOOKUP(G$16,'BL Learning and Regional Avg'!$D$30:$AM$30,$P21,FALSE) -> 93.09 | M21: =VLOOKUP($G$7,'BL Master'!$A$278:$AH$286,$P21,FALSE) ->  | P21: 32 | Q21: =VLOOKUP(Q$16,Master!$A$3:$AV$183,$P21,FALSE) -> Adult Support Y | R21: Adult Support Y
A22: =CONCATENATE("World"," (",Master!$I$229,")") -> World () | B22: =VLOOKUP(G$16,'BL Learning and Regional Avg'!$D$30:$AM$30,15,FALSE) -> 2012 | E22: PCR - F | F22: GIR LG (%) F | G22: =Master!P179 -> 89.32394 | I22: =VLOOKUP($G$7,Master!$A$215:$AH$223,$P22,FALSE) ->  | L22: =VLOOKUP(G$16,'BL Learning and Regional Avg'!$D$30:$AM$30,$P22,FALSE) -> 90.94 | M22: =VLOOKUP($G$7,'BL Master'!$A$278:$AH$286,$P22,FALSE) ->  | P22: 34 | Q22: =VLOOKUP(Q$16,Master!$A$3:$AV$183,$P22,FALSE) -> LS-GPI GER y | R22: LS-GPI GER y
A23: =CONCATENATE("World"," (",Master!$I$229,")") -> World () | B23: =VLOOKUP(G$16,'BL Learning and Regional Avg'!$D$30:$AM$30,15,FALSE) -> 2012 | E23: PCR - MF | F23: GIR LG (%) MF | G23: =Master!N179 -> 89.99796033 | I23: =VLOOKUP($G$7,Master!$A$215:$AH$223,$P23,FALSE) ->  | L23: =VLOOKUP(G$16,'BL Learning and Regional Avg'!$D$30:$AM$30,$P23,FALSE) -> 92.06 | M23: =VLOOKUP($G$7,'BL Master'!$A$278:$AH$286,$P23,FALSE) ->  | P23: 30 | Q23: =VLOOKUP(Q$16,Master!$A$3:$AV$183,$P23,FALSE) -> ECD NARy | R23: ECD NARy
D24: P5abis | F24: NB-OOSC GPI | G24: =G19/G18 -> 1.110626092 | I24: =IFERROR(I19/I18,1) -> 1 | L24: 1.119444796
D25: P5bbis | F25: GPI-GIRLG | G25: =G22/G21 -> 0.9934968423 | I25: =IFERROR(I22/I21,1) -> 1 | L25: =L22/L21 -> 0.9769040713
F26: Q1 GER
F27: Transition Rate (%) M | L27: 90
F28: Transition Rate (%) F | L28: 78
F29: Transition Rate (%) MF | L29: 80
E30: Learning Outcomes | G30: =CONCATENATE("World: ",'Learning Assessments'!D181, " / ",('Learning Assessments'!D181+'Learning Assessments'!E181)) -> World: / 0 | L30: World: 33 / 52 | M30: 33 | N30: 52 | O30: =M30/N30 -> 0.6346153846
E31: Number of countries with increase in learning outcomes | G31: ='Learning Assessments'!KV186*100 -> 0 | I31: ='Learning Assessments'!KV185 -> 0 | J31: ='Learning Assessments'!KV188 -> 0 | L31: ='BL Learning and Regional Avg'!E11/('BL Learning and Regional Avg'!E11+'BL Learning and Regional Avg'!F11)*100 -> 63.46153846 | M31: 33 | N31: 52
D32: P54a | E32: Primary NAR Poorest Quint | F32: NAR_PQ | G32: =Master!AA179 -> 75.73119945 | H32: 80 | I32: =Master!AA223 -> 46 | J32: =Master!AA212 -> 79 | K32: =I32/J32 -> 0.582278481 | L32: 72.61084465 | M32: =VLOOKUP($G$7,'BL Master'!$A$278:$AH$286,$P32,FALSE) -> 32 | N32: =VLOOKUP($G$7,'BL Master'!$A$265:$AH$275,$P32,FALSE) -> 67 | O32: =M32/N32 -> 0.4776119403 | P32: 27 | Q32: =VLOOKUP(Q$16,Master!$A$3:$AV$183,$P32,FALSE) -> Primary NAR-PQ | R32: NAR-PQ | S32: 45 | T32: 93
D33: P55 | F33: % 36-59mths involved in learning activities | G33: =Master!AE179 -> 66.98615385 | H33: 80 | I33: =Master!AE223 -> 23 | J33: =Master!AE212 -> 68 | K33: =I33/J33 -> 0.3382352941 | L33: 66.90615385 | M33: =VLOOKUP($G$7,'BL Master'!$A$278:$AH$286,$P33,FALSE) -> 16 | N33: =VLOOKUP($G$7,'BL Master'!$A$265:$AH$275,$P33,FALSE) -> 52 | O33: =M33/N33 -> 0.3076923077 | P33: 31 | Q33: =VLOOKUP(Q$16,Master!$A$3:$AV$183,$P33,FALSE) -> Adult Support | R33: Adult Support | S33: 16 | T33: 52
D34: P56 | F34: UNICEF only % of children in humanitarian situations accessing formal or non-formal basic education | G34: =G131/G130*100 -> 3300.24672 | H34: 80 | L34: 58.57819507
D35: P5d2 | F35: All % of children in humanitarian situations | G35: =G133/G132*100 -> 3593.598016 | H35: 50 | L35: 20.41164687
L36: =CONCATENATE("Countries reaching benchmark: ",'Data for global profile'!I47," /",'Data for global profile'!$J$47,", Baseline = ",'Data for global profile'!$M$47," /",'Data for global profile'!$N$47) -> Countries reaching benchmark: 17 /97, Baseline = 21 /103
E37: LOWER SECONDARY EDUCATION
G38: =$G$4 -> World | H38: Benchmark | I38: # c. reaching Benchmark | J38: # countries | L38: World | M38: # c. reaching Benchmark | N38: # countries
D39: P51 | E39: L Sec OOSC | F39: OOSCR (%) MF | G39: =Master!W179 -> 17.75944937 | H39: 5 | I39: =VLOOKUP($G$7,Master!$A$215:$AH$223,$P39,FALSE) -> 81 | J39: =VLOOKUP($G$7,Master!$A$202:$AH$212,$P39,FALSE) -> 111 | K39: =I39/J39 -> 0.7297297297 | L39: 18.1949 | M39: =VLOOKUP($G$7,'BL Master'!$A$278:$AH$286,$P39,FALSE) -> 22 | N39: =VLOOKUP($G$7,'BL Master'!$A$265:$AH$275,$P39,FALSE) -> 91 | O39: =M39/N39 -> 0.2417582418 | P39: 23 | Q39: =VLOOKUP(Q$16,Master!$A$3:$AV$183,$P39,FALSE) -> LS-OOSCR MF | R39: LS-OOSCR MF | S39: 25 | T39: 116
E40: Learning Outcomes | F40: MF
F41: F
D42: P5e1 | F42: GPI | G42: =Master!AG162 -> 0.97 | H42: 80 | I42: =Master!AG223 -> 49 | J42: =Master!AG212 -> 139 | K42: =I42/J42 -> 0.3525179856 | L42: 0.97415 | M42: =VLOOKUP($G$7,'BL Master'!$A$278:$AH$286,$P42,FALSE) -> 48 | N42: =VLOOKUP($G$7,'BL Master'!$A$265:$AH$275,$P42,FALSE) -> 128 | O42: =M42/N42 -> 0.375 | P42: 33 | Q42: =VLOOKUP(Q$16,Master!$A$3:$AV$183,$P42,FALSE) -> LS-GPI GER | R42: LS-GPI GER | T42: 144
E45: BUDGET FOR EDUCATION
G46: =$G$4 -> World | H46: Benchmark | I46: # c. reaching Benchmark | J46: # countries | L46: World | M46: # c. reaching Benchmark | N46: # countries | S46: # c. reaching Benchmark | T46: # countries
D47: P53 | E47: Public expenditure on education as % of total government expenditure | G47: =Master!Y179 -> 15.33010535 | H47: 20 | I47: =Master!Y223 -> 17 | J47: =Master!Y212 -> 97 | K47: =I47/J47 -> 0.175257732 | L47: 15.23044 | M47: 21 | N47: 103 | O47: =M47/N47 -> 0.2038834951 | P47: 25 | Q47: =VLOOKUP(Q$16,Master!$A$3:$AV$183,$P47,FALSE) -> % EDU IN BUDGET | R47: % EDU IN BUDGET | S47: 22 | T47: 106
E49: BUDGET FOR EDUCATION IN HUMANITARIAN SITUATIONS
G51: =$G$4 -> World | H51: Benchmark | I51: # c. reaching Benchmark | J51: # countries | L51: World | M51: # c. reaching Benchmark | N51: # countries
E52: Percentage for Education in Humanitarian funds | L52: 17
E54: HUMANITARIAN SITUATIONS
G56: =$G$4 -> World | H56: Benchmark | I56: # c. reaching Benchmark | J56: # countries | L56: World | M56: # c. reaching Benchmark | N56: # countries
E57: Number and percentage of children in humanitarian situations accessing formal or non-formal basic education | I57: 60 | L57: 75 | M57: 60
M61: Baseline
H62: Countries with (>=2.5) | L62: Baseline
A63: Current | B63: Baseline | G63: =$G$4 -> World | H63: # | I63: % | J63: Label | L63: World | M63: Countries (>=2.5) | N63: % Yes | O63: Label
A64: 51 | B64: 80 | C64: Edu 2 | D64: IE | E64: 2.a.2.a Inclusive education for children with disabilities | F64: Inclusive education for children with disabilities | G64: =ROUND(VLOOKUP($G$63,'Quali 2'!$A$1:$BP$170,$K64,FALSE),1) -> 2.4 | H64: ='Quali 2'!BA172 -> 64 | I64: ='Quali 2'!BA175 -> 0.4923076923 | J64: =CONCATENATE(H64, " Countries ", "(", TEXT(I64,"0%"),")") -> 64 Countries (49%) | K64: =IFERROR(MATCH(D64,'Quali 2'!$A$1:$BO$1,0),"") -> 53 | L64: ='BL Quali 2'!J171 -> 2.232919622 | M64: ='BL Quali 2'!B185 -> 55 | N64: ='BL Quali 2'!C185 -> 0.3956834532 | O64: =E64&", 2016 baseline: "&M64&IF(M64<2, " country ("," countries (")&TEXT(N64,"0%")&")" -> 2.a.2.a Inclusive education for children with disabilities, 2016 baseline: 55 countries (40%)
A65: 52 | B65: 81 | C65: Edu 3 | D65: ESP | E65: 2.a.2.b Education sector plan/strategy addressing equity issues | F65: ESP addressing equity issues | G65: =ROUND(VLOOKUP($G$63,'Quali 2'!$A$1:$BP$170,$K65,FALSE),1) -> 2.2 | H65: ='Quali 2'!BB172 -> 47 | I65: ='Quali 2'!BB175 -> 0.3671875 | J65: 47 Countries (37%) | K65: =IFERROR(MATCH(D65,'Quali 2'!$A$1:$BO$1,0),"") -> 54 | L65: ='BL Quali 2'!M171 -> 1.861111111 | M65: ='BL Quali 2'!E185 -> 22 | N65: ='BL Quali 2'!F185 -> 0.1774193548 | O65: =E65&", 2016 baseline: "&M65&IF(M65<2, " country ("," countries (")&TEXT(N65,"0%")&")" -> 2.a.2.b Education sector plan/strategy addressing equity issues, 2016 baseline: 22 countries (18%)
A66: 53 | B66: 82 | C66: Edu 4 | D66: Emergency Prepardness | E66: 2.a.2.c Emergency preparedness/resilience | F66: Emergency preparedness/resilience | G66: =ROUND(VLOOKUP($G$63,'Quali 2'!$A$1:$BP$170,$K66,FALSE),1) -> 2.2 | H66: ='Quali 2'!BC172 -> 49 | I66: ='Quali 2'!BC175 -> 0.4414414414 | J66: 49 Countries (44%) | K66: =IFERROR(MATCH(D66,'Quali 2'!$A$1:$BO$1,0),"") -> 55 | L66: ='BL Quali 2'!Q171 -> 2.059160305 | M66: ='BL Quali 2'!H185 -> 41 | N66: ='BL Quali 2'!I185 -> 0.3153846154 | O66: 2.a.2.c Emergency preparedness/resilience, 2016 baseline: 41 countries (32%)
A67: 54 | B67: 83 | C67: Edu 5 | D67: EMIS | E67: 2.a.2.d EMIS providing disaggregated data | F67: EMIS providing disaggregated data | G67: =ROUND(VLOOKUP($G$63,'Quali 2'!$A$1:$BP$170,$K67,FALSE),1) -> 2.3 | H67: ='Quali 2'!BD172 -> 45 | I67: ='Quali 2'!BD175 -> 0.4245283019 | J67: 45 Countries (42%) | K67: =IFERROR(MATCH(D67,'Quali 2'!$A$1:$BO$1,0),"") -> 56 | L67: ='BL Quali 2'!U171 -> 2.185333333 | M67: ='BL Quali 2'!K185 -> 40 | N67: ='BL Quali 2'!L185 -> 0.3225806452 | O67: 2.a.2.d EMIS providing disaggregated data, 2016 baseline: 40 countries (32%)
A68: 50 | B68: 79 | C68: Edu 1 | D68: Gender | E68: 2.a.3 Gender-responsive education systems | F68: Gender-responsive education systems | G68: =ROUND(VLOOKUP($G$63,'Quali 2'!$A$1:$BP$170,$K68,FALSE),1) -> 2.2 | H68: ='Quali 2'!AZ172 -> 36 | I68: ='Quali 2'!AZ175 -> 0.3185840708 | J68: =CONCATENATE(H68, " Countries ", "(", TEXT(I68,"0%"),")") -> 36 Countries (32%) | K68: =IFERROR(MATCH(D68,'Quali 2'!$A$1:$BO$1,0),"") -> 52 | L68: ='BL Quali 2'!Y171 -> 2.028711485 | M68: ='BL Quali 2'!N185 -> 34 | N68: ='BL Quali 2'!O185 -> 0.2905982906 | O68: 2.a.3 Gender-responsive education systems, 2016 baseline: 34 countries (29%)
A69: 55 | B69: 84 | C69: Edu 6 | D69: Early Learning | E69: 2.b.3.a Early learning | F69: Early learning | G69: =ROUND(VLOOKUP($G$63,'Quali 2'!$A$1:$BP$170,$K69,FALSE),1) -> 2.3 | H69: ='Quali 2'!BE172 -> 29 | I69: ='Quali 2'!BF175 -> 0.4427480916 | J69: 29 Countries (44%) | K69: =IFERROR(MATCH(D69,'Quali 2'!$A$1:$BO$1,0),"") -> 58 | L69: ='BL Quali 2'!AC171 -> 1.903892944 | M69: ='BL Quali 2'!Q185 -> 29 | N69: ='BL Quali 2'!R185 -> 0.2148148148 | O69: 2.b.3.a Early learning, 2016 baseline: 29 countries (21%)
A70: 56 | B70: 85 | C70: Edu 9 | D70: Learning assessment | E70: 2.b.3.b Learning assessment systems | F70: Learning assessment systems | G70: =ROUND(VLOOKUP($G$63,'Quali 2'!$A$1:$BP$170,$K70,FALSE),1) -> 2.4 | H70: ='Quali 2'!BG172 -> 49 | I70: ='Quali 2'!BG175 -> 0.5568181818 | J70: 49 Countries (56%) | K70: =IFERROR(MATCH(D70,'Quali 2'!$A$1:$BO$1,0),"") -> 59 | L70: ='BL Quali 2'!$AG$171 -> 2.35 | M70: ='BL Quali 2'!T185 -> 49 | N70: ='BL Quali 2'!U185 -> 0.4454545455 | O70: 2.b.3.b Learning assessment systems, 2016 baseline: 49 countries (45%)
A71: 61 | B71: 86 | C71: 11 | D71: Multilingual | E71: 2.b.3.c Mother tongue/multilingual education | F71: Mother tongue/multilingual education | G71: =ROUND(VLOOKUP($G$63,'Quali 2'!$A$1:$BP$170,$K71,FALSE),1) -> 2.4 | H71: ='Quali 2'!BH172 -> 31 | I71: ='Quali 2'!BH175 -> 0.5166666667 | J71: =CONCATENATE(H71, " Countries ", "(", TEXT(I71,"0%"),")") -> 31 Countries (52%) | K71: =IFERROR(MATCH(D71,'Quali 2'!$A$1:$BO$1,0),"") -> 60 | L71: ='BL Quali 2'!$AK$171 -> 2.213917526 | M71: ='BL Quali 2'!W185 -> 38 | N71: ='BL Quali 2'!X185 -> 0.4 | O71: 2.b.3.c Mother tongue/multilingual education, 2016 baseline: 38 countries (40%)
A72: 57 | B72: 88 | C72: 13 | D72: Teachers | E72: 2.b.3.d Teachers development | F72: Teachers | G72: =ROUND(VLOOKUP($G$63,'Quali 2'!$A$1:$BP$170,$K72,FALSE),1) -> 2.1 | H72: ='Quali 2'!BI172 -> 33 | I72: ='Quali 2'!BI175 -> 0.3626373626 | J72: 33 Countries (36%) | K72: =IFERROR(MATCH(D72,'Quali 2'!$A$1:$BO$1,0),"") -> 61 | L72: ='BL Quali 2'!$AP$171 -> 1.834490741 | M72: ='BL Quali 2'!Z185 -> 22 | N72: ='BL Quali 2'!AA185 -> 0.2056074766 | O72: 2.b.3.d Teachers development, 2016 baseline: 22 countries (21%)
A73: 58 | B73: 89 | C73: 14 | D73: Community | E73: 2.b.2.e Community participation | F73: Community participation | G73: =ROUND(VLOOKUP($G$63,'Quali 2'!$A$1:$BP$170,$K73,FALSE),1) -> 2.4 | H73: ='Quali 2'!BJ172 -> 52 | I73: ='Quali 2'!BJ175 -> 0.5252525253 | J73: 52 Countries (53%) | K73: =IFERROR(MATCH(D73,'Quali 2'!$A$1:$BO$1,0),"") -> 62 | L73: ='BL Quali 2'!$AT$171 -> 2.350877193 | M73: ='BL Quali 2'!AC185 -> 66 | N73: ='BL Quali 2'!AD185 -> 0.5 | O73: 2.b.2.e Community participation, 2016 baseline: 66 countries (50%)
A74: 55 | D74: gender-responsive teaching and learning | E74: 2.b.4. Gender-responsive teaching and learning | F74: Gender-responsive teaching and learning | G74: =ROUND(VLOOKUP($G$63,'Quali 2'!$A$1:$BP$170,$K74,FALSE),1) -> 2.1 | H74: ='Quali 2'!BE172 -> 29 | I74: ='Quali 2'!BE175 -> 0.3085106383 | J74: 29 Countries (31%) | K74: =IFERROR(MATCH(D74,'Quali 2'!$A$1:$BO$1,0),"") -> 57 | L74: ='BL Quali 2'!$AU$171 -> 1.813084112 | M74: ='BL Quali 2'!AF185 -> 17 | N74: ='BL Quali 2'!AG185 -> 0.1619047619 | O74: 2.b.4. Gender-responsive teaching and learning, 2016 baseline: 17 countries (16%)
A75: 59 | B75: 90 | D75: Mainstreaming of skills development | E75: 2.c.2.a Mainstreaming of skills development within the national system | F75: National system mainstreaming skills development | G75: =ROUND(VLOOKUP($G$63,'Quali 2'!$A$1:$BP$170,$K75,FALSE),1) -> 2 | H75: ='Quali 2'!BK172 -> 20 | I75: ='Quali 2'!BK175 -> 0.2380952381 | J75: 20 Countries (24%) | K75: =IFERROR(MATCH(D75,'Quali 2'!$A$1:$BO$1,0),"") -> 63 | L75: ='BL Quali 2'!$AY$171 -> 1.732600733 | M75: ='BL Quali 2'!AI185 -> 6 | N75: ='BL Quali 2'!AJ185 -> 0.06666666667 | O75: =E75&", 2016 baseline: "&M75&IF(M75<2, " country ("," countries (")&TEXT(N75,"0%")&")" -> 2.c.2.a Mainstreaming of skills development within the national system, 2016 baseline: 6 countries (7%)
A76: 60 | B76: 87 | D76: responsi veness | E76: 2.c.2.b Responsiveness to the demands of the labour market | F76: Responsiveness to the demands of the labour market | G76: =ROUND(VLOOKUP($G$63,'Quali 2'!$A$1:$BP$170,$K76,FALSE),1) -> 1.7 | H76: ='Quali 2'!BL172 -> 4 | I76: ='Quali 2'!BL175 -> 0.1142857143 | J76: 4 Countries (11%) | K76: =IFERROR(MATCH(D76,'Quali 2'!$A$1:$BO$1,0),"") -> 64 | L76: ='BL Quali 2'!$AW$171 -> 1.73255814 | M76: ='BL Quali 2'!AL185 -> 2 | N76: ='BL Quali 2'!AM185 -> 0.04545454545 | O76: 2.c.2.b Responsiveness to the demands of the labour market, 2016 baseline: 2 countries (5%)
D77: 2 c 2 Gender | E77: 2.c.2.c Gender equitable skills development | F77: Gender equitable skills development | G77: =ROUND(VLOOKUP($G$63,'Quali 2'!$A$1:$BP$170,$K77,FALSE),1) -> 2 | H77: ='Quali 2'!$EK$172 -> 14 | I77: ='Quali 2'!$EK$175 -> 0.2545454545 | J77: 14 Countries (25%) | K77: =IFERROR(MATCH(D77,'Quali 2'!$A$1:$BO$1,0),"") -> 41 | L77: NA | M77: NA | N77: NA | O77: =E77&", 2016 baseline: data not collected" -> 2.c.2.c Gender equitable skills development, 2016 baseline: data not collected
K78: =IFERROR(MATCH(D78,'Quali 2'!$A$1:$BO$1,0),"") -> 
K79: =IFERROR(MATCH(D79,'Quali 2'!$A$1:$BO$1,0),"") -> 
A80: 3 | B80: 4 | D80: 2.a.3. Gender Demand | E80: a.3.a Demand | F80: Demand | G80: =ROUND(VLOOKUP($G$63,'Quali 2'!$A$1:$BP$170,$K80,FALSE),1) -> 2.2 | H80: 4 | K80: =IFERROR(MATCH(D80,'Quali 2'!$A$1:$BO$1,0),"") -> 3 | L80: =G80 -> 2.2
A81: 4 | B81: 5 | D81: 2.a.3 Gender Environment | E81: a.3.b Gender-responsive environment | F81: Gender-responsive environment | G81: =ROUND(VLOOKUP($G$63,'Quali 2'!$A$1:$BP$170,$K81,FALSE),1) -> 2.3 | H81: 4 | K81: =IFERROR(MATCH(D81,'Quali 2'!$A$1:$BO$1,0),"") -> 4 | L81: =G81 -> 2.3
A82: 5 | B82: 6 | D82: 2 a 3 Gender SRGBV | E82: a.3.c SRGBV | F82: SRGBV | G82: =ROUND(VLOOKUP($G$63,'Quali 2'!$A$1:$BP$170,$K82,FALSE),1) -> 2.2 | H82: 4 | K82: =IFERROR(MATCH(D82,'Quali 2'!$A$1:$BO$1,0),"") -> 5 | L82: =G82 -> 2.2
K83: =IFERROR(MATCH(D83,'Quali 2'!$A$1:$BO$1,0),"") -> 
A84: 6 | B84: 10 | D84: 2 a 2 Inclusive Ed Law-Policy | E84: a.2.a.a Law/Policy | F84: Law/Policy | G84: =ROUND(VLOOKUP($G$63,'Quali 2'!$A$1:$BP$170,$K84,FALSE),1) -> 3 | H84: 4 | K84: =IFERROR(MATCH(D84,'Quali 2'!$A$1:$BO$1,0),"") -> 6 | L84: =G84 -> 3
A85: 7 | B85: 11 | D85: 2 a 2 Inclusive Ed Environment | E85: a.2.a.b Physical environment | F85: Physical environment | G85: =ROUND(VLOOKUP($G$63,'Quali 2'!$A$1:$BP$170,$K85,FALSE),1) -> 2 | H85: 4 | K85: =IFERROR(MATCH(D85,'Quali 2'!$A$1:$BO$1,0),"") -> 7 | L85: 2
D86: 2 a 2 Inclusive Ed Materials | E86: a.2.a.c Materials and communication | F86: Materials and communication | G86: =ROUND(VLOOKUP($G$63,'Quali 2'!$A$1:$BP$170,$K86,FALSE),1) -> 2.3 | H86: 4 | K86: =IFERROR(MATCH(D86,'Quali 2'!$A$1:$BO$1,0),"") -> 8 | L86: 2.3
A87: 8 | B87: 13 | D87: 2 a 2 Inclusive Ed HR | E87: a.2.a.d Human Resources | F87: Human Resources | G87: =ROUND(VLOOKUP($G$63,'Quali 2'!$A$1:$BP$170,$K87,FALSE),1) -> 2.1 | H87: 4 | K87: =IFERROR(MATCH(D87,'Quali 2'!$A$1:$BO$1,0),"") -> 9 | L87: 2.1
A88: 9 | B88: 14 | D88: 2 a 2 Inclusive Ed Attitudes | E88: a.2.a.e Attitudes | F88: Attitudes | G88: =ROUND(VLOOKUP($G$63,'Quali 2'!$A$1:$BP$170,$K88,FALSE),1) -> 2.6 | H88: 4 | K88: =IFERROR(MATCH(D88,'Quali 2'!$A$1:$BO$1,0),"") -> 10 | L88: 2.6
A89: 10 | B89: 15 | D89: 2 a 2 Inclusive Ed EMIS | E89: a.2.a.f EMIS | F89: EMIS | G89: =ROUND(VLOOKUP($G$63,'Quali 2'!$A$1:$BP$170,$K89,FALSE),1) -> 2.3 | H89: 4 | K89: =IFERROR(MATCH(D89,'Quali 2'!$A$1:$BO$1,0),"") -> 11 | L89: 2.3
K90: =IFERROR(MATCH(D90,'Quali 2'!$A$1:$BO$1,0),"") -> 
A91: 11 | B91: 21 | D91: 2 a 2 Sector Plan Strategy Access | E91: a.2.b.a Equity strategy | F91: Equity strategy | G91: =ROUND(VLOOKUP($G$63,'Quali 2'!$A$1:$BP$170,$K91,FALSE),1) -> 2.3 | H91: 4 | K91: =IFERROR(MATCH(D91,'Quali 2'!$A$1:$BO$1,0),"") -> 12 | L91: =G91 -> 2.3
A92: 12 | B92: 22 | D92: 2 a 2 Sector Plan Strategy Resources | E92: a.2.b.b Equitable resources. | F92: Equitable resources. | G92: =ROUND(VLOOKUP($G$63,'Quali 2'!$A$1:$BP$170,$K92,FALSE),1) -> 2.1 | H92: 4 | K92: =IFERROR(MATCH(D92,'Quali 2'!$A$1:$BO$1,0),"") -> 13 | L92: =G92 -> 2.1
K93: =IFERROR(MATCH(D93,'Quali 2'!$A$1:$BO$1,0),"") -> 
A94: 13 | B94: 24 | D94: 2 a 2 Emergency PrepRes Assessment | E94: a.2.c.a Risk assessment | F94: Risk assessment | G94: =ROUND(VLOOKUP($G$63,'Quali 2'!$A$1:$BP$170,$K94,FALSE),1) -> 2.3 | H94: 4 | K94: =IFERROR(MATCH(D94,'Quali 2'!$A$1:$BO$1,0),"") -> 14 | L94: =G94 -> 2.3
A95: 14 | B95: 25 | D95: 2 a 2 Emergency PrepRes Strategies | E95: a.2.c.b Risk reduction strategy | F95: Risk reduction strategy | G95: =ROUND(VLOOKUP($G$63,'Quali 2'!$A$1:$BP$170,$K95,FALSE),1) -> 2.3 | H95: 4 | K95: =IFERROR(MATCH(D95,'Quali 2'!$A$1:$BO$1,0),"") -> 15 | L95: =G95 -> 2.3
A96: 15 | B96: 26 | D96: 2 a 2 Emergency PrepRes Resources | E96: a.2.c.c Human and financial resources | F96: Human and financial resources | G96: =ROUND(VLOOKUP($G$63,'Quali 2'!$A$1:$BP$170,$K96,FALSE),1) -> 2.1 | H96: 4 | K96: =IFERROR(MATCH(D96,'Quali 2'!$A$1:$BO$1,0),"") -> 16 | L96: =G96 -> 2.1
K97: =IFERROR(MATCH(D97,'Quali 2'!$A$1:$BO$1,0),"") -> 
A98: 16 | B98: 30 | D98: 2 a 2 EMIS Quality Timeliness | E98: a.2.d.a Data quality and timeliness | F98: Data quality and timeliness | G98: =ROUND(VLOOKUP($G$63,'Quali 2'!$A$1:$BP$170,$K98,FALSE),1) -> 2.3 | H98: 4 | K98: =IFERROR(MATCH(D98,'Quali 2'!$A$1:$BO$1,0),"") -> 17 | L98: =G98 -> 2.3
A99: 17 | B99: 31 | D99: 2 a 2 EMIS Disaggregation | E99: a.2.d.b Data disaggregation | F99: Data disaggregation | G99: =ROUND(VLOOKUP($G$63,'Quali 2'!$A$1:$BP$170,$K99,FALSE),1) -> 2.5 | H99: 4 | K99: =IFERROR(MATCH(D99,'Quali 2'!$A$1:$BO$1,0),"") -> 18 | L99: =G99 -> 2.5
A100: 18 | B100: 32 | D100: 2 a 2 EMIS Attendance DropOut | E100: a.2.d.c Data on attendance and dropout | F100: Data on attendance and dropout | G100: =ROUND(VLOOKUP($G$63,'Quali 2'!$A$1:$BP$170,$K100,FALSE),1) -> 2.1 | H100: 4 | K100: =IFERROR(MATCH(D100,'Quali 2'!$A$1:$BO$1,0),"") -> 19 | L100: =G100 -> 2.1
D101: 2 b 4 Gender-responsive teaching and learning | E101: b.2.b.a Gender-responsive teaching and learning | F101: Gender-responsive teaching and learning | G101: =ROUND(VLOOKUP($G$63,'Quali 2'!$A$1:$BP$170,$K101,FALSE),1) -> 2.1 | K101: =IFERROR(MATCH(D101,'Quali 2'!$A$1:$BO$1,0),"") -> 20 | L101: =CONCATENATE("2.7. Percentage of adolescents not in employment, education or training (NEET), Source : ILO, Baseline Girls = ",TEXT('Data for global profile'!H246/100,"0%")," & Boys ",TEXT('Data for global profile'!H247/100,"0%")) -> 2.7. Percentage of adolescents not in employment, education or training (NEET), Source : ILO, Baseline Girls = 36% & Boys 9%
B102: 42 | D102: 2 b 3 Early Learning Policy | E102: b.2.b.a Policy, leadership and budget | F102: Policy, leadership and budget | G102: =ROUND(VLOOKUP($G$63,'Quali 2'!$A$1:$BP$170,$K102,FALSE),1) -> 2.5 | H102: 4 | K102: =IFERROR(MATCH(D102,'Quali 2'!$A$1:$BO$1,0),"") -> 21 | L102: =G102 -> 2.5
B103: 43 | D103: 2 b 3 Early Learning Governance | E103: b.2.b.b Governance | F103: Governance | G103: =ROUND(VLOOKUP($G$63,'Quali 2'!$A$1:$BP$170,$K103,FALSE),1) -> 2.2 | H103: 4 | K103: =IFERROR(MATCH(D103,'Quali 2'!$A$1:$BO$1,0),"") -> 22 | L103: 2.2
B104: 44 | D104: 2 b 3 Early Learning Environment | E104: b.2.b.c Teaching and learning environment | F104: Teaching and learning environment | G104: =ROUND(VLOOKUP($G$63,'Quali 2'!$A$1:$BP$170,$K104,FALSE),1) -> 2.3 | H104: 4 | K104: =IFERROR(MATCH(D104,'Quali 2'!$A$1:$BO$1,0),"") -> 23 | L104: 2.3
B105: 45 | K105: =IFERROR(MATCH(D105,'Quali 2'!$A$1:$BO$1,0),"") -> 
B106: 46 | D106: 2 b 3 Learning Assessments Classroom | E106: b.2.c.a Classroom assessment | F106: Classroom assessment | G106: =ROUND(VLOOKUP($G$63,'Quali 2'!$A$1:$BP$170,$K106,FALSE),1) -> 2.3 | H106: 4 | K106: =IFERROR(MATCH(D106,'Quali 2'!$A$1:$BO$1,0),"") -> 24 | L106: 2.3
D107: 2 b 3 Learning Assessments Exams | E107: b.2.c.b Examinations | F107: Examinations | G107: =ROUND(VLOOKUP($G$63,'Quali 2'!$A$1:$BP$170,$K107,FALSE),1) -> 2.5 | H107: 4 | K107: =IFERROR(MATCH(D107,'Quali 2'!$A$1:$BO$1,0),"") -> 25 | L107: 2.5
A108: 19 | B108: 48 | D108: 2 b 3 Learning Assessments NLSA | E108: b.2.c.c National large-scale assessment | F108: National large-scale assessment | G108: =ROUND(VLOOKUP($G$63,'Quali 2'!$A$1:$BP$170,$K108,FALSE),1) -> 2.3 | H108: 4 | K108: =IFERROR(MATCH(D108,'Quali 2'!$A$1:$BO$1,0),"") -> 26 | L108: 2.3
A109: 20 | B109: 49 | K109: =IFERROR(MATCH(D109,'Quali 2'!$A$1:$BO$1,0),"") -> 
A110: 21 | B110: 50 | D110: 2 b 3 Mother Tongue Multi Policy | E110: b.2.d.a Policy environment | F110: Policy environment | G110: =ROUND(VLOOKUP($G$63,'Quali 2'!$A$1:$BP$170,$K110,FALSE),1) -> 2.6 | H110: 4 | K110: =IFERROR(MATCH(D110,'Quali 2'!$A$1:$BO$1,0),"") -> 27 | L110: 2.6
D111: 2 b 3 Mother Tongue Multi Resources | E111: b.2.d.b Resources | F111: Resources | G111: =ROUND(VLOOKUP($G$63,'Quali 2'!$A$1:$BP$170,$K111,FALSE),1) -> 2.2 | H111: 4 | K111: =IFERROR(MATCH(D111,'Quali 2'!$A$1:$BO$1,0),"") -> 28 | L111: 2.2
B112: 51 | D112: 2 b 3 Mother Tongue Multi Community | E112: b.2.d.c Community engagement | F112: Community engagement | G112: =ROUND(VLOOKUP($G$63,'Quali 2'!$A$1:$BP$170,$K112,FALSE),1) -> 2.6 | H112: 4 | K112: =IFERROR(MATCH(D112,'Quali 2'!$A$1:$BO$1,0),"") -> 29 | L112: 2.6
K113: =IFERROR(MATCH(D113,'Quali 2'!$A$1:$BO$1,0),"") -> 
A114: 39 | B114: 53 | D114: 2 b 3 Teachers Prof Dev | E114: b.2.e.a Teacher professional development | F114: Teacher professional development | G114: =ROUND(VLOOKUP($G$63,'Quali 2'!$A$1:$BP$170,$K114,FALSE),1) -> 2.2 | H114: 4 | K114: =IFERROR(MATCH(D114,'Quali 2'!$A$1:$BO$1,0),"") -> 30 | L114: 2.2
A115: 40 | B115: 54 | D115: 2 b 3 Teachers Leadership | E115: b.2.e.b School leadership | F115: School leadership | G115: =ROUND(VLOOKUP($G$63,'Quali 2'!$A$1:$BP$170,$K115,FALSE),1) -> 2.2 | H115: 4 | K115: =IFERROR(MATCH(D115,'Quali 2'!$A$1:$BO$1,0),"") -> 31 | L115: 2.2
A116: 41 | B116: 55 | D116: 2 b 3 Teachers Incentive | E116: b.2.e.c Incentives | F116: Incentives | G116: =ROUND(VLOOKUP($G$63,'Quali 2'!$A$1:$BP$170,$K116,FALSE),1) -> 1.6 | H116: 4 | K116: =IFERROR(MATCH(D116,'Quali 2'!$A$1:$BO$1,0),"") -> 32 | L116: 1.6
D117: 2 b 3 Teachers Accountability | E117: b.2.e.d Accountability | F117: Accountability | G117: =ROUND(VLOOKUP($G$63,'Quali 2'!$A$1:$BP$170,$K117,FALSE),1) -> 2 | H117: 4 | K117: =IFERROR(MATCH(D117,'Quali 2'!$A$1:$BO$1,0),"") -> 33 | L117: 2
A118: 35 | B118: 57 | K118: =IFERROR(MATCH(D118,'Quali 2'!$A$1:$BO$1,0),"") -> 
A119: 36 | B119: 58 | D119: 2 b 3 Community Participation | E119: b.2.f.a Community and student participation | F119: Community/ Stud. participation | G119: =ROUND(VLOOKUP($G$63,'Quali 2'!$A$1:$BP$170,$K119,FALSE),1) -> 2.5 | H119: 4 | K119: =IFERROR(MATCH(D119,'Quali 2'!$A$1:$BO$1,0),"") -> 34 | L119: 2.5
A120: 37 | B120: 59 | D120: 2 b 3 Community Accountability | E120: b.2.f.b Accountability | F120: Accountability | G120: =ROUND(VLOOKUP($G$63,'Quali 2'!$A$1:$BP$170,$K120,FALSE),1) -> 2.4 | H120: 4 | K120: =IFERROR(MATCH(D120,'Quali 2'!$A$1:$BO$1,0),"") -> 35 | L120: 2.4
A121: 38 | B121: 60 | D121: 2 b 3 Community Monitoring | E121: b.2.f.c Monitoring | F121: Monitoring | G121: =ROUND(VLOOKUP($G$63,'Quali 2'!$A$1:$BP$170,$K121,FALSE),1) -> 2.3 | H121: 4 | K121: =IFERROR(MATCH(D121,'Quali 2'!$A$1:$BO$1,0),"") -> 36 | L121: 2.3
K122: =IFERROR(MATCH(D122,'Quali 2'!$A$1:$BO$1,0),"") -> 
A123: 22 | B123: 63 | D123: 2 c 2 Mainstreaming Policies Plans | E123: c.2.a.a Policies and plans | F123: Policies and plans | G123: =ROUND(VLOOKUP($G$63,'Quali 2'!$A$1:$BP$170,$K123,FALSE),1) -> 2.1 | H123: 4 | K123: =IFERROR(MATCH(D123,'Quali 2'!$A$1:$BO$1,0),"") -> 37 | L123: 2.1
A124: 23 | B124: 64 | D124: 2 c 2 Mainstreaming Curricula Training | E124: c.2.a.b Curricula and training | F124: Curricula and training | G124: =ROUND(VLOOKUP($G$63,'Quali 2'!$A$1:$BP$170,$K124,FALSE),1) -> 2 | H124: 4 | K124: =IFERROR(MATCH(D124,'Quali 2'!$A$1:$BO$1,0),"") -> 38 | L124: 2
A125: 24 | B125: 65 | D125: 2 c 2 Mainstreaming Community Eng | E125: c.2.a.c Community engagement | F125: Community engagement | G125: =ROUND(VLOOKUP($G$63,'Quali 2'!$A$1:$BP$170,$K125,FALSE),1) -> 1.8 | H125: 4 | K125: =IFERROR(MATCH(D125,'Quali 2'!$A$1:$BO$1,0),"") -> 39 | L125: 1.8
A126: 25 | B126: 66 | K126: =IFERROR(MATCH(D126,'Quali 2'!$A$1:$BO$1,0),"") -> 
A127: 26 | B127: 67 | D127: 2 c 2 Labour Market | E127: c.2.b.a Responsiveness to demand | F127: =RIGHT(E127,LEN(E127)-8) -> Responsiveness to demand | G127: =ROUND(VLOOKUP($G$63,'Quali 2'!$A$1:$BP$170,$K127,FALSE),1) -> 1.7 | H127: 4 | K127: =IFERROR(MATCH(D127,'Quali 2'!$A$1:$BO$1,0),"") -> 40 | L127: 1.7
D128: 2 c 2 Gender | E128: c.2.b.c Gender equity in opportunities for skills development | F128: =RIGHT(E128,LEN(E128)-8) -> Gender equity in opportunities for skills development | G128: =ROUND(VLOOKUP($G$63,'Quali 2'!$A$1:$BP$170,$K128,FALSE),1) -> 2 | K128: =IFERROR(MATCH(D128,'Quali 2'!$A$1:$BO$1,0),"") -> 41
A130: 46 | B130: 34 | E130: 7.a UNICEF Targetted | F130: =RIGHT(E130,LEN(E130)-4) -> UNICEF Targetted | G130: ='Quali 2'!$AV$170 -> 342088 | H130: 4 | L130: 10209333
A131: 47 | B131: 35 | E131: 7.b UNICEF Reached | F131: =RIGHT(E131,LEN(E131)-4) -> UNICEF Reached | G131: ='Quali 2'!$AW$170 -> 11289748 | H131: 4 | L131: 5980443
A132: 48 | B132: 36 | E132: 7.c All partners Targetted | F132: All partners Targetted | G132: ='Quali 2'!$AX$170 -> 55639 | H132: 4 | L132: 2083893
A133: 49 | B133: 37 | E133: 7.d All partners Reached | F133: All partners Reached | G133: ='Quali 2'!$AY$170 -> 1999442 | H133: 4 | L133: 231002
B134: 38 | E134: 7.e How many of those targeted (planned) children did access primary education? Please provide disaggregated data for boys and girls in the remarks column separating two values with a slash symbol (boys/girls). | F134: How many of those targeted (planned) children did access primary education? Please provide disaggregated data for boys and girls in the remarks column separating two values with a slash symbol (boys/girls). | H134: 4 | L134: 4253664
B135: 39 | E135: 7.f How many of those targeted (planned) children did access secondary education? Please provide disaggregated data for boys and girls in the remarks column separating two values with a slash symbol (boys/girls). | F135: How many of those targeted (planned) children did access secondary education? Please provide disaggregated data for boys and girls in the remarks column separating two values with a slash symbol (boys/girls). | H135: 4 | L135: 151567
B136: 40 | E136: 7.g How many of those targeted (planned) children did access non-formal education? Please provide disaggregated data for boys and girls in the remarks column separating two values with a slash symbol (boys/girls). | F136: How many of those targeted (planned) children did access non-formal education? Please provide disaggregated data for boys and girls in the remarks column separating two values with a slash symbol (boys/girls). | H136: 4 | L136: 638920
H138: 4 | L138: 2.152380952
A139: 42 | E139: 15. Has the country office/staff authored any paper in peer-reviewed journal on Education issues? (If yes, list the paper and journal in the remarks) | F139: Has the country office/staff authored any paper in peer-reviewed journal on Education issues? (If yes, list the paper and journal in the remarks) | G139: ='Quali 2'!AQ170 -> 4968296 | H139: 4 | L139: 1.9
E140: 16. What is girls’ secondary school gross enrolment rate? Please indicate the year for which the data is available in the remarks column. | L140: 2.059405941
A141: 32 | E141: 16.a Is girls’ secondary schooling specifically mentioned as a priority in the national strategy/plan on education? | F141: Mention of girls’ secondary schooling mentioned as a priority in the national strategy/plan on education | G141: ='Quali 2'!$AF$170 -> 1.62 | H141: 4 | L141: 2.009708738
A142: 33 | E142: 16.b Does the national strategy mention specific targets for at least one of the following: increasing girls’ secondary school enrolment, retention, or completion? | F142: National strategy mentioning specific targets for at least one of the following: increasing girls’ secondary school enrolment, retention, or completion? | G142: ='Quali 2'!$AG$170 -> 1.961538462 | H142: 4 | L142: 0.07382550336
A143: 34 | E143: 16.c Does the national strategy specify a budget line for improving girls’ secondary schooling? | F143: National strategy specifying a budget line for improving girls’ secondary schooling | G143: ='Quali 2'!$AH$170 -> 2.531578947 | H143: 4 | L143: 57.42929577
E144: 16.a Is girls’ secondary schooling specifically mentioned as a priority in the national strategy/plan on education? | F144: =F141 -> Mention of girls’ secondary schooling mentioned as a priority in the national strategy/plan on education | H144: 4 | L144: 0.357615894
E145: 16.b Does the national strategy mention specific targets for at least one of the following: increasing girls’ secondary school enrolment, retention, or completion? | F145: =F141 -> Mention of girls’ secondary schooling mentioned as a priority in the national strategy/plan on education | H145: 4 | L145: 0.32
E146: 16.c Does the national strategy specify a budget line for improving girls’ secondary schooling? | F146: =F142 -> National strategy mentioning specific targets for at least one of the following: increasing girls’ secondary school enrolment, retention, or completion? | H146: 4 | L146: 0.1666666667
M148: Baseline
H149: 2 | I149: =VLOOKUP(G7,$B$151:$C$158,2,FALSE) -> 30 | K149: 1 | P149: 2 | Q149: 1 | R149: 3 | U149: 2 | V149: 1
C150: Baseline | D150: Current | H150: Yes % | I150: Yes | J150: Total Number of Countries | K150: No | L150: Benchmark number of Countries | M150: Yes | N150: Total | P150: Yes % | Q150: No | R150: SP Target | S150: Target % | T150: Target % | U150: Yes % | V150: No | W150: Target Countries
B151: CEE/CIS | C151: 2 | D151: 2 | E151: P5.a.1. SMCs | H151: ='Quali 2'!D184 -> 0 | I151: ='Quali 2'!$B$184 -> 0 | J151: =I151+K151 -> 0 | K151: ='Quali 2'!$C$184 -> 0 | L151: =CONCATENATE(I151, " Countries ", "(", TEXT(H151,"0%"),")") -> 0 Countries (0%) | M151: =VLOOKUP($G$63,'BL Quali 2'!$A$178:$BY$185, $C151, FALSE) -> 55 | N151: =M151+Q151 -> 55.39568345 | P151: =VLOOKUP($G$63,'BL Quali 2'!$A$178:$BY$185, $C151+$P$149, FALSE) -> 139 | Q151: =VLOOKUP($G$63,'BL Quali 2'!$A$178:$BY$185, $C151+$Q$149, FALSE) -> 0.3956834532 | R151: =VLOOKUP($G$63,'BL Quali 2'!$A$178:$BY$185, $C151+$R$149, FALSE) -> 22 | S151: 0.47 | T151: 0.8382352941 | U151: =VLOOKUP($G$63,'BL Quali 2'!$A$178:$BY$185, $C151+$P$149, FALSE) -> 139 | V151: =VLOOKUP($G$63,'BL Quali 2'!$A$178:$BY$185, $C151+$Q$149, FALSE) -> 0.3956834532 | W151: =CONCATENATE(R151, " Countries") -> 22 Countries
B152: EAPR | C152: 6 | D152: 5 | E152: P5.a.2. EMIS Feedback | H152: ='Quali 2'!G184 -> 0 | I152: ='Quali 2'!E184 -> 0 | J152: =I152+K152 -> 0 | K152: ='Quali 2'!$F$184 -> 0 | L152: =CONCATENATE(I152, " Countries ", "(", TEXT(H152,"0%"),")") -> 0 Countries (0%) | M152: =VLOOKUP($G$63,'BL Quali 2'!$A$178:$BY$185, $C152, FALSE) -> 0.1774193548 | N152: =M152+Q152 -> 124.1774194 | P152: =VLOOKUP($G$63,'BL Quali 2'!$A$178:$BY$185, $C152+$P$149, FALSE) -> 41 | Q152: =VLOOKUP($G$63,'BL Quali 2'!$A$178:$BY$185, $C152+$Q$149, FALSE) -> 124 | R152: =VLOOKUP($G$63,'BL Quali 2'!$A$178:$BY$185, $C152+$R$149, FALSE) -> 0.3153846154 | S152: 0.43 | T152: 0.8412698413 | U152: =VLOOKUP($G$63,'BL Quali 2'!$A$178:$BY$185, $C152+$P$149, FALSE) -> 41 | V152: =VLOOKUP($G$63,'BL Quali 2'!$A$178:$BY$185, $C152+$Q$149, FALSE) -> 124 | W152: =CONCATENATE(R152, " Countries") -> 0.315384615384615 Countries
B153: ESAR | C153: 10 | D153: 8 | E153: P5.b.1 Innovations | H153: ='Quali 2'!J184 -> 0 | I153: ='Quali 2'!H184 -> 0 | J153: 0 | K153: ='Quali 2'!$I$184 -> 0 | L153: 0 Countries (0%) | M153: =VLOOKUP($G$63,'BL Quali 2'!$A$178:$BY$185, $C153, FALSE) -> 130 | N153: 170 | P153: =VLOOKUP($G$63,'BL Quali 2'!$A$178:$BY$185, $C153+$P$149, FALSE) -> 0.3225806452 | Q153: =VLOOKUP($G$63,'BL Quali 2'!$A$178:$BY$185, $C153+$Q$149, FALSE) -> 40 | R153: =VLOOKUP($G$63,'BL Quali 2'!$A$178:$BY$185, $C153+$R$149, FALSE) -> 124 | S153: 0.4 | T153: 0.7462686567 | U153: =VLOOKUP($G$63,'BL Quali 2'!$A$178:$BY$185, $C153+$P$149, FALSE) -> 0.3225806452 | V153: =VLOOKUP($G$63,'BL Quali 2'!$A$178:$BY$185, $C153+$Q$149, FALSE) -> 40 | W153: 124 Countries
B154: MENA | C154: 14 | D154: 11 | E154: P5.b.2. Child Friendly Schools | H154: ='Quali 2'!M184 -> 0 | I154: ='Quali 2'!$K$184 -> 0 | J154: 0 | K154: ='Quali 2'!$L$184 -> 0 | L154: 0 Countries (0%) | M154: =VLOOKUP($G$63,'BL Quali 2'!$A$178:$BY$185, $C154, FALSE) -> 34 | N154: 34.29059829 | P154: =VLOOKUP($G$63,'BL Quali 2'!$A$178:$BY$185, $C154+$P$149, FALSE) -> 117 | Q154: =VLOOKUP($G$63,'BL Quali 2'!$A$178:$BY$185, $C154+$Q$149, FALSE) -> 0.2905982906 | R154: =VLOOKUP($G$63,'BL Quali 2'!$A$178:$BY$185, $C154+$R$149, FALSE) -> 29 | S154: 0.91 | T154: 0.9338235294 | U154: =VLOOKUP($G$63,'BL Quali 2'!$A$178:$BY$185, $C154+$P$149, FALSE) -> 117 | V154: =VLOOKUP($G$63,'BL Quali 2'!$A$178:$BY$185, $C154+$Q$149, FALSE) -> 0.2905982906 | W154: 29 Countries
B155: SA | C155: 18 | D155: 14 | E155: P5.c.1. learning Assessment | H155: ='Quali 2'!P184 -> 0 | I155: ='Quali 2'!$N$184 -> 0 | J155: 0 | K155: ='Quali 2'!$O$184 -> 0 | L155: 0 Countries (0%) | M155: =VLOOKUP($G$63,'BL Quali 2'!$A$178:$BY$185, $C155, FALSE) -> 0.2148148148 | N155: 135.2148148 | P155: =VLOOKUP($G$63,'BL Quali 2'!$A$178:$BY$185, $C155+$P$149, FALSE) -> 49 | Q155: =VLOOKUP($G$63,'BL Quali 2'!$A$178:$BY$185, $C155+$Q$149, FALSE) -> 135 | R155: =VLOOKUP($G$63,'BL Quali 2'!$A$178:$BY$185, $C155+$R$149, FALSE) -> 0.4454545455 | S155: 0.76 | T155: 0.9117647059 | U155: =VLOOKUP($G$63,'BL Quali 2'!$A$178:$BY$185, $C155+$P$149, FALSE) -> 49 | V155: =VLOOKUP($G$63,'BL Quali 2'!$A$178:$BY$185, $C155+$Q$149, FALSE) -> 135 | W155: 0.445454545454545 Countries
B156: LACR | C156: 22 | D156: 17 | E156: P5.c.2. Early Learning | H156: ='Quali 2'!S184 -> 0 | I156: ='Quali 2'!$Q$184 -> 0 | J156: 0 | K156: ='Quali 2'!$R$184 -> 0 | L156: 0 Countries (0%) | M156: =VLOOKUP($G$63,'BL Quali 2'!$A$178:$BY$185, $C156, FALSE) -> 110 | N156: 148 | P156: =VLOOKUP($G$63,'BL Quali 2'!$A$178:$BY$185, $C156+$P$149, FALSE) -> 0.4 | Q156: =VLOOKUP($G$63,'BL Quali 2'!$A$178:$BY$185, $C156+$Q$149, FALSE) -> 38 | R156: =VLOOKUP($G$63,'BL Quali 2'!$A$178:$BY$185, $C156+$R$149, FALSE) -> 95 | S156: 0.7 | T156: 0.8740740741 | U156: =VLOOKUP($G$63,'BL Quali 2'!$A$178:$BY$185, $C156+$P$149, FALSE) -> 0.4 | V156: =VLOOKUP($G$63,'BL Quali 2'!$A$178:$BY$185, $C156+$Q$149, FALSE) -> 38 | W156: 95 Countries
B157: WCAR | C157: 26 | D157: 20 | E157: P5.c.3. Risk Asst & Mgt | H157: ='Quali 2'!V184 -> 0 | I157: ='Quali 2'!$T$184 -> 0 | J157: 0 | K157: ='Quali 2'!$U$184 -> 0 | L157: 0 Countries (0%) | M157: =VLOOKUP($G$63,'BL Quali 2'!$A$178:$BY$185, $C157, FALSE) -> 22 | N157: 22.20560748 | P157: =VLOOKUP($G$63,'BL Quali 2'!$A$178:$BY$185, $C157+$P$149, FALSE) -> 107 | Q157: =VLOOKUP($G$63,'BL Quali 2'!$A$178:$BY$185, $C157+$Q$149, FALSE) -> 0.2056074766 | R157: =VLOOKUP($G$63,'BL Quali 2'!$A$178:$BY$185, $C157+$R$149, FALSE) -> 66 | S157: 1 | T157: 0.738317757 | U157: =VLOOKUP($G$63,'BL Quali 2'!$A$178:$BY$185, $C157+$P$149, FALSE) -> 107 | V157: =VLOOKUP($G$63,'BL Quali 2'!$A$178:$BY$185, $C157+$Q$149, FALSE) -> 0.2056074766 | W157: 66 Countries
B158: World | C158: 30 | D158: 23 | E158: P5.e.2. EMIS BNA | H158: ='Quali 2'!Y184 -> 0 | I158: ='Quali 2'!$W$184 -> 0 | J158: 0 | K158: ='Quali 2'!$X$184 -> 0 | L158: 0 Countries (0%) | M158: =VLOOKUP($G$63,'BL Quali 2'!$A$178:$BY$185, $C158, FALSE) -> 0.5 | N158: =M158+Q158 -> 132.5 | P158: =VLOOKUP($G$63,'BL Quali 2'!$A$178:$BY$185, $C158+$P$149, FALSE) -> 17 | Q158: =VLOOKUP($G$63,'BL Quali 2'!$A$178:$BY$185, $C158+$Q$149, FALSE) -> 132 | R158: =VLOOKUP($G$63,'BL Quali 2'!$A$178:$BY$185, $C158+$R$149, FALSE) -> 0.1619047619 | S158: 0.75 | T158: 0.9029850746 | U158: =VLOOKUP($G$63,'BL Quali 2'!$A$178:$BY$185, $C158+$P$149, FALSE) -> 17 | V158: =VLOOKUP($G$63,'BL Quali 2'!$A$178:$BY$185, $C158+$Q$149, FALSE) -> 132 | W158: 0.161904761904762 Countries
C159: 38 | D159: 29 | E159: P5.e.3. Inclusive Education | H159: ='Quali 2'!AE184 -> 0 | I159: ='Quali 2'!$AC$184 -> 0 | J159: 0 | K159: ='Quali 2'!$AD$184 -> 0 | L159: 0 Countries (0%) | M159: =VLOOKUP($G$63,'BL Quali 2'!$A$178:$BY$185, $C159, FALSE) -> 2 | N159: 2.045454545 | P159: =VLOOKUP($G$63,'BL Quali 2'!$A$178:$BY$185, $C159+$P$149, FALSE) -> 44 | Q159: =VLOOKUP($G$63,'BL Quali 2'!$A$178:$BY$185, $C159+$Q$149, FALSE) -> 0.04545454545 | R159: =VLOOKUP($G$63,'BL Quali 2'!$A$178:$BY$185, $C159+$R$149, FALSE) -> NA | S159: 0.46 | T159: 0.8970588235 | U159: =VLOOKUP($G$63,'BL Quali 2'!$A$178:$BY$185, $C159+$P$149, FALSE) -> 44 | V159: =VLOOKUP($G$63,'BL Quali 2'!$A$178:$BY$185, $C159+$Q$149, FALSE) -> 0.04545454545 | W159: NA Countries
C160: 42 | D160: 32 | E160: P5.e.4. SRGBV | H160: ='Quali 2'!AH184 -> 0 | I160: ='Quali 2'!$AF$184 -> 0 | J160: 0 | K160: ='Quali 2'!$AG$184 -> 0 | L160: 0 Countries (0%) | M160: =VLOOKUP($G$63,'BL Quali 2'!$A$178:$BY$185, $C160, FALSE) -> NA | P160: =VLOOKUP($G$63,'BL Quali 2'!$A$178:$BY$185, $C160+$P$149, FALSE) -> 0 | Q160: =VLOOKUP($G$63,'BL Quali 2'!$A$178:$BY$185, $C160+$Q$149, FALSE) -> NA | R160: =VLOOKUP($G$63,'BL Quali 2'!$A$178:$BY$185, $C160+$R$149, FALSE) -> 0 | S160: 0.32 | T160: 0.7663551402 | U160: =VLOOKUP($G$63,'BL Quali 2'!$A$178:$BY$185, $C160+$P$149, FALSE) -> 0 | V160: =VLOOKUP($G$63,'BL Quali 2'!$A$178:$BY$185, $C160+$Q$149, FALSE) -> NA | W160: 0 Countries
D161: 35 | E161: P5.s.1 Girls' Sec. Ed. | H161: ='Quali 2'!AK184 -> 0 | I161: ='Quali 2'!$AI$184 -> 0 | J161: 0 | K161: ='Quali 2'!$AJ$184 -> 0 | L161: 0 Countries (0%) | N161: 0 | R161: =VLOOKUP($G$63,'BL Quali 2'!$A$178:$BY$185, $C161+$R$149, FALSE) -> 0.3956834532 | S161: 0.4 | W161: 0.39568345323741 Countries
C162: 34 | D162: 26 | E162: P5.s.2 Multilingual Education | H162: ='Quali 2'!AB184 -> 0 | I162: ='Quali 2'!$Z$184 -> 0 | J162: 0 | K162: ='Quali 2'!$AA$184 -> 0 | L162: 0 Countries (0%) | M162: =VLOOKUP($G$63,'BL Quali 2'!$A$178:$BY$185, $C162, FALSE) -> 105 | N162: 111 | P162: =VLOOKUP($G$63,'BL Quali 2'!$A$178:$BY$185, $C162+$P$149, FALSE) -> 0.06666666667 | Q162: =VLOOKUP($G$63,'BL Quali 2'!$A$178:$BY$185, $C162+$Q$149, FALSE) -> 6 | R162: =VLOOKUP($G$63,'BL Quali 2'!$A$178:$BY$185, $C162+$R$149, FALSE) -> 90 | S162: 0.65 | T162: 0.8727272727 | U162: =VLOOKUP($G$63,'BL Quali 2'!$A$178:$BY$185, $C162+$P$149, FALSE) -> 0.06666666667 | V162: =VLOOKUP($G$63,'BL Quali 2'!$A$178:$BY$185, $C162+$Q$149, FALSE) -> 6 | W162: 90 Countries
C163: 50 | E163: P5.d.3. CCC for Coordi. | H163: =IFERROR(VLOOKUP($G$63,'Quali 2'!$A$177:$BP$184,$D163,FALSE),"N/A") -> N/A | I163: =VLOOKUP($G$63,'Quali 2'!$A$177:$BP$184,$D163,FALSE) ->  | K163: =VLOOKUP($G$63,'Quali 2'!$A$177:$BP$184,$D163+$H$146,FALSE) -> 0 | L163: =CONCATENATE(I163, " Countries") ->  | M163: =VLOOKUP($G$63,'BL Quali 2'!$A$178:$BY$185, $C163, FALSE) -> 0 | N163: 0 | P163: =VLOOKUP($G$63,'BL Quali 2'!$A$178:$BY$185, $C163+$P$149, FALSE) -> 0 | Q163: =VLOOKUP($G$63,'BL Quali 2'!$A$178:$BY$185, $C163+$Q$149, FALSE) -> 0 | R163: =VLOOKUP($G$63,'BL Quali 2'!$A$178:$BY$185, $C163+$R$149, FALSE) -> 0 | S163: =R163/(Q163+M163) ->  | U163: =VLOOKUP($G$63,'BL Quali 2'!$A$178:$BY$185, $C163+$P$149, FALSE) -> 0 | V163: =VLOOKUP($G$63,'BL Quali 2'!$A$178:$BY$185, $C163+$Q$149, FALSE) -> 0 | W163: 0 Countries
E164: P5.f.2 Number of peer-reviewed journal or research publications by UNICEF on Education | H164: ='Quali 2'!AQ170 -> 4968296 | I164: =VLOOKUP($G$63,'Quali 2'!$A$177:$BP$184,$D164,FALSE) ->  | K164: =VLOOKUP($G$63,'Quali 2'!$A$177:$BP$184,$D164+$H$146,FALSE) -> 0 | L164: =CONCATENATE(I164, " Countries") ->  | M164: =VLOOKUP($G$63,'BL Quali 2'!$A$178:$BY$185, $C164, FALSE) ->  | N164: =M164+Q164 ->  | P164: =VLOOKUP($G$63,'BL Quali 2'!$A$178:$BY$185, $C164+$P$149, FALSE) -> 55 | Q164: =VLOOKUP($G$63,'BL Quali 2'!$A$178:$BY$185, $C164+$Q$149, FALSE) -> World | R164: =VLOOKUP($G$63,'BL Quali 2'!$A$178:$BY$185, $C164+$R$149, FALSE) -> 0.3956834532 | S164: =R164/(Q164+M164) ->  | T164: 0.8382352941 | U164: =VLOOKUP($G$63,'BL Quali 2'!$A$178:$BY$185, $C164+$P$149, FALSE) -> 55 | V164: =VLOOKUP($G$63,'BL Quali 2'!$A$178:$BY$185, $C164+$Q$149, FALSE) -> World
D167: A/ Context | K167: Level | L167: Enrolment | M167: 2017 Pop | N167: 2030 Pop
D168: 1. GDP | K168: Pre-primary | L168: =G173/1000 -> 120115.374 | M168: =(G171)/1000 -> 311532.4 | N168: =(G172)/1000 -> 312772.007
D169: 2. Population and enrolment by level of education (thousands) | F169: GDP per capita | G169: =Master!AQ179 -> 11302.665 | K169: Primary | L169: =G176/1000 -> 629210.899 | M169: =(G174)/1000 -> 646147.578 | N169: =(G175)/1000 -> 681879.974
D170: Pre-primary | K170: Secondary | L170: =IFERROR(G179/1000,"") -> 464237.059 | M170: =(G177)/1000 -> 646147.578 | N170: =(G178)/1000 -> 757657.154
F171: 2017 Pop | G171: =Master!AS179 -> 311532400
F172: 2030 Pop | G172: =Master!AV179 -> 312772007
D173: Primary | F173: Enrolment | G173: =Master!AY179 -> 120115374
F174: 2017 Pop | G174: =Master!AT179 -> 646147578
F175: 2030 Pop | G175: =Master!AW179 -> 681879974
D176: Secondary | F176: Enrolment | G176: =Master!AZ179 -> 629210899
F177: 2017 Pop | G177: =Master!AU179 -> 646147578
F178: 2030 Pop | G178: =Master!AX179 -> 757657154
F179: Enrolment | G179: =Master!BA179 -> 464237059
D180: Net Enroment Rate
F181: Pre-primary
F182: Primary
F183: Secondary
D184: 3. Poverty
F185: Human Capita index | G185: =Master!EX179 -> 0.4981666983
F186: Adjusted-Learning Years of School | G186: =Master!EY179 -> 6.70896687
F187: Harmonized test scores | G187: =Master!FG179 -> 430.2092126
F188: GDP per capita, PPP (constant 2011 international $) | G188: =Master!AQ179 -> 11302.665
F189: % Children in extreme poverty | G189: =Master!BE179 -> 19.55583333
F190: Under five mortality rate | G190: =Master!BF179 -> 37.94965517
D192: 4. Fragiliy
F193: Total refugees
F194: Of which Child and adolescent refugees
D195: 5. government expenditures in education | I195: % Countries reaching the benchmark
E196: Preprimary | F196: % of government expenditures for pre primary education | G196: =Master!BH179 -> 6.840898987 | I196: =Master!Y236 -> 17.82178218
E197: Primary | F197: % of government expenditures for Primary education | G197: =Master!BI179 -> 38.49853128 | I197: 48 | J197: =50-I197 -> 2
E198: Secondary | F198: % of government expenditures for secondary education | G198: =Master!BJ179 -> 33.68047144
E199: Education | F199: % of government expenditures for education | G199: =Master!BG179 -> 15.33010535 | I199: 18 | J199: 2
D201: B/ Key Outcome / impact indicators | G201: 1 | H201: 2 | I201: 3 | J201: SP Target | K201: % Countries reaching the benchmark
G202: Both | H202: Girls | I202: Boys
D203: I. Completion rate | F203: Primary GIR LG | G203: =Master!N179 -> 89.99796033 | H203: =Master!P179 -> 89.32394 | I203: =Master!R179 -> 89.90863 | J203: 92 | K203: =Master!N236 -> 53.48837209 | L203: =Master!P236 -> 52.34375 | M203: =Master!R236 -> 53.90625
F204: Lower sec GIR LG | G204: =Master!CH179 -> 76.56941545 | H204: =Master!CJ179 -> 77.07459 | I204: =Master!CL179 -> 76.48386 | J204: 83 | K204: =Master!CH236 -> 41.40625 | L204: =Master!CJ236 -> 46.45669291 | M204: =Master!CL236 -> 37.00787402
D207: J. GER upper secondary | F207: GER upper secondary | G207: =Master!CB179 -> 64.96190407 | H207: =Master!CD179 -> 64.29154501 | I207: =Master!CF179 -> 65.48919328 | J207: 77 | K207: =Master!CB$236 -> 44.18604651 | L207: =Master!CD$236 -> 48.03149606 | M207: =Master!CE$236 -> 40.15748031
D209: 2.1 . Percentage of countries with gender disparity Gender disparities | F209: Level | G209: ="Boys, "&O215 -> Boys, - - - - | H209: ="Girls, "&P215 -> Girls, - - - - | I209: Boys | J209: Girls | K209: Boys | L209: Girls | M209: Boys | N209: Girls | O209: Boys | P209: Girls
G210: % Countries | I210: # Countries | K210: Label | M210: Target | O210: Signe
F211: Primary | G211: =Master!S200 -> 28 | H211: =Master!T200 -> 31 | I211: =G211*Master!$T$189/100 -> 35.84 | J211: =H211*Master!$T$189/100 -> 39.68 | K211: =I211&" Countries ("&TEXT(G211,"0")&"%)" -> 35.84 Countries (28%) | L211: 39.68 Countries (31%) | M211: 19 | N211: 18 | O211: =IF(I211>M211,"-","+") -> - | P211: - | Q211: =M211+N211 -> 37 | R211: 19 | S211: 18
F212: Lower sec | G212: =Master!CM200 -> 56 | H212: =Master!CN200 -> 30 | I212: =G212*Master!$CN$189/100 -> 71.12 | J212: =H212*Master!$CN$189/100 -> 38.1 | K212: 71.12 Countries (56%) | L212: 38.1 Countries (30%) | M212: 30 | N212: 26 | O212: - | P212: - | Q212: =M212+N212 -> 56 | R212: 30 | S212: 26
F213: Upper Sec | G213: =Master!CF200 -> 59 | H213: =Master!CG200 -> 44 | I213: =G213*Master!$CG$189/100 -> 74.93 | J213: =H213*Master!$CG$189/100 -> 55.88 | K213: 74.93 Countries (59%) | L213: 55.88 Countries (44%) | M213: 35 | N213: 28 | O213: - | P213: - | Q213: =M213+N213 -> 63 | R213: 35 | S213: 28
F214: Global | G214: =Master!CO200 -> 58 | H214: =Master!CP200 -> 37 | I214: =G214*Master!$CO$189/100 -> 81.2 | J214: =H214*Master!$CO$189/100 -> 51.8 | K214: 81.2 Countries (58%) | L214: 51.8 Countries (37%) | M214: 28 | N214: 24 | O214: - | P214: - | Q214: =M214+N214 -> 52 | R214: =AVERAGE(R211:R213) -> 28 | S214: =AVERAGE(S211:S213) -> 24
K215: % Countries reaching the benchmark | O215: =O211&" "&O212&" "&O213&" "&O214 -> - - - - | P215: =P211&" "&P212&" "&P213&" "&P214 -> - - - -
D216: 2.2. Attendance rates | G216: Both | H216: Girls | I216: Boys | J216: Both | K216: Both | L216: Girls | M216: Boys
E217: Primary ANAR Poor quintile | F217: Primary | G217: =Master!CP179 -> 75.73119945 | H217: =Master!CT179 -> 77.09270759 | I217: =Master!CR179 -> 74.27201501 | J217: 75 | K217: =Master!CQ236 -> 67.36842105
E218: Lower secondary ANAR Poor quintile | F218: Lower sec. | G218: =Master!CV179 -> 45.35253836 | H218: =Master!CX179 -> 45.28330491 | I218: =Master!CZ179 -> 45.36736083 | J218: 44 | K218: =Master!CV236 -> 41.05263158
E219: Upper secondary ANAR Poor quintile | F219: Upper sec. | G219: =Master!DB179 -> 28.79332854 | H219: =Master!DD179 -> 27.17296857 | I219: =Master!DF179 -> 30.50646107 | J219: 28 | K219: =Master!DB236 -> 32.63157895
E220: ECE Attendance rate Poor quintile | F220: ANAR Primary-1 Year | G220: =Master!DI179 -> 18 | H220: =Master!DK179 -> 17.33209638 | I220: =Master!DM179 -> 18.69364172 | J220: 30 | K220: =Master!DI236 -> 25.64102564
K221: Both | L221: Girls | M221: Boys
D222: 2.3. GER Preprimary | F222: GER Preprimary | G222: =Master!BV179 -> 45.67264097 | H222: =Master!BX179 -> 45.14085381 | I222: =Master!BZ179 -> 46.16464065 | J222: 50 | K222: =Master!BV236 -> 54.61538462 | L222: =Master!BX236 -> 53.48837209 | M222: =Master!BZ236 -> 51.9379845
D223: Gender disparity | H223: % Countries with disparities
... 111 more rows

Sheet Data for regional profile (hidden)
Y1: =lookup_plus(#REF!,E156:E168,0,-4) ->  | Z1: MENA | AA1: MENA | AC1: CEE/CIS | AD1: CEE/CIS | AF1: EAPR | AG1: EAPR | AI1: LACR | AJ1: LACR | AL1: SA | AM1: SA | AO1: ESAR | AP1: ESAR | AR1: WCAR | AS1: WCAR
L2: Current Year | M2: 2018 | Z2: Algeria | AA2: =IF($G$4=AA$1,IFERROR(VLOOKUP(Z2,'Quali 2'!$A$1:$BP$170,$Y$1,FALSE),"-"),"") ->  | AB2: =IF($G$4=AA$1,category(AA2,$AB$43:$AC$53,colornums,$Z$55),"") ->  | AC2: Albania | AD2: =IF($G$4=AD$1,IFERROR(VLOOKUP(AC2,'Quali 2'!$A$1:$BP$170,$Y$1,FALSE),"-"),"") ->  | AE2: =IF($G$4=AD$1,category(AD2,$AB$43:$AC$53,colornums,$Z$55),"") ->  | AF2: Cambodia | AG2: =IF($G$4=AG$1,IFERROR(VLOOKUP(AF2,'Quali 2'!$A$1:$BP$170,$Y$1,FALSE),"-"),"") ->  | AH2: =IF($G$4=AG$1,category(AG2,$AB$43:$AC$53,colornums,$Z$55),"") ->  | AI2: Anguilla | AJ2: =IF($G$4=AJ$1,IFERROR(VLOOKUP(AI2,'Quali 2'!$A$1:$BP$170,$Y$1,FALSE),"-"),"") ->  | AK2: =IF($G$4=AJ$1,category(AJ2,$AB$43:$AC$53,colornums,$Z$55),"") ->  | AL2: Afghanistan | AM2: =IF($G$4=AM$1,IFERROR(VLOOKUP(AL2,'Quali 2'!$A$1:$BP$170,$Y$1,FALSE),"-"),"") ->  | AN2: =IF($G$4=AM$1,category(AM2,$AB$43:$AC$53,colornums,$Z$55),"") ->  | AO2: Angola | AP2: =IF($G$4=AP$1,IFERROR(VLOOKUP(AO2,'Quali 2'!$A$1:$BP$170,$Y$1,FALSE),"-"),"") ->  | AQ2: =IF($G$4=AP$1,category(AP2,$AB$43:$AC$53,colornums,$Z$55),"") ->  | AR2: Benin | AS2: =IF($G$4=AS$1,IFERROR(VLOOKUP(AR2,'Quali 2'!$A$1:$BP$170,$Y$1,FALSE),"-"),"") ->  | AT2: =IF($G$4=AS$1,category(AS2,$AB$43:$AC$53,colornums,$Z$55),"") ->  | AU2: =AI2 -> Anguilla | AV2: Anguilla
Z3: Bahrain | AA3: =IF($G$4=AA$1,IFERROR(VLOOKUP(Z3,'Quali 2'!$A$1:$BP$170,$Y$1,FALSE),"-"),"") ->  | AB3: =IF($G$4=AA$1,category(AA3,$AB$43:$AC$53,colornums,$Z$55),"") ->  | AC3: Armenia | AD3: =IF($G$4=AD$1,IFERROR(VLOOKUP(AC3,'Quali 2'!$A$1:$BP$170,$Y$1,FALSE),"-"),"") ->  | AE3: =IF($G$4=AD$1,category(AD3,$AB$43:$AC$53,colornums,$Z$55),"") ->  | AF3: China | AG3: =IF($G$4=AG$1,IFERROR(VLOOKUP(AF3,'Quali 2'!$A$1:$BP$170,$Y$1,FALSE),"-"),"") ->  | AH3: =IF($G$4=AG$1,category(AG3,$AB$43:$AC$53,colornums,$Z$55),"") ->  | AI3: Antig.&Barb. | AJ3: =IF($G$4=AJ$1,IFERROR(VLOOKUP(AI3,'Quali 2'!$A$1:$BP$170,$Y$1,FALSE),"-"),"") ->  | AK3: =IF($G$4=AJ$1,category(AJ3,$AB$43:$AC$53,colornums,$Z$55),"") ->  | AL3: Bangladesh | AM3: =IF($G$4=AM$1,IFERROR(VLOOKUP(AL3,'Quali 2'!$A$1:$BP$170,$Y$1,FALSE),"-"),"") ->  | AN3: =IF($G$4=AM$1,category(AM3,$AB$43:$AC$53,colornums,$Z$55),"") ->  | AO3: Botswana | AP3: =IF($G$4=AP$1,IFERROR(VLOOKUP(AO3,'Quali 2'!$A$1:$BP$170,$Y$1,FALSE),"-"),"") ->  | AQ3: =IF($G$4=AP$1,category(AP3,$AB$43:$AC$53,colornums,$Z$55),"") ->  | AR3: Burkina Faso | AS3: =IF($G$4=AS$1,IFERROR(VLOOKUP(AR3,'Quali 2'!$A$1:$BP$170,$Y$1,FALSE),"-"),"") ->  | AT3: =IF($G$4=AS$1,category(AS3,$AB$43:$AC$53,colornums,$Z$55),"") ->  | AU3: =AI3 -> Antig.&Barb. | AV3: Antig.&Barb.
G4: =#REF! ->  | I4: 1 | Z4: Djibouti | AA4: =IF($G$4=AA$1,IFERROR(VLOOKUP(Z4,'Quali 2'!$A$1:$BP$170,$Y$1,FALSE),"-"),"") ->  | AB4: =IF($G$4=AA$1,category(AA4,$AB$43:$AC$53,colornums,$Z$55),"") ->  | AC4: Azerbaijan | AD4: =IF($G$4=AD$1,IFERROR(VLOOKUP(AC4,'Quali 2'!$A$1:$BP$170,$Y$1,FALSE),"-"),"") ->  | AE4: =IF($G$4=AD$1,category(AD4,$AB$43:$AC$53,colornums,$Z$55),"") ->  | AF4: Cook Islands | AG4: =IF($G$4=AG$1,IFERROR(VLOOKUP(AF4,'Quali 2'!$A$1:$BP$170,$Y$1,FALSE),"-"),"") ->  | AH4: =IF($G$4=AG$1,category(AG4,$AB$43:$AC$53,colornums,$Z$55),"") ->  | AI4: Argentina | AJ4: =IF($G$4=AJ$1,IFERROR(VLOOKUP(AI4,'Quali 2'!$A$1:$BP$170,$Y$1,FALSE),"-"),"") ->  | AK4: =IF($G$4=AJ$1,category(AJ4,$AB$43:$AC$53,colornums,$Z$55),"") ->  | AL4: Bhutan | AM4: =IF($G$4=AM$1,IFERROR(VLOOKUP(AL4,'Quali 2'!$A$1:$BP$170,$Y$1,FALSE),"-"),"") ->  | AN4: =IF($G$4=AM$1,category(AM4,$AB$43:$AC$53,colornums,$Z$55),"") ->  | AO4: Burundi | AP4: =IF($G$4=AP$1,IFERROR(VLOOKUP(AO4,'Quali 2'!$A$1:$BP$170,$Y$1,FALSE),"-"),"") ->  | AQ4: =IF($G$4=AP$1,category(AP4,$AB$43:$AC$53,colornums,$Z$55),"") ->  | AR4: Cameroon | AS4: =IF($G$4=AS$1,IFERROR(VLOOKUP(AR4,'Quali 2'!$A$1:$BP$170,$Y$1,FALSE),"-"),"") ->  | AT4: =IF($G$4=AS$1,category(AS4,$AB$43:$AC$53,colornums,$Z$55),"") ->  | AU4: Argentina | AV4: Argentina
C5: Selected country data | G5: 1 | H5: 2 | I5: -1 | Z5: Egypt | AA5: =IF($G$4=AA$1,IFERROR(VLOOKUP(Z5,'Quali 2'!$A$1:$BP$170,$Y$1,FALSE),"-"),"") ->  | AB5: =IF($G$4=AA$1,category(AA5,$AB$43:$AC$53,colornums,$Z$55),"") ->  | AC5: Belarus | AD5: =IF($G$4=AD$1,IFERROR(VLOOKUP(AC5,'Quali 2'!$A$1:$BP$170,$Y$1,FALSE),"-"),"") ->  | AE5: =IF($G$4=AD$1,category(AD5,$AB$43:$AC$53,colornums,$Z$55),"") ->  | AF5: Fiji | AG5: =IF($G$4=AG$1,IFERROR(VLOOKUP(AF5,'Quali 2'!$A$1:$BP$170,$Y$1,FALSE),"-"),"") ->  | AH5: =IF($G$4=AG$1,category(AG5,$AB$43:$AC$53,colornums,$Z$55),"") ->  | AI5: Barbados | AJ5: =IF($G$4=AJ$1,IFERROR(VLOOKUP(AI5,'Quali 2'!$A$1:$BP$170,$Y$1,FALSE),"-"),"") ->  | AK5: =IF($G$4=AJ$1,category(AJ5,$AB$43:$AC$53,colornums,$Z$55),"") ->  | AL5: India | AM5: =IF($G$4=AM$1,IFERROR(VLOOKUP(AL5,'Quali 2'!$A$1:$BP$170,$Y$1,FALSE),"-"),"") ->  | AN5: =IF($G$4=AM$1,category(AM5,$AB$43:$AC$53,colornums,$Z$55),"") ->  | AO5: Comoros | AP5: =IF($G$4=AP$1,IFERROR(VLOOKUP(AO5,'Quali 2'!$A$1:$BP$170,$Y$1,FALSE),"-"),"") ->  | AQ5: =IF($G$4=AP$1,category(AP5,$AB$43:$AC$53,colornums,$Z$55),"") ->  | AR5: Cape Verde | AS5: =IF($G$4=AS$1,IFERROR(VLOOKUP(AR5,'Quali 2'!$A$1:$BP$170,$Y$1,FALSE),"-"),"") ->  | AT5: =IF($G$4=AS$1,category(AS5,$AB$43:$AC$53,colornums,$Z$55),"") ->  | AU5: Barbados | AV5: Barbados
E6: PRE PRIMARY EDUCATION | I6: Countries with (>=2.5) | M6: Baseline | Z6: Iran | AA6: =IF($G$4=AA$1,IFERROR(VLOOKUP(Z6,'Quali 2'!$A$1:$BP$170,$Y$1,FALSE),"-"),"") ->  | AB6: =IF($G$4=AA$1,category(AA6,$AB$43:$AC$53,colornums,$Z$55),"") ->  | AC6: Bosnia and Herzegovina | AD6: =IF($G$4=AD$1,IFERROR(VLOOKUP(AC6,'Quali 2'!$A$1:$BP$170,$Y$1,FALSE),"-"),"") ->  | AE6: =IF($G$4=AD$1,category(AD6,$AB$43:$AC$53,colornums,$Z$55),"") ->  | AF6: Indonesia | AG6: =IF($G$4=AG$1,IFERROR(VLOOKUP(AF6,'Quali 2'!$A$1:$BP$170,$Y$1,FALSE),"-"),"") ->  | AH6: =IF($G$4=AG$1,category(AG6,$AB$43:$AC$53,colornums,$Z$55),"") ->  | AI6: Belize | AJ6: =IF($G$4=AJ$1,IFERROR(VLOOKUP(AI6,'Quali 2'!$A$1:$BP$170,$Y$1,FALSE),"-"),"") ->  | AK6: =IF($G$4=AJ$1,category(AJ6,$AB$43:$AC$53,colornums,$Z$55),"") ->  | AL6: Maldives | AM6: =IF($G$4=AM$1,IFERROR(VLOOKUP(AL6,'Quali 2'!$A$1:$BP$170,$Y$1,FALSE),"-"),"") ->  | AN6: =IF($G$4=AM$1,category(AM6,$AB$43:$AC$53,colornums,$Z$55),"") ->  | AO6: Eritrea | AP6: =IF($G$4=AP$1,IFERROR(VLOOKUP(AO6,'Quali 2'!$A$1:$BP$170,$Y$1,FALSE),"-"),"") ->  | AQ6: =IF($G$4=AP$1,category(AP6,$AB$43:$AC$53,colornums,$Z$55),"") ->  | AR6: Central Afr. Rep. | AS6: =IF($G$4=AS$1,IFERROR(VLOOKUP(AR6,'Quali 2'!$A$1:$BP$170,$Y$1,FALSE),"-"),"") ->  | AT6: =IF($G$4=AS$1,category(AS6,$AB$43:$AC$53,colornums,$Z$55),"") ->  | AU6: Belize | AV6: Belize | AZ6: Central Afr. Rep. | BA6: Central Afr. Rep.
G7: World | H7: =$G$4 ->  | I7: Countries having reached benchmark (>=2.5) | J7: % Yes | K7: Label | N7: Countries (>=2.5) | O7: % Yes | P7: Label | Q7: # Column | R7: Average | Z7: Iraq | AA7: =IF($G$4=AA$1,IFERROR(VLOOKUP(Z7,'Quali 2'!$A$1:$BP$170,$Y$1,FALSE),"-"),"") ->  | AB7: =IF($G$4=AA$1,category(AA7,$AB$43:$AC$53,colornums,$Z$55),"") ->  | AC7: Bulgaria | AD7: =IF($G$4=AD$1,IFERROR(VLOOKUP(AC7,'Quali 2'!$A$1:$BP$170,$Y$1,FALSE),"-"),"") ->  | AE7: =IF($G$4=AD$1,category(AD7,$AB$43:$AC$53,colornums,$Z$55),"") ->  | AF7: Kiribati | AG7: =IF($G$4=AG$1,IFERROR(VLOOKUP(AF7,'Quali 2'!$A$1:$BP$170,$Y$1,FALSE),"-"),"") ->  | AH7: =IF($G$4=AG$1,category(AG7,$AB$43:$AC$53,colornums,$Z$55),"") ->  | AI7: Bolivia | AJ7: =IF($G$4=AJ$1,IFERROR(VLOOKUP(AI7,'Quali 2'!$A$1:$BP$170,$Y$1,FALSE),"-"),"") ->  | AK7: =IF($G$4=AJ$1,category(AJ7,$AB$43:$AC$53,colornums,$Z$55),"") ->  | AL7: Nepal | AM7: =IF($G$4=AM$1,IFERROR(VLOOKUP(AL7,'Quali 2'!$A$1:$BP$170,$Y$1,FALSE),"-"),"") ->  | AN7: =IF($G$4=AM$1,category(AM7,$AB$43:$AC$53,colornums,$Z$55),"") ->  | AO7: Ethiopia | AP7: =IF($G$4=AP$1,IFERROR(VLOOKUP(AO7,'Quali 2'!$A$1:$BP$170,$Y$1,FALSE),"-"),"") ->  | AQ7: =IF($G$4=AP$1,category(AP7,$AB$43:$AC$53,colornums,$Z$55),"") ->  | AR7: Chad | AS7: =IF($G$4=AS$1,IFERROR(VLOOKUP(AR7,'Quali 2'!$A$1:$BP$170,$Y$1,FALSE),"-"),"") ->  | AT7: =IF($G$4=AS$1,category(AS7,$AB$43:$AC$53,colornums,$Z$55),"") ->  | AU7: Bolivia | AV7: Bolivia
T8: =MAXiR(G8:I8) -> 0 | U8: New Benchmark Labels | Z8: Jordan | AA8: =IF($G$4=AA$1,IFERROR(VLOOKUP(Z8,'Quali 2'!$A$1:$BP$170,$Y$1,FALSE),"-"),"") ->  | AB8: =IF($G$4=AA$1,category(AA8,$AB$43:$AC$53,colornums,$Z$55),"") ->  | AC8: Croatia | AD8: =IF($G$4=AD$1,IFERROR(VLOOKUP(AC8,'Quali 2'!$A$1:$BP$170,$Y$1,FALSE),"-"),"") ->  | AE8: =IF($G$4=AD$1,category(AD8,$AB$43:$AC$53,colornums,$Z$55),"") ->  | AF8: Korea, D.P.R. | AG8: =IF($G$4=AG$1,IFERROR(VLOOKUP(AF8,'Quali 2'!$A$1:$BP$170,$Y$1,FALSE),"-"),"") ->  | AH8: =IF($G$4=AG$1,category(AG8,$AB$43:$AC$53,colornums,$Z$55),"") ->  | AI8: Brazil | AJ8: =IF($G$4=AJ$1,IFERROR(VLOOKUP(AI8,'Quali 2'!$A$1:$BP$170,$Y$1,FALSE),"-"),"") ->  | AK8: =IF($G$4=AJ$1,category(AJ8,$AB$43:$AC$53,colornums,$Z$55),"") ->  | AL8: Pakistan | AM8: =IF($G$4=AM$1,IFERROR(VLOOKUP(AL8,'Quali 2'!$A$1:$BP$170,$Y$1,FALSE),"-"),"") ->  | AN8: =IF($G$4=AM$1,category(AM8,$AB$43:$AC$53,colornums,$Z$55),"") ->  | AO8: Kenya | AP8: =IF($G$4=AP$1,IFERROR(VLOOKUP(AO8,'Quali 2'!$A$1:$BP$170,$Y$1,FALSE),"-"),"") ->  | AQ8: =IF($G$4=AP$1,category(AP8,$AB$43:$AC$53,colornums,$Z$55),"") ->  | AR8: Congo | AS8: =IF($G$4=AS$1,IFERROR(VLOOKUP(AR8,'Quali 2'!$A$1:$BP$170,$Y$1,FALSE),"-"),"") ->  | AT8: =IF($G$4=AS$1,category(AS8,$AB$43:$AC$53,colornums,$Z$55),"") ->  | AU8: Brazil | AV8: Brazil
F9: GER (%) MF | T9: =MAXiR(G9:I9) -> 0 | Z9: Kuwait | AA9: =IF($G$4=AA$1,IFERROR(VLOOKUP(Z9,'Quali 2'!$A$1:$BP$170,$Y$1,FALSE),"-"),"") ->  | AB9: =IF($G$4=AA$1,category(AA9,$AB$43:$AC$53,colornums,$Z$55),"") ->  | AC9: Georgia | AD9: =IF($G$4=AD$1,IFERROR(VLOOKUP(AC9,'Quali 2'!$A$1:$BP$170,$Y$1,FALSE),"-"),"") ->  | AE9: =IF($G$4=AD$1,category(AD9,$AB$43:$AC$53,colornums,$Z$55),"") ->  | AF9: Lao P.D.R. | AG9: =IF($G$4=AG$1,IFERROR(VLOOKUP(AF9,'Quali 2'!$A$1:$BP$170,$Y$1,FALSE),"-"),"") ->  | AH9: =IF($G$4=AG$1,category(AG9,$AB$43:$AC$53,colornums,$Z$55),"") ->  | AI9: BVI | AJ9: =IF($G$4=AJ$1,IFERROR(VLOOKUP(AI9,'Quali 2'!$A$1:$BP$170,$Y$1,FALSE),"-"),"") ->  | AK9: =IF($G$4=AJ$1,category(AJ9,$AB$43:$AC$53,colornums,$Z$55),"") ->  | AL9: Sri Lanka | AM9: =IF($G$4=AM$1,IFERROR(VLOOKUP(AL9,'Quali 2'!$A$1:$BP$170,$Y$1,FALSE),"-"),"") ->  | AN9: =IF($G$4=AM$1,category(AM9,$AB$43:$AC$53,colornums,$Z$55),"") ->  | AO9: Lesotho | AP9: =IF($G$4=AP$1,IFERROR(VLOOKUP(AO9,'Quali 2'!$A$1:$BP$170,$Y$1,FALSE),"-"),"") ->  | AQ9: =IF($G$4=AP$1,category(AP9,$AB$43:$AC$53,colornums,$Z$55),"") ->  | AR9: Cote d'Ivoire | AS9: =IF($G$4=AS$1,IFERROR(VLOOKUP(AR9,'Quali 2'!$A$1:$BP$170,$Y$1,FALSE),"-"),"") ->  | AT9: =IF($G$4=AS$1,category(AS9,$AB$43:$AC$53,colornums,$Z$55),"") ->  | AU9: BVI | AV9: BVI
F10: GER(%) F | T10: =MAXiR(G10:I10) -> 0 | Z10: Lebanon | AA10: =IF($G$4=AA$1,IFERROR(VLOOKUP(Z10,'Quali 2'!$A$1:$BP$170,$Y$1,FALSE),"-"),"") ->  | AB10: =IF($G$4=AA$1,category(AA10,$AB$43:$AC$53,colornums,$Z$55),"") ->  | AC10: Kazakhstan | AD10: =IF($G$4=AD$1,IFERROR(VLOOKUP(AC10,'Quali 2'!$A$1:$BP$170,$Y$1,FALSE),"-"),"") ->  | AE10: =IF($G$4=AD$1,category(AD10,$AB$43:$AC$53,colornums,$Z$55),"") ->  | AF10: Malaysia | AG10: =IF($G$4=AG$1,IFERROR(VLOOKUP(AF10,'Quali 2'!$A$1:$BP$170,$Y$1,FALSE),"-"),"") ->  | AH10: =IF($G$4=AG$1,category(AG10,$AB$43:$AC$53,colornums,$Z$55),"") ->  | AI10: Chile | AJ10: =IF($G$4=AJ$1,IFERROR(VLOOKUP(AI10,'Quali 2'!$A$1:$BP$170,$Y$1,FALSE),"-"),"") ->  | AK10: =IF($G$4=AJ$1,category(AJ10,$AB$43:$AC$53,colornums,$Z$55),"") ->  | AO10: Madagascar | AP10: =IF($G$4=AP$1,IFERROR(VLOOKUP(AO10,'Quali 2'!$A$1:$BP$170,$Y$1,FALSE),"-"),"") ->  | AQ10: =IF($G$4=AP$1,category(AP10,$AB$43:$AC$53,colornums,$Z$55),"") ->  | AR10: Dem. Rep. of Congo | AS10: =IF($G$4=AS$1,IFERROR(VLOOKUP(AR10,'Quali 2'!$A$1:$BP$170,$Y$1,FALSE),"-"),"") ->  | AT10: =IF($G$4=AS$1,category(AS10,$AB$43:$AC$53,colornums,$Z$55),"") ->  | AU10: =AI9 -> BVI | AV10: Chile
F11: GER (%) M | T11: 0 | Z11: Libya | AA11: =IF($G$4=AA$1,IFERROR(VLOOKUP(Z11,'Quali 2'!$A$1:$BP$170,$Y$1,FALSE),"-"),"") ->  | AB11: =IF($G$4=AA$1,category(AA11,$AB$43:$AC$53,colornums,$Z$55),"") ->  | AC11: Kosovo | AD11: =IF($G$4=AD$1,IFERROR(VLOOKUP(AC11,'Quali 2'!$A$1:$BP$170,$Y$1,FALSE),"-"),"") ->  | AE11: =IF($G$4=AD$1,category(AD11,$AB$43:$AC$53,colornums,$Z$55),"") ->  | AF11: Marshall Islands | AG11: =IF($G$4=AG$1,IFERROR(VLOOKUP(AF11,'Quali 2'!$A$1:$BP$170,$Y$1,FALSE),"-"),"") ->  | AH11: =IF($G$4=AG$1,category(AG11,$AB$43:$AC$53,colornums,$Z$55),"") ->  | AI11: Colombia | AJ11: =IF($G$4=AJ$1,IFERROR(VLOOKUP(AI11,'Quali 2'!$A$1:$BP$170,$Y$1,FALSE),"-"),"") ->  | AK11: =IF($G$4=AJ$1,category(AJ11,$AB$43:$AC$53,colornums,$Z$55),"") ->  | AO11: Malawi | AP11: =IF($G$4=AP$1,IFERROR(VLOOKUP(AO11,'Quali 2'!$A$1:$BP$170,$Y$1,FALSE),"-"),"") ->  | AQ11: =IF($G$4=AP$1,category(AP11,$AB$43:$AC$53,colornums,$Z$55),"") ->  | AR11: Equatorial Guinea | AS11: =IF($G$4=AS$1,IFERROR(VLOOKUP(AR11,'Quali 2'!$A$1:$BP$170,$Y$1,FALSE),"-"),"") ->  | AT11: =IF($G$4=AS$1,category(AS11,$AB$43:$AC$53,colornums,$Z$55),"") ->  | AU11: Chile | AV11: Colombia
D12: P54b | E12: ECD NAR Poorest Quint | F12: NAR_PQ | G12: =Master!AC179 -> 18 | H12: =VLOOKUP(H$16,Master!$A$3:$AV$183,$R12,FALSE) ->  | I12: 25 | J12: =VLOOKUP($H$7,Master!$A$192:$AH$200,$R12,FALSE) ->  | K12: =VLOOKUP($H$7,Master!$A$182:$AH$189,$R12,FALSE) ->  | L12: =VLOOKUP(H$16,'BL Master'!$A$3:$BN$246,$R12,FALSE) ->  | M12: =VLOOKUP($H$7,'BL Master'!$A$255:$AH$263,$R12,FALSE) ->  | O12: =VLOOKUP($H$7,'BL Master'!$A$245:$AH$252,$R12,FALSE) ->  | Q12: =J12/K12 ->  | R12: 29 | S12: =VLOOKUP(S$16,Master!$A$3:$AV$183,$R12,FALSE) -> ECD NAR-PQ | T12: 25 | U12: SP Benchmark | Z12: Morocco | AA12: =IF($G$4=AA$1,IFERROR(VLOOKUP(Z12,'Quali 2'!$A$1:$BP$170,$Y$1,FALSE),"-"),"") ->  | AB12: =IF($G$4=AA$1,category(AA12,$AB$43:$AC$53,colornums,$Z$55),"") ->  | AC12: Kyrgyzstan | AD12: =IF($G$4=AD$1,IFERROR(VLOOKUP(AC12,'Quali 2'!$A$1:$BP$170,$Y$1,FALSE),"-"),"") ->  | AE12: =IF($G$4=AD$1,category(AD12,$AB$43:$AC$53,colornums,$Z$55),"") ->  | AF12: Micronesia | AG12: =IF($G$4=AG$1,IFERROR(VLOOKUP(AF12,'Quali 2'!$A$1:$BP$170,$Y$1,FALSE),"-"),"") ->  | AH12: =IF($G$4=AG$1,category(AG12,$AB$43:$AC$53,colornums,$Z$55),"") ->  | AI12: Costa Rica | AJ12: =IF($G$4=AJ$1,IFERROR(VLOOKUP(AI12,'Quali 2'!$A$1:$BP$170,$Y$1,FALSE),"-"),"") ->  | AK12: =IF($G$4=AJ$1,category(AJ12,$AB$43:$AC$53,colornums,$Z$55),"") ->  | AO12: Mozambique | AP12: =IF($G$4=AP$1,IFERROR(VLOOKUP(AO12,'Quali 2'!$A$1:$BP$170,$Y$1,FALSE),"-"),"") ->  | AQ12: =IF($G$4=AP$1,category(AP12,$AB$43:$AC$53,colornums,$Z$55),"") ->  | AR12: Gambia | AS12: =IF($G$4=AS$1,IFERROR(VLOOKUP(AR12,'Quali 2'!$A$1:$BP$170,$Y$1,FALSE),"-"),"") ->  | AT12: =IF($G$4=AS$1,category(AS12,$AB$43:$AC$53,colornums,$Z$55),"") ->  | AU12: Colombia | AV12: Costa Rica
T13: 0 | Z13: Palestine | AA13: =IF($G$4=AA$1,IFERROR(VLOOKUP(Z13,'Quali 2'!$A$1:$BP$170,$Y$1,FALSE),"-"),"") ->  | AB13: =IF($G$4=AA$1,category(AA13,$AB$43:$AC$53,colornums,$Z$55),"") ->  | AC13: Moldova | AD13: =IF($G$4=AD$1,IFERROR(VLOOKUP(AC13,'Quali 2'!$A$1:$BP$170,$Y$1,FALSE),"-"),"") ->  | AE13: =IF($G$4=AD$1,category(AD13,$AB$43:$AC$53,colornums,$Z$55),"") ->  | AF13: Mongolia | AG13: =IF($G$4=AG$1,IFERROR(VLOOKUP(AF13,'Quali 2'!$A$1:$BP$170,$Y$1,FALSE),"-"),"") ->  | AH13: =IF($G$4=AG$1,category(AG13,$AB$43:$AC$53,colornums,$Z$55),"") ->  | AI13: Cuba | AJ13: =IF($G$4=AJ$1,IFERROR(VLOOKUP(AI13,'Quali 2'!$A$1:$BP$170,$Y$1,FALSE),"-"),"") ->  | AK13: =IF($G$4=AJ$1,category(AJ13,$AB$43:$AC$53,colornums,$Z$55),"") ->  | AO13: Namibia | AP13: =IF($G$4=AP$1,IFERROR(VLOOKUP(AO13,'Quali 2'!$A$1:$BP$170,$Y$1,FALSE),"-"),"") ->  | AQ13: =IF($G$4=AP$1,category(AP13,$AB$43:$AC$53,colornums,$Z$55),"") ->  | AR13: Ghana | AS13: =IF($G$4=AS$1,IFERROR(VLOOKUP(AR13,'Quali 2'!$A$1:$BP$170,$Y$1,FALSE),"-"),"") ->  | AT13: =IF($G$4=AS$1,category(AS13,$AB$43:$AC$53,colornums,$Z$55),"") ->  | AU13: Costa Rica | AV13: Cuba
E14: PRIMARY EDUCATION | T14: 0 | Z14: Oman | AA14: =IF($G$4=AA$1,IFERROR(VLOOKUP(Z14,'Quali 2'!$A$1:$BP$170,$Y$1,FALSE),"-"),"") ->  | AB14: =IF($G$4=AA$1,category(AA14,$AB$43:$AC$53,colornums,$Z$55),"") ->  | AC14: Montenegro | AD14: =IF($G$4=AD$1,IFERROR(VLOOKUP(AC14,'Quali 2'!$A$1:$BP$170,$Y$1,FALSE),"-"),"") ->  | AE14: =IF($G$4=AD$1,category(AD14,$AB$43:$AC$53,colornums,$Z$55),"") ->  | AF14: Myanmar | AG14: =IF($G$4=AG$1,IFERROR(VLOOKUP(AF14,'Quali 2'!$A$1:$BP$170,$Y$1,FALSE),"-"),"") ->  | AH14: =IF($G$4=AG$1,category(AG14,$AB$43:$AC$53,colornums,$Z$55),"") ->  | AI14: Dom. Rep. | AJ14: =IF($G$4=AJ$1,IFERROR(VLOOKUP(AI14,'Quali 2'!$A$1:$BP$170,$Y$1,FALSE),"-"),"") ->  | AK14: =IF($G$4=AJ$1,category(AJ14,$AB$43:$AC$53,colornums,$Z$55),"") ->  | AO14: Rwanda | AP14: =IF($G$4=AP$1,IFERROR(VLOOKUP(AO14,'Quali 2'!$A$1:$BP$170,$Y$1,FALSE),"-"),"") ->  | AQ14: =IF($G$4=AP$1,category(AP14,$AB$43:$AC$53,colornums,$Z$55),"") ->  | AR14: Guinea | AS14: =IF($G$4=AS$1,IFERROR(VLOOKUP(AR14,'Quali 2'!$A$1:$BP$170,$Y$1,FALSE),"-"),"") ->  | AT14: =IF($G$4=AS$1,category(AS14,$AB$43:$AC$53,colornums,$Z$55),"") ->  | AU14: Cuba | AV14: Dom. Rep.
S15: Check | T15: 0 | Z15: Qatar | AA15: =IF($G$4=AA$1,IFERROR(VLOOKUP(Z15,'Quali 2'!$A$1:$BP$170,$Y$1,FALSE),"-"),"") ->  | AB15: =IF($G$4=AA$1,category(AA15,$AB$43:$AC$53,colornums,$Z$55),"") ->  | AC15: Macedonia | AD15: =IF($G$4=AD$1,IFERROR(VLOOKUP(AC15,'Quali 2'!$A$1:$BP$170,$Y$1,FALSE),"-"),"") ->  | AE15: =IF($G$4=AD$1,category(AD15,$AB$43:$AC$53,colornums,$Z$55),"") ->  | AF15: Nauru | AG15: =IF($G$4=AG$1,IFERROR(VLOOKUP(AF15,'Quali 2'!$A$1:$BP$170,$Y$1,FALSE),"-"),"") ->  | AH15: =IF($G$4=AG$1,category(AG15,$AB$43:$AC$53,colornums,$Z$55),"") ->  | AI15: Dominica | AJ15: =IF($G$4=AJ$1,IFERROR(VLOOKUP(AI15,'Quali 2'!$A$1:$BP$170,$Y$1,FALSE),"-"),"") ->  | AK15: =IF($G$4=AJ$1,category(AJ15,$AB$43:$AC$53,colornums,$Z$55),"") ->  | AO15: Somalia | AP15: =IF($G$4=AP$1,IFERROR(VLOOKUP(AO15,'Quali 2'!$A$1:$BP$170,$Y$1,FALSE),"-"),"") ->  | AQ15: =IF($G$4=AP$1,category(AP15,$AB$43:$AC$53,colornums,$Z$55),"") ->  | AR15: Guinea Bissau | AS15: =IF($G$4=AS$1,IFERROR(VLOOKUP(AR15,'Quali 2'!$A$1:$BP$170,$Y$1,FALSE),"-"),"") ->  | AT15: =IF($G$4=AS$1,category(AS15,$AB$43:$AC$53,colornums,$Z$55),"") ->  | AU15: Dom. Rep. | AV15: Dominica
G16: World | H16: =$G$4 ->  | I16: Benchmark | J16: # c. reaching Benchmark | K16: # countries | L16: =$G$4 ->  | M16: # c. reaching Benchmark | O16: # countries | P16: Current Year | Q16: Baseline Year | S16: UIS country name | T16: World | Z16: Saudi Arabia | AA16: =IF($G$4=AA$1,IFERROR(VLOOKUP(Z16,'Quali 2'!$A$1:$BP$170,$Y$1,FALSE),"-"),"") ->  | AB16: =IF($G$4=AA$1,category(AA16,$AB$43:$AC$53,colornums,$Z$55),"") ->  | AC16: Romania | AD16: =IF($G$4=AD$1,IFERROR(VLOOKUP(AC16,'Quali 2'!$A$1:$BP$170,$Y$1,FALSE),"-"),"") ->  | AE16: =IF($G$4=AD$1,category(AD16,$AB$43:$AC$53,colornums,$Z$55),"") ->  | AF16: Niue | AG16: =IF($G$4=AG$1,IFERROR(VLOOKUP(AF16,'Quali 2'!$A$1:$BP$170,$Y$1,FALSE),"-"),"") ->  | AH16: =IF($G$4=AG$1,category(AG16,$AB$43:$AC$53,colornums,$Z$55),"") ->  | AI16: Ecuador | AJ16: =IF($G$4=AJ$1,IFERROR(VLOOKUP(AI16,'Quali 2'!$A$1:$BP$170,$Y$1,FALSE),"-"),"") ->  | AK16: =IF($G$4=AJ$1,category(AJ16,$AB$43:$AC$53,colornums,$Z$55),"") ->  | AO16: South Africa | AP16: =IF($G$4=AP$1,IFERROR(VLOOKUP(AO16,'Quali 2'!$A$1:$BP$170,$Y$1,FALSE),"-"),"") ->  | AQ16: =IF($G$4=AP$1,category(AP16,$AB$43:$AC$53,colornums,$Z$55),"") ->  | AR16: Liberia | AS16: =IF($G$4=AS$1,IFERROR(VLOOKUP(AR16,'Quali 2'!$A$1:$BP$170,$Y$1,FALSE),"-"),"") ->  | AT16: =IF($G$4=AS$1,category(AS16,$AB$43:$AC$53,colornums,$Z$55),"") ->  | AU16: Dominica | AV16: Ecuador
D17: P51 | F17: OOSCR (%) MF | G17: ='Data for global profile'!G17 -> 0 | H17: =VLOOKUP(H$16,Master!$A$229:$W$236,21,FALSE) ->  | I17: 5 | J17: =VLOOKUP($H$7,Master!$A$192:$AH$200,$R17,FALSE) ->  | K17: =VLOOKUP($H$7,Master!$A$182:$AH$189,$R17,FALSE) ->  | L17: =VLOOKUP(L$16,'BL Master'!$A$3:$BN$246,$R17,FALSE) ->  | M17: =VLOOKUP($H$7,'BL Master'!$A$255:$AH$263,$R17,FALSE) ->  | O17: =VLOOKUP($H$7,'BL Master'!$A$245:$AH$252,$R17,FALSE) ->  | Q17: =J17/K17 ->  | R17: 21 | S17: =VLOOKUP(S$16,Master!$A$3:$AV$183,$R17,FALSE) -> P-OOSCR MF | T17: 5 | U17: SP Benchmark | Z17: Sudan | AA17: =IF($G$4=AA$1,IFERROR(VLOOKUP(Z17,'Quali 2'!$A$1:$BP$170,$Y$1,FALSE),"-"),"") ->  | AB17: =IF($G$4=AA$1,category(AA17,$AB$43:$AC$53,colornums,$Z$55),"") ->  | AC17: Serbia | AD17: =IF($G$4=AD$1,IFERROR(VLOOKUP(AC17,'Quali 2'!$A$1:$BP$170,$Y$1,FALSE),"-"),"") ->  | AE17: =IF($G$4=AD$1,category(AD17,$AB$43:$AC$53,colornums,$Z$55),"") ->  | AF17: Palau | AG17: =IF($G$4=AG$1,IFERROR(VLOOKUP(AF17,'Quali 2'!$A$1:$BP$170,$Y$1,FALSE),"-"),"") ->  | AH17: =IF($G$4=AG$1,category(AG17,$AB$43:$AC$53,colornums,$Z$55),"") ->  | AI17: El Salvador | AJ17: =IF($G$4=AJ$1,IFERROR(VLOOKUP(AI17,'Quali 2'!$A$1:$BP$170,$Y$1,FALSE),"-"),"") ->  | AK17: =IF($G$4=AJ$1,category(AJ17,$AB$43:$AC$53,colornums,$Z$55),"") ->  | AO17: South Sudan | AP17: =IF($G$4=AP$1,IFERROR(VLOOKUP(AO17,'Quali 2'!$A$1:$BP$170,$Y$1,FALSE),"-"),"") ->  | AQ17: =IF($G$4=AP$1,category(AP17,$AB$43:$AC$53,colornums,$Z$55),"") ->  | AR17: Mali | AS17: =IF($G$4=AS$1,IFERROR(VLOOKUP(AR17,'Quali 2'!$A$1:$BP$170,$Y$1,FALSE),"-"),"") ->  | AT17: =IF($G$4=AS$1,category(AS17,$AB$43:$AC$53,colornums,$Z$55),"") ->  | AU17: Ecuador | AV17: El Salvador
C18: Impact | D18: P5a | E18: Number of OSC - M | F18: Boys | G18: ='Data for global profile'!G18 -> 28851548 | H18: =VLOOKUP(H$16,Master!$A$229:$W$236,12,FALSE) ->  | J18: =VLOOKUP($H$7,Master!$A$192:$AH$200,$R18,FALSE) ->  | L18: =VLOOKUP(L$16,'BL Learning and Regional Avg'!D18:R30,11,FALSE) ->  | M18: =VLOOKUP($H$7,Master!$A$192:$AH$200,$R18,FALSE) ->  | P18: =VLOOKUP(L$16,Master!$A$229:$X$236,Master!$I$237,FALSE) ->  | R18: 12 | S18: =VLOOKUP(S$16,Master!$A$3:$AV$183,$R18,FALSE) -> P-NB-OOSC M | T18: =MAXiR(G18:I18) -> 28851548 | Z18: Syria | AA18: =IF($G$4=AA$1,IFERROR(VLOOKUP(Z18,'Quali 2'!$A$1:$BP$170,$Y$1,FALSE),"-"),"") ->  | AB18: =IF($G$4=AA$1,category(AA18,$AB$43:$AC$53,colornums,$Z$55),"") ->  | AC18: Tajikistan | AD18: =IF($G$4=AD$1,IFERROR(VLOOKUP(AC18,'Quali 2'!$A$1:$BP$170,$Y$1,FALSE),"-"),"") ->  | AE18: =IF($G$4=AD$1,category(AD18,$AB$43:$AC$53,colornums,$Z$55),"") ->  | AF18: Papua New Guinea | AG18: =IF($G$4=AG$1,IFERROR(VLOOKUP(AF18,'Quali 2'!$A$1:$BP$170,$Y$1,FALSE),"-"),"") ->  | AH18: =IF($G$4=AG$1,category(AG18,$AB$43:$AC$53,colornums,$Z$55),"") ->  | AI18: Grenada | AJ18: =IF($G$4=AJ$1,IFERROR(VLOOKUP(AI18,'Quali 2'!$A$1:$BP$170,$Y$1,FALSE),"-"),"") ->  | AK18: =IF($G$4=AJ$1,category(AJ18,$AB$43:$AC$53,colornums,$Z$55),"") ->  | AO18: Swaziland | AP18: =IF($G$4=AP$1,IFERROR(VLOOKUP(AO18,'Quali 2'!$A$1:$BP$170,$Y$1,FALSE),"-"),"") ->  | AQ18: =IF($G$4=AP$1,category(AP18,$AB$43:$AC$53,colornums,$Z$55),"") ->  | AR18: Mauritania | AS18: =IF($G$4=AS$1,IFERROR(VLOOKUP(AR18,'Quali 2'!$A$1:$BP$170,$Y$1,FALSE),"-"),"") ->  | AT18: =IF($G$4=AS$1,category(AS18,$AB$43:$AC$53,colornums,$Z$55),"") ->  | AU18: El Salvador | AV18: Grenada
E19: Number of OSC - F | F19: Girls | G19: ='Data for global profile'!G19 -> 32043282 | H19: =VLOOKUP(H$16,Master!$A$229:$W$236,10,FALSE) ->  | J19: =VLOOKUP($H$7,Master!$A$192:$AH$200,$R19,FALSE) ->  | L19: =VLOOKUP(L$16,'BL Learning and Regional Avg'!D18:R30,13,FALSE) ->  | M19: =VLOOKUP($H$7,Master!$A$192:$AH$200,$R19,FALSE) ->  | P19: =VLOOKUP(L$16,Master!$A$229:$X$236,Master!$I$237,FALSE) ->  | R19: 10 | S19: =VLOOKUP(S$16,Master!$A$3:$AV$183,$R19,FALSE) -> P-NB-OOSC F | T19: 32043282 | Z19: Tunisia | AA19: =IF($G$4=AA$1,IFERROR(VLOOKUP(Z19,'Quali 2'!$A$1:$BP$170,$Y$1,FALSE),"-"),"") ->  | AB19: =IF($G$4=AA$1,category(AA19,$AB$43:$AC$53,colornums,$Z$55),"") ->  | AC19: Turkey | AD19: =IF($G$4=AD$1,IFERROR(VLOOKUP(AC19,'Quali 2'!$A$1:$BP$170,$Y$1,FALSE),"-"),"") ->  | AE19: =IF($G$4=AD$1,category(AD19,$AB$43:$AC$53,colornums,$Z$55),"") ->  | AF19: Philippines | AG19: =IF($G$4=AG$1,IFERROR(VLOOKUP(AF19,'Quali 2'!$A$1:$BP$170,$Y$1,FALSE),"-"),"") ->  | AH19: =IF($G$4=AG$1,category(AG19,$AB$43:$AC$53,colornums,$Z$55),"") ->  | AI19: Guatemala | AJ19: =IF($G$4=AJ$1,IFERROR(VLOOKUP(AI19,'Quali 2'!$A$1:$BP$170,$Y$1,FALSE),"-"),"") ->  | AK19: =IF($G$4=AJ$1,category(AJ19,$AB$43:$AC$53,colornums,$Z$55),"") ->  | AO19: Uganda | AP19: =IF($G$4=AP$1,IFERROR(VLOOKUP(AO19,'Quali 2'!$A$1:$BP$170,$Y$1,FALSE),"-"),"") ->  | AQ19: =IF($G$4=AP$1,category(AP19,$AB$43:$AC$53,colornums,$Z$55),"") ->  | AR19: Niger | AS19: =IF($G$4=AS$1,IFERROR(VLOOKUP(AR19,'Quali 2'!$A$1:$BP$170,$Y$1,FALSE),"-"),"") ->  | AT19: =IF($G$4=AS$1,category(AS19,$AB$43:$AC$53,colornums,$Z$55),"") ->  | AU19: Grenada | AV19: Guatemala
E20: Number of OSC - MF | F20: =CONCATENATE("All children: ", H16, " (",P20,")") ->  | G20: ='Data for global profile'!G20 -> 60894830 | H20: =VLOOKUP(H$16,Master!$A$229:$W$236,8,FALSE) ->  | J20: =VLOOKUP($H$7,Master!$A$192:$AH$200,$R20,FALSE) ->  | L20: =VLOOKUP(L$16,'BL Learning and Regional Avg'!D18:R30,9,FALSE) ->  | M20: =VLOOKUP($H$7,Master!$A$192:$AH$200,$R20,FALSE) ->  | P20: =VLOOKUP(L$16,Master!$A$229:$X$236,Master!$I$237,FALSE) ->  | R20: 8 | S20: =VLOOKUP(S$16,Master!$A$3:$AV$183,$R20,FALSE) -> P-NB-OOSC MF | T20: 60894830 | Z20: United Arab Emirates | AA20: =IF($G$4=AA$1,IFERROR(VLOOKUP(Z20,'Quali 2'!$A$1:$BP$170,$Y$1,FALSE),"-"),"") ->  | AB20: =IF($G$4=AA$1,category(AA20,$AB$43:$AC$53,colornums,$Z$55),"") ->  | AC20: Turkmenistan | AD20: =IF($G$4=AD$1,IFERROR(VLOOKUP(AC20,'Quali 2'!$A$1:$BP$170,$Y$1,FALSE),"-"),"") ->  | AE20: =IF($G$4=AD$1,category(AD20,$AB$43:$AC$53,colornums,$Z$55),"") ->  | AF20: Samoa | AG20: =IF($G$4=AG$1,IFERROR(VLOOKUP(AF20,'Quali 2'!$A$1:$BP$170,$Y$1,FALSE),"-"),"") ->  | AH20: =IF($G$4=AG$1,category(AG20,$AB$43:$AC$53,colornums,$Z$55),"") ->  | AI20: Guyana | AJ20: =IF($G$4=AJ$1,IFERROR(VLOOKUP(AI20,'Quali 2'!$A$1:$BP$170,$Y$1,FALSE),"-"),"") ->  | AK20: =IF($G$4=AJ$1,category(AJ20,$AB$43:$AC$53,colornums,$Z$55),"") ->  | AO20: Tanzania | AP20: =IF($G$4=AP$1,IFERROR(VLOOKUP(AO20,'Quali 2'!$A$1:$BP$170,$Y$1,FALSE),"-"),"") ->  | AQ20: =IF($G$4=AP$1,category(AP20,$AB$43:$AC$53,colornums,$Z$55),"") ->  | AR20: Nigeria | AS20: =IF($G$4=AS$1,IFERROR(VLOOKUP(AR20,'Quali 2'!$A$1:$BP$170,$Y$1,FALSE),"-"),"") ->  | AT20: =IF($G$4=AS$1,category(AS20,$AB$43:$AC$53,colornums,$Z$55),"") ->  | AU20: Guatemala | AV20: Guyana
D21: P5b | E21: PCR - M | F21: GIR LG (%) M | G21: ='Data for global profile'!G21 -> 89.90863 | H21: =VLOOKUP(H$16,Master!$A$229:$W$236,18,FALSE) ->  | J21: =VLOOKUP($H$7,Master!$A$192:$AH$200,$R21,FALSE) ->  | L21: =VLOOKUP(L$16,'BL Master'!$A$3:$BN$246,$R21,FALSE) ->  | M21: =VLOOKUP($H$7,Master!$A$192:$AH$200,$R21,FALSE) ->  | R21: 18 | S21: =VLOOKUP(S$16,Master!$A$3:$AV$183,$R21,FALSE) -> P-GIR LG M | T21: 89.90863 | Z21: Yemen | AA21: =IF($G$4=AA$1,IFERROR(VLOOKUP(Z21,'Quali 2'!$A$1:$BP$170,$Y$1,FALSE),"-"),"") ->  | AB21: =IF($G$4=AA$1,category(AA21,$AB$43:$AC$53,colornums,$Z$55),"") ->  | AC21: Ukraine | AD21: =IF($G$4=AD$1,IFERROR(VLOOKUP(AC21,'Quali 2'!$A$1:$BP$170,$Y$1,FALSE),"-"),"") ->  | AE21: =IF($G$4=AD$1,category(AD21,$AB$43:$AC$53,colornums,$Z$55),"") ->  | AF21: Solomon Islands | AG21: =IF($G$4=AG$1,IFERROR(VLOOKUP(AF21,'Quali 2'!$A$1:$BP$170,$Y$1,FALSE),"-"),"") ->  | AH21: =IF($G$4=AG$1,category(AG21,$AB$43:$AC$53,colornums,$Z$55),"") ->  | AI21: Haiti | AJ21: =IF($G$4=AJ$1,IFERROR(VLOOKUP(AI21,'Quali 2'!$A$1:$BP$170,$Y$1,FALSE),"-"),"") ->  | AK21: =IF($G$4=AJ$1,category(AJ21,$AB$43:$AC$53,colornums,$Z$55),"") ->  | AO21: Zambia | AP21: =IF($G$4=AP$1,IFERROR(VLOOKUP(AO21,'Quali 2'!$A$1:$BP$170,$Y$1,FALSE),"-"),"") ->  | AQ21: =IF($G$4=AP$1,category(AP21,$AB$43:$AC$53,colornums,$Z$55),"") ->  | AR21: Sao Tome & Principe | AS21: =IF($G$4=AS$1,IFERROR(VLOOKUP(AR21,'Quali 2'!$A$1:$BP$170,$Y$1,FALSE),"-"),"") ->  | AT21: =IF($G$4=AS$1,category(AS21,$AB$43:$AC$53,colornums,$Z$55),"") ->  | AU21: Guyana | AV21: Haiti
E22: PCR - F | F22: GIR LG (%) F | G22: ='Data for global profile'!G22 -> 89.32394 | H22: =VLOOKUP(H$16,Master!$A$229:$W$236,16,FALSE) ->  | J22: =VLOOKUP($H$7,Master!$A$192:$AH$200,$R22,FALSE) ->  | L22: =VLOOKUP(L$16,'BL Master'!$A$3:$BN$246,$R22,FALSE) ->  | M22: =VLOOKUP($H$7,Master!$A$192:$AH$200,$R22,FALSE) ->  | R22: 16 | S22: =VLOOKUP(S$16,Master!$A$3:$AV$183,$R22,FALSE) -> P-GIR LG F | T22: 89.32394 | AA22: =IF($G$4=AA$1,IFERROR(VLOOKUP(Z22,'Quali 2'!$A$1:$BP$170,$Y$1,FALSE),"-"),"") ->  | AB22: =IF($G$4=AA$1,category(AA22,$AB$43:$AC$53,colornums,$Z$55),"") ->  | AC22: Uzbekistan | AD22: =IF($G$4=AD$1,IFERROR(VLOOKUP(AC22,'Quali 2'!$A$1:$BP$170,$Y$1,FALSE),"-"),"") ->  | AE22: =IF($G$4=AD$1,category(AD22,$AB$43:$AC$53,colornums,$Z$55),"") ->  | AF22: Thailand | AG22: =IF($G$4=AG$1,IFERROR(VLOOKUP(AF22,'Quali 2'!$A$1:$BP$170,$Y$1,FALSE),"-"),"") ->  | AH22: =IF($G$4=AG$1,category(AG22,$AB$43:$AC$53,colornums,$Z$55),"") ->  | AI22: Honduras | AJ22: =IF($G$4=AJ$1,IFERROR(VLOOKUP(AI22,'Quali 2'!$A$1:$BP$170,$Y$1,FALSE),"-"),"") ->  | AK22: =IF($G$4=AJ$1,category(AJ22,$AB$43:$AC$53,colornums,$Z$55),"") ->  | AO22: Zimbabwe | AP22: =IF($G$4=AP$1,IFERROR(VLOOKUP(AO22,'Quali 2'!$A$1:$BP$170,$Y$1,FALSE),"-"),"") ->  | AQ22: =IF($G$4=AP$1,category(AP22,$AB$43:$AC$53,colornums,$Z$55),"") ->  | AR22: Senegal | AS22: =IF($G$4=AS$1,IFERROR(VLOOKUP(AR22,'Quali 2'!$A$1:$BP$170,$Y$1,FALSE),"-"),"") ->  | AT22: =IF($G$4=AS$1,category(AS22,$AB$43:$AC$53,colornums,$Z$55),"") ->  | AU22: Haiti | AV22: Honduras
E23: PCR - MF | F23: GIR LG (%) MF | G23: ='Data for global profile'!G23 -> 89.99796033 | H23: =VLOOKUP(H$16,Master!$A$229:$W$236,14,FALSE) ->  | I23: 98 | J23: =VLOOKUP($H$7,Master!$A$192:$AH$200,$R23,FALSE) ->  | L23: =VLOOKUP(L$16,'BL Master'!$A$3:$BN$246,$R23,FALSE) ->  | M23: =VLOOKUP($H$7,Master!$A$192:$AH$200,$R23,FALSE) ->  | R23: 14 | S23: =VLOOKUP(S$16,Master!$A$3:$AV$183,$R23,FALSE) -> P-GIR LG MF | T23: 98 | U23: SP Global SP Target | AF23: Timor-Leste | AG23: =IF($G$4=AG$1,IFERROR(VLOOKUP(AF23,'Quali 2'!$A$1:$BP$170,$Y$1,FALSE),"-"),"") ->  | AH23: =IF($G$4=AG$1,category(AG23,$AB$43:$AC$53,colornums,$Z$55),"") ->  | AI23: Jamaica | AJ23: =IF($G$4=AJ$1,IFERROR(VLOOKUP(AI23,'Quali 2'!$A$1:$BP$170,$Y$1,FALSE),"-"),"") ->  | AK23: =IF($G$4=AJ$1,category(AJ23,$AB$43:$AC$53,colornums,$Z$55),"") ->  | AR23: Sierra Leone | AS23: =IF($G$4=AS$1,IFERROR(VLOOKUP(AR23,'Quali 2'!$A$1:$BP$170,$Y$1,FALSE),"-"),"") ->  | AT23: =IF($G$4=AS$1,category(AS23,$AB$43:$AC$53,colornums,$Z$55),"") ->  | AU23: Honduras | AV23: Jamaica
D24: P5abis | F24: NB-OOSC GPI | G24: =G19/G18 -> 1.110626092 | H24: =H19/H18 ->  | J24: =IFERROR(J19/J18,1) -> 1 | L24: =L19/L18 ->  | M24: =IFERROR(M19/M18,1) -> 1 | T24: 1.110626092 | AF24: Tokelau | AG24: =IF($G$4=AG$1,IFERROR(VLOOKUP(AF24,'Quali 2'!$A$1:$BP$170,$Y$1,FALSE),"-"),"") ->  | AH24: =IF($G$4=AG$1,category(AG24,$AB$43:$AC$53,colornums,$Z$55),"") ->  | AI24: Mexico | AJ24: =IF($G$4=AJ$1,IFERROR(VLOOKUP(AI24,'Quali 2'!$A$1:$BP$170,$Y$1,FALSE),"-"),"") ->  | AK24: =IF($G$4=AJ$1,category(AJ24,$AB$43:$AC$53,colornums,$Z$55),"") ->  | AR24: Togo | AS24: =IF($G$4=AS$1,IFERROR(VLOOKUP(AR24,'Quali 2'!$A$1:$BP$170,$Y$1,FALSE),"-"),"") ->  | AT24: =IF($G$4=AS$1,category(AS24,$AB$43:$AC$53,colornums,$Z$55),"") ->  | AU24: Jamaica | AV24: Mexico
D25: P5bbis | F25: GPI-GIRLG | G25: =G22/G21 -> 0.9934968423 | H25: =H22/H21 ->  | J25: =IFERROR(J22/J21,1) -> 1 | L25: =L22/L21 ->  | M25: =IFERROR(M22/M21,1) -> 1 | T25: 0.9934968423 | AF25: Tonga | AG25: =IF($G$4=AG$1,IFERROR(VLOOKUP(AF25,'Quali 2'!$A$1:$BP$170,$Y$1,FALSE),"-"),"") ->  | AH25: =IF($G$4=AG$1,category(AG25,$AB$43:$AC$53,colornums,$Z$55),"") ->  | AI25: Montserrat | AJ25: =IF($G$4=AJ$1,IFERROR(VLOOKUP(AI25,'Quali 2'!$A$1:$BP$170,$Y$1,FALSE),"-"),"") ->  | AK25: =IF($G$4=AJ$1,category(AJ25,$AB$43:$AC$53,colornums,$Z$55),"") ->  | AU25: Mexico | AV25: Montserrat
F26: Q1 GER | T26: 0 | AF26: Tuvalu | AG26: =IF($G$4=AG$1,IFERROR(VLOOKUP(AF26,'Quali 2'!$A$1:$BP$170,$Y$1,FALSE),"-"),"") ->  | AH26: =IF($G$4=AG$1,category(AG26,$AB$43:$AC$53,colornums,$Z$55),"") ->  | AI26: Nicaragua | AJ26: =IF($G$4=AJ$1,IFERROR(VLOOKUP(AI26,'Quali 2'!$A$1:$BP$170,$Y$1,FALSE),"-"),"") ->  | AK26: =IF($G$4=AJ$1,category(AJ26,$AB$43:$AC$53,colornums,$Z$55),"") ->  | AU26: Montserrat | AV26: Nicaragua
F27: Transition Rate (%) M | T27: 0 | AF27: Vanuatu | AG27: =IF($G$4=AG$1,IFERROR(VLOOKUP(AF27,'Quali 2'!$A$1:$BP$170,$Y$1,FALSE),"-"),"") ->  | AH27: =IF($G$4=AG$1,category(AG27,$AB$43:$AC$53,colornums,$Z$55),"") ->  | AI27: Paraguay | AJ27: =IF($G$4=AJ$1,IFERROR(VLOOKUP(AI27,'Quali 2'!$A$1:$BP$170,$Y$1,FALSE),"-"),"") ->  | AK27: =IF($G$4=AJ$1,category(AJ27,$AB$43:$AC$53,colornums,$Z$55),"") ->  | AU27: =AI27 -> Paraguay | AV27: Paraguay
F28: Transition Rate (%) F | T28: 0 | AF28: Vietnam | AG28: =IF($G$4=AG$1,IFERROR(VLOOKUP(AF28,'Quali 2'!$A$1:$BP$170,$Y$1,FALSE),"-"),"") ->  | AH28: =IF($G$4=AG$1,category(AG28,$AB$43:$AC$53,colornums,$Z$55),"") ->  | AI28: Peru | AJ28: =IF($G$4=AJ$1,IFERROR(VLOOKUP(AI28,'Quali 2'!$A$1:$BP$170,$Y$1,FALSE),"-"),"") ->  | AK28: =IF($G$4=AJ$1,category(AJ28,$AB$43:$AC$53,colornums,$Z$55),"") ->  | AU28: Peru | AV28: Peru
F29: Transition Rate (%) MF | T29: 0 | AH29: =IF($G$4=AG$1,category(AG29,$AB$43:$AC$53,colornums,$Z$55),"") ->  | AI29: St. Kitts&N. | AJ29: =IF($G$4=AJ$1,IFERROR(VLOOKUP(AI29,'Quali 2'!$A$1:$BP$170,$Y$1,FALSE),"-"),"") ->  | AK29: =IF($G$4=AJ$1,category(AJ29,$AB$43:$AC$53,colornums,$Z$55),"") ->  | AU29: St. Kitts&N. | AV29: St. Kitts&N.
E30: Learning Outcomes | G30: =CONCATENATE("World: ",'Learning Assessments'!KV185," / ",'Learning Assessments'!KV188) -> World: / | H30: =CONCATENATE($G$4,": ",VLOOKUP($G$4,'Learning Assessments'!$C$174:$E$181,2,FALSE)," / ",(VLOOKUP($G$4,'Learning Assessments'!$C$174:$E$181,2,FALSE)+VLOOKUP($G$4,'Learning Assessments'!$C$174:$E$181,3,FALSE))) ->  | I30: Benchmark | L30: =CONCATENATE($G$4,": ",VLOOKUP($G$4,'BL Learning and Regional Avg'!D4:J11,2,FALSE)," / ",(VLOOKUP($G$4,'BL Learning and Regional Avg'!D4:J11,2,FALSE)+VLOOKUP($G$4,'BL Learning and Regional Avg'!D4:J11,3,FALSE))) ->  | T30: World: / | AH30: =IF($G$4=AG$1,category(AG30,$AB$43:$AC$53,colornums,$Z$55),"") ->  | AI30: St. Lucia | AJ30: =IF($G$4=AJ$1,IFERROR(VLOOKUP(AI30,'Quali 2'!$A$1:$BP$170,$Y$1,FALSE),"-"),"") ->  | AK30: =IF($G$4=AJ$1,category(AJ30,$AB$43:$AC$53,colornums,$Z$55),"") ->  | AU30: St. Lucia | AV30: St. Lucia
E31: Number of countries with increase in learning outcomes | F31: =VLOOKUP($G$4,'Learning Assessments'!$C$174:$E$181,2,FALSE) ->  | G31: ='Learning Assessments'!KV186*100 -> 0 | H31: =VLOOKUP($G$4,'Learning Assessments'!$C$174:$E$181,2,FALSE)/(VLOOKUP($G$4,'Learning Assessments'!$C$174:$E$181,2,FALSE)+VLOOKUP($G$4,'Learning Assessments'!$C$174:$E$181,3,FALSE))*100 ->  | I31: 75 | L31: =VLOOKUP($G$4,'BL Learning and Regional Avg'!D4:J11,2,FALSE)/(VLOOKUP($G$4,'BL Learning and Regional Avg'!D4:J11,2,FALSE)+VLOOKUP($G$4,'BL Learning and Regional Avg'!D4:J11,3,FALSE))*100 ->  | T31: 75 | U31: SP Global Target | AH31: =IF($G$4=AG$1,category(AG31,$AB$43:$AC$53,colornums,$Z$55),"") ->  | AI31: St. Vinc. & Gren. | AJ31: =IF($G$4=AJ$1,IFERROR(VLOOKUP(AI31,'Quali 2'!$A$1:$BP$170,$Y$1,FALSE),"-"),"") ->  | AK31: =IF($G$4=AJ$1,category(AJ31,$AB$43:$AC$53,colornums,$Z$55),"") ->  | AU31: St. Vinc. & Gren. | AV31: St. Vinc. & Gren.
D32: P54a | E32: Primary NAR Poorest Quint | F32: NAR_PQ | G32: ='Data for global profile'!G32 -> 75.73119945 | H32: =VLOOKUP(H$16,Master!$A$3:$AV$183,$R32,FALSE) ->  | I32: 80 | J32: =VLOOKUP($H$7,Master!$A$192:$AH$200,$R32,FALSE) ->  | K32: =VLOOKUP($H$7,Master!$A$182:$AH$189,$R32,FALSE) ->  | L32: =VLOOKUP(L$16,'BL Master'!$A$3:$BN$246,$R32,FALSE) ->  | M32: =VLOOKUP($H$7,'BL Master'!$A$255:$AH$263,$R32,FALSE) ->  | O32: =VLOOKUP($H$7,'BL Master'!$A$245:$AH$252,$R32,FALSE) ->  | Q32: =J32/K32 ->  | R32: 27 | S32: =VLOOKUP(S$16,Master!$A$3:$AV$183,$R32,FALSE) -> Primary NAR-PQ | T32: 80 | U32: SP Benchmark | AH32: =IF($G$4=AG$1,category(AG32,$AB$43:$AC$53,colornums,$Z$55),"") ->  | AI32: Suriname | AJ32: =IF($G$4=AJ$1,IFERROR(VLOOKUP(AI32,'Quali 2'!$A$1:$BP$170,$Y$1,FALSE),"-"),"") ->  | AK32: =IF($G$4=AJ$1,category(AJ32,$AB$43:$AC$53,colornums,$Z$55),"") ->  | AU32: Suriname | AV32: Suriname
D33: P55 | F33: % 36-59mths involved in learning activities | G33: ='Data for global profile'!G33 -> 66.98615385 | H33: =VLOOKUP(H$16,Master!$A$3:$AV$183,$R33,FALSE) ->  | I33: 80 | J33: =VLOOKUP($H$7,Master!$A$192:$AH$200,$R33,FALSE) ->  | K33: =VLOOKUP($H$7,Master!$A$182:$AH$189,$R33,FALSE) ->  | L33: =VLOOKUP(L$16,'BL Master'!$A$3:$BN$246,$R33,FALSE) ->  | M33: =VLOOKUP($H$7,'BL Master'!$A$255:$AH$263,$R33,FALSE) ->  | O33: =VLOOKUP($H$7,'BL Master'!$A$245:$AH$252,$R33,FALSE) ->  | Q33: =J33/K33 ->  | R33: 31 | S33: =VLOOKUP(S$16,Master!$A$3:$AV$183,$R33,FALSE) -> Adult Support | T33: 80 | U33: SP Benchmark | AH33: =IF($G$4=AG$1,category(AG33,$AB$43:$AC$53,colornums,$Z$55),"") ->  | AI33: Trin. & Tob. | AJ33: =IF($G$4=AJ$1,IFERROR(VLOOKUP(AI33,'Quali 2'!$A$1:$BP$170,$Y$1,FALSE),"-"),"") ->  | AK33: =IF($G$4=AJ$1,category(AJ33,$AB$43:$AC$53,colornums,$Z$55),"") ->  | AU33: Trin. & Tob. | AV33: Trin. & Tob.
D34: P5d1 | F34: UNICEF only % of children in humanitarian situations accessing formal or non-formal basic education | G34: ='Data for global profile'!G34 -> 3300.24672 | H34: =H106/H105*100 ->  | I34: 100 | L34: =L106/L105*100 ->  | T34: 3300.24672 | U34: SP Global Target | AH34: =IF($G$4=AG$1,category(AG34,$AB$43:$AC$53,colornums,$Z$55),"") ->  | AI34: Turks & Caicos | AJ34: =IF($G$4=AJ$1,IFERROR(VLOOKUP(AI34,'Quali 2'!$A$1:$BP$170,$Y$1,FALSE),"-"),"") ->  | AK34: =IF($G$4=AJ$1,category(AJ34,$AB$43:$AC$53,colornums,$Z$55),"") ->  | AU34: Turks & Caicos | AV34: Turks & Caicos
D35: P56 | F35: All % of children in humanitarian situations | G35: ='Data for global profile'!G35 -> 3593.598016 | H35: =H108/H107*100 ->  | I35: 80 | L35: =L107/L105*100 ->  | T35: 3593.598016 | U35: SP Global Target | AH35: =IF($G$4=AG$1,category(AG35,$AB$43:$AC$53,colornums,$Z$55),"") ->  | AI35: Uruguay | AJ35: =IF($G$4=AJ$1,IFERROR(VLOOKUP(AI35,'Quali 2'!$A$1:$BP$170,$Y$1,FALSE),"-"),"") ->  | AK35: =IF($G$4=AJ$1,category(AJ35,$AB$43:$AC$53,colornums,$Z$55),"") ->  | AU35: Uruguay | AV35: Uruguay
T36: 0 | AH36: =IF($G$4=AG$1,category(AG36,$AB$43:$AC$53,colornums,$Z$55),"") ->  | AI36: Venezuela | AJ36: =IF($G$4=AJ$1,IFERROR(VLOOKUP(AI36,'Quali 2'!$A$1:$BP$170,$Y$1,FALSE),"-"),"") ->  | AK36: =IF($G$4=AJ$1,category(AJ36,$AB$43:$AC$53,colornums,$Z$55),"") ->  | AU36: Venezuela | AV36: Venezuela
E37: LOWER SECONDARY EDUCATION | T37: 0 | AH37: =IF($G$4=AG$1,category(AG37,$AB$43:$AC$53,colornums,$Z$55),"") -> 
G38: World | H38: =$G$4 ->  | I38: Benchmark | J38: # c. reaching Benchmark | K38: # countries | L38: =$G$4 ->  | M38: # c. reaching Benchmark | O38: # countries | T38: World | Z38: MENA | AA38: MENA | AC38: CEE/CIS | AD38: CEE/CIS | AF38: EAPR | AG38: EAPR | AI38: LACR | AJ38: LACR | AL38: SA | AM38: SA | AO38: ESAR | AP38: ESAR | AR38: WCAR | AS38: WCAR | AU38: Dominica | AV38: D
D39: P51 | F39: OOSCR (%) MF | G39: ='Data for global profile'!G39 -> 17.75944937 | H39: =VLOOKUP(H$16,Master!$A$3:$AV$183,$R39,FALSE) ->  | I39: 5 | J39: =VLOOKUP($H$7,Master!$A$192:$AH$200,$R39,FALSE) ->  | K39: =VLOOKUP($H$7,Master!$A$182:$AH$189,$R39,FALSE) ->  | L39: =VLOOKUP(L$16,'BL Master'!$A$3:$BN$246,$R39,FALSE) ->  | M39: =VLOOKUP($H$7,'BL Master'!$A$255:$AH$263,$R39,FALSE) ->  | O39: =VLOOKUP($H$7,'BL Master'!$A$245:$AH$252,$R39,FALSE) ->  | Q39: =J39/K39 ->  | R39: 23 | S39: =VLOOKUP(S$16,Master!$A$3:$AV$183,$R39,FALSE) -> LS-OOSCR MF | T39: 17.75944937 | U39: SP Benchmark | AU39: Dom. Rep. | AV39: Dominica
E40: Learning Outcomes | F40: MF | T40: 0 | AU40: D | AV40: Dom. Rep.
F41: F | T41: 0 | AB41: Nombre de catégories | AE41: 4
D42: P5e1 | F42: GPI | G42: ='Data for global profile'!G42 -> 0.97 | H42: =VLOOKUP(H$16,Master!$A$3:$AV$183,$R42,FALSE) ->  | I42: 80 | J42: =VLOOKUP($H$7,Master!$A$192:$AH$200,$R42,FALSE) ->  | K42: =VLOOKUP($H$7,Master!$A$182:$AH$189,$R42,FALSE) ->  | L42: =VLOOKUP(L$16,'BL Master'!$A$3:$BN$246,$R42,FALSE) ->  | M42: =VLOOKUP($H$7,Master!$A$192:$AH$200,$R42,FALSE) ->  | O42: =VLOOKUP($H$7,'BL Master'!$A$245:$AH$252,$R42,FALSE) ->  | Q42: =J42/K42 ->  | R42: 33 | S42: =VLOOKUP(S$16,Master!$A$3:$AV$183,$R42,FALSE) -> LS-GPI GER | T42: 80 | U42: SP Benchmark | AB42: Intervalles
T43: 0 | Z43: =col(AE43) -> 255 | AB43: 1 | AC43: 1.5
T44: 0 | Z44: =col(AE44) -> 49407 | AB44: =IF(AC44="","",AC43) -> 1.5 | AC44: 2.5
E45: BUDGET FOR EDUCATION | T45: 0 | Z45: =col(AE45) -> 5296274 | AB45: =IF(AC45="","",AC44) -> 2.5 | AC45: 3.5
G46: World | H46: =$G$4 ->  | I46: Benchmark | J46: # c. reaching Benchmark | K46: # countries | L46: =$G$4 ->  | M46: # c. reaching Benchmark | O46: # countries | T46: World | Z46: =col(AE46) -> 5287936 | AB46: =IF(AC46="","",AC45) -> 3.5 | AC46: 4
D47: P53 | E47: Public expenditure on education as % of total government expenditure | G47: ='Data for global profile'!G47 -> 15.33010535 | H47: =VLOOKUP(H$16,Master!$A$3:$AV$183,$R47,FALSE) ->  | I47: 20 | J47: =VLOOKUP($H$7,Master!$A$192:$AH$200,$R47,FALSE) ->  | K47: =VLOOKUP($H$7,Master!$A$182:$AH$189,$R47,FALSE) ->  | L47: =VLOOKUP(L$16,'BL Master'!$A$3:$BN$246,$R47,FALSE) ->  | M47: =VLOOKUP($H$7,'BL Master'!$A$255:$AH$263,$R47,FALSE) ->  | O47: =VLOOKUP($H$7,'BL Master'!$A$245:$AH$252,$R47,FALSE) ->  | Q47: =J47/K47 ->  | R47: 25 | S47: =VLOOKUP(S$16,Master!$A$3:$AV$183,$R47,FALSE) -> % EDU IN BUDGET | T47: 20 | U47: SP Benchmark
T48: 0
E49: BUDGET FOR EDUCATION IN HUMANITARIAN SITUATIONS | T49: 0
T50: 0
G51: World | H51: =$G$4 ->  | I51: Benchmark | J51: # c. reaching Benchmark | K51: # countries | L51: =$G$4 ->  | M51: # c. reaching Benchmark | O51: # countries | T51: World
E52: Percentage for Education in Humanitarian funds | G52: 20 | H52: 17 | L52: 17 | T52: 20
T53: 0
E54: HUMANITARIAN SITUATIONS | T54: 0
T55: 0 | Z55: =col(AE55) -> 14277081 | AC55: -
G56: =G7 -> World | H56: =$G$4 ->  | I56: Benchmark | J56: # c. reaching Benchmark | K56: # countries | L56: =$G$4 ->  | M56: # c. reaching Benchmark | O56: # countries | T56: World | Z56: =col(AE56) -> 16777215
E57: Number and percentage of children in humanitarian situations accessing formal or non-formal basic education | G57: 78 | H57: 75 | J57: 60 | L57: 75 | M57: 60 | T57: 78 | Z57: =col(AE57) -> 15921906
E62: Country | G62: Benchmark | H62: Region | L62: Baseline
A63: Current | B63: Baseline | E63: Country | G63: World | H63: =$G$4 ->  | I63: Benchmark | L63: =$G$4 -> 
A64: 50 | B64: 79 | C64: Edu 1 | D64: A1 | E64: School Management Committees | F64: =E64 -> School Management Committees | G64: ='Quali 2'!$AZ$170 -> 2.198377581 | H64: =ROUND(VLOOKUP(H$63,'Quali 2'!$A$1:$BP$170,$A64,FALSE),1) ->  | I64: 4 | L64: =ROUND(VLOOKUP(L$63,'BL Quali 2'!$A$1:$DE$171,$B64,FALSE),1) -> 
A65: 51 | B65: 80 | C65: Edu 2 | D65: A2 | E65: EMIS Feedback to CMCs | F65: EMIS Feedback to SMCs | G65: ='Quali 2'!$BA$170 -> 2.351730769 | H65: =ROUND(VLOOKUP(H$63,'Quali 2'!$A$1:$BP$170,$A65,FALSE),1) ->  | L65: =ROUND(VLOOKUP(L$63,'BL Quali 2'!$A$1:$DE$171,$B65,FALSE),1) -> 
A66: 52 | B66: 81 | C66: Edu 3 | E66: P5.b.1 Countries with innovative approaches at scale to improve access to education and learning outcomes for the most disadvantaged and excluded children | F66: Innovative approaches | G66: ='Quali 2'!$BB$170 -> 2.2109375 | H66: =ROUND(VLOOKUP(H$63,'Quali 2'!$A$1:$BP$170,$A66,FALSE),1) ->  | L66: =ROUND(VLOOKUP(L$63,'BL Quali 2'!$A$1:$DE$171,$B66,FALSE),1) -> 
A67: 53 | B67: 82 | C67: Edu 4 | E67: P5.b.2 Countries with quality standards consistent with child-friendly schools/education or similar models developed or revised | F67: Quality standards: child-friendly ed. | G67: ='Quali 2'!$BC$170 -> 2.191441441 | H67: =ROUND(VLOOKUP(H$63,'Quali 2'!$A$1:$BP$170,$A67,FALSE),1) ->  | L67: =ROUND(VLOOKUP(L$63,'BL Quali 2'!$A$1:$DE$171,$B67,FALSE),1) -> 
A68: 54 | B68: 83 | C68: Edu 5 | E68: P5.c.1 Countries with well-functioning student learning assessment system, especially for early grades | F68: Learning Assessment Syst. | G68: ='Quali 2'!$BD$170 -> 2.283018868 | H68: =ROUND(VLOOKUP(H$63,'Quali 2'!$A$1:$BP$170,$A68,FALSE),1) ->  | L68: =ROUND(VLOOKUP(L$63,'BL Quali 2'!$A$1:$DE$171,$B68,FALSE),1) -> 
A69: 55 | B69: 84 | C69: Edu 6 | E69: P5.c.2 Countries with effective early learning policies and quality early learning programmes | F69: Policies for Early Learning | G69: ='Quali 2'!$BE$170 -> 2.074468085 | H69: =ROUND(VLOOKUP(H$63,'Quali 2'!$A$1:$BP$170,$A69,FALSE),1) ->  | L69: =ROUND(VLOOKUP(L$63,'BL Quali 2'!$A$1:$DE$171,$B69,FALSE),1) -> 
A70: 56 | B70: 85 | C70: Edu 9 | E70: P5.c.3 Countries with an education sector plan/policy that includes risk assessment and risk management | F70: Risk Assesst & Mgt | G70: ='Quali 2'!$BF$170 -> 2.337150127 | H70: =ROUND(VLOOKUP(H$63,'Quali 2'!$A$1:$BP$170,$A70,FALSE),1) ->  | L70: =ROUND(VLOOKUP(L$63,'BL Quali 2'!$A$1:$DE$171,$B70,FALSE),1) -> 
A75: 61 | B75: 86 | C75: 11 | E75: P5.e.2 Countries with EMIS providing disaggregated data that allow identification of barriers and bottlenecks that inhibit realization of the rights of disadvantaged children | F75: Data on disadvantaged children | G75: ='Data for global profile'!G71 -> 2.4 | H75: =ROUND(VLOOKUP(H$63,'Quali 2'!$A$1:$BP$170,$A75,FALSE),1) ->  | L75: =ROUND(VLOOKUP(L$63,'BL Quali 2'!$A$1:$DE$171,$B75,FALSE),1) -> 
A76: 57 | B76: 88 | C76: 13 | E76: P5.e.3 Countries with policies on inclusive education covering children with disabilities | F76: Policies on inclusive education | G76: ='Data for global profile'!G72 -> 2.1 | H76: =ROUND(VLOOKUP(H$63,'Quali 2'!$A$1:$BP$170,$A76,FALSE),1) ->  | L76: =ROUND(VLOOKUP(L$63,'BL Quali 2'!$A$1:$DE$171,$B76,FALSE),1) -> 
A77: 58 | B77: 89 | C77: 14 | E77: P5.e.4 Countries with an education sector policy or plan that specify prevention and response mechanisms to address gender-based violence in around schools | F77: Policy on gender-based violence | G77: ='Data for global profile'!G73 -> 2.4 | H77: =ROUND(VLOOKUP(H$63,'Quali 2'!$A$1:$BP$170,$A77,FALSE),1) ->  | L77: =ROUND(VLOOKUP(L$63,'BL Quali 2'!$A$1:$DE$171,$B77,FALSE),1) -> 
A78: 59 | B78: 90 | E78: P5.e.5 Countries where girls’ secondary education, in terms of enrolment, retention, and completion is a recognised, targeted and budgeted education priority | F78: Girls' Secondary Education | G78: ='Data for global profile'!G75 -> 2 | H78: =ROUND(VLOOKUP(H$63,'Quali 2'!$A$1:$BP$170,$A78,FALSE),1) ->  | L78: =ROUND(VLOOKUP(L$63,'BL Quali 2'!$A$1:$DE$171,$B78,FALSE),1) -> 
A79: 60 | B79: 87 | E79: P5.e.6 Countries with an education policy/sector plan that includes multilingual education to allow children to learn in their mother tongue during the early grades | F79: Multilingual Education | G79: ='Data for global profile'!G76 -> 1.7 | H79: =ROUND(VLOOKUP(H$63,'Quali 2'!$A$1:$BP$170,$A79,FALSE),1) ->  | L79: =ROUND(VLOOKUP(L$63,'BL Quali 2'!$A$1:$DE$171,$B79,FALSE),1) -> 
E81: 1. Based on best fit as described in the Guidance Notes [posted on the Help Forum], please rate the following criteria on whether the country has functional school management committee in primary and secondary schools. | I81: 4 | S81: =VLOOKUP("Country",'Quali 2'!$A$1:$BP$158,'Data for regional profile'!B81,FALSE) ->  | T81: 1. Does the country have functional school management committee in primary schools? If yes, rate the following criteria based on best fit as described in Footnotes 1 to 3. | U81: =T81=E81 -> FALSE
A82: 3 | B82: 4 | E82: 1.a Community participation [Footnote 1] | F82: =LEFT(RIGHT(E82,LEN(E82)-4),SEARCH("[",E82)-6) -> Community participation | G82: ='Data for global profile'!G80 -> 2.2 | H82: =ROUND(VLOOKUP(H$63,'Quali 2'!$A$1:$BP$170,$A82,FALSE),1) ->  | I82: 4 | L82: =VLOOKUP(L$63,'BL Quali 2'!$A$1:$DE$171,$B82,FALSE) ->  | S82: =VLOOKUP("Country",'Quali 2'!$A$1:$BP$158,'Data for regional profile'!B82,FALSE) -> 2.a.3 Gender Environment | T82: 1.a Community participation [Footnote 1] | U82: TRUE
A83: 4 | B83: 5 | E83: 1.b Accountability [Footnote 2] | F83: Accountability | G83: ='Data for global profile'!G81 -> 2.3 | H83: =ROUND(VLOOKUP(H$63,'Quali 2'!$A$1:$BP$170,$A83,FALSE),1) ->  | I83: 4 | L83: =VLOOKUP(L$63,'BL Quali 2'!$A$1:$DE$171,$B83,FALSE) ->  | S83: =VLOOKUP("Country",'Quali 2'!$A$1:$BP$158,'Data for regional profile'!B83,FALSE) -> 2 a 3 Gender SRGBV | T83: 1.b Accountability [Footnote 2] | U83: TRUE
A84: 5 | B84: 6 | E84: 1.c Monitoring [Footnote 3] | F84: Monitoring | G84: ='Data for global profile'!G82 -> 2.2 | H84: =ROUND(VLOOKUP(H$63,'Quali 2'!$A$1:$BP$170,$A84,FALSE),1) ->  | I84: 4 | L84: =VLOOKUP(L$63,'BL Quali 2'!$A$1:$DE$171,$B84,FALSE) ->  | S84: =VLOOKUP("Country",'Quali 2'!$A$1:$BP$158,'Data for regional profile'!B84,FALSE) -> 2 a 2 Inclusive Ed Law-Policy | T84: 1.c Monitoring [Footnote 3] | U84: TRUE
E85: 2. Based on best fit as described in the Guidance Notes [posted on the Help Forum], please rate the following criteria on whether the EMIS in your country feeds findings back to communities or school management committees. | F85: ased on best fit as described in the Guidance Notes | I85: 4 | S85: =VLOOKUP("Country",'Quali 2'!$A$1:$BP$158,'Data for regional profile'!B85,FALSE) ->  | T85: 2. Does the EMIS in your country feed findings back to communities or school management committees? If yes, rate the following criteria based on best fit as described in Footnotes 4 to 6. | U85: FALSE
A86: 6 | B86: 10 | E86: 2.a Information feedback and transparency | F86: Information Feedback and Transparency | G86: ='Data for global profile'!G84 -> 3 | H86: =ROUND(VLOOKUP(H$63,'Quali 2'!$A$1:$BP$170,$A86,FALSE),1) ->  | I86: 4 | L86: =VLOOKUP(L$63,'BL Quali 2'!$A$1:$DE$171,$B86,FALSE) ->  | S86: =VLOOKUP("Country",'Quali 2'!$A$1:$BP$158,'Data for regional profile'!B86,FALSE) -> 2 a 2 Inclusive Ed Attitudes | T86: 2.a Information feedback [Footnote 4] | U86: FALSE
A87: 7 | B87: 11 | E87: 2.c Training and community participation | F87: Training and community participation | G87: ='Data for global profile'!G85 -> 2 | H87: =ROUND(VLOOKUP(H$63,'Quali 2'!$A$1:$BP$170,$A87,FALSE),1) ->  | I87: 4 | L87: =VLOOKUP(L$63,'BL Quali 2'!$A$1:$DE$171,$B87,FALSE) ->  | S87: =VLOOKUP("Country",'Quali 2'!$A$1:$BP$158,'Data for regional profile'!B87,FALSE) -> 2 a 2 Inclusive Ed EMIS | T87: 2.b Transparency [Footnote 5] | U87: FALSE
S89: =VLOOKUP("Country",'Quali 2'!$A$1:$BP$158,'Data for regional profile'!B90,FALSE) -> 2 a 2 Sector Plan Strategy Resources | T89: 3. Does the country employ innovative approaches at scale to improve access to education and learning outcomes for the most disadvantaged and excluded children? If yes, rate the following criteria based on best fit as described in Footnotes 7 to 9. | U89: FALSE
A90: 8 | B90: 13 | E90: 3.a Evidence [Footnote 7] | F90: Evidence | G90: ='Data for global profile'!G87 -> 2.1 | H90: =ROUND(VLOOKUP(H$63,'Quali 2'!$A$1:$BP$170,$A90,FALSE),1) ->  | I90: 4 | L90: =VLOOKUP(L$63,'BL Quali 2'!$A$1:$DE$171,$B90,FALSE) ->  | S90: =VLOOKUP("Country",'Quali 2'!$A$1:$BP$158,'Data for regional profile'!B91,FALSE) -> 2 a 2 Emergency PrepRes Assessment | T90: 3.a Evidence [Footnote 7] | U90: TRUE
A91: 9 | B91: 14 | E91: 3.b Strategy/Traction [Footnote 8] | F91: Strategy/Traction | G91: ='Data for global profile'!G88 -> 2.6 | H91: =ROUND(VLOOKUP(H$63,'Quali 2'!$A$1:$BP$170,$A91,FALSE),1) ->  | I91: 4 | L91: =VLOOKUP(L$63,'BL Quali 2'!$A$1:$DE$171,$B91,FALSE) ->  | S91: =VLOOKUP("Country",'Quali 2'!$A$1:$BP$158,'Data for regional profile'!B92,FALSE) -> 2 a 2 Emergency PrepRes Strategies | T91: 3.b Strategy/Traction [Footnote 8] | U91: TRUE
A92: 10 | B92: 15 | E92: 3.c Scalability [Footnote 9] | F92: Scalability | G92: ='Data for global profile'!G89 -> 2.3 | H92: =ROUND(VLOOKUP(H$63,'Quali 2'!$A$1:$BP$170,$A92,FALSE),1) ->  | I92: 4 | L92: =VLOOKUP(L$63,'BL Quali 2'!$A$1:$DE$171,$B92,FALSE) ->  | S92: =VLOOKUP("Country",'Quali 2'!$A$1:$BP$158,'Data for regional profile'!#REF!,FALSE) ->  | T92: 3.c Scalability [Footnote 9] | U92: TRUE
S93: =VLOOKUP("Country",'Quali 2'!$A$1:$BP$158,'Data for regional profile'!B94,FALSE) -> 2 b 3 Early Learning Policy | T93: 4. Does the country have quality standards consistent with child-friendly schools/ education or similar models developed or revised? [Footnote 10] If yes, rate the following criteria based on best fit as described in Footnotes 11 to 15. | U93: FALSE
A94: 11 | B94: 21 | E94: 4.a CFS/CFE standards | F94: CFS/CFE standards | G94: ='Data for global profile'!G91 -> 2.3 | H94: =ROUND(VLOOKUP(H$63,'Quali 2'!$A$1:$BP$170,$A94,FALSE),1) ->  | I94: 4 | L94: =VLOOKUP(L$63,'BL Quali 2'!$A$1:$DE$171,$B94,FALSE) ->  | S94: =VLOOKUP("Country",'Quali 2'!$A$1:$BP$158,'Data for regional profile'!#REF!,FALSE) ->  | T94: 4.a Pedagogy (teaching and learning) [Footnote 11] | U94: FALSE
A95: 12 | B95: 22 | E95: 4.e Measuring learning outcomes [Footnote 15] | F95: Measuring learning outcomes | G95: ='Data for global profile'!G92 -> 2.1 | H95: =ROUND(VLOOKUP(H$63,'Quali 2'!$A$1:$BP$170,$A95,FALSE),1) ->  | I95: 4 | L95: =VLOOKUP(L$63,'BL Quali 2'!$A$1:$DE$171,$B95,FALSE) ->  | S95: =VLOOKUP("Country",'Quali 2'!$A$1:$BP$158,'Data for regional profile'!B95,FALSE) -> 2 b 3 Early Learning Governance | T95: 4.e Measuring learning outcomes [Footnote 15] | U95: TRUE
S96: =VLOOKUP("Country",'Quali 2'!$A$1:$BP$158,'Data for regional profile'!B96,FALSE) ->  | T96: 5. Does the country have a well-functioning student learning assessment system, especially for early grades? If yes, rate the following criteria based on best fit as described in Footnotes 16 to 19. | U96: FALSE
A97: 13 | B97: 24 | E97: 5.a Classroom assessment [Footnote 16] | F97: Classroom assessment | G97: ='Data for global profile'!G93 -> 0 | H97: =ROUND(VLOOKUP(H$63,'Quali 2'!$A$1:$BP$170,$A97,FALSE),1) ->  | I97: 4 | L97: =VLOOKUP(L$63,'BL Quali 2'!$A$1:$DE$171,$B97,FALSE) ->  | S97: =VLOOKUP("Country",'Quali 2'!$A$1:$BP$158,'Data for regional profile'!B97,FALSE) -> 2 b 3 Learning Assessments Classroom | T97: 5.a Classroom assessment [Footnote 16] | U97: TRUE
A98: 14 | B98: 25 | E98: 5.b Examinations [Footnote 17] | F98: Examinations | G98: ='Data for global profile'!G94 -> 2.3 | H98: =ROUND(VLOOKUP(H$63,'Quali 2'!$A$1:$BP$170,$A98,FALSE),1) ->  | I98: 4 | L98: =VLOOKUP(L$63,'BL Quali 2'!$A$1:$DE$171,$B98,FALSE) ->  | S98: =VLOOKUP("Country",'Quali 2'!$A$1:$BP$158,'Data for regional profile'!B98,FALSE) -> 2 b 3 Learning Assessments Exams | T98: 5.b Examinations [Footnote 17] | U98: TRUE
A99: 15 | B99: 26 | E99: 5.c National Large-Scale Assessment [Footnote 18] | F99: National Assessments | G99: ='Data for global profile'!G95 -> 2.3 | H99: =ROUND(VLOOKUP(H$63,'Quali 2'!$A$1:$BP$170,$A99,FALSE),1) ->  | I99: 4 | L99: =VLOOKUP(L$63,'BL Quali 2'!$A$1:$DE$171,$B99,FALSE) ->  | S99: =VLOOKUP("Country",'Quali 2'!$A$1:$BP$158,'Data for regional profile'!B99,FALSE) -> 2 b 3 Learning Assessments NLSA | T99: 5.c National Large-Scale Assessment [Footnote 18] | U99: TRUE
S100: =VLOOKUP("Country",'Quali 2'!$A$1:$BP$158,'Data for regional profile'!B100,FALSE) ->  | T100: 5.d International Large-Scale Assessment [Footnote 19] | U100: FALSE
A101: 16 | B101: 30 | E101: 6.a Early learning curriculum and standards [Footnote 21] | F101: =LEFT(RIGHT(E101,LEN(E101)-4),SEARCH("[",E101)-6) -> Early learning curriculum and standards | G101: ='Data for global profile'!G97 -> 0 | H101: =ROUND(VLOOKUP(H$63,'Quali 2'!$A$1:$BP$170,$A101,FALSE),1) ->  | I101: 4 | L101: =VLOOKUP(L$63,'BL Quali 2'!$A$1:$DE$171,$B101,FALSE) ->  | S101: =VLOOKUP("Country",'Quali 2'!$A$1:$BP$158,'Data for regional profile'!B101,FALSE) -> 2 b 3 Teachers Prof Dev | T101: 6.b Early learning curriculum and standards [Footnote 21] | U101: FALSE
A102: 17 | B102: 31 | E102: 6.b ECCE facility [Footnote 22] | F102: =LEFT(RIGHT(E102,LEN(E102)-4),SEARCH("[",E102)-6) -> ECCE facility | G102: ='Data for global profile'!G98 -> 2.3 | H102: =ROUND(VLOOKUP(H$63,'Quali 2'!$A$1:$BP$170,$A102,FALSE),1) ->  | I102: 4 | L102: =VLOOKUP(L$63,'BL Quali 2'!$A$1:$DE$171,$B102,FALSE) ->  | S102: =VLOOKUP("Country",'Quali 2'!$A$1:$BP$158,'Data for regional profile'!B102,FALSE) -> 2 b 3 Teachers Leadership | T102: 6.c ECCE facility [Footnote 22] | U102: FALSE
A103: 18 | B103: 32 | E103: 6.c Community participation [Footnote 23] | F103: =LEFT(RIGHT(E103,LEN(E103)-4),SEARCH("[",E103)-6) -> Community participation | G103: ='Data for global profile'!G99 -> 2.5 | H103: =ROUND(VLOOKUP(H$63,'Quali 2'!$A$1:$BP$170,$A103,FALSE),1) ->  | I103: 4 | L103: =VLOOKUP(L$63,'BL Quali 2'!$A$1:$DE$171,$B103,FALSE) ->  | S103: =VLOOKUP("Country",'Quali 2'!$A$1:$BP$158,'Data for regional profile'!B103,FALSE) -> 2 b 3 Teachers Incentive | T103: 6.d Community participation [Footnote 23] | U103: FALSE
A105: 46 | B105: 34 | E105: 7.a UNICEF Targetted | F105: =RIGHT(E105,LEN(E105)-4) -> UNICEF Targetted | G105: ='Data for global profile'!G101 -> 2.1 | H105: =ROUND(VLOOKUP(H$63,'Quali 2'!$A$1:$BP$170,$A105,FALSE),1) ->  | I105: 4 | L105: =VLOOKUP(L$63,'BL Quali 2'!$A$1:$DE$171,$B105,FALSE) ->  | S105: =VLOOKUP("Country",'Quali 2'!$A$1:$BP$158,'Data for regional profile'!B105,FALSE) -> 2 b 3 Community Participation | T105: 7.a If yes to 7, what is the number of children (3-18 years old) in humanitarian situations targeted (or planned to be reached) for formal or non-formal basic education (including pre-primary schools/early childhood learning spaces)? Please provide disaggregated data for boys and girls in the remarks column separating two values with a slash symbol (boys/girls). | U105: FALSE
A106: 47 | B106: 35 | E106: 7.b UNICEF Reached | F106: =RIGHT(E106,LEN(E106)-4) -> UNICEF Reached | G106: ='Data for global profile'!G130 -> 342088 | H106: =ROUND(VLOOKUP(H$63,'Quali 2'!$A$1:$BP$170,$A106,FALSE),1) ->  | I106: 4 | L106: =VLOOKUP(L$63,'BL Quali 2'!$A$1:$DE$171,$B106,FALSE) ->  | S106: =VLOOKUP("Country",'Quali 2'!$A$1:$BP$158,'Data for regional profile'!B106,FALSE) -> 2 b 3 Community Accountability | T106: 7.b How many of those targeted (planned) children were actually reached by UNICEF for formal or non-formal basic education (including pre-primary schools/early childhood learning spaces)? Please provide disaggregated data for boys and girls in the remarks column separating two values with a slash symbol (boys/girls). | U106: FALSE
A107: 48 | B107: 36 | E107: 7.c All partners Targetted | F107: =RIGHT(E107,LEN(E107)-4) -> All partners Targetted | G107: ='Data for global profile'!G131 -> 11289748 | H107: =ROUND(VLOOKUP(H$63,'Quali 2'!$A$1:$BP$170,$A107,FALSE),1) ->  | I107: 4 | S107: =VLOOKUP("Country",'Quali 2'!$A$1:$BP$158,'Data for regional profile'!B107,FALSE) -> 2 b 3 Community Monitoring | T107: 7.c Among those children reached by UNICEF for formal or non-formal basic education in humanitarian situation, how many of them received in 2013 psychosocial support? Please provide disaggregated data for boys and girls in the remarks column separating two values with a slash symbol (boys/girls). | U107: FALSE
A108: 49 | B108: 37 | E108: 7.d All partners Reached | F108: =RIGHT(E108,LEN(E108)-4) -> All partners Reached | G108: ='Data for global profile'!G132 -> 55639 | H108: =ROUND(VLOOKUP(H$63,'Quali 2'!$A$1:$BP$170,$A108,FALSE),1) ->  | I108: 4 | S108: =VLOOKUP("Country",'Quali 2'!$A$1:$BP$158,'Data for regional profile'!B108,FALSE) -> 2 c 2 Mainstreaming Policies Plans | T108: 7.d How many of those targeted (planned) children did access early childhood education/pre-primary/early childhood learning spaces? Please provide disaggregated data for boys and girls in the remarks column separating two values with a slash symbol (boys/girls). | U108: =T108=E108 -> FALSE
S109: =VLOOKUP("Country",'Quali 2'!$A$1:$BP$158,'Data for regional profile'!B109,FALSE) ->  | T109: 7.e How many of those targeted (planned) children did access primary education? Please provide disaggregated data for boys and girls in the remarks column separating two values with a slash symbol (boys/girls). | U109: FALSE
S110: =VLOOKUP("Country",'Quali 2'!$A$1:$BP$158,'Data for regional profile'!B110,FALSE) ->  | T110: 7.f How many of those targeted (planned) children did access secondary education? Please provide disaggregated data for boys and girls in the remarks column separating two values with a slash symbol (boys/girls). | U110: FALSE
S111: =VLOOKUP("Country",'Quali 2'!$A$1:$BP$158,'Data for regional profile'!B111,FALSE) ->  | T111: 7.g How many of those targeted (planned) children did access non-formal education? Please provide disaggregated data for boys and girls in the remarks column separating two values with a slash symbol (boys/girls). | U111: FALSE
B113: 42 | E113: 8.a If yes to 8, were partners convened? | F113: Partners convened | G113: =IFERROR(ROUND(VLOOKUP(G$63,'Quali 2'!$A$1:$BP$170,$A113,FALSE),1),"N/A") -> N/A | H113: =IFERROR(ROUND(VLOOKUP(H$63,'Quali 2'!$A$1:$BP$170,$A113,FALSE),1),"N/A") -> N/A | I113: 4 | L113: =VLOOKUP(L$63,'BL Quali 2'!$A$1:$DE$171,$B113,FALSE) ->  | S113: =VLOOKUP("Country",'Quali 2'!$A$1:$BP$158,'Data for regional profile'!B113,FALSE) -> 2.a1 Children enrolled in formal or non-formal education | T113: 8.a If yes to 8, were partners convened? | U113: TRUE
B114: 43 | E114: 8.b If yes to 8, was ToR for coordinating mechanism established? | F114: ToR for coordinating mechanism established | G114: =IFERROR(ROUND(VLOOKUP(G$63,'Quali 2'!$A$1:$BP$170,$A114,FALSE),1),"N/A") -> N/A | H114: =IFERROR(ROUND(VLOOKUP(H$63,'Quali 2'!$A$1:$BP$170,$A114,FALSE),1),"N/A") -> N/A | I114: 4 | L114: =VLOOKUP(L$63,'BL Quali 2'!$A$1:$DE$171,$B114,FALSE) ->  | S114: =VLOOKUP("Country",'Quali 2'!$A$1:$BP$158,'Data for regional profile'!B114,FALSE) -> 2.a1a Girls enrolled in formal or non-formal education | T114: 8.b If yes to 8, was ToR for coordinating mechanism established? | U114: TRUE
B115: 44 | E115: 8.c If yes to 8, was the cluster operational strategy/action plan established? | F115: Cluster operational strategy/action plan established | G115: =IFERROR(ROUND(VLOOKUP(G$63,'Quali 2'!$A$1:$BP$170,$A115,FALSE),1),"N/A") -> N/A | H115: =IFERROR(ROUND(VLOOKUP(H$63,'Quali 2'!$A$1:$BP$170,$A115,FALSE),1),"N/A") -> N/A | I115: 4 | L115: =VLOOKUP(L$63,'BL Quali 2'!$A$1:$DE$171,$B115,FALSE) ->  | S115: =VLOOKUP("Country",'Quali 2'!$A$1:$BP$158,'Data for regional profile'!B115,FALSE) -> 2.a1a Boys enrolled in formal or non-formal education | T115: 8.c If yes to 8, was the cluster operational strategy/action plan established? | U115: TRUE
B116: 45 | E116: 8.d If yes to 8, was performance management system in place? | F116: Performance management system in place | G116: =IFERROR(ROUND(VLOOKUP(G$63,'Quali 2'!$A$1:$BP$170,$A116,FALSE),1),"N/A") -> N/A | H116: =IFERROR(ROUND(VLOOKUP(H$63,'Quali 2'!$A$1:$BP$170,$A116,FALSE),1),"N/A") -> N/A | I116: 4 | L116: =VLOOKUP(L$63,'BL Quali 2'!$A$1:$DE$171,$B116,FALSE) ->  | S116: =VLOOKUP("Country",'Quali 2'!$A$1:$BP$158,'Data for regional profile'!B116,FALSE) -> 2.a1b Children enrolled in formal or non-formal early learning/pre-primary education | T116: 8.d If yes to 8, was performance management system in place? | U116: TRUE
B117: 46 | E117: 8.e If yes to 8, is sector coverage known from partner reports? | F117: Sector coverage known from partner reports | G117: =IFERROR(ROUND(VLOOKUP(G$63,'Quali 2'!$A$1:$BP$170,$A117,FALSE),1),"N/A") -> N/A | H117: =IFERROR(ROUND(VLOOKUP(H$63,'Quali 2'!$A$1:$BP$170,$A117,FALSE),1),"N/A") -> N/A | I117: 4 | L117: =VLOOKUP(L$63,'BL Quali 2'!$A$1:$DE$171,$B117,FALSE) ->  | S117: =VLOOKUP("Country",'Quali 2'!$A$1:$BP$158,'Data for regional profile'!B117,FALSE) -> 2.a1c Children enrolled in formal or non-formal primary education | T117: 8.e If yes to 8, is sector coverage known from partner reports? | U117: TRUE
A119: 19 | B119: 48 | E119: 9.a Risk Assessment [Footnote 24] | F119: =LEFT(RIGHT(E119,LEN(E119)-4),SEARCH("[",E119)-6) -> Risk Assessment | G119: ='Data for global profile'!G107 -> 2.5 | H119: =ROUND(VLOOKUP(H$63,'Quali 2'!$A$1:$BP$170,$A119,FALSE),1) ->  | I119: 4 | L119: =VLOOKUP(L$63,'BL Quali 2'!$A$1:$DE$171,$B119,FALSE) ->  | S119: =VLOOKUP("Country",'Quali 2'!$A$1:$BP$158,'Data for regional profile'!B119,FALSE) -> 2.a1e Children enrolled in formal or non-formal upper secondary education | T119: 9.a Risk Assessment [Footnote 24] | U119: TRUE
A120: 20 | B120: 49 | E120: 9.b Risk reduction strategy [Footnote 25] | F120: =LEFT(RIGHT(E120,LEN(E120)-4),SEARCH("[",E120)-6) -> Risk reduction strategy | G120: ='Data for global profile'!G108 -> 2.3 | H120: =ROUND(VLOOKUP(H$63,'Quali 2'!$A$1:$BP$170,$A120,FALSE),1) ->  | I120: 4 | L120: =VLOOKUP(L$63,'BL Quali 2'!$A$1:$DE$171,$B120,FALSE) ->  | S120: =VLOOKUP("Country",'Quali 2'!$A$1:$BP$158,'Data for regional profile'!B120,FALSE) -> 2.b.1 children provided with individual education/early learning materials | T120: 9.b Risk reduction strategy [Footnote 25] | U120: TRUE
A121: 21 | B121: 50 | E121: 9.c Human and financial resources [Footnote 26] | F121: =LEFT(RIGHT(E121,LEN(E121)-4),SEARCH("[",E121)-6) -> Human and financial resources | G121: ='Data for global profile'!G109 -> 0 | H121: =ROUND(VLOOKUP(H$63,'Quali 2'!$A$1:$BP$170,$A121,FALSE),1) ->  | I121: 4 | L121: =VLOOKUP(L$63,'BL Quali 2'!$A$1:$DE$171,$B121,FALSE) ->  | S121: =VLOOKUP("Country",'Quali 2'!$A$1:$BP$158,'Data for regional profile'!B121,FALSE) -> 2.b.2 school management committees trained | T121: 9.c Human and financial resources [Footnote 26] | U121: TRUE
B123: 51 | E123: 10. Does the country have gender parity in lower secondary education? [Footnote 27] | F123: =LEFT(RIGHT(E123,LEN(E123)-4),SEARCH("[",E123)-6) -> Does the country have gender parity in lower secondary education? | G123: =IFERROR(ROUND(VLOOKUP(G$63,'Quali 2'!$A$1:$BP$170,$A123,FALSE),1),"N/A") -> N/A | H123: =IFERROR(ROUND(VLOOKUP(H$63,'Quali 2'!$A$1:$BP$170,$A123,FALSE),1),"N/A") -> N/A | I123: 4 | L123: =VLOOKUP(L$63,'BL Quali 2'!$A$1:$DE$171,$B123,FALSE) ->  | S123: =VLOOKUP("Country",'Quali 2'!$A$1:$BP$158,'Data for regional profile'!B123,FALSE) -> 2.c.1 0 to 19 years old children in skills development programmes | T123: 10. Does the country have gender parity in lower secondary education? [Footnote 27] | U123: TRUE
A125: 39 | B125: 53 | E125: 11.a Data quality and timeliness (teaching and learning) [Footnote 28] | F125: Data quality and timeliness | G125: ='Data for global profile'!G113 -> 0 | H125: =ROUND(VLOOKUP(H$63,'Quali 2'!$A$1:$BP$170,$A125,FALSE),1) ->  | I125: 4 | L125: =VLOOKUP(L$63,'BL Quali 2'!$A$1:$DE$171,$B125,FALSE) ->  | S125: =VLOOKUP("Country",'Quali 2'!$A$1:$BP$158,'Data for regional profile'!B125,FALSE) -> IE | T125: 11.a Data quality and timeliness (teaching and learning) [Footnote 28] | U125: TRUE
A126: 40 | B126: 54 | E126: 11.b Comprehensiveness [Footnote 29] | F126: =LEFT(RIGHT(E126,LEN(E126)-4),SEARCH("[",E126)-6) -> Comprehensiveness | G126: ='Data for global profile'!G114 -> 2.2 | H126: =ROUND(VLOOKUP(H$63,'Quali 2'!$A$1:$BP$170,$A126,FALSE),1) ->  | I126: 4 | L126: =VLOOKUP(L$63,'BL Quali 2'!$A$1:$DE$171,$B126,FALSE) ->  | S126: =VLOOKUP("Country",'Quali 2'!$A$1:$BP$158,'Data for regional profile'!B126,FALSE) -> ESP | T126: 11.b Comprehensiveness [Footnote 29] | U126: TRUE
A127: 41 | B127: 55 | E127: 11.c Disaggregation [Footnote 30] | F127: Disaggregation | G127: ='Data for global profile'!G115 -> 2.2 | H127: =ROUND(VLOOKUP(H$63,'Quali 2'!$A$1:$BP$170,$A127,FALSE),1) ->  | I127: 4 | L127: =VLOOKUP(L$63,'BL Quali 2'!$A$1:$DE$171,$B127,FALSE) ->  | S127: =VLOOKUP("Country",'Quali 2'!$A$1:$BP$158,'Data for regional profile'!B127,FALSE) -> Emergency Prepardness | T127: 11.c Disaggregation [Footnote 30] | U127: TRUE
A129: 35 | B129: 57 | E129: 12.a Policy environment [Footnote 31] | F129: Policy environment | G129: ='Data for global profile'!G117 -> 2 | H129: =ROUND(VLOOKUP(H$63,'Quali 2'!$A$1:$BP$170,$A129,FALSE),1) ->  | I129: 4 | L129: =VLOOKUP(L$63,'BL Quali 2'!$A$1:$DE$171,$B129,FALSE) ->  | S129: =VLOOKUP("Country",'Quali 2'!$A$1:$BP$158,'Data for regional profile'!B129,FALSE) -> gender-responsive teaching and learning | T129: 12.a Policy environment [Footnote 31] | U129: TRUE
A130: 36 | B130: 58 | E130: 12.b Alignment [Footnote 32] | F130: Alignment | G130: ='Data for global profile'!G118 -> 0 | H130: =ROUND(VLOOKUP(H$63,'Quali 2'!$A$1:$BP$170,$A130,FALSE),1) ->  | I130: 4 | L130: =VLOOKUP(L$63,'BL Quali 2'!$A$1:$DE$171,$B130,FALSE) ->  | S130: =VLOOKUP("Country",'Quali 2'!$A$1:$BP$158,'Data for regional profile'!B130,FALSE) -> Early Learning | T130: 12.b Alignment [Footnote 32] | U130: TRUE
A131: 37 | B131: 59 | E131: 12.c Resource allocation [Footnote 33] | F131: Resource allocation | G131: ='Data for global profile'!G119 -> 2.5 | H131: =ROUND(VLOOKUP(H$63,'Quali 2'!$A$1:$BP$170,$A131,FALSE),1) ->  | I131: 4 | L131: =VLOOKUP(L$63,'BL Quali 2'!$A$1:$DE$171,$B131,FALSE) ->  | S131: =VLOOKUP("Country",'Quali 2'!$A$1:$BP$158,'Data for regional profile'!B131,FALSE) -> Learning assessment | T131: 12.c Resource allocation [Footnote 33] | U131: TRUE
A132: 38 | B132: 60 | E132: 12.d Community engagement [Footnote 34] | F132: Community engagement | G132: ='Data for global profile'!G120 -> 2.4 | H132: =ROUND(VLOOKUP(H$63,'Quali 2'!$A$1:$BP$170,$A132,FALSE),1) ->  | I132: 4 | L132: =VLOOKUP(L$63,'BL Quali 2'!$A$1:$DE$171,$B132,FALSE) ->  | S132: =VLOOKUP("Country",'Quali 2'!$A$1:$BP$158,'Data for regional profile'!B132,FALSE) -> Multilingual | T132: 12.d Community engagement [Footnote 34] | U132: TRUE
S133: =VLOOKUP("Country",'Quali 2'!$A$1:$BP$158,'Data for regional profile'!B133,FALSE) ->  | T133: 12.e Implementation [Footnote 35] | U133: FALSE
A135: 22 | B135: 63 | E135: 13.a Law/Policy [Footnote 36] | F135: Law/Policy | G135: ='Data for global profile'!#REF! ->  | H135: =ROUND(VLOOKUP(H$63,'Quali 2'!$A$1:$BP$170,$A135,FALSE),1) ->  | I135: 4 | L135: =VLOOKUP(L$63,'BL Quali 2'!$A$1:$DE$171,$B135,FALSE) ->  | S135: =VLOOKUP("Country",'Quali 2'!$A$1:$BP$158,'Data for regional profile'!B135,FALSE) -> Mainstreaming of skills development | T135: 13.a Law/Policy [Footnote 36] | U135: TRUE
A136: 23 | B136: 64 | E136: 13.b Physical environment [Footnote 37] | F136: Physical environment | G136: ='Data for global profile'!G123 -> 2.1 | H136: =ROUND(VLOOKUP(H$63,'Quali 2'!$A$1:$BP$170,$A136,FALSE),1) ->  | I136: 4 | L136: =VLOOKUP(L$63,'BL Quali 2'!$A$1:$DE$171,$B136,FALSE) ->  | S136: =VLOOKUP("Country",'Quali 2'!$A$1:$BP$158,'Data for regional profile'!B136,FALSE) -> responsi veness | T136: 13.b Physical environment [Footnote 37] | U136: TRUE
A137: 24 | B137: 65 | E137: 13.c Materials and communication [Footnote 38] | F137: Materials and communication | G137: ='Data for global profile'!G124 -> 2 | H137: =ROUND(VLOOKUP(H$63,'Quali 2'!$A$1:$BP$170,$A137,FALSE),1) ->  | I137: 4 | L137: =VLOOKUP(L$63,'BL Quali 2'!$A$1:$DE$171,$B137,FALSE) ->  | S137: =VLOOKUP("Country",'Quali 2'!$A$1:$BP$158,'Data for regional profile'!B137,FALSE) -> Access | T137: 13.c Materials and communication [Footnote 38] | U137: TRUE
A138: 25 | B138: 66 | E138: 13.d Human Resources [Footnote 39] | F138: Human Resources | G138: ='Data for global profile'!G125 -> 1.8 | H138: =ROUND(VLOOKUP(H$63,'Quali 2'!$A$1:$BP$170,$A138,FALSE),1) ->  | I138: 4 | L138: =VLOOKUP(L$63,'BL Quali 2'!$A$1:$DE$171,$B138,FALSE) ->  | S138: =VLOOKUP("Country",'Quali 2'!$A$1:$BP$158,'Data for regional profile'!B138,FALSE) -> Learning | T138: 13.d Human Resources [Footnote 39] | U138: TRUE
A139: 26 | B139: 67 | E139: 13.e Attitudes [Footnote 40] | F139: Attitudes | G139: ='Data for global profile'!G126 -> 0 | H139: =ROUND(VLOOKUP(H$63,'Quali 2'!$A$1:$BP$170,$A139,FALSE),1) ->  | I139: 4 | L139: =VLOOKUP(L$63,'BL Quali 2'!$A$1:$DE$171,$B139,FALSE) ->  | S139: =VLOOKUP("Country",'Quali 2'!$A$1:$BP$158,'Data for regional profile'!B139,FALSE) -> Skills | T139: 13.e Attitudes [Footnote 40] | U139: TRUE
A140: 27 | B140: 68 | E140: 13.f EMIS [Footnote 41] | F140: EMIS | G140: ='Data for global profile'!G127 -> 1.7 | H140: =ROUND(VLOOKUP(H$63,'Quali 2'!$A$1:$BP$170,$A140,FALSE),1) ->  | I140: 4 | L140: =VLOOKUP(L$63,'BL Quali 2'!$A$1:$DE$171,$B140,FALSE) ->  | S140: =VLOOKUP("Country",'Quali 2'!$A$1:$BP$158,'Data for regional profile'!B140,FALSE) -> 0 | T140: 13.f EMIS [Footnote 41] | U140: TRUE
A142: 28 | B142: 70 | E142: 14.a Legal/policy framework [Footnote 42] | F142: Legal/policy framework | G142: ='Data for global profile'!#REF! ->  | H142: =ROUND(VLOOKUP(H$63,'Quali 2'!$A$1:$BP$170,$A142,FALSE),1) ->  | I142: 4 | L142: =VLOOKUP(L$63,'BL Quali 2'!$A$1:$DE$171,$B142,FALSE) ->  | S142: =VLOOKUP("Country",'Quali 2'!$A$1:$BP$158,'Data for regional profile'!B142,FALSE) ->  | T142: 14.a Legal/policy framework [Footnote 42] | U142: =T142=E142 -> TRUE
A143: 29 | B143: 71 | E143: 14.b Prevention and response mechanism [Footnote 43] | F143: Prevention and response mechanism | G143: ='Data for global profile'!#REF! ->  | H143: =ROUND(VLOOKUP(H$63,'Quali 2'!$A$1:$BP$170,$A143,FALSE),1) ->  | I143: 4 | L143: =VLOOKUP(L$63,'BL Quali 2'!$A$1:$DE$171,$B143,FALSE) ->  | S143: =VLOOKUP("Country",'Quali 2'!$A$1:$BP$158,'Data for regional profile'!B143,FALSE) ->  | T143: 14.b Prevention and response mechanism [Footnote 43] | U143: TRUE
A144: 30 | B144: 72 | E144: 14.c Awareness, attitude and empowerment [Footnote 44] | F144: Awareness, attitude and empowerment | G144: ='Data for global profile'!#REF! ->  | H144: =ROUND(VLOOKUP(H$63,'Quali 2'!$A$1:$BP$170,$A144,FALSE),1) ->  | I144: 4 | L144: =VLOOKUP(L$63,'BL Quali 2'!$A$1:$DE$171,$B144,FALSE) ->  | S144: =VLOOKUP("Country",'Quali 2'!$A$1:$BP$158,'Data for regional profile'!B144,FALSE) ->  | T144: 14.c Awareness, attitude and empowerment [Footnote 44] | U144: TRUE
A145: 31 | B145: 73 | E145: 14.d Data collection, availability and use [Footnote 45] | F145: Data collection, availability and use | G145: ='Data for global profile'!#REF! ->  | H145: =ROUND(VLOOKUP(H$63,'Quali 2'!$A$1:$BP$170,$A145,FALSE),1) ->  | I145: 4 | L145: =VLOOKUP(L$63,'BL Quali 2'!$A$1:$DE$171,$B145,FALSE) ->  | S145: =VLOOKUP("Country",'Quali 2'!$A$1:$BP$158,'Data for regional profile'!B145,FALSE) ->  | T145: 14.d Data collection, availability and use [Footnote 45] | U145: TRUE
A147: 42 | E147: 15. Has the country office/staff authored any paper in peer-reviewed journal on Education issues? (If yes, list the paper and journal in the remarks) | F147: Number of papers | G147: ='Quali 2'!AQ170 -> 4968296 | I147: 4 | L147: =VLOOKUP(L$63,'BL Quali 2'!$A$1:$DE$171,$B147,FALSE) ->  | S147: =VLOOKUP("Country",'Quali 2'!$A$1:$BP$158,'Data for regional profile'!B147,FALSE) ->  | T147: 15. Has the country office/staff authored any paper in peer-reviewed journal on Education issues? (If yes, list the paper and journal in the remarks) | U147: TRUE
E148: 16. What is girls’ secondary school gross enrolment rate? Please indicate the year for which the data is available in the remarks column. | G148: =IFERROR(ROUND(VLOOKUP(G$63,'Quali 2'!$A$1:$BP$170,$A148,FALSE),1),"N/A") -> N/A | I148: 4 | L148: =VLOOKUP(L$63,'BL Quali 2'!$A$1:$DE$171,$B148,FALSE) ->  | S148: =VLOOKUP("Country",'Quali 2'!$A$1:$BP$158,'Data for regional profile'!B148,FALSE) ->  | T148: 16. What is girls’ secondary school enrolment rate? Please indicate the year for which the data is available in the remarks column. | U148: FALSE
A149: 32 | E149: 16.a Is girls’ secondary schooling specifically mentioned as a priority in the national strategy/plan on education? | G149: ='Data for global profile'!G140 -> 0 | H149: =ROUND(VLOOKUP(H$63,'Quali 2'!$A$1:$BP$170,$A149,FALSE),1) ->  | I149: 4 | L149: =VLOOKUP(L$63,'BL Quali 2'!$A$1:$DE$171,$B149,FALSE) ->  | S149: =VLOOKUP("Country",'Quali 2'!$A$1:$BP$158,'Data for regional profile'!B149,FALSE) ->  | T149: 16.a Is girls’ secondary schooling specifically mentioned as a priority in the national strategy/plan on education? | U149: TRUE
A150: 33 | E150: 16.b Does the national strategy mention specific targets for at least one of the following: increasing girls’ secondary school enrolment, retention, or completion? | G150: ='Data for global profile'!G141 -> 1.62 | H150: =ROUND(VLOOKUP(H$63,'Quali 2'!$A$1:$BP$170,$A150,FALSE),1) ->  | I150: 4 | L150: =VLOOKUP(L$63,'BL Quali 2'!$A$1:$DE$171,$B150,FALSE) ->  | S150: =VLOOKUP("Country",'Quali 2'!$A$1:$BP$158,'Data for regional profile'!B150,FALSE) ->  | T150: 16.b Does the national strategy mention specific targets for at least one of the following: increasing girls’ secondary school enrolment, retention, or completion? | U150: TRUE
A151: 34 | E151: 16.c Does the national strategy specify a budget line for improving girls’ secondary schooling? | G151: ='Data for global profile'!G142 -> 1.961538462 | H151: =ROUND(VLOOKUP(H$63,'Quali 2'!$A$1:$BP$170,$A151,FALSE),1) ->  | I151: 4 | L151: =VLOOKUP(L$63,'BL Quali 2'!$A$1:$DE$171,$B151,FALSE) ->  | S151: =VLOOKUP("Country",'Quali 2'!$A$1:$BP$158,'Data for regional profile'!B151,FALSE) ->  | T151: 16.c Does the national strategy specify a budget line for improving girls’ secondary schooling? | U151: TRUE
L153: Baseline
F154: =VLOOKUP(G4,$B$156:$C$163,2,FALSE) ->  | G154: 2 | H154: 1 | M154: 2 | O154: 1 | P154: 3
C155: Baseline | D155: Current | F155: Yes | G155: Yes % | H155: No | I155: Total Number of Countries | J155: Benchmark number of Countries | L155: Yes | M155: Yes % | O155: No | P155: Target | Q155: Target % | R155: Target Countries
A156: 50 | B156: CEE/CIS | C156: 2 | D156: 2 | E156: P5.a.1. SMCs | F156: =VLOOKUP($H$63,'Quali 2'!$A$177:$BP$184,$D156,FALSE) ->  | G156: =VLOOKUP($H$63,'Quali 2'!$A$177:$BP$184,$D156+$G$154,FALSE) ->  | H156: =VLOOKUP($H$63,'Quali 2'!$A$177:$BP$184,$D156+$H$154,FALSE) ->  | I156: =F156+H156 ->  | J156: =CONCATENATE(F156, " Countries (",TEXT(G156,"0%"),")") ->  | L156: =VLOOKUP($H$63,'BL Quali 2'!$A$178:$BY$185, $C156, FALSE) ->  | M156: =VLOOKUP($H$63,'BL Quali 2'!$A$178:$BY$185, $C156+$M$154, FALSE) ->  | O156: =VLOOKUP($H$63,'BL Quali 2'!$A$178:$BY$185, $C156+$O$154, FALSE) ->  | P156: =VLOOKUP($H$63,'BL Quali 2'!$A$178:$BY$185, $C156+$P$154, FALSE) ->  | Q156: =P156/(O156+L156) ->  | R156: =CONCATENATE(P156, " Countries") -> 
A157: 51 | B157: EAPR | C157: 6 | D157: 5 | E157: P5.a.2. EMIS Feedback | F157: =VLOOKUP($H$63,'Quali 2'!$A$177:$BP$184,$D157,FALSE) ->  | G157: =VLOOKUP($H$63,'Quali 2'!$A$177:$BP$184,$D157+$G$154,FALSE) ->  | H157: =VLOOKUP($H$63,'Quali 2'!$A$177:$BP$184,$D157+$H$154,FALSE) ->  | I157: =F157+H157 ->  | J157: =CONCATENATE(F157, " Countries (",TEXT(G157,"0%"),")") ->  | L157: =VLOOKUP($H$63,'BL Quali 2'!$A$178:$BY$185, $C157, FALSE) ->  | M157: =VLOOKUP($H$63,'BL Quali 2'!$A$178:$BY$185, $C157+$M$154, FALSE) ->  | O157: =VLOOKUP($H$63,'BL Quali 2'!$A$178:$BY$185, $C157+$O$154, FALSE) ->  | P157: =VLOOKUP($H$63,'BL Quali 2'!$A$178:$BY$185, $C157+$P$154, FALSE) ->  | Q157: =P157/(O157+L157) ->  | R157: =CONCATENATE(P157, " Countries") -> 
A158: 52 | B158: ESAR | C158: 10 | D158: 8 | E158: P5.b.1 Innovations | F158: =VLOOKUP($H$63,'Quali 2'!$A$177:$BP$184,$D158,FALSE) ->  | G158: =VLOOKUP($H$63,'Quali 2'!$A$177:$BP$184,$D158+$G$154,FALSE) ->  | H158: =VLOOKUP($H$63,'Quali 2'!$A$177:$BP$184,$D158+$H$154,FALSE) ->  | L158: =VLOOKUP($H$63,'BL Quali 2'!$A$178:$BY$185, $C158, FALSE) ->  | M158: =VLOOKUP($H$63,'BL Quali 2'!$A$178:$BY$185, $C158+$M$154, FALSE) ->  | O158: =VLOOKUP($H$63,'BL Quali 2'!$A$178:$BY$185, $C158+$O$154, FALSE) ->  | P158: =VLOOKUP($H$63,'BL Quali 2'!$A$178:$BY$185, $C158+$P$154, FALSE) -> 
A159: 53 | B159: MENA | C159: 14 | D159: 11 | E159: P5.b.2. Child Friendly Schools | F159: =VLOOKUP($H$63,'Quali 2'!$A$177:$BP$184,$D159,FALSE) ->  | G159: =VLOOKUP($H$63,'Quali 2'!$A$177:$BP$184,$D159+$G$154,FALSE) ->  | H159: =VLOOKUP($H$63,'Quali 2'!$A$177:$BP$184,$D159+$H$154,FALSE) ->  | L159: =VLOOKUP($H$63,'BL Quali 2'!$A$178:$BY$185, $C159, FALSE) ->  | M159: =VLOOKUP($H$63,'BL Quali 2'!$A$178:$BY$185, $C159+$M$154, FALSE) ->  | O159: =VLOOKUP($H$63,'BL Quali 2'!$A$178:$BY$185, $C159+$O$154, FALSE) ->  | P159: =VLOOKUP($H$63,'BL Quali 2'!$A$178:$BY$185, $C159+$P$154, FALSE) -> 
A160: 54 | B160: SA | C160: 18 | D160: 14 | E160: P5.c.1. Learning Assessment Systems | F160: =VLOOKUP($H$63,'Quali 2'!$A$177:$BP$184,$D160,FALSE) ->  | G160: =VLOOKUP($H$63,'Quali 2'!$A$177:$BP$184,$D160+$G$154,FALSE) ->  | H160: =VLOOKUP($H$63,'Quali 2'!$A$177:$BP$184,$D160+$H$154,FALSE) ->  | L160: =VLOOKUP($H$63,'BL Quali 2'!$A$178:$BY$185, $C160, FALSE) ->  | M160: =VLOOKUP($H$63,'BL Quali 2'!$A$178:$BY$185, $C160+$M$154, FALSE) ->  | O160: =VLOOKUP($H$63,'BL Quali 2'!$A$178:$BY$185, $C160+$O$154, FALSE) ->  | P160: =VLOOKUP($H$63,'BL Quali 2'!$A$178:$BY$185, $C160+$P$154, FALSE) -> 
A161: 55 | B161: LACR | C161: 22 | D161: 17 | E161: P5.c.2. Early Learning | F161: =VLOOKUP($H$63,'Quali 2'!$A$177:$BP$184,$D161,FALSE) ->  | G161: =VLOOKUP($H$63,'Quali 2'!$A$177:$BP$184,$D161+$G$154,FALSE) ->  | H161: =VLOOKUP($H$63,'Quali 2'!$A$177:$BP$184,$D161+$H$154,FALSE) ->  | L161: =VLOOKUP($H$63,'BL Quali 2'!$A$178:$BY$185, $C161, FALSE) ->  | M161: =VLOOKUP($H$63,'BL Quali 2'!$A$178:$BY$185, $C161+$M$154, FALSE) ->  | O161: =VLOOKUP($H$63,'BL Quali 2'!$A$178:$BY$185, $C161+$O$154, FALSE) ->  | P161: =VLOOKUP($H$63,'BL Quali 2'!$A$178:$BY$185, $C161+$P$154, FALSE) -> 
A162: 56 | B162: WCAR | C162: 26 | D162: 20 | E162: P5.c.3. Risk Asst & Mgt | F162: =VLOOKUP($H$63,'Quali 2'!$A$177:$BP$184,$D162,FALSE) ->  | G162: =VLOOKUP($H$63,'Quali 2'!$A$177:$BP$184,$D162+$G$154,FALSE) ->  | H162: =VLOOKUP($H$63,'Quali 2'!$A$177:$BP$184,$D162+$H$154,FALSE) ->  | L162: =VLOOKUP($H$63,'BL Quali 2'!$A$178:$BY$185, $C162, FALSE) ->  | M162: =VLOOKUP($H$63,'BL Quali 2'!$A$178:$BY$185, $C162+$M$154, FALSE) ->  | O162: =VLOOKUP($H$63,'BL Quali 2'!$A$178:$BY$185, $C162+$O$154, FALSE) ->  | P162: =VLOOKUP($H$63,'BL Quali 2'!$A$178:$BY$185, $C162+$P$154, FALSE) -> 
A163: 61 | B163: World | C163: 30 | D163: 23 | E163: P5.e.2. EMIS BNA | F163: =VLOOKUP($H$63,'Quali 2'!$A$177:$BP$184,$D163,FALSE) ->  | G163: =VLOOKUP($H$63,'Quali 2'!$A$177:$BP$184,$D163+$G$154,FALSE) ->  | H163: =VLOOKUP($H$63,'Quali 2'!$A$177:$BP$184,$D163+$H$154,FALSE) ->  | I163: =F163+H163 ->  | L163: =VLOOKUP($H$63,'BL Quali 2'!$A$178:$BY$185, $C163, FALSE) ->  | M163: =VLOOKUP($H$63,'BL Quali 2'!$A$178:$BY$185, $C163+$M$154, FALSE) ->  | O163: =VLOOKUP($H$63,'BL Quali 2'!$A$178:$BY$185, $C163+$O$154, FALSE) ->  | P163: =VLOOKUP($H$63,'BL Quali 2'!$A$178:$BY$185, $C163+$P$154, FALSE) ->  | Q163: =P163/(O163+L163) ->  | R163: =CONCATENATE(P163, " Countries") -> 
A164: 61 | B164: World | C164: 38 | D164: 29 | E164: P5.e.3. Inclusive Education | F164: =VLOOKUP($H$63,'Quali 2'!$A$177:$BP$184,$D164,FALSE) ->  | G164: =VLOOKUP($H$63,'Quali 2'!$A$177:$BP$184,$D164+$G$154,FALSE) ->  | H164: =VLOOKUP($H$63,'Quali 2'!$A$177:$BP$184,$D164+$H$154,FALSE) ->  | L164: =VLOOKUP($H$63,'BL Quali 2'!$A$178:$BY$185, $C164, FALSE) ->  | M164: =VLOOKUP($H$63,'BL Quali 2'!$A$178:$BY$185, $C164+$M$154, FALSE) ->  | O164: =VLOOKUP($H$63,'BL Quali 2'!$A$178:$BY$185, $C164+$O$154, FALSE) ->  | P164: =VLOOKUP($H$63,'BL Quali 2'!$A$178:$BY$185, $C164+$P$154, FALSE) -> 
A165: 57 | C165: 42 | D165: 32 | E165: P5.e.4. SRGBV | F165: =VLOOKUP($H$63,'Quali 2'!$A$177:$BP$184,$D165,FALSE) ->  | G165: =VLOOKUP($H$63,'Quali 2'!$A$177:$BP$184,$D165+$G$154,FALSE) ->  | H165: =VLOOKUP($H$63,'Quali 2'!$A$177:$BP$184,$D165+$H$154,FALSE) ->  | L165: =VLOOKUP($H$63,'BL Quali 2'!$A$178:$BY$185, $C165, FALSE) ->  | M165: =VLOOKUP($H$63,'BL Quali 2'!$A$178:$BY$185, $C165+$M$154, FALSE) ->  | O165: =VLOOKUP($H$63,'BL Quali 2'!$A$178:$BY$185, $C165+$O$154, FALSE) ->  | P165: =VLOOKUP($H$63,'BL Quali 2'!$A$178:$BY$185, $C165+$P$154, FALSE) -> 
A166: 58 | C166: 46 | D166: 35 | E166: P5.e.5 Girls' Sec. Ed. | F166: =VLOOKUP($H$63,'Quali 2'!$A$177:$BP$184,$D166,FALSE) ->  | G166: =VLOOKUP($H$63,'Quali 2'!$A$177:$BP$184,$D166+$G$154,FALSE) ->  | H166: =VLOOKUP($H$63,'Quali 2'!$A$177:$BP$184,$D166+$H$154,FALSE) ->  | L166: =VLOOKUP($H$63,'BL Quali 2'!$A$178:$BY$185, $C166, FALSE) ->  | M166: =VLOOKUP($H$63,'BL Quali 2'!$A$178:$BY$185, $C166+$M$154, FALSE) ->  | O166: =VLOOKUP($H$63,'BL Quali 2'!$A$178:$BY$185, $C166+$O$154, FALSE) ->  | P166: =VLOOKUP($H$63,'Quali 2'!$A$177:$BP$184, $C166+$P$154, FALSE) -> 
A167: 59 | C167: 34 | D167: 26 | E167: P5.e.6 Multilingual Education | F167: =VLOOKUP($H$63,'Quali 2'!$A$177:$BP$184,$D167,FALSE) ->  | G167: =VLOOKUP($H$63,'Quali 2'!$A$177:$BP$184,$D167+$G$154,FALSE) ->  | H167: =VLOOKUP($H$63,'Quali 2'!$A$177:$BP$184,$D167+$H$154,FALSE) ->  | L167: =VLOOKUP($H$63,'BL Quali 2'!$A$178:$BY$185, $C167, FALSE) ->  | M167: =VLOOKUP($H$63,'BL Quali 2'!$A$178:$BY$185, $C167+$M$154, FALSE) ->  | O167: =VLOOKUP($H$63,'BL Quali 2'!$A$178:$BY$185, $C167+$O$154, FALSE) ->  | P167: =VLOOKUP($H$63,'BL Quali 2'!$A$178:$BY$185, $C167+$P$154, FALSE) -> 
C168: 30 | D168: 23 | E168: P5.e.2. EMIS BNA | F168: =VLOOKUP($H$63,'Quali 2'!$A$177:$BP$184,$D168,FALSE) ->  | G168: =VLOOKUP($H$63,'Quali 2'!$A$177:$BP$184,$D168+$G$154,FALSE) ->  | H168: =VLOOKUP($H$63,'Quali 2'!$A$177:$BP$184,$D168+$H$154,FALSE) ->  | L168: =VLOOKUP($H$63,'BL Quali 2'!$A$178:$BY$185, $C168, FALSE) ->  | M168: =VLOOKUP($H$63,'BL Quali 2'!$A$178:$BY$185, $C168+$M$154, FALSE) ->  | O168: =VLOOKUP($H$63,'BL Quali 2'!$A$178:$BY$185, $C168+$O$154, FALSE) ->  | P168: =VLOOKUP($H$63,'BL Quali 2'!$A$178:$BY$185, $C168+$P$154, FALSE) -> 
A171: SMCs
A174: EMIS Feedback
A177: Innovations
A180: CFS
A183: Assessments
A186: Early Learning
A189: Risk
A192: EMIS BNA
A195: Multilingual
A198: Inclusive
A201: SRGBV
A204: Girls' Sec Ed.
D209: Country
C210: IE | D210: 2.a.2.a Inclusive education for children with disabilities | E210: Inclusive education for children with disabilities | G210: ='Data for global profile'!G64 -> 2.4 | H210: =ROUND(VLOOKUP(H$7,'Quali 2'!$A$1:$BP$170,$M210,FALSE),1) ->  | I210: =VLOOKUP(H$7,'Quali 2'!$A$177:$BO$184,$M210,FALSE) ->  | J210: =VLOOKUP(H$7,'Quali 2'!$A$187:$BO$194,$M210,FALSE)/100 ->  | K210: =CONCATENATE(I210, IF(I210>1," Countries "," Country "), "(", TEXT(J210,"0%"),")") ->  | M210: =IFERROR(MATCH(C210,'Quali 2'!$A$1:$BO$1,0),"") -> 53 | N210: =VLOOKUP($H$7,'BL Quali 2'!$A$178:$AQ$185,$Q210,FALSE) ->  | O210: =VLOOKUP($H$7,'BL Quali 2'!$A$178:$AQ$185,$Q210+1,FALSE) ->  | P210: =D210&", 2016 baseline: "&N210&IF(N210<2, " country ("," countries (")&TEXT(O210,"0%")&")" ->  | Q210: 2 | R210: =VLOOKUP($H$7,'BL Quali 2'!$A$164:$DE$171,$S210,FALSE) ->  | S210: 10
C211: ESP | D211: 2.a.2.b Education sector plan/strategy addressing equity issues | E211: ESP addressing equity issues | G211: ='Data for global profile'!G65 -> 2.2 | H211: =ROUND(VLOOKUP(H$7,'Quali 2'!$A$1:$BP$170,$M211,FALSE),1) ->  | I211: =VLOOKUP(H$7,'Quali 2'!$A$177:$BO$184,$M211,FALSE) ->  | J211: =VLOOKUP(H$7,'Quali 2'!$A$187:$BO$194,$M211,FALSE)/100 ->  | K211: =CONCATENATE(I211, IF(I211>1," Countries "," Country "), "(", TEXT(J211,"0%"),")") ->  | M211: =IFERROR(MATCH(C211,'Quali 2'!$A$1:$BO$1,0),"") -> 54 | N211: =VLOOKUP($H$7,'BL Quali 2'!$A$178:$AQ$185,$Q211,FALSE) ->  | O211: =VLOOKUP($H$7,'BL Quali 2'!$A$178:$AQ$185,$Q211+1,FALSE) ->  | P211: =D211&", 2016 baseline: "&N211&IF(N211<2, " country ("," countries (")&TEXT(O211,"0%")&")" ->  | Q211: =Q210+3 -> 5 | R211: =VLOOKUP($H$7,'BL Quali 2'!$A$164:$DE$171,$S211,FALSE) ->  | S211: 13
C212: Emergency Prepardness | D212: 2.a.2.c Emergency preparedness/resilience | E212: Emergency preparedness/resilience | G212: ='Data for global profile'!G66 -> 2.2 | H212: =ROUND(VLOOKUP(H$7,'Quali 2'!$A$1:$BP$170,$M212,FALSE),1) ->  | I212: =VLOOKUP(H$7,'Quali 2'!$A$177:$BO$184,$M212,FALSE) ->  | J212: =VLOOKUP(H$7,'Quali 2'!$A$187:$BO$194,$M212,FALSE)/100 ->  | K212: =CONCATENATE(I212, IF(I212>1," Countries "," Country "), "(", TEXT(J212,"0%"),")") ->  | M212: =IFERROR(MATCH(C212,'Quali 2'!$A$1:$BO$1,0),"") -> 55 | N212: =VLOOKUP($H$7,'BL Quali 2'!$A$178:$AQ$185,$Q212,FALSE) ->  | O212: =VLOOKUP($H$7,'BL Quali 2'!$A$178:$AQ$185,$Q212+1,FALSE) ->  | Q212: =Q211+3 -> 8 | R212: =VLOOKUP($H$7,'BL Quali 2'!$A$164:$DE$171,$S212,FALSE) ->  | S212: 17
C213: EMIS | D213: 2.a.2.d EMIS providing disaggregated data | E213: EMIS providing disaggregated data | G213: ='Data for global profile'!G67 -> 2.3 | H213: =ROUND(VLOOKUP(H$7,'Quali 2'!$A$1:$BP$170,$M213,FALSE),1) ->  | I213: =VLOOKUP(H$7,'Quali 2'!$A$177:$BO$184,$M213,FALSE) ->  | J213: =VLOOKUP(H$7,'Quali 2'!$A$187:$BO$194,$M213,FALSE)/100 ->  | M213: =IFERROR(MATCH(C213,'Quali 2'!$A$1:$BO$1,0),"") -> 56 | N213: =VLOOKUP($H$7,'BL Quali 2'!$A$178:$AQ$185,$Q213,FALSE) ->  | O213: =VLOOKUP($H$7,'BL Quali 2'!$A$178:$AQ$185,$Q213+1,FALSE) ->  | Q213: 11 | R213: =VLOOKUP($H$7,'BL Quali 2'!$A$164:$DE$171,$S213,FALSE) ->  | S213: 21
C214: Gender | D214: 2.a.3 Gender-responsive education systems | E214: Gender-responsive education systems | G214: ='Data for global profile'!G68 -> 2.2 | H214: =ROUND(VLOOKUP(H$7,'Quali 2'!$A$1:$BP$170,$M214,FALSE),1) ->  | I214: =VLOOKUP(H$7,'Quali 2'!$A$177:$BO$184,$M214,FALSE) ->  | J214: =VLOOKUP(H$7,'Quali 2'!$A$187:$BO$194,$M214,FALSE)/100 ->  | M214: =IFERROR(MATCH(C214,'Quali 2'!$A$1:$BO$1,0),"") -> 52 | N214: =VLOOKUP($H$7,'BL Quali 2'!$A$178:$AQ$185,$Q214,FALSE) ->  | O214: =VLOOKUP($H$7,'BL Quali 2'!$A$178:$AQ$185,$Q214+1,FALSE) ->  | Q214: 14 | R214: =VLOOKUP($H$7,'BL Quali 2'!$A$164:$DE$171,$S214,FALSE) ->  | S214: 25
C215: Early Learning | D215: 2.b.3.a Early learning | E215: Early learning | G215: ='Data for global profile'!G69 -> 2.3 | H215: =ROUND(VLOOKUP(H$7,'Quali 2'!$A$1:$BP$170,$M215,FALSE),1) ->  | I215: =VLOOKUP(H$7,'Quali 2'!$A$177:$BO$184,$M215,FALSE) ->  | J215: =VLOOKUP(H$7,'Quali 2'!$A$187:$BO$194,$M215,FALSE)/100 ->  | M215: =IFERROR(MATCH(C215,'Quali 2'!$A$1:$BO$1,0),"") -> 58 | N215: =VLOOKUP($H$7,'BL Quali 2'!$A$178:$AQ$185,$Q215,FALSE) ->  | O215: =VLOOKUP($H$7,'BL Quali 2'!$A$178:$AQ$185,$Q215+1,FALSE) ->  | Q215: 17 | R215: =VLOOKUP($H$7,'BL Quali 2'!$A$164:$DE$171,$S215,FALSE) ->  | S215: 29
C216: Learning assessment | D216: 2.b.3.b Learning assessment systems | E216: Learning assessment systems | G216: ='Data for global profile'!G70 -> 2.4 | H216: =ROUND(VLOOKUP(H$7,'Quali 2'!$A$1:$BP$170,$M216,FALSE),1) ->  | I216: =VLOOKUP(H$7,'Quali 2'!$A$177:$BO$184,$M216,FALSE) ->  | J216: =VLOOKUP(H$7,'Quali 2'!$A$187:$BO$194,$M216,FALSE)/100 ->  | M216: =IFERROR(MATCH(C216,'Quali 2'!$A$1:$BO$1,0),"") -> 59 | N216: =VLOOKUP($H$7,'BL Quali 2'!$A$178:$AQ$185,$Q216,FALSE) ->  | O216: =VLOOKUP($H$7,'BL Quali 2'!$A$178:$AQ$185,$Q216+1,FALSE) ->  | Q216: 20 | R216: =VLOOKUP($H$7,'BL Quali 2'!$A$164:$DE$171,$S216,FALSE) ->  | S216: 33
C217: Multilingual | D217: 2.b.3.c Mother tongue/multilingual education | E217: Mother tongue/multilingual education | G217: ='Data for global profile'!G71 -> 2.4 | H217: =ROUND(VLOOKUP(H$7,'Quali 2'!$A$1:$BP$170,$M217,FALSE),1) ->  | I217: =VLOOKUP(H$7,'Quali 2'!$A$177:$BO$184,$M217,FALSE) ->  | J217: =VLOOKUP(H$7,'Quali 2'!$A$187:$BO$194,$M217,FALSE)/100 ->  | M217: =IFERROR(MATCH(C217,'Quali 2'!$A$1:$BO$1,0),"") -> 60 | N217: =VLOOKUP($H$7,'BL Quali 2'!$A$178:$AQ$185,$Q217,FALSE) ->  | O217: =VLOOKUP($H$7,'BL Quali 2'!$A$178:$AQ$185,$Q217+1,FALSE) ->  | Q217: 23 | R217: =VLOOKUP($H$7,'BL Quali 2'!$A$164:$DE$171,$S217,FALSE) ->  | S217: 37
C218: Teachers | D218: 2.b.3.d Teachers development | E218: Teachers | G218: ='Data for global profile'!G72 -> 2.1 | H218: =ROUND(VLOOKUP(H$7,'Quali 2'!$A$1:$BP$170,$M218,FALSE),1) ->  | I218: =VLOOKUP(H$7,'Quali 2'!$A$177:$BO$184,$M218,FALSE) ->  | J218: =VLOOKUP(H$7,'Quali 2'!$A$187:$BO$194,$M218,FALSE)/100 ->  | M218: =IFERROR(MATCH(C218,'Quali 2'!$A$1:$BO$1,0),"") -> 61 | N218: =VLOOKUP($H$7,'BL Quali 2'!$A$178:$AQ$185,$Q218,FALSE) ->  | O218: =VLOOKUP($H$7,'BL Quali 2'!$A$178:$AQ$185,$Q218+1,FALSE) ->  | Q218: 26 | R218: =VLOOKUP($H$7,'BL Quali 2'!$A$164:$DE$171,$S218,FALSE) ->  | S218: 42
C219: Community | D219: 2.b.2.e Community participation | E219: Community participation | G219: ='Data for global profile'!G73 -> 2.4 | H219: =ROUND(VLOOKUP(H$7,'Quali 2'!$A$1:$BP$170,$M219,FALSE),1) ->  | I219: =VLOOKUP(H$7,'Quali 2'!$A$177:$BO$184,$M219,FALSE) ->  | J219: =VLOOKUP(H$7,'Quali 2'!$A$187:$BO$194,$M219,FALSE)/100 ->  | M219: =IFERROR(MATCH(C219,'Quali 2'!$A$1:$BO$1,0),"") -> 62 | N219: =VLOOKUP($H$7,'BL Quali 2'!$A$178:$AQ$185,$Q219,FALSE) ->  | O219: =VLOOKUP($H$7,'BL Quali 2'!$A$178:$AQ$185,$Q219+1,FALSE) ->  | Q219: 29 | R219: =VLOOKUP($H$7,'BL Quali 2'!$A$164:$DE$171,$S219,FALSE) ->  | S219: 46
C220: gender-responsive teaching and learning | D220: 2.b.4. Gender-responsive teaching and learning | E220: Gender-responsive teaching and learning | G220: ='Data for global profile'!G74 -> 2.1 | H220: =ROUND(VLOOKUP(H$7,'Quali 2'!$A$1:$BP$170,$M220,FALSE),1) ->  | I220: =VLOOKUP(H$7,'Quali 2'!$A$177:$BO$184,$M220,FALSE) ->  | J220: =VLOOKUP(H$7,'Quali 2'!$A$187:$BO$194,$M220,FALSE)/100 ->  | M220: =IFERROR(MATCH(C220,'Quali 2'!$A$1:$BO$1,0),"") -> 57 | N220: =VLOOKUP($H$7,'BL Quali 2'!$A$178:$AQ$185,$Q220,FALSE) ->  | O220: =VLOOKUP($H$7,'BL Quali 2'!$A$178:$AQ$185,$Q220+1,FALSE) ->  | Q220: 32 | R220: =VLOOKUP($H$7,'BL Quali 2'!$A$164:$DE$171,$S220,FALSE) ->  | S220: 47
C221: Mainstreaming of skills development | D221: 2.c.2.a Mainstreaming of skills development within the national system | E221: National system mainstreaming skills development | G221: ='Data for global profile'!G75 -> 2 | H221: =ROUND(VLOOKUP(H$7,'Quali 2'!$A$1:$BP$170,$M221,FALSE),1) ->  | I221: =VLOOKUP(H$7,'Quali 2'!$A$177:$BO$184,$M221,FALSE) ->  | J221: =VLOOKUP(H$7,'Quali 2'!$A$187:$BO$194,$M221,FALSE)/100 ->  | M221: =IFERROR(MATCH(C221,'Quali 2'!$A$1:$BO$1,0),"") -> 63 | N221: =VLOOKUP($H$7,'BL Quali 2'!$A$178:$AQ$185,$Q221,FALSE) ->  | O221: =VLOOKUP($H$7,'BL Quali 2'!$A$178:$AQ$185,$Q221+1,FALSE) ->  | Q221: 35 | R221: =VLOOKUP($H$7,'BL Quali 2'!$A$164:$DE$171,$S221,FALSE) ->  | S221: 51
C222: responsi veness | D222: 2.c.2.b Responsiveness to the demands of the labour market | E222: Responsiveness to the demands of the labour market | G222: ='Data for global profile'!G76 -> 1.7 | H222: =ROUND(VLOOKUP(H$7,'Quali 2'!$A$1:$BP$170,$M222,FALSE),1) ->  | I222: =VLOOKUP(H$7,'Quali 2'!$A$177:$BO$184,$M222,FALSE) ->  | J222: =VLOOKUP(H$7,'Quali 2'!$A$187:$BO$194,$M222,FALSE)/100 ->  | M222: =IFERROR(MATCH(C222,'Quali 2'!$A$1:$BO$1,0),"") -> 64 | N222: =VLOOKUP($H$7,'BL Quali 2'!$A$178:$AQ$185,$Q222,FALSE) ->  | O222: =VLOOKUP($H$7,'BL Quali 2'!$A$178:$AQ$185,$Q222+1,FALSE) ->  | Q222: 38 | R222: =VLOOKUP($H$7,'BL Quali 2'!$A$164:$DE$171,$S222,FALSE) ->  | S222: 52
C223: 2 c 2 Gender | D223: 2.c.2.c Gender equitable skills development | E223: Gender equitable skills development | G223: ='Data for global profile'!G77 -> 2 | H223: =ROUND(VLOOKUP(H$7,'Quali 2'!$A$1:$BP$170,$M223,FALSE),1) ->  | I223: =VLOOKUP(H$7,'Quali 2'!$A$177:$EM$184,$M223,FALSE) ->  | J223: =VLOOKUP(H$7,'Quali 2'!$A$187:$BO$194,$M223,FALSE)/100 ->  | M223: =IFERROR(MATCH(C223,'Quali 2'!$A$1:$BO$1,0),"") -> 41 | N223: =VLOOKUP($H$7,'BL Quali 2'!$A$178:$AQ$185,$Q223,FALSE) ->  | O223: =VLOOKUP($H$7,'BL Quali 2'!$A$178:$AQ$185,$Q223+1,FALSE) ->  | P223: =D223&", 2016 baseline: data not collected " -> 2.c.2.c Gender equitable skills development, 2016 baseline: data not collected | Q223: 41 | R223: NA
C226: 2.a.3. Gender Demand | D226: a.3.a Demand | E226: Demand | G226: ='Data for global profile'!G80 -> 2.2 | H226: =ROUND(VLOOKUP(H$7,'Quali 2'!$A$1:$BP$170,$M226,FALSE),1) ->  | M226: =IFERROR(MATCH(C226,'Quali 2'!$A$1:$BO$1,0),"") -> 3 | Q226: 13 | R226: 17 | S226: 21 | T226: 25 | U226: 29 | V226: 33 | W226: 37 | X226: 42 | Y226: 46 | Z226: 47 | AA226: 51 | AB226: 52
C227: 2.a.3 Gender Environment | D227: a.3.b Gender-responsive environment | E227: Gender-responsive env. | G227: ='Data for global profile'!G81 -> 2.3 | H227: =ROUND(VLOOKUP(H$7,'Quali 2'!$A$1:$BP$170,$M227,FALSE),1) ->  | M227: =IFERROR(MATCH(C227,'Quali 2'!$A$1:$BO$1,0),"") -> 4
C228: 2 a 3 Gender SRGBV | D228: a.3.c SRGBV | E228: SRGBV | G228: ='Data for global profile'!G82 -> 2.2 | H228: =ROUND(VLOOKUP(H$7,'Quali 2'!$A$1:$BP$170,$M228,FALSE),1) ->  | M228: =IFERROR(MATCH(C228,'Quali 2'!$A$1:$BO$1,0),"") -> 5
M229: =IFERROR(MATCH(C229,'Quali 2'!$A$1:$BO$1,0),"") -> 
C230: 2 a 2 Inclusive Ed Law-Policy | D230: a.2.a.a Law/Policy | E230: =RIGHT(D230,LEN(D230)-8) -> Law/Policy | G230: ='Data for global profile'!G84 -> 3 | H230: =ROUND(VLOOKUP(H$7,'Quali 2'!$A$1:$BP$170,$M230,FALSE),1) ->  | M230: =IFERROR(MATCH(C230,'Quali 2'!$A$1:$BO$1,0),"") -> 6
C231: 2 a 2 Inclusive Ed Environment | D231: a.2.a.b Physical environment | E231: Physical environment | G231: ='Data for global profile'!G85 -> 2 | H231: =ROUND(VLOOKUP(H$7,'Quali 2'!$A$1:$BP$170,$M231,FALSE),1) ->  | M231: =IFERROR(MATCH(C231,'Quali 2'!$A$1:$BO$1,0),"") -> 7
C232: 2 a 2 Inclusive Ed Materials | D232: a.2.a.c Materials and comm. | E232: Materials and comm. | G232: ='Data for global profile'!G86 -> 2.3 | H232: =ROUND(VLOOKUP(H$7,'Quali 2'!$A$1:$BP$170,$M232,FALSE),1) ->  | M232: =IFERROR(MATCH(C232,'Quali 2'!$A$1:$BO$1,0),"") -> 8
C233: 2 a 2 Inclusive Ed HR | D233: a.2.a.d Human Resources | E233: Human Resources | G233: ='Data for global profile'!G87 -> 2.1 | H233: =ROUND(VLOOKUP(H$7,'Quali 2'!$A$1:$BP$170,$M233,FALSE),1) ->  | M233: =IFERROR(MATCH(C233,'Quali 2'!$A$1:$BO$1,0),"") -> 9
C234: 2 a 2 Inclusive Ed Attitudes | D234: a.2.a.e Attitudes | E234: Attitudes | G234: ='Data for global profile'!G88 -> 2.6 | H234: =ROUND(VLOOKUP(H$7,'Quali 2'!$A$1:$BP$170,$M234,FALSE),1) ->  | M234: =IFERROR(MATCH(C234,'Quali 2'!$A$1:$BO$1,0),"") -> 10
C235: 2 a 2 Inclusive Ed EMIS | D235: a.2.a.f EMIS | E235: EMIS | G235: ='Data for global profile'!G89 -> 2.3 | H235: =ROUND(VLOOKUP(H$7,'Quali 2'!$A$1:$BP$170,$M235,FALSE),1) ->  | M235: =IFERROR(MATCH(C235,'Quali 2'!$A$1:$BO$1,0),"") -> 11
M236: =IFERROR(MATCH(C236,'Quali 2'!$A$1:$BO$1,0),"") -> 
C237: 2 a 2 Sector Plan Strategy Access | D237: a.2.b.a Equity strategy | E237: Strategy | G237: ='Data for global profile'!G91 -> 2.3 | H237: =ROUND(VLOOKUP(H$7,'Quali 2'!$A$1:$BP$170,$M237,FALSE),1) ->  | M237: =IFERROR(MATCH(C237,'Quali 2'!$A$1:$BO$1,0),"") -> 12
C238: 2 a 2 Sector Plan Strategy Resources | D238: a.2.b.b Equitable resources | E238: Resources | G238: ='Data for global profile'!G92 -> 2.1 | H238: =ROUND(VLOOKUP(H$7,'Quali 2'!$A$1:$BP$170,$M238,FALSE),1) ->  | M238: =IFERROR(MATCH(C238,'Quali 2'!$A$1:$BO$1,0),"") -> 13
M239: =IFERROR(MATCH(C239,'Quali 2'!$A$1:$BO$1,0),"") -> 
C240: 2 a 2 Emergency PrepRes Assessment | D240: a.2.c.a Risk assessment | E240: =RIGHT(D240,LEN(D240)-8) -> Risk assessment | G240: ='Data for global profile'!G94 -> 2.3 | H240: =ROUND(VLOOKUP(H$7,'Quali 2'!$A$1:$BP$170,$M240,FALSE),1) ->  | M240: =IFERROR(MATCH(C240,'Quali 2'!$A$1:$BO$1,0),"") -> 14
C241: 2 a 2 Emergency PrepRes Strategies | D241: a.2.c.b Risk reduction strategy | E241: Risk reduction strategy | G241: ='Data for global profile'!G95 -> 2.3 | H241: =ROUND(VLOOKUP(H$7,'Quali 2'!$A$1:$BP$170,$M241,FALSE),1) ->  | M241: =IFERROR(MATCH(C241,'Quali 2'!$A$1:$BO$1,0),"") -> 15
C242: 2 a 2 Emergency PrepRes Resources | D242: a.2.c.c Hum. & Fin. Res. | E242: Hum. & Fin. Res. | G242: ='Data for global profile'!G96 -> 2.1 | H242: =ROUND(VLOOKUP(H$7,'Quali 2'!$A$1:$BP$170,$M242,FALSE),1) ->  | M242: =IFERROR(MATCH(C242,'Quali 2'!$A$1:$BO$1,0),"") -> 16
M243: =IFERROR(MATCH(C243,'Quali 2'!$A$1:$BO$1,0),"") -> 
C244: 2 a 2 EMIS Quality Timeliness | D244: a.2.d.a Quality and timeliness | E244: Quality and timeliness | G244: ='Data for global profile'!G98 -> 2.3 | H244: =ROUND(VLOOKUP(H$7,'Quali 2'!$A$1:$BP$170,$M244,FALSE),1) ->  | M244: =IFERROR(MATCH(C244,'Quali 2'!$A$1:$BO$1,0),"") -> 17
C245: 2 a 2 EMIS Disaggregation | D245: a.2.d.b Disaggregation | E245: Disaggregation | G245: ='Data for global profile'!G99 -> 2.5 | H245: =ROUND(VLOOKUP(H$7,'Quali 2'!$A$1:$BP$170,$M245,FALSE),1) ->  | M245: =IFERROR(MATCH(C245,'Quali 2'!$A$1:$BO$1,0),"") -> 18
C246: 2 a 2 EMIS Attendance DropOut | D246: a.2.d.c Attendance/Dropout | E246: Attendance/Dropout | G246: ='Data for global profile'!G100 -> 2.1 | H246: =ROUND(VLOOKUP(H$7,'Quali 2'!$A$1:$BP$170,$M246,FALSE),1) ->  | M246: =IFERROR(MATCH(C246,'Quali 2'!$A$1:$BO$1,0),"") -> 19
C247: 2 b 4 Gender-responsive teaching and learning | D247: b.2.b.a Gender-responsive teaching and learning | E247: =RIGHT(D247,LEN(D247)-8) -> Gender-responsive teaching and learning | G247: ='Data for global profile'!G101 -> 2.1 | H247: =ROUND(VLOOKUP(H$7,'Quali 2'!$A$1:$BP$170,$M247,FALSE),1) ->  | M247: =IFERROR(MATCH(C247,'Quali 2'!$A$1:$BO$1,0),"") -> 20
C248: 2 b 3 Early Learning Policy | D248: b.2.b.a Policy, leadership & bud. | E248: Policy, leadership & bud. | G248: ='Data for global profile'!G102 -> 2.5 | H248: =ROUND(VLOOKUP(H$7,'Quali 2'!$A$1:$BP$170,$M248,FALSE),1) ->  | M248: =IFERROR(MATCH(C248,'Quali 2'!$A$1:$BO$1,0),"") -> 21
C249: 2 b 3 Early Learning Governance | D249: b.2.b.b Governance | E249: Governance | G249: ='Data for global profile'!G103 -> 2.2 | H249: =ROUND(VLOOKUP(H$7,'Quali 2'!$A$1:$BP$170,$M249,FALSE),1) ->  | M249: =IFERROR(MATCH(C249,'Quali 2'!$A$1:$BO$1,0),"") -> 22
C250: 2 b 3 Early Learning Environment | D250: b.2.b.c Teaching and learning env. | E250: Teaching and learning env. | G250: ='Data for global profile'!G104 -> 2.3 | H250: =ROUND(VLOOKUP(H$7,'Quali 2'!$A$1:$BP$170,$M250,FALSE),1) ->  | M250: =IFERROR(MATCH(C250,'Quali 2'!$A$1:$BO$1,0),"") -> 23
... 189 more rows

Sheet Data for country profile (hidden)
G1: CO Quali Name (SMQ) | H1: CO Master Names | I1: CO DFAM Name | J1: CO Name RAM
E2: ='Country Profile'!I6 -> Comoros | F2: =VLOOKUP(E2,Names!A2:D158,4,FALSE) -> ESAR | G2: =VLOOKUP($E$2,Names!$A$2:$D$158,2,FALSE) -> Comoros | H2: =VLOOKUP($E$2,Names!$A$2:$I$158,9,FALSE) -> Comoros | I2: =VLOOKUP($E$2,Names!$A$2:$I$158,8,FALSE) -> Comoros | J2: =VLOOKUP($E$2,Names!$A$2:$K$158,11,FALSE) -> Comoros | L2: Current Year | M2: 2018
D3: Abbreviated name for charts | E3: =VLOOKUP(E2,Names!A2:C158,3,FALSE) -> Comoros | G3: =CONCATENATE(G8," /") -> ESAR / | H3: =CONCATENATE(H6," (Baseline") -> Comoros (Baseline
B4: QUANTITATIVE DATA | E4: LEARNING ASSESMMENT DATA --> | J4: Baseline | O4: LEARNING ASSESSMENT
F5: 1 | G5: 2 | H5: 3 | I5: -1 | J5: 3 | L5: Abbreviated for Profiles | M5: =VLOOKUP(E2,Names!$A$1:$C$158,3,FALSE) -> Comoros | P5: Survey to display | V5: Last years conducted
F6: World | G6: =$F$2 -> ESAR | H6: =VLOOKUP(H2,Names!A2:B158,2,FALSE) -> Comoros | I6: SP Target | J6: =$E$2 -> Comoros | L6: UIS country name | P6: =IFERROR(VLOOKUP($E$2,'Learning Assessments'!C7:KY169,310,FALSE),"") ->  | V6: =MAX(Y9:Y51) -> 0 | W6: 2010
D8: PRE PRIMARY EDUCATION | F8: World | G8: =$F$2 -> ESAR | I8: SP Target | L8: Check | M8: Data Year | N8: Baseline Data Year | P8: TIMSS | Q8: Chart categories | R8: Increase in results | S8: Decrease in results | T8: 2011- | U8: 2007+ | W8: =W6 -> 2010 | X8: =V6 -> 0 | AB8: Data columns | AG8: New Benchmark Labels
C9: P54b | D9: ECD NAR Poorest Quint | E9: NAR_PQ | F9: ='Data for global profile'!G12 -> 18 | G9: =VLOOKUP(G$6,Master!$A$3:$AV$183,$K9,FALSE) -> 11.3125 | H9: =IF(OR(VLOOKUP(G$6,Master!$A$3:$AV$183,$K9,FALSE)=0,VLOOKUP(G$6,Master!$A$3:$AV$183,$K9,FALSE)=""),NA(),VLOOKUP(J$6,Master!$A$3:$AV$183,$K9,FALSE)) -> NA | I9: 25 | J9: =IF(OR(VLOOKUP(J$6,'BL Master'!$A$3:$BN$246,$K9,FALSE)=0,VLOOKUP(J$6,'BL Master'!$A$3:$BN$246,$K9,FALSE)=""),NA(),VLOOKUP(J$6,'BL Master'!$A$3:$BN$246,$K9,FALSE)) ->  | K9: 29 | L9: =VLOOKUP(L$6,Master!$A$3:$AV$183,$K9,FALSE) -> ECD NAR-PQ | M9: =CONCATENATE($E3," (",IF(ISERROR(H9),"no data",VLOOKUP(E$2,Master!$A$3:$AV$183,$K9+1,FALSE)),")") -> Comoros (0) | N9: =IF(ISERROR(J9),"No country data",VLOOKUP(J$6,'BL Master'!$A$3:$BN$246,$K9+1,FALSE)) -> No country data | O9: =MAXiR(F9:I9) -> NA | P9: Mathematics G4 | Q9: =IF($P$6=$P$8,P9," ") ->  | R9: =IF(ISERROR(IF(X9>=W9,X9,"")),"",IF(X9>=W9,X9,"")) ->  | S9: =IF(ISERROR(IF(X9<W9,W9,"")),"",IF(X9<W9,W9,"")) ->  | T9: =IF(ISERROR(IF(X9<W9,X9,"")),"",IF(X9<W9,X9,"")) ->  | U9: =IF(ISERROR(IF(X9>=W9,W9,"")),"",IF(X9>=W9,W9,"")) ->  | V9: =Q9 ->  | W9: =IF(ISERROR(VLOOKUP($E$2,'Learning Assessments'!$LA$6:$PV$171,AC9,FALSE)),"",VLOOKUP($E$2,'Learning Assessments'!$LA$6:$PV$171,AC9,FALSE)) ->  | X9: =IF(ISERROR(VLOOKUP($E$2,'Learning Assessments'!$LA$6:$PV$171,AB9,FALSE)),"",VLOOKUP($E$2,'Learning Assessments'!$LA$6:$PV$171,AB9,FALSE)) ->  | Y9: =IF(ISERROR(VLOOKUP($E$2,'Learning Assessments'!$LA$6:$PV$171,AD9,FALSE)),"",VLOOKUP($E$2,'Learning Assessments'!$LA$6:$PV$171,AD9,FALSE)) ->  | Z9: =IF(ISERROR(VLOOKUP($E$2,'Learning Assessments'!$LA$6:$PV$171,AE9,FALSE)),"",VLOOKUP($E$2,'Learning Assessments'!$LA$6:$PV$171,AE9,FALSE)) ->  | AB9: 3 | AC9: =AB9+1 -> 4 | AD9: 5 | AE9: 6 | AF9: =E9 -> NAR_PQ | AG9: =$I$11 -> SP Target
P10: Science G4 | Q10: =IF($P$6=$P$8,P10," ") ->  | R10: =IF(ISERROR(IF(X10>=W10,X10,"")),"",IF(X10>=W10,X10,"")) ->  | S10: =IF(ISERROR(IF(X10<W10,W10,"")),"",IF(X10<W10,W10,"")) ->  | T10: =IF(ISERROR(IF(X10<W10,X10,"")),"",IF(X10<W10,X10,"")) ->  | U10: =IF(ISERROR(IF(X10>=W10,W10,"")),"",IF(X10>=W10,W10,"")) ->  | W10: =IF(ISERROR(VLOOKUP($E$2,'Learning Assessments'!$LA$6:$PV$171,AC10,FALSE)),"",VLOOKUP($E$2,'Learning Assessments'!$LA$6:$PV$171,AC10,FALSE)) ->  | X10: =IF(ISERROR(VLOOKUP($E$2,'Learning Assessments'!$LA$6:$PV$171,AB10,FALSE)),"",VLOOKUP($E$2,'Learning Assessments'!$LA$6:$PV$171,AB10,FALSE)) ->  | Y10: =IF(ISERROR(VLOOKUP($E$2,'Learning Assessments'!$LA$6:$PV$171,AD10,FALSE)),"",VLOOKUP($E$2,'Learning Assessments'!$LA$6:$PV$171,AD10,FALSE)) ->  | Z10: =IF(ISERROR(VLOOKUP($E$2,'Learning Assessments'!$LA$6:$PV$171,AE10,FALSE)),"",VLOOKUP($E$2,'Learning Assessments'!$LA$6:$PV$171,AE10,FALSE)) ->  | AB10: =AB9+5 -> 8 | AC10: 9 | AD10: 10 | AE10: 11
D11: PRIMARY EDUCATION | F11: World | G11: =$F$2 -> ESAR | I11: SP Target | L11: UIS country name | P11: Mathematics G8 | Q11: =IF($P$6=$P$8,P11," ") ->  | R11: =IF(ISERROR(IF(X11>=W11,X11,"")),"",IF(X11>=W11,X11,"")) ->  | S11: =IF(ISERROR(IF(X11<W11,W11,"")),"",IF(X11<W11,W11,"")) ->  | T11: =IF(ISERROR(IF(X11<W11,X11,"")),"",IF(X11<W11,X11,"")) ->  | U11: =IF(ISERROR(IF(X11>=W11,W11,"")),"",IF(X11>=W11,W11,"")) ->  | W11: =IF(ISERROR(VLOOKUP($E$2,'Learning Assessments'!$LA$6:$PV$171,AC11,FALSE)),"",VLOOKUP($E$2,'Learning Assessments'!$LA$6:$PV$171,AC11,FALSE)) ->  | X11: =IF(ISERROR(VLOOKUP($E$2,'Learning Assessments'!$LA$6:$PV$171,AB11,FALSE)),"",VLOOKUP($E$2,'Learning Assessments'!$LA$6:$PV$171,AB11,FALSE)) ->  | Y11: =IF(ISERROR(VLOOKUP($E$2,'Learning Assessments'!$LA$6:$PV$171,AD11,FALSE)),"",VLOOKUP($E$2,'Learning Assessments'!$LA$6:$PV$171,AD11,FALSE)) ->  | Z11: =IF(ISERROR(VLOOKUP($E$2,'Learning Assessments'!$LA$6:$PV$171,AE11,FALSE)),"",VLOOKUP($E$2,'Learning Assessments'!$LA$6:$PV$171,AE11,FALSE)) ->  | AB11: =AB10+5 -> 13 | AC11: 14 | AD11: 15 | AE11: 16
C12: P51 | E12: OOSCR (%) MF | F12: ='Data for global profile'!G17 -> 0 | G12: =VLOOKUP(G$6,Master!$A$3:$AV$183,$K12,FALSE) -> 18.99195875 | H12: =IF(VLOOKUP(H6,Master!$A$3:$AV$183,$K12,FALSE)="NA",NA(),VLOOKUP(H6,Master!$A$3:$AV$183,$K12,FALSE)) -> 15.81527 | I12: 5 | J12: =IF(VLOOKUP(J$6,'BL Master'!$A$3:$BN$246,$K12,FALSE)="",NA(),VLOOKUP(J$6,'BL Master'!$A$3:$BN$246,$K12,FALSE)) -> 16.66771 | K12: 21 | L12: =VLOOKUP(L$6,Master!$A$3:$AV$183,$K12,FALSE) -> P-OOSCR MF | M12: =CONCATENATE($E$3," (",IF(ISERROR(H12),"no data",VLOOKUP($J$6,Master!$A$3:$AV$183,$K12+1,FALSE)),")") -> Comoros (2017) | N12: =IF(ISERROR(J12),"No country data",VLOOKUP(J$6,'BL Master'!$A$3:$BN$246,$K12+1,FALSE)) -> 2007 | O12: =MAXiR(F12:I12) -> 18.99195875 | P12: Science G8 | Q12: =IF($P$6=$P$8,P12," ") ->  | R12: =IF(ISERROR(IF(X12>=W12,X12,"")),"",IF(X12>=W12,X12,"")) ->  | S12: =IF(ISERROR(IF(X12<W12,W12,"")),"",IF(X12<W12,W12,"")) ->  | T12: =IF(ISERROR(IF(X12<W12,X12,"")),"",IF(X12<W12,X12,"")) ->  | U12: =IF(ISERROR(IF(X12>=W12,W12,"")),"",IF(X12>=W12,W12,"")) ->  | W12: =IF(ISERROR(VLOOKUP($E$2,'Learning Assessments'!$LA$6:$PV$171,AC12,FALSE)),"",VLOOKUP($E$2,'Learning Assessments'!$LA$6:$PV$171,AC12,FALSE)) ->  | X12: =IF(ISERROR(VLOOKUP($E$2,'Learning Assessments'!$LA$6:$PV$171,AB12,FALSE)),"",VLOOKUP($E$2,'Learning Assessments'!$LA$6:$PV$171,AB12,FALSE)) ->  | Y12: =IF(ISERROR(VLOOKUP($E$2,'Learning Assessments'!$LA$6:$PV$171,AD12,FALSE)),"",VLOOKUP($E$2,'Learning Assessments'!$LA$6:$PV$171,AD12,FALSE)) ->  | Z12: =IF(ISERROR(VLOOKUP($E$2,'Learning Assessments'!$LA$6:$PV$171,AE12,FALSE)),"",VLOOKUP($E$2,'Learning Assessments'!$LA$6:$PV$171,AE12,FALSE)) ->  | AB12: =AB11+5 -> 18 | AC12: 19 | AD12: 20 | AE12: 21 | AF12: =E12 -> OOSCR (%) MF | AG12: =$I$11 -> SP Target | AH12: =CONCATENATE(AG12," / ",H6,": ") -> SP Target / Comoros:
C13: P5a | D13: Number of OSC - M | E13: Boys | F13: ='Data for global profile'!G18 -> 28851548 | G13: =VLOOKUP(G$6,Master!$A$3:$AV$183,$K13,FALSE) -> 5016799 | H13: =IF(VLOOKUP($H$6,Master!$A$3:$AV$183,$K13,FALSE)="NA",NA(),VLOOKUP($H$6,Master!$A$3:$AV$183,$K13,FALSE)) -> 9477 | J13: =IF(VLOOKUP(J$6,'BL Master'!$A$3:$BN$246,$K13,FALSE)="",NA(),VLOOKUP(J$6,'BL Master'!$A$3:$BN$246,$K13,FALSE)) -> 6583 | K13: 12 | L13: =VLOOKUP(L$6,Master!$A$3:$AV$183,$K13,FALSE) -> P-NB-OOSC M | M13: =CONCATENATE($E$3," (",IF(ISERROR(H13),"no data",VLOOKUP($J$6,Master!$A$3:$AV$183,$K13+1,FALSE)),")") -> Comoros (2017) | N13: =IF(ISERROR(J13),"No country data",VLOOKUP(J$6,'BL Master'!$A$3:$BN$246,$K13+1,FALSE)) -> 2007 | O13: =MAXiR(F13:H13) -> 28851548 | V13: 0
D14: Number of OSC - F | E14: Girls | F14: ='Data for global profile'!G19 -> 32043282 | G14: =VLOOKUP(G$6,Master!$A$3:$AV$183,$K14,FALSE) -> 5117115 | H14: =IF(VLOOKUP($H$6,Master!$A$3:$AV$183,$K14,FALSE)="NA",NA(),VLOOKUP($H$6,Master!$A$3:$AV$183,$K14,FALSE)) -> 9848 | J14: =IF(VLOOKUP(J$6,'BL Master'!$A$3:$BN$246,$K14,FALSE)="",NA(),VLOOKUP(J$6,'BL Master'!$A$3:$BN$246,$K14,FALSE)) -> 9336 | K14: 10 | L14: =VLOOKUP(L$6,Master!$A$3:$AV$183,$K14,FALSE) -> P-NB-OOSC F | M14: =CONCATENATE($E$3," (",IF(ISERROR(H14),"no data",VLOOKUP($J$6,Master!$A$3:$AV$183,$K14+1,FALSE)),")") -> Comoros (2017) | N14: =IF(ISERROR(J14),"No country data",VLOOKUP(J$6,'BL Master'!$A$3:$BN$246,$K14+1,FALSE)) -> 2007 | O14: 32043282 | P14: PISA | V14: 0
D15: Number of OSC - MF | E15: =CONCATENATE("All children: ",M15) -> All children: Comoros (2017) | F15: ='Data for global profile'!G20 -> 60894830 | G15: =VLOOKUP(G$6,Master!$A$3:$AV$183,$K15,FALSE) -> 10133913 | H15: =IF(VLOOKUP($H$6,Master!$A$3:$AV$183,$K15,FALSE)="NA",NA(),VLOOKUP($H$6,Master!$A$3:$AV$183,$K15,FALSE)) -> 19325 | J15: =IF(VLOOKUP(J$6,'BL Master'!$A$3:$BN$246,$K15,FALSE)="",NA(),VLOOKUP(J$6,'BL Master'!$A$3:$BN$246,$K15,FALSE)) -> 15919 | K15: 8 | L15: =VLOOKUP(L$6,Master!$A$3:$AV$183,$K15,FALSE) -> P-NB-OOSC MF | M15: =CONCATENATE($E$3," (",IF(ISERROR(H15),"no data",VLOOKUP($J$6,Master!$A$3:$AV$183,$K15+1,FALSE)),")") -> Comoros (2017) | N15: =IF(ISERROR(J15),"No country data",VLOOKUP(J$6,'BL Master'!$A$3:$BN$246,$K15+1,FALSE)) -> 2007 | O15: 60894830 | P15: Reading | Q15: =IF($P$6=$P$14,P15," ") ->  | R15: =IF(ISERROR(IF(X15>=W15,X15,"")),"",IF(X15>=W15,X15,"")) ->  | S15: =IF(ISERROR(IF(X15<W15,W15,"")),"",IF(X15<W15,W15,"")) ->  | T15: =IF(ISERROR(IF(X15<W15,X15,"")),"",IF(X15<W15,X15,"")) ->  | U15: =IF(ISERROR(IF(X15>=W15,W15,"")),"",IF(X15>=W15,W15,"")) ->  | W15: =IF(ISERROR(VLOOKUP($E$2,'Learning Assessments'!$LA$6:$PV$171,AC15,FALSE)),"",VLOOKUP($E$2,'Learning Assessments'!$LA$6:$PV$171,AC15,FALSE)) ->  | X15: =IF(ISERROR(VLOOKUP($E$2,'Learning Assessments'!$LA$6:$PV$171,AB15,FALSE)),"",VLOOKUP($E$2,'Learning Assessments'!$LA$6:$PV$171,AB15,FALSE)) ->  | Y15: =IF(ISERROR(VLOOKUP($E$2,'Learning Assessments'!$LA$6:$PV$171,AD15,FALSE)),"",VLOOKUP($E$2,'Learning Assessments'!$LA$6:$PV$171,AD15,FALSE)) ->  | Z15: =IF(ISERROR(VLOOKUP($E$2,'Learning Assessments'!$LA$6:$PV$171,AE15,FALSE)),"",VLOOKUP($E$2,'Learning Assessments'!$LA$6:$PV$171,AE15,FALSE)) ->  | AB15: 23 | AC15: =AB15+1 -> 24 | AD15: 25 | AE15: 26
C16: P5b | D16: PCR - M | E16: GIR LG (%) M | F16: ='Data for global profile'!G21 -> 89.90863 | G16: =VLOOKUP(G$6,Master!$A$3:$AV$183,$K16+1,FALSE) -> 65.81688505 | H16: =IF(VLOOKUP(H6,Master!$A$3:$AV$183,$K16,FALSE)="NA",NA(),VLOOKUP(H6,Master!$A$3:$AV$183,$K16,FALSE)) -> 76.22284 | J16: =IF(VLOOKUP(J$6,'BL Master'!$A$3:$BN$246,$K16,FALSE)="",NA(),VLOOKUP(J$6,'BL Master'!$A$3:$BN$246,$K16,FALSE)) -> 89.50798 | K16: 18 | L16: =VLOOKUP(L$6,Master!$A$3:$AV$183,$K16,FALSE) -> P-GIR LG M | M16: =CONCATENATE($E$3," (",IF(ISERROR(H16),"no data",VLOOKUP($J$6,Master!$A$3:$AV$183,$K16+1,FALSE)),")") -> Comoros (2017) | N16: =IF(ISERROR(J16),"No country data",VLOOKUP(J$6,'BL Master'!$A$3:$BN$246,$K16+1,FALSE)) -> 2008 | O16: =MAXiR(F16:I16) -> 89.90863 | P16: Mathematics | Q16: =IF($P$6=$P$14,P16," ") ->  | R16: =IF(ISERROR(IF(X16>=W16,X16,"")),"",IF(X16>=W16,X16,"")) ->  | S16: =IF(ISERROR(IF(X16<W16,W16,"")),"",IF(X16<W16,W16,"")) ->  | T16: =IF(ISERROR(IF(X16<W16,X16,"")),"",IF(X16<W16,X16,"")) ->  | U16: =IF(ISERROR(IF(X16>=W16,W16,"")),"",IF(X16>=W16,W16,"")) ->  | W16: =IF(ISERROR(VLOOKUP($E$2,'Learning Assessments'!$LA$6:$PV$171,AC16,FALSE)),"",VLOOKUP($E$2,'Learning Assessments'!$LA$6:$PV$171,AC16,FALSE)) ->  | X16: =IF(ISERROR(VLOOKUP($E$2,'Learning Assessments'!$LA$6:$PV$171,AB16,FALSE)),"",VLOOKUP($E$2,'Learning Assessments'!$LA$6:$PV$171,AB16,FALSE)) ->  | Y16: =IF(ISERROR(VLOOKUP($E$2,'Learning Assessments'!$LA$6:$PV$171,AD16,FALSE)),"",VLOOKUP($E$2,'Learning Assessments'!$LA$6:$PV$171,AD16,FALSE)) ->  | Z16: =IF(ISERROR(VLOOKUP($E$2,'Learning Assessments'!$LA$6:$PV$171,AE16,FALSE)),"",VLOOKUP($E$2,'Learning Assessments'!$LA$6:$PV$171,AE16,FALSE)) ->  | AB16: =AB15+5 -> 28 | AC16: 29 | AD16: 30 | AE16: 31
D17: PCR - F | E17: GIR LG (%) F | F17: ='Data for global profile'!G22 -> 89.32394 | G17: =VLOOKUP(G$6,Master!$A$3:$AV$183,$K17+1,FALSE) -> 67.13778298 | H17: =IF(VLOOKUP(H6,Master!$A$3:$AV$183,$K17,FALSE)="NA",NA(),VLOOKUP(H6,Master!$A$3:$AV$183,$K17,FALSE)) -> 77.23447 | J17: =IF(VLOOKUP($J$6,'BL Master'!$A$3:$BN$246,$K17,FALSE)="",NA(),VLOOKUP($J$6,'BL Master'!$A$3:$BN$246,$K17,FALSE)) -> 69.82735 | K17: 16 | L17: =VLOOKUP(L$6,Master!$A$3:$AV$183,$K17,FALSE) -> P-GIR LG F | M17: =CONCATENATE($E$3," (",IF(ISERROR(H17),"no data",VLOOKUP($J$6,Master!$A$3:$AV$183,$K17+1,FALSE)),")") -> Comoros (2017) | N17: =IF(ISERROR(J17),"No country data",VLOOKUP(J$6,'BL Master'!$A$3:$BN$246,$K17+1,FALSE)) -> 2008 | O17: =MAXiR(F17:I17) -> 89.32394 | P17: Science | Q17: =IF($P$6=$P$14,P17," ") ->  | R17: =IF(ISERROR(IF(X17>=W17,X17,"")),"",IF(X17>=W17,X17,"")) ->  | S17: =IF(ISERROR(IF(X17<W17,W17,"")),"",IF(X17<W17,W17,"")) ->  | T17: =IF(ISERROR(IF(X17<W17,X17,"")),"",IF(X17<W17,X17,"")) ->  | U17: =IF(ISERROR(IF(X17>=W17,W17,"")),"",IF(X17>=W17,W17,"")) ->  | W17: =IF(ISERROR(VLOOKUP($E$2,'Learning Assessments'!$LA$6:$PV$171,AC17,FALSE)),"",VLOOKUP($E$2,'Learning Assessments'!$LA$6:$PV$171,AC17,FALSE)) ->  | X17: =IF(ISERROR(VLOOKUP($E$2,'Learning Assessments'!$LA$6:$PV$171,AB17,FALSE)),"",VLOOKUP($E$2,'Learning Assessments'!$LA$6:$PV$171,AB17,FALSE)) ->  | Y17: =IF(ISERROR(VLOOKUP($E$2,'Learning Assessments'!$LA$6:$PV$171,AD17,FALSE)),"",VLOOKUP($E$2,'Learning Assessments'!$LA$6:$PV$171,AD17,FALSE)) ->  | Z17: =IF(ISERROR(VLOOKUP($E$2,'Learning Assessments'!$LA$6:$PV$171,AE17,FALSE)),"",VLOOKUP($E$2,'Learning Assessments'!$LA$6:$PV$171,AE17,FALSE)) ->  | AB17: =AB16+5 -> 33 | AC17: 34 | AD17: 35 | AE17: 36
D18: PCR - MF | E18: GIR LG (%) MF | F18: ='Data for global profile'!G23 -> 89.99796033 | G18: =VLOOKUP(G$6,Master!$A$3:$AV$183,$K18+1,FALSE) -> 66.47759075 | H18: =IF(VLOOKUP(H6,Master!$A$3:$AV$183,$K18,FALSE)="NA",NA(),VLOOKUP(H6,Master!$A$3:$AV$183,$K18,FALSE)) -> 76.72008 | I18: 98 | J18: =IF(VLOOKUP($J$6,'BL Master'!$A$3:$BN$246,$K18,FALSE)="",NA(),VLOOKUP($J$6,'BL Master'!$A$3:$BN$246,$K18,FALSE)) -> 79.81509 | K18: 14 | L18: =VLOOKUP(L$6,Master!$A$3:$AV$183,$K18,FALSE) -> P-GIR LG MF | M18: =CONCATENATE($E$3," (",IF(ISERROR(H18),"no data",VLOOKUP($J$6,Master!$A$3:$AV$183,$K18+1,FALSE)),")") -> Comoros (2017) | N18: =IF(ISERROR(J18),"No country data",VLOOKUP(J$6,'BL Master'!$A$3:$BN$246,$K18+1,FALSE)) -> 2008 | O18: =MAXiR(F18:I18) -> 98 | V18: 0 | AF18: =E18 -> GIR LG (%) MF | AG18: SP Global Target
C19: P5abis | E19: NB-OOSC GPI | F19: =F14/F13 -> 1.110626092 | G19: =G14/G13 -> 1.019996017 | H19: =IFERROR(H14/H13,NA()) -> 1.03914741 | J19: =IFERROR(J14/J13,NA()) -> 1.41819839 | M19: =M13 -> Comoros (2017) | O19: 1.110626092 | P19: PIRLS | V19: 0
C20: P5bbis | E20: GPI-GIRLG | F20: =F17/F16 -> 0.9934968423 | G20: =G17/G16 -> 1.020069287 | H20: =IFERROR(H17/H16,NA()) -> 1.013272006 | J20: =IFERROR(J17/J16,NA()) -> 0.7801242973 | M20: =M16 -> Comoros (2017) | N20: =N16 -> 2008 | O20: 1.020069287 | P20: Score | Q20: =IF($P$6=$P$19,P20," ") ->  | R20: =IF(ISERROR(IF(X20>=W20,X20,"")),"",IF(X20>=W20,X20,"")) ->  | S20: =IF(ISERROR(IF(X20<W20,W20,"")),"",IF(X20<W20,W20,"")) ->  | T20: =IF(ISERROR(IF(X20<W20,X20,"")),"",IF(X20<W20,X20,"")) ->  | U20: =IF(ISERROR(IF(X20>=W20,W20,"")),"",IF(X20>=W20,W20,"")) ->  | W20: =IF(ISERROR(VLOOKUP($E$2,'Learning Assessments'!$LA$6:$PV$171,AC20,FALSE)),"",VLOOKUP($E$2,'Learning Assessments'!$LA$6:$PV$171,AC20,FALSE)) ->  | X20: =IF(ISERROR(VLOOKUP($E$2,'Learning Assessments'!$LA$6:$PV$171,AB20,FALSE)),"",VLOOKUP($E$2,'Learning Assessments'!$LA$6:$PV$171,AB20,FALSE)) ->  | Y20: =IF(ISERROR(VLOOKUP($E$2,'Learning Assessments'!$LA$6:$PV$171,AD20,FALSE)),"",VLOOKUP($E$2,'Learning Assessments'!$LA$6:$PV$171,AD20,FALSE)) ->  | Z20: =IF(ISERROR(VLOOKUP($E$2,'Learning Assessments'!$LA$6:$PV$171,AE20,FALSE)),"",VLOOKUP($E$2,'Learning Assessments'!$LA$6:$PV$171,AE20,FALSE)) ->  | AB20: 38 | AC20: =AB20+1 -> 39 | AD20: =AC20+1 -> 40 | AE20: =AD20+1 -> 41
C21: P54a | D21: Primary NAR Poorest Quint | E21: NAR_PQ | F21: ='Data for global profile'!G32 -> 75.73119945 | G21: =VLOOKUP(G$6,Master!$A$3:$AV$183,$K21,FALSE) -> 72.29365275 | H21: =IF(VLOOKUP(H6,Master!$A$3:$AV$183,$K21,FALSE)="NA",NA(),VLOOKUP(H6,Master!$A$3:$AV$183,$K21,FALSE)) -> 71.5 | I21: 80 | J21: =IF(VLOOKUP($J$6,'BL Master'!$A$3:$BN$246,$K21,FALSE)="",NA(),VLOOKUP($J$6,'BL Master'!$A$3:$BN$246,$K21,FALSE)) -> 24.5 | K21: 27 | L21: =VLOOKUP(L$6,Master!$A$3:$AV$183,$K21,FALSE) -> Primary NAR-PQ | M21: =CONCATENATE($E3," (",IF(ISERROR(H21),"no data",VLOOKUP(J$6,Master!$A$3:$AV$183,$K21+1,FALSE)),")") -> Comoros (2012) | N21: =IF(ISERROR(J21),"No country data",VLOOKUP(J$6,'BL Master'!$A$3:$BN$246,$K21+1,FALSE)) -> 2000 | O21: =MAXiR(F21:I21) -> 80 | V21: 0 | AF21: =E21 -> NAR_PQ | AG21: =$I$11 -> SP Target
C22: P55 | E22: % 36-59mths involved in learning activities | F22: ='Data for global profile'!G33 -> 66.98615385 | G22: =VLOOKUP(G$6,Master!$A$3:$AV$183,$K22,FALSE) -> 45.65714286 | H22: =IF(VLOOKUP(H6,Master!$A$3:$AV$183,$K22,FALSE)="",NA(),VLOOKUP(H6,Master!$A$3:$AV$183,$K22,FALSE)) -> NA | I22: 80 | J22: =IF(VLOOKUP($J$6,'BL Master'!$A$3:$BN$246,$K22,FALSE)="",NA(),VLOOKUP($J$6,'BL Master'!$A$3:$BN$246,$K22,FALSE)) ->  | K22: 31 | L22: =VLOOKUP(L$6,Master!$A$3:$AV$183,$K22,FALSE) -> Adult Support | M22: =CONCATENATE($E3," (",IF(ISERROR(H22),"no data",VLOOKUP(J$6,Master!$A$3:$AV$183,$K22+1,FALSE)),")") -> Comoros (NA) | N22: =IF(ISERROR(J22),"No country data",VLOOKUP(J$6,'BL Master'!$A$3:$BN$246,$K22+1,FALSE)) -> No country data | O22: =MAXiR(F22:I22) -> NA | P22: SACMEQ | V22: 0 | AF22: =E22 -> % 36-59mths involved in learning activities | AG22: SP Target
C23: P5d1 | E23: UNICEF only % of children in humanitarian situations accessing formal or non-formal basic education | F23: =F109/F108*100 -> 41.51169778 | G23: =G109/G108*100 -> 45.31914173 | H23: =IFERROR(H109/H108*100,NA()) -> 46.09707001 | I23: 80 | J23: =IFERROR(J109/J108,NA()) -> 0.0001031023708 | M23: =CONCATENATE($E3," (",IF(ISERROR(H23),"no data",M2),")") -> Comoros (2018) | O23: =MAXiR(F23:I23) -> 80 | P23: Reading | Q23: =IF($P$6=$P$22,P23," ") ->  | R23: =IF(ISERROR(IF(X23>=W23,X23,"")),"",IF(X23>=W23,X23,"")) ->  | S23: =IF(ISERROR(IF(X23<W23,W23,"")),"",IF(X23<W23,W23,"")) ->  | T23: =IF(ISERROR(IF(X23<W23,X23,"")),"",IF(X23<W23,X23,"")) ->  | U23: =IF(ISERROR(IF(X23>=W23,W23,"")),"",IF(X23>=W23,W23,"")) ->  | W23: =IF(ISERROR(VLOOKUP($E$2,'Learning Assessments'!$LA$6:$PV$171,AC23,FALSE)),"",VLOOKUP($E$2,'Learning Assessments'!$LA$6:$PV$171,AC23,FALSE)) ->  | X23: =IF(ISERROR(VLOOKUP($E$2,'Learning Assessments'!$LA$6:$PV$171,AB23,FALSE)),"",VLOOKUP($E$2,'Learning Assessments'!$LA$6:$PV$171,AB23,FALSE)) ->  | Y23: =IF(ISERROR(VLOOKUP($E$2,'Learning Assessments'!$LA$6:$PV$171,AD23,FALSE)),"",VLOOKUP($E$2,'Learning Assessments'!$LA$6:$PV$171,AD23,FALSE)) ->  | Z23: =IF(ISERROR(VLOOKUP($E$2,'Learning Assessments'!$LA$6:$PV$171,AE23,FALSE)),"",VLOOKUP($E$2,'Learning Assessments'!$LA$6:$PV$171,AE23,FALSE)) ->  | AB23: 43 | AC23: =AB23+1 -> 44 | AD23: 45 | AE23: 46 | AF23: =E23 -> UNICEF only % of children in humanitarian situations accessing formal or non-formal basic education | AG23: SP Global Target
C24: P56 | E24: All % of children in humanitarian situations | F24: =F110/F111*100 -> 16.98604993 | G24: =G110/G111*100 -> 25.68648903 | H24: =H110/H111*100 -> 0 | I24: 80 | J24: =IFERROR(J110/J111*100,NA()) -> 0 | M24: =CONCATENATE($E3," (",IF(ISERROR(H24),"no data",M2),")") -> Comoros (2018) | O24: =MAXiR(F24:I24) -> 80 | P24: Mathematics | Q24: =IF($P$6=$P$22,P24," ") ->  | R24: =IF(ISERROR(IF(X24>=W24,X24,"")),"",IF(X24>=W24,X24,"")) ->  | S24: =IF(ISERROR(IF(X24<W24,W24,"")),"",IF(X24<W24,W24,"")) ->  | T24: =IF(ISERROR(IF(X24<W24,X24,"")),"",IF(X24<W24,X24,"")) ->  | U24: =IF(ISERROR(IF(X24>=W24,W24,"")),"",IF(X24>=W24,W24,"")) ->  | W24: =IF(ISERROR(VLOOKUP($E$2,'Learning Assessments'!$LA$6:$PV$171,AC24,FALSE)),"",VLOOKUP($E$2,'Learning Assessments'!$LA$6:$PV$171,AC24,FALSE)) ->  | X24: =IF(ISERROR(VLOOKUP($E$2,'Learning Assessments'!$LA$6:$PV$171,AB24,FALSE)),"",VLOOKUP($E$2,'Learning Assessments'!$LA$6:$PV$171,AB24,FALSE)) ->  | Y24: =IF(ISERROR(VLOOKUP($E$2,'Learning Assessments'!$LA$6:$PV$171,AD24,FALSE)),"",VLOOKUP($E$2,'Learning Assessments'!$LA$6:$PV$171,AD24,FALSE)) ->  | Z24: =IF(ISERROR(VLOOKUP($E$2,'Learning Assessments'!$LA$6:$PV$171,AE24,FALSE)),"",VLOOKUP($E$2,'Learning Assessments'!$LA$6:$PV$171,AE24,FALSE)) ->  | AB24: =AB23+5 -> 48 | AC24: 49 | AD24: 50 | AE24: 51 | AF24: =E24 -> All % of children in humanitarian situations | AG24: SP Target
V25: 0
D26: LOWER SECONDARY EDUCATION | F26: World | G26: =$F$2 -> ESAR | I26: SP Target | P26: PASEC | V26: 0 | AF26: =E26 -> 0 | AG26: SP Target
C27: P51 | E27: OOSCR (%) MF | F27: ='Data for global profile'!G39 -> 17.75944937 | G27: =VLOOKUP(G$6,Master!$A$3:$AV$183,$K27+1,FALSE) -> 40.163664 | H27: =IF(VLOOKUP(H6,Master!$A$3:$AV$183,$K27,FALSE)="NA",NA(),VLOOKUP(H6,Master!$A$3:$AV$183,$K27,FALSE)) -> 29.51831 | I27: 5 | J27: =IF(VLOOKUP($J$6,'BL Master'!$A$3:$BN$246,$K27,FALSE)="",NA(),VLOOKUP($J$6,'BL Master'!$A$3:$BN$246,$K27,FALSE)) ->  | K27: 23 | L27: =VLOOKUP(L$6,Master!$A$3:$AV$183,$K27,FALSE) -> LS-OOSCR MF | M27: =CONCATENATE($E3," (",IF(ISERROR(H27),"no data",VLOOKUP(J$6,Master!$A$3:$AV$183,$K27+1,FALSE)),")") -> Comoros (2017) | N27: =IF(ISERROR(J27),"no data",VLOOKUP(J$6,'BL Master'!$A$3:$BN$246,$K27+1,FALSE)) -> no data | O27: =MAXiR(F27:I27) -> 40.163664 | P27: French G2 | Q27: =IF($P$6=$P$26,P27," ") ->  | R27: =IF(ISERROR(IF(X27>=W27,X27,"")),"",IF(X27>=W27,X27,"")) ->  | S27: =IF(ISERROR(IF(X27<W27,W27,"")),"",IF(X27<W27,W27,"")) ->  | T27: =IF(ISERROR(IF(X27<W27,X27,"")),"",IF(X27<W27,X27,"")) ->  | U27: =IF(ISERROR(IF(X27>=W27,W27,"")),"",IF(X27>=W27,W27,"")) ->  | W27: =IF(ISERROR(VLOOKUP($E$2,'Learning Assessments'!$LA$6:$PV$171,AC27,FALSE)),"",VLOOKUP($E$2,'Learning Assessments'!$LA$6:$PV$171,AC27,FALSE)) ->  | X27: =IF(ISERROR(VLOOKUP($E$2,'Learning Assessments'!$LA$6:$PV$171,AB27,FALSE)),"",VLOOKUP($E$2,'Learning Assessments'!$LA$6:$PV$171,AB27,FALSE)) ->  | Y27: =IF(ISERROR(VLOOKUP($E$2,'Learning Assessments'!$LA$6:$PV$171,AD27,FALSE)),"",VLOOKUP($E$2,'Learning Assessments'!$LA$6:$PV$171,AD27,FALSE)) ->  | Z27: =IF(ISERROR(VLOOKUP($E$2,'Learning Assessments'!$LA$6:$PV$171,AE27,FALSE)),"",VLOOKUP($E$2,'Learning Assessments'!$LA$6:$PV$171,AE27,FALSE)) ->  | AB27: 53 | AC27: =AB27+1 -> 54 | AD27: 55 | AE27: 56 | AF27: =E27 -> OOSCR (%) MF | AG27: SP Target
C28: P5e1 | E28: GPI | F28: ='Data for global profile'!G42 -> 0.97 | G28: =VLOOKUP(G$6,Master!$A$3:$AV$183,$K28,FALSE) -> 0.9843238889 | H28: =IF(VLOOKUP(H6,Master!$A$3:$AV$183,$K28,FALSE)="NA",NA(),VLOOKUP(H6,Master!$A$3:$AV$183,$K28,FALSE)) -> 1.04386 | I28: 80 | J28: =IF(VLOOKUP($J$6,'BL Master'!$A$3:$BN$246,$K28,FALSE)="",NA(),VLOOKUP($J$6,'BL Master'!$A$3:$BN$246,$K28,FALSE)) -> 0.91743 | K28: 33 | L28: =VLOOKUP(L$6,Master!$A$3:$AV$183,$K28,FALSE) -> LS-GPI GER | M28: =CONCATENATE($E3," (",IF(ISERROR(H28),"no data",VLOOKUP(J$6,Master!$A$3:$AV$183,$K28+1,FALSE)),")") -> Comoros (2017) | N28: =IF(ISERROR(J28),"no data",VLOOKUP(J$6,'BL Master'!$A$3:$BN$246,$K28+1,FALSE)) -> 2012 | O28: =MAXiR(F28:I28) -> 80 | P28: Mathematics G2 | Q28: =IF($P$6=$P$26,P28," ") ->  | R28: =IF(ISERROR(IF(X28>=W28,X28,"")),"",IF(X28>=W28,X28,"")) ->  | S28: =IF(ISERROR(IF(X28<W28,W28,"")),"",IF(X28<W28,W28,"")) ->  | T28: =IF(ISERROR(IF(X28<W28,X28,"")),"",IF(X28<W28,X28,"")) ->  | U28: =IF(ISERROR(IF(X28>=W28,W28,"")),"",IF(X28>=W28,W28,"")) ->  | W28: =IF(ISERROR(VLOOKUP($E$2,'Learning Assessments'!$LA$6:$PV$171,AC28,FALSE)),"",VLOOKUP($E$2,'Learning Assessments'!$LA$6:$PV$171,AC28,FALSE)) ->  | X28: =IF(ISERROR(VLOOKUP($E$2,'Learning Assessments'!$LA$6:$PV$171,AB28,FALSE)),"",VLOOKUP($E$2,'Learning Assessments'!$LA$6:$PV$171,AB28,FALSE)) ->  | Y28: =IF(ISERROR(VLOOKUP($E$2,'Learning Assessments'!$LA$6:$PV$171,AD28,FALSE)),"",VLOOKUP($E$2,'Learning Assessments'!$LA$6:$PV$171,AD28,FALSE)) ->  | Z28: =IF(ISERROR(VLOOKUP($E$2,'Learning Assessments'!$LA$6:$PV$171,AE28,FALSE)),"",VLOOKUP($E$2,'Learning Assessments'!$LA$6:$PV$171,AE28,FALSE)) ->  | AB28: =AB27+5 -> 58 | AC28: 59 | AD28: 60 | AE28: 61 | AF28: =E28 -> GPI | AG28: SP Target
P29: French G5 | Q29: =IF($P$6=$P$26,P29," ") ->  | R29: =IF(ISERROR(IF(X29>=W29,X29,"")),"",IF(X29>=W29,X29,"")) ->  | S29: =IF(ISERROR(IF(X29<W29,W29,"")),"",IF(X29<W29,W29,"")) ->  | T29: =IF(ISERROR(IF(X29<W29,X29,"")),"",IF(X29<W29,X29,"")) ->  | U29: =IF(ISERROR(IF(X29>=W29,W29,"")),"",IF(X29>=W29,W29,"")) ->  | W29: =IF(ISERROR(VLOOKUP($E$2,'Learning Assessments'!$LA$6:$PV$171,AC29,FALSE)),"",VLOOKUP($E$2,'Learning Assessments'!$LA$6:$PV$171,AC29,FALSE)) ->  | X29: =IF(ISERROR(VLOOKUP($E$2,'Learning Assessments'!$LA$6:$PV$171,AB29,FALSE)),"",VLOOKUP($E$2,'Learning Assessments'!$LA$6:$PV$171,AB29,FALSE)) ->  | Y29: =IF(ISERROR(VLOOKUP($E$2,'Learning Assessments'!$LA$6:$PV$171,AD29,FALSE)),"",VLOOKUP($E$2,'Learning Assessments'!$LA$6:$PV$171,AD29,FALSE)) ->  | Z29: =IF(ISERROR(VLOOKUP($E$2,'Learning Assessments'!$LA$6:$PV$171,AE29,FALSE)),"",VLOOKUP($E$2,'Learning Assessments'!$LA$6:$PV$171,AE29,FALSE)) ->  | AB29: =AB28+5 -> 63 | AC29: 64 | AD29: 65 | AE29: 66
D30: BUDGET FOR EDUCATION | F30: World | G30: =$F$2 -> ESAR | I30: SP Target | P30: Mathematics G5 | Q30: =IF($P$6=$P$26,P30," ") ->  | R30: =IF(ISERROR(IF(X30>=W30,X30,"")),"",IF(X30>=W30,X30,"")) ->  | S30: =IF(ISERROR(IF(X30<W30,W30,"")),"",IF(X30<W30,W30,"")) ->  | T30: =IF(ISERROR(IF(X30<W30,X30,"")),"",IF(X30<W30,X30,"")) ->  | U30: =IF(ISERROR(IF(X30>=W30,W30,"")),"",IF(X30>=W30,W30,"")) ->  | W30: =IF(ISERROR(VLOOKUP($E$2,'Learning Assessments'!$LA$6:$PV$171,AC30,FALSE)),"",VLOOKUP($E$2,'Learning Assessments'!$LA$6:$PV$171,AC30,FALSE)) ->  | X30: =IF(ISERROR(VLOOKUP($E$2,'Learning Assessments'!$LA$6:$PV$171,AB30,FALSE)),"",VLOOKUP($E$2,'Learning Assessments'!$LA$6:$PV$171,AB30,FALSE)) ->  | Y30: =IF(ISERROR(VLOOKUP($E$2,'Learning Assessments'!$LA$6:$PV$171,AD30,FALSE)),"",VLOOKUP($E$2,'Learning Assessments'!$LA$6:$PV$171,AD30,FALSE)) ->  | Z30: =IF(ISERROR(VLOOKUP($E$2,'Learning Assessments'!$LA$6:$PV$171,AE30,FALSE)),"",VLOOKUP($E$2,'Learning Assessments'!$LA$6:$PV$171,AE30,FALSE)) ->  | AB30: =AB29+5 -> 68 | AC30: 69 | AD30: 70 | AE30: 71 | AF30: =E30 -> 0 | AG30: SP Target
C31: P53 | D31: Public expenditure on education as % of total government expenditure | E31: Public expenditure on education as % of total government expenditure | F31: ='Data for global profile'!G47 -> 15.33010535 | G31: =VLOOKUP(G$6,Master!$A$3:$AV$183,$K31,FALSE) -> 16.100245 | H31: =IF(VLOOKUP($H$6,Master!$A$3:$AV$183,$K31,FALSE)="NA",NA(),VLOOKUP($H$6,Master!$A$3:$AV$183,$K31,FALSE)) -> 15.27013 | I31: 20 | J31: =IF(VLOOKUP(J$6,'BL Master'!$A$3:$BN$246,$K31,FALSE)="",NA(),VLOOKUP(J$6,'BL Master'!$A$3:$BN$246,$K31,FALSE)) -> 29.23312 | K31: 25 | L31: =VLOOKUP(L$6,Master!$A$3:$AV$183,$K31,FALSE) -> % EDU IN BUDGET | M31: =CONCATENATE($E3," (",IF(ISERROR(H31),"no data",VLOOKUP(J$6,Master!$A$3:$AV$183,$K31+1,FALSE)),")") -> Comoros (2015) | N31: =IF(ISERROR(J31),"no data",VLOOKUP(J$6,'BL Master'!$A$3:$BN$246,$K31+1,FALSE)) -> 2008 | O31: =MAXiR(F31:I31) -> 20 | V31: 0 | AF31: =E31 -> Public expenditure on education as % of total government expenditure | AG31: SP Target
E32: Edudation equity index | N32: ­ | P32: LLECE | V32: 0 | AF32: =E32 -> Edudation equity index
D33: LEARNING ASSESSMENTS: See to right | E33: ="EEI-"&Master!BT3 -> EEI-Latest | F33: =Master!BT179 -> 0.67 | G33: =VLOOKUP(G30,Master!$A$172:$BT$178,72,FALSE) -> 0.4825392053 | H33: =IF(VLOOKUP($H$6,Master!$A$3:$BT$183,$K33,FALSE)="NA",NA(),VLOOKUP($H$6,Master!$A$3:$BT$183,$K33,FALSE)) -> 0.6202949444 | I33: 0.66 | J33: =H33 -> 0.6202949444 | K33: 71 | P33: Reading G3 | Q33: =IF($P$6=$P$32,P33," ") ->  | R33: =IF(ISERROR(IF(X33>=W33,X33,"")),"",IF(X33>=W33,X33,"")) ->  | S33: =IF(ISERROR(IF(X33<W33,W33,"")),"",IF(X33<W33,W33,"")) ->  | T33: =IF(ISERROR(IF(X33<W33,X33,"")),"",IF(X33<W33,X33,"")) ->  | U33: =IF(ISERROR(IF(X33>=W33,W33,"")),"",IF(X33>=W33,W33,"")) ->  | W33: =IF(ISERROR(VLOOKUP($E$2,'Learning Assessments'!$LA$6:$PV$171,AC33,FALSE)),"",VLOOKUP($E$2,'Learning Assessments'!$LA$6:$PV$171,AC33,FALSE)) ->  | X33: =IF(ISERROR(VLOOKUP($E$2,'Learning Assessments'!$LA$6:$PV$171,AB33,FALSE)),"",VLOOKUP($E$2,'Learning Assessments'!$LA$6:$PV$171,AB33,FALSE)) ->  | Y33: =IF(ISERROR(VLOOKUP($E$2,'Learning Assessments'!$LA$6:$PV$171,AD33,FALSE)),"",VLOOKUP($E$2,'Learning Assessments'!$LA$6:$PV$171,AD33,FALSE)) ->  | Z33: =IF(ISERROR(VLOOKUP($E$2,'Learning Assessments'!$LA$6:$PV$171,AE33,FALSE)),"",VLOOKUP($E$2,'Learning Assessments'!$LA$6:$PV$171,AE33,FALSE)) ->  | AB33: 73 | AC33: =AB33+1 -> 74 | AD33: 75 | AE33: 76
E34: ="EEI-"&Master!BS3 -> EEI-2012 | F34: =Master!BS179 -> 0.6319886057 | G34: =VLOOKUP(G30,Master!$A$172:$BT$178,71,FALSE) -> 0.4486836915 | H34: =IF(VLOOKUP($H$6,Master!$A$3:$BT$183,$K34,FALSE)="NA",NA(),VLOOKUP($H$6,Master!$A$3:$BT$183,$K34,FALSE)) -> 0.6510233484 | I34: 0.66 | J34: =H34 -> 0.6510233484 | K34: 72 | N34: ¯ | P34: Mathematics G3 | W34: =IF(ISERROR(VLOOKUP($E$2,'Learning Assessments'!$LA$6:$PV$171,AC34,FALSE)),"",VLOOKUP($E$2,'Learning Assessments'!$LA$6:$PV$171,AC34,FALSE)) ->  | X34: =IF(ISERROR(VLOOKUP($E$2,'Learning Assessments'!$LA$6:$PV$171,AB34,FALSE)),"",VLOOKUP($E$2,'Learning Assessments'!$LA$6:$PV$171,AB34,FALSE)) ->  | Y34: =IF(ISERROR(VLOOKUP($E$2,'Learning Assessments'!$LA$6:$PV$171,AD34,FALSE)),"",VLOOKUP($E$2,'Learning Assessments'!$LA$6:$PV$171,AD34,FALSE)) ->  | Z34: =IF(ISERROR(VLOOKUP($E$2,'Learning Assessments'!$LA$6:$PV$171,AE34,FALSE)),"",VLOOKUP($E$2,'Learning Assessments'!$LA$6:$PV$171,AE34,FALSE)) ->  | AB34: =AB33+5 -> 78 | AC34: 79 | AD34: 80 | AE34: 81
P35: Reading G4 | W35: =IF(ISERROR(VLOOKUP($E$2,'Learning Assessments'!$LA$6:$QF$171,AC35,FALSE)),"",VLOOKUP($E$2,'Learning Assessments'!$LA$6:$QF$171,AC35,FALSE)) ->  | X35: =IF(ISERROR(VLOOKUP($E$2,'Learning Assessments'!$LA$6:$QF$171,AB35,FALSE)),"",VLOOKUP($E$2,'Learning Assessments'!$LA$6:$QF$171,AB35,FALSE)) ->  | Y35: =IF(ISERROR(VLOOKUP($E$2,'Learning Assessments'!$LA$6:$QF$171,AD35,FALSE)),"",VLOOKUP($E$2,'Learning Assessments'!$LA$6:$QF$171,AD35,FALSE)) ->  | Z35: =IF(ISERROR(VLOOKUP($E$2,'Learning Assessments'!$LA$6:$QF$171,AE35,FALSE)),"",VLOOKUP($E$2,'Learning Assessments'!$LA$6:$QF$171,AE35,FALSE)) ->  | AB35: 83 | AC35: 84 | AD35: 85 | AE35: 86
B36: QUALITATIVE DATA | D36: 10 | E36: 13 | F36: 17 | G36: 21 | H36: 25 | I36: 29 | J36: 33 | K36: 37 | L36: 42 | M36: 46 | N36: 47 | O36: 51 | P36: Mathematics G4 | W36: =IF(ISERROR(VLOOKUP($E$2,'Learning Assessments'!$LA$6:$QF$171,AC36,FALSE)),"",VLOOKUP($E$2,'Learning Assessments'!$LA$6:$QF$171,AC36,FALSE)) ->  | X36: =IF(ISERROR(VLOOKUP($E$2,'Learning Assessments'!$LA$6:$QF$171,AB36,FALSE)),"",VLOOKUP($E$2,'Learning Assessments'!$LA$6:$QF$171,AB36,FALSE)) ->  | Y36: =IF(ISERROR(VLOOKUP($E$2,'Learning Assessments'!$LA$6:$QF$171,AD36,FALSE)),"",VLOOKUP($E$2,'Learning Assessments'!$LA$6:$QF$171,AD36,FALSE)) ->  | Z36: =IF(ISERROR(VLOOKUP($E$2,'Learning Assessments'!$LA$6:$QF$171,AE36,FALSE)),"",VLOOKUP($E$2,'Learning Assessments'!$LA$6:$QF$171,AE36,FALSE)) ->  | AB36: 88 | AC36: 89 | AD36: 90 | AE36: 91
P37: Reading G6 | W37: =IF(ISERROR(VLOOKUP($E$2,'Learning Assessments'!$LA$6:$PV$171,AC37,FALSE)),"",VLOOKUP($E$2,'Learning Assessments'!$LA$6:$PV$171,AC37,FALSE)) ->  | X37: =IF(ISERROR(VLOOKUP($E$2,'Learning Assessments'!$LA$6:$PV$171,AB37,FALSE)),"",VLOOKUP($E$2,'Learning Assessments'!$LA$6:$PV$171,AB37,FALSE)) ->  | Y37: =IF(ISERROR(VLOOKUP($E$2,'Learning Assessments'!$LA$6:$PV$171,AD37,FALSE)),"",VLOOKUP($E$2,'Learning Assessments'!$LA$6:$PV$171,AD37,FALSE)) ->  | Z37: =IF(ISERROR(VLOOKUP($E$2,'Learning Assessments'!$LA$6:$PV$171,AE37,FALSE)),"",VLOOKUP($E$2,'Learning Assessments'!$LA$6:$PV$171,AE37,FALSE)) ->  | AB37: =AB36+5 -> 93 | AC37: 94 | AD37: 95 | AE37: 96
D38: Country | F38: World | G38: =$F$2 -> ESAR | H38: =+G2 -> Comoros | I38: Max Score | K38: BL | M38: Current | P38: Mathematics G6 | W38: =IF(ISERROR(VLOOKUP($E$2,'Learning Assessments'!$LA$6:$PV$171,AC38,FALSE)),"",VLOOKUP($E$2,'Learning Assessments'!$LA$6:$PV$171,AC38,FALSE)) ->  | X38: =IF(ISERROR(VLOOKUP($E$2,'Learning Assessments'!$LA$6:$PV$171,AB38,FALSE)),"",VLOOKUP($E$2,'Learning Assessments'!$LA$6:$PV$171,AB38,FALSE)) ->  | Y38: =IF(ISERROR(VLOOKUP($E$2,'Learning Assessments'!$LA$6:$PV$171,AD38,FALSE)),"",VLOOKUP($E$2,'Learning Assessments'!$LA$6:$PV$171,AD38,FALSE)) ->  | Z38: =IF(ISERROR(VLOOKUP($E$2,'Learning Assessments'!$LA$6:$PV$171,AE38,FALSE)),"",VLOOKUP($E$2,'Learning Assessments'!$LA$6:$PV$171,AE38,FALSE)) ->  | AB38: 98 | AC38: 99 | AD38: 100 | AE38: 101 | AF38: =E38 -> 0 | AG38: =$I$11 -> SP Target
A39: Sub dimensions | C39: Gender | D39: 2.a.3 Gender-responsive education systems | E39: Gender-responsive education systems | F39: ='Data for global profile'!G68 -> 2.2 | G39: =VLOOKUP(G$38,'Quali 2'!$A$1:$BP$170,$M39,FALSE) -> 2.456140351 | H39: =IF(VLOOKUP(H$38,'Quali 2'!$A$1:$BP$170,$M39,FALSE)=999,NA(),ROUND(VLOOKUP(H$38,'Quali 2'!$A$1:$BP$170,$M39,FALSE),1)) ->  | I39: 4 | J39: =IF(VLOOKUP($H$38,'BL Quali 2'!$A$3:$DQ$159,K39,FALSE)=999,NA(),VLOOKUP($H$38,'BL Quali 2'!$A$3:$DQ$159,K39,FALSE)) -> 1 | K39: 25 | L39: =VLOOKUP("Country",'Quali 2'!$A$1:$BP$170,$M39,FALSE) -> Gender | M39: =IFERROR(MATCH(C39,'Quali 2'!$A$1:$BO$1,0),"") -> 52 | N39: =E39 -> Gender-responsive education systems | P39: Science G6 | W39: =IF(ISERROR(VLOOKUP($E$2,'Learning Assessments'!$LA$6:$PV$171,AC39,FALSE)),"",VLOOKUP($E$2,'Learning Assessments'!$LA$6:$PV$171,AC39,FALSE)) ->  | X39: =IF(ISERROR(VLOOKUP($E$2,'Learning Assessments'!$LA$6:$PV$171,AB39,FALSE)),"",VLOOKUP($E$2,'Learning Assessments'!$LA$6:$PV$171,AB39,FALSE)) ->  | Y39: =IF(ISERROR(VLOOKUP($E$2,'Learning Assessments'!$LA$6:$PV$171,AD39,FALSE)),"",VLOOKUP($E$2,'Learning Assessments'!$LA$6:$PV$171,AD39,FALSE)) ->  | Z39: =IF(ISERROR(VLOOKUP($E$2,'Learning Assessments'!$LA$6:$PV$171,AE39,FALSE)),"",VLOOKUP($E$2,'Learning Assessments'!$LA$6:$PV$171,AE39,FALSE)) ->  | AB39: 103 | AC39: 104 | AD39: 105 | AE39: 106 | AF39: =E39 -> Gender-responsive education systems | AG39: =$I$11 -> SP Target
C40: IE | D40: 2.a.2.a Inclusive education for children with disabilities | E40: Inclusive education for children with disabilities | F40: ='Data for global profile'!G64 -> 2.4 | G40: =VLOOKUP(G$38,'Quali 2'!$A$1:$BP$170,$M40,FALSE) -> 2.475833333 | H40: =IF(VLOOKUP(H$38,'Quali 2'!$A$1:$BP$170,$M40,FALSE)=999,NA(),ROUND(VLOOKUP(H$38,'Quali 2'!$A$1:$BP$170,$M40,FALSE),1)) -> 1.7 | J40: =IF(VLOOKUP($H$38,'BL Quali 2'!$A$3:$DQ$159,K40,FALSE)=999,NA(),VLOOKUP($H$38,'BL Quali 2'!$A$3:$DQ$159,K40,FALSE)) -> 1.666666667 | K40: 10 | L40: =VLOOKUP("Country",'Quali 2'!$A$1:$BP$170,$M40,FALSE) -> IE | M40: =IFERROR(MATCH(C40,'Quali 2'!$A$1:$BO$1,0),"") -> 53 | N40: =E40 -> Inclusive education for children with disabilities
C41: ESP | D41: 2.a.2.b Education sector plan/strategy addressing equity issues | E41: ESP addressing equity issues | F41: ='Data for global profile'!G65 -> 2.2 | G41: =VLOOKUP(G$38,'Quali 2'!$A$1:$BP$170,$M41,FALSE) -> 2.473684211 | H41: =IF(VLOOKUP(H$38,'Quali 2'!$A$1:$BP$170,$M41,FALSE)=999,NA(),ROUND(VLOOKUP(H$38,'Quali 2'!$A$1:$BP$170,$M41,FALSE),1)) ->  | J41: =IF(VLOOKUP($H$38,'BL Quali 2'!$A$3:$DQ$159,K41,FALSE)=999,NA(),VLOOKUP($H$38,'BL Quali 2'!$A$3:$DQ$159,K41,FALSE)) -> 1.5 | K41: 13 | L41: =VLOOKUP("Country",'Quali 2'!$A$1:$BP$170,$M41,FALSE) -> ESP | M41: =IFERROR(MATCH(C41,'Quali 2'!$A$1:$BO$1,0),"") -> 54 | N41: ESP addressing equity issues | P41: ASER
C42: Emergency Prepardness | D42: 2.a.2.c Emergency preparedness/resilience | E42: Emergency preparedness/resilience | F42: ='Data for global profile'!G66 -> 2.2 | G42: =VLOOKUP(G$38,'Quali 2'!$A$1:$BP$170,$M42,FALSE) -> 2.470588235 | H42: =IF(VLOOKUP(H$38,'Quali 2'!$A$1:$BP$170,$M42,FALSE)=999,NA(),ROUND(VLOOKUP(H$38,'Quali 2'!$A$1:$BP$170,$M42,FALSE),1)) -> 2.7 | J42: =IF(VLOOKUP($H$38,'BL Quali 2'!$A$3:$DQ$159,K42,FALSE)=999,NA(),VLOOKUP($H$38,'BL Quali 2'!$A$3:$DQ$159,K42,FALSE)) -> 2.666666667 | K42: 17 | L42: =VLOOKUP("Country",'Quali 2'!$A$1:$BP$170,$M42,FALSE) -> Emergency Prepardness | M42: =IFERROR(MATCH(C42,'Quali 2'!$A$1:$BO$1,0),"") -> 55 | N42: Emergency preparedness/resilience | P42: Reading Urdu | Q42: =IF($P$6=$P$41,P42," ") ->  | R42: =IF(ISERROR(IF(X42>=W42,X42,"")),"",IF(X42>=W42,X42,"")) ->  | S42: =IF(ISERROR(IF(X42<W42,W42,"")),"",IF(X42<W42,W42,"")) ->  | T42: =IF(ISERROR(IF(X42<W42,X42,"")),"",IF(X42<W42,X42,"")) ->  | U42: =IF(ISERROR(IF(X42>=W42,W42,"")),"",IF(X42>=W42,W42,"")) ->  | V42: =Q42 ->  | W42: =IF(ISERROR(VLOOKUP($E$2,'Learning Assessments'!$LA$6:$PV$171,AC42,FALSE)),"",VLOOKUP($E$2,'Learning Assessments'!$LA$6:$PV$171,AC42,FALSE)) ->  | X42: =IF(ISERROR(VLOOKUP($E$2,'Learning Assessments'!$LA$6:$PV$171,AB42,FALSE)),"",VLOOKUP($E$2,'Learning Assessments'!$LA$6:$PV$171,AB42,FALSE)) ->  | Z42: =IF(ISERROR(VLOOKUP($E$2,'Learning Assessments'!$LA$6:$PV$171,AE42,FALSE)),"",VLOOKUP($E$2,'Learning Assessments'!$LA$6:$PV$171,AE42,FALSE)) ->  | AB42: =AB39+5 -> 108 | AC42: =AB42+1 -> 109 | AD42: 110 | AE42: 111
C43: EMIS | D43: 2.a.2.d EMIS providing disaggregated data | E43: EMIS providing disaggregated data | F43: ='Data for global profile'!G67 -> 2.3 | G43: =VLOOKUP(G$38,'Quali 2'!$A$1:$BP$170,$M43,FALSE) -> 2.583333333 | H43: =IF(VLOOKUP(H$38,'Quali 2'!$A$1:$BP$170,$M43,FALSE)=999,NA(),ROUND(VLOOKUP(H$38,'Quali 2'!$A$1:$BP$170,$M43,FALSE),1)) -> 2 | J43: =IF(VLOOKUP($H$38,'BL Quali 2'!$A$3:$DQ$159,K43,FALSE)=999,NA(),VLOOKUP($H$38,'BL Quali 2'!$A$3:$DQ$159,K43,FALSE)) -> 2 | K43: 21 | L43: =VLOOKUP("Country",'Quali 2'!$A$1:$BP$170,$M43,FALSE) -> EMIS | M43: =IFERROR(MATCH(C43,'Quali 2'!$A$1:$BO$1,0),"") -> 56 | N43: EMIS providing disaggregated data | P43: Reading English | Q43: =IF($P$6=$P$41,P43," ") ->  | R43: =IF(ISERROR(IF(X43>=W43,X43,"")),"",IF(X43>=W43,X43,"")) ->  | S43: =IF(ISERROR(IF(X43<W43,W43,"")),"",IF(X43<W43,W43,"")) ->  | T43: =IF(ISERROR(IF(X43<W43,X43,"")),"",IF(X43<W43,X43,"")) ->  | U43: =IF(ISERROR(IF(X43>=W43,W43,"")),"",IF(X43>=W43,W43,"")) ->  | V43: =Q43 ->  | W43: =IF(ISERROR(VLOOKUP($E$2,'Learning Assessments'!$LA$6:$PV$171,AC43,FALSE)),"",VLOOKUP($E$2,'Learning Assessments'!$LA$6:$PV$171,AC43,FALSE)) ->  | X43: =IF(ISERROR(VLOOKUP($E$2,'Learning Assessments'!$LA$6:$PV$171,AB43,FALSE)),"",VLOOKUP($E$2,'Learning Assessments'!$LA$6:$PV$171,AB43,FALSE)) ->  | Z43: =IF(ISERROR(VLOOKUP($E$2,'Learning Assessments'!$LA$6:$PV$171,AE43,FALSE)),"",VLOOKUP($E$2,'Learning Assessments'!$LA$6:$PV$171,AE43,FALSE)) ->  | AB43: =AB42+5 -> 113 | AC43: 114 | AD43: 115 | AE43: 116
C44: Early Learning | D44: 2.b.2.b early learning | E44: Early learning | F44: ='Data for global profile'!G69 -> 2.3 | G44: =VLOOKUP(G$38,'Quali 2'!$A$1:$BP$170,$M44,FALSE) -> 2.2875 | H44: =IF(VLOOKUP(H$38,'Quali 2'!$A$1:$BP$170,$M44,FALSE)=999,NA(),ROUND(VLOOKUP(H$38,'Quali 2'!$A$1:$BP$170,$M44,FALSE),1)) -> 2.8 | J44: =IF(VLOOKUP($H$38,'BL Quali 2'!$A$3:$DQ$159,K44,FALSE)=999,NA(),VLOOKUP($H$38,'BL Quali 2'!$A$3:$DQ$159,K44,FALSE)) -> 1.833333333 | K44: 29 | L44: =VLOOKUP("Country",'Quali 2'!$A$1:$BP$170,$M44,FALSE) -> Early Learning | M44: =IFERROR(MATCH(C44,'Quali 2'!$A$1:$BO$1,0),"") -> 58 | N44: Early learning | P44: Arithmetic | Q44: =IF($P$6=$P$41,P44," ") ->  | R44: =IF(ISERROR(IF(X44>=W44,X44,"")),"",IF(X44>=W44,X44,"")) ->  | S44: =IF(ISERROR(IF(X44<W44,W44,"")),"",IF(X44<W44,W44,"")) ->  | T44: =IF(ISERROR(IF(X44<W44,X44,"")),"",IF(X44<W44,X44,"")) ->  | U44: =IF(ISERROR(IF(X44>=W44,W44,"")),"",IF(X44>=W44,W44,"")) ->  | V44: =Q44 ->  | W44: =IF(ISERROR(VLOOKUP($E$2,'Learning Assessments'!$LA$6:$PV$171,AC44,FALSE)),"",VLOOKUP($E$2,'Learning Assessments'!$LA$6:$PV$171,AC44,FALSE)) ->  | X44: =IF(ISERROR(VLOOKUP($E$2,'Learning Assessments'!$LA$6:$PV$171,AB44,FALSE)),"",VLOOKUP($E$2,'Learning Assessments'!$LA$6:$PV$171,AB44,FALSE)) ->  | Y44: =IF(ISERROR(VLOOKUP($E$2,'Learning Assessments'!$LA$6:$PV$171,AD44,FALSE)),"",VLOOKUP($E$2,'Learning Assessments'!$LA$6:$PV$171,AD44,FALSE)) ->  | Z44: =IF(ISERROR(VLOOKUP($E$2,'Learning Assessments'!$LA$6:$PV$171,AE44,FALSE)),"",VLOOKUP($E$2,'Learning Assessments'!$LA$6:$PV$171,AE44,FALSE)) ->  | AB44: =AB43+5 -> 118 | AC44: 119 | AD44: 120 | AE44: 121
C45: Learning assessment | D45: 2.b.2.c Learning assessment systems | E45: Learning assessment systems | F45: ='Data for global profile'!G70 -> 2.4 | G45: =VLOOKUP(G$38,'Quali 2'!$A$1:$BP$170,$M45,FALSE) -> 2.62962963 | H45: =IF(VLOOKUP(H$38,'Quali 2'!$A$1:$BP$170,$M45,FALSE)=999,NA(),ROUND(VLOOKUP(H$38,'Quali 2'!$A$1:$BP$170,$M45,FALSE),1)) -> 2.3 | J45: =IF(VLOOKUP($H$38,'BL Quali 2'!$A$3:$DQ$159,K45,FALSE)=999,NA(),VLOOKUP($H$38,'BL Quali 2'!$A$3:$DQ$159,K45,FALSE)) -> 2.166666667 | K45: 33 | L45: =VLOOKUP("Country",'Quali 2'!$A$1:$BP$170,$M45,FALSE) -> Learning assessment | M45: =IFERROR(MATCH(C45,'Quali 2'!$A$1:$BO$1,0),"") -> 59 | N45: Learning assessment systems
C46: gender-responsive teaching and learning | D46: 2.b.2.a. Gender-responsive teaching and learning | E46: Gender-responsive teaching and learning | F46: ='Data for global profile'!G74 -> 2.1 | G46: =VLOOKUP(G$38,'Quali 2'!$A$1:$BP$170,$M46,FALSE) -> 2.25 | H46: =IF(VLOOKUP(H$38,'Quali 2'!$A$1:$BP$170,$M46,FALSE)=999,NA(),ROUND(VLOOKUP(H$38,'Quali 2'!$A$1:$BP$170,$M46,FALSE),1)) ->  | J46: =IF(VLOOKUP($H$38,'BL Quali 2'!$A$3:$DQ$159,K46,FALSE)=999,NA(),VLOOKUP($H$38,'BL Quali 2'!$A$3:$DQ$159,K46,FALSE)) -> 1 | K46: 47 | L46: =VLOOKUP("Country",'Quali 2'!$A$1:$BP$170,$M46,FALSE) -> gender-responsive teaching and learning | M46: =IFERROR(MATCH(C46,'Quali 2'!$A$1:$BO$1,0),"") -> 57 | N46: Gender-responsive teaching and learning | P46: UWEZO
J47: =IF(VLOOKUP($H$38,'BL Quali 2'!$A$3:$DQ$159,K47,FALSE)=999,NA(),VLOOKUP($H$38,'BL Quali 2'!$A$3:$DQ$159,K47,FALSE)) ->  | M47: =IFERROR(MATCH(C47,'Quali 2'!$A$1:$BO$1,0),"") ->  | P47: Reading Kiswahili | Q47: =IF($P$6=$P$46,P47," ") ->  | R47: =IF(ISERROR(IF(X47>=W47,X47,"")),"",IF(X47>=W47,X47,"")) ->  | S47: =IF(ISERROR(IF(X47<W47,W47,"")),"",IF(X47<W47,W47,"")) ->  | T47: =IF(ISERROR(IF(X47<W47,X47,"")),"",IF(X47<W47,X47,"")) ->  | U47: =IF(ISERROR(IF(X47>=W47,W47,"")),"",IF(X47>=W47,W47,"")) ->  | V47: =Q47 ->  | W47: =IF(ISERROR(VLOOKUP($E$2,'Learning Assessments'!$LA$6:$QF$171,AC47,FALSE)),"",VLOOKUP($E$2,'Learning Assessments'!$LA$6:$QF$171,AC47,FALSE)) ->  | X47: =IF(ISERROR(VLOOKUP($E$2,'Learning Assessments'!$LA$6:$QF$171,AB47,FALSE)),"",VLOOKUP($E$2,'Learning Assessments'!$LA$6:$QF$171,AB47,FALSE)) ->  | Y47: =IF(ISERROR(VLOOKUP($E$2,'Learning Assessments'!$LA$6:$QF$171,AD47,FALSE)),"",VLOOKUP($E$2,'Learning Assessments'!$LA$6:$QF$171,AD47,FALSE)) ->  | Z47: =IF(ISERROR(VLOOKUP($E$2,'Learning Assessments'!$LA$6:$QF$171,AE47,FALSE)),"",VLOOKUP($E$2,'Learning Assessments'!$LA$6:$QF$171,AE47,FALSE)) ->  | AB47: =AB44+5 -> 123 | AC47: =AB47+1 -> 124 | AD47: 125 | AE47: 126
J48: =IF(VLOOKUP($H$38,'BL Quali 2'!$A$3:$DQ$159,K48,FALSE)=999,NA(),VLOOKUP($H$38,'BL Quali 2'!$A$3:$DQ$159,K48,FALSE)) ->  | M48: =IFERROR(MATCH(C48,'Quali 2'!$A$1:$BO$1,0),"") ->  | P48: Reading English | Q48: =IF($P$6=$P$46,P48," ") ->  | R48: =IF(ISERROR(IF(X48>=W48,X48,"")),"",IF(X48>=W48,X48,"")) ->  | S48: =IF(ISERROR(IF(X48<W48,W48,"")),"",IF(X48<W48,W48,"")) ->  | T48: =IF(ISERROR(IF(X48<W48,X48,"")),"",IF(X48<W48,X48,"")) ->  | U48: =IF(ISERROR(IF(X48>=W48,W48,"")),"",IF(X48>=W48,W48,"")) ->  | V48: =Q48 ->  | W48: =IF(ISERROR(VLOOKUP($E$2,'Learning Assessments'!$LA$6:$QF$171,AC48,FALSE)),"",VLOOKUP($E$2,'Learning Assessments'!$LA$6:$QF$171,AC48,FALSE)) ->  | X48: =IF(ISERROR(VLOOKUP($E$2,'Learning Assessments'!$LA$6:$QF$171,AB48,FALSE)),"",VLOOKUP($E$2,'Learning Assessments'!$LA$6:$QF$171,AB48,FALSE)) ->  | Y48: =IF(ISERROR(VLOOKUP($E$2,'Learning Assessments'!$LA$6:$QF$171,AD48,FALSE)),"",VLOOKUP($E$2,'Learning Assessments'!$LA$6:$QF$171,AD48,FALSE)) ->  | Z48: =IF(ISERROR(VLOOKUP($E$2,'Learning Assessments'!$LA$6:$QF$171,AE48,FALSE)),"",VLOOKUP($E$2,'Learning Assessments'!$LA$6:$QF$171,AE48,FALSE)) ->  | AB48: =AB47+5 -> 128 | AC48: 129 | AD48: 130 | AE48: 131
J49: =IF(VLOOKUP($H$38,'BL Quali 2'!$A$3:$DQ$159,K49,FALSE)=999,NA(),VLOOKUP($H$38,'BL Quali 2'!$A$3:$DQ$159,K49,FALSE)) ->  | M49: =IFERROR(MATCH(C49,'Quali 2'!$A$1:$BO$1,0),"") ->  | P49: Arithmetic | Q49: =IF($P$6=$P$46,P49," ") ->  | R49: =IF(ISERROR(IF(X49>=W49,X49,"")),"",IF(X49>=W49,X49,"")) ->  | S49: =IF(ISERROR(IF(X49<W49,W49,"")),"",IF(X49<W49,W49,"")) ->  | T49: =IF(ISERROR(IF(X49<W49,X49,"")),"",IF(X49<W49,X49,"")) ->  | U49: =IF(ISERROR(IF(X49>=W49,W49,"")),"",IF(X49>=W49,W49,"")) ->  | V49: =Q49 ->  | W49: =IF(ISERROR(VLOOKUP($E$2,'Learning Assessments'!$LA$6:$QF$171,AC49,FALSE)),"",VLOOKUP($E$2,'Learning Assessments'!$LA$6:$QF$171,AC49,FALSE)) ->  | X49: =IF(ISERROR(VLOOKUP($E$2,'Learning Assessments'!$LA$6:$QF$171,AB49,FALSE)),"",VLOOKUP($E$2,'Learning Assessments'!$LA$6:$QF$171,AB49,FALSE)) ->  | Y49: =IF(ISERROR(VLOOKUP($E$2,'Learning Assessments'!$LA$6:$QF$171,AD49,FALSE)),"",VLOOKUP($E$2,'Learning Assessments'!$LA$6:$QF$171,AD49,FALSE)) ->  | Z49: =IF(ISERROR(VLOOKUP($E$2,'Learning Assessments'!$LA$6:$QF$171,AE49,FALSE)),"",VLOOKUP($E$2,'Learning Assessments'!$LA$6:$QF$171,AE49,FALSE)) ->  | AB49: =AB48+5 -> 133 | AC49: 134 | AD49: 135 | AE49: 136
C50: Multilingual | D50: 2.b.2.d Mother tongue/multilingual education | E50: Mother tongue/multilingual education | F50: ='Data for global profile'!G71 -> 2.4 | G50: =VLOOKUP(G$38,'Quali 2'!$A$1:$BP$170,$M50,FALSE) -> 2.826923077 | H50: =IF(VLOOKUP(H$38,'Quali 2'!$A$1:$BP$170,$M50,FALSE)=999,NA(),ROUND(VLOOKUP(H$38,'Quali 2'!$A$1:$BP$170,$M50,FALSE),1)) ->  | J50: =IF(VLOOKUP($H$38,'BL Quali 2'!$A$3:$DQ$159,K50,FALSE)=999,NA(),VLOOKUP($H$38,'BL Quali 2'!$A$3:$DQ$159,K50,FALSE)) -> 1.5 | K50: 37 | L50: =VLOOKUP("Country",'Quali 2'!$A$1:$BP$170,$M50,FALSE) -> Multilingual | M50: =IFERROR(MATCH(C50,'Quali 2'!$A$1:$BO$1,0),"") -> 60 | N50: =E50 -> Mother tongue/multilingual education
C51: Teachers | D51: 2.b.2.e Teachers | E51: Teachers | F51: ='Data for global profile'!G72 -> 2.1 | G51: =VLOOKUP(G$38,'Quali 2'!$A$1:$BP$170,$M51,FALSE) -> 2.247807018 | H51: =IF(VLOOKUP(H$38,'Quali 2'!$A$1:$BP$170,$M51,FALSE)=999,NA(),ROUND(VLOOKUP(H$38,'Quali 2'!$A$1:$BP$170,$M51,FALSE),1)) -> 1.5 | J51: =IF(VLOOKUP($H$38,'BL Quali 2'!$A$3:$DQ$159,K51,FALSE)=999,NA(),VLOOKUP($H$38,'BL Quali 2'!$A$3:$DQ$159,K51,FALSE)) ->  | K51: 42 | L51: =VLOOKUP("Country",'Quali 2'!$A$1:$BP$170,$M51,FALSE) -> Teachers | M51: =IFERROR(MATCH(C51,'Quali 2'!$A$1:$BO$1,0),"") -> 61 | N51: =E51 -> Teachers | T51: =IF(X47<W47,X47,"") -> 
C52: Community | D52: 2.b.2.f Community participation | E52: Community participation | F52: ='Data for global profile'!G73 -> 2.4 | G52: =VLOOKUP(G$38,'Quali 2'!$A$1:$BP$170,$M52,FALSE) -> 2.712962963 | H52: =IF(VLOOKUP(H$38,'Quali 2'!$A$1:$BP$170,$M52,FALSE)=999,NA(),ROUND(VLOOKUP(H$38,'Quali 2'!$A$1:$BP$170,$M52,FALSE),1)) -> 1.3 | J52: =IF(VLOOKUP($H$38,'BL Quali 2'!$A$3:$DQ$159,K52,FALSE)=999,NA(),VLOOKUP($H$38,'BL Quali 2'!$A$3:$DQ$159,K52,FALSE)) -> 1.5 | K52: 46 | L52: =VLOOKUP("Country",'Quali 2'!$A$1:$BP$170,$M52,FALSE) -> Community | M52: =IFERROR(MATCH(C52,'Quali 2'!$A$1:$BO$1,0),"") -> 62 | N52: =E52 -> Community participation
C53: Mainstreaming of skills development | D53: 2.c.2.a mainstreaming of skills development within the national system | E53: National system mainstreaming skills development | F53: ='Data for global profile'!G75 -> 2 | G53: =VLOOKUP(G$38,'Quali 2'!$A$1:$BP$170,$M53,FALSE) -> 2.022727273 | H53: =IF(VLOOKUP(H$38,'Quali 2'!$A$1:$BP$170,$M53,FALSE)=999,NA(),ROUND(VLOOKUP(H$38,'Quali 2'!$A$1:$BP$170,$M53,FALSE),1)) ->  | J53: =IF(VLOOKUP($H$38,'BL Quali 2'!$A$3:$DQ$159,K53,FALSE)=999,NA(),VLOOKUP($H$38,'BL Quali 2'!$A$3:$DQ$159,K53,FALSE)) ->  | K53: 51 | L53: =VLOOKUP("Country",'Quali 2'!$A$1:$BP$170,$M53,FALSE) -> Mainstreaming of skills development | M53: =IFERROR(MATCH(C53,'Quali 2'!$A$1:$BO$1,0),"") -> 63 | N53: =E53 -> National system mainstreaming skills development
C54: responsi veness | D54: 2.c.2.b Responsiveness to the demands of the labour market | E54: Responsiveness to the demands of the labour market | F54: ='Data for global profile'!G76 -> 1.7 | G54: =VLOOKUP(G$38,'Quali 2'!$A$1:$BP$170,$M54,FALSE) -> 1.5 | H54: =IF(VLOOKUP(H$38,'Quali 2'!$A$1:$BP$170,$M54,FALSE)=999,NA(),ROUND(VLOOKUP(H$38,'Quali 2'!$A$1:$BP$170,$M54,FALSE),1)) ->  | J54: =IF(VLOOKUP($H$38,'BL Quali 2'!$A$3:$DQ$159,K54,FALSE)=999,NA(),VLOOKUP($H$38,'BL Quali 2'!$A$3:$DQ$159,K54,FALSE)) ->  | K54: 52 | L54: =VLOOKUP("Country",'Quali 2'!$A$1:$BP$170,$M54,FALSE) -> responsi veness | M54: =IFERROR(MATCH(C54,'Quali 2'!$A$1:$BO$1,0),"") -> 64 | N54: =E54 -> Responsiveness to the demands of the labour market
A55: SMQs | C55: 2 c 2 Gender | D55: 2.c.2.c Gender equity in opportunities for skills development | E55: Gender equity in opportunities for skills development | F55: =F106 -> 2 | G55: =G106 -> 2.416666667 | H55: =IF(VLOOKUP(H$38,'Quali 2'!$A$1:$BP$170,$M55,FALSE)=999,NA(),ROUND(VLOOKUP(H$38,'Quali 2'!$A$1:$BP$170,$M55,FALSE),1)) ->  | J55: =NA() ->  | K55: 138 | L55: =VLOOKUP("Country",'Quali 2'!$A$1:$BP$170,$M55,FALSE) -> 2 c 2 Gender | M55: =IFERROR(MATCH(C55,'Quali 2'!$A$1:$BO$1,0),"") -> 41
A56: 2.a.3 Gender-responsive education systems | C56: 2.a.3. Gender Demand | D56: a.3.a Demand | E56: Demand | F56: ='Data for global profile'!G80 -> 2.2 | G56: =VLOOKUP(G$38,'Quali 2'!$A$1:$BP$170,$M56,FALSE) -> 2.5 | H56: =IF(VLOOKUP(H$38,'Quali 2'!$A$1:$BP$170,$M56,FALSE)=999,NA(),ROUND(VLOOKUP(H$38,'Quali 2'!$A$1:$BP$170,$M56,FALSE),1)) ->  | I56: 4 | J56: =H56 ->  | K56: =M56 -> 3 | L56: =VLOOKUP("Country",'Quali 2'!$A$1:$BP$170,$M56,FALSE) -> 2.a.3. Gender Demand | M56: =IFERROR(MATCH(C56,'Quali 2'!$A$1:$BO$1,0),"") -> 3 | N56: =E56 -> Demand
C57: 2.a.3 Gender Environment | D57: a.3.b Gender-responsive environment | E57: Gender-responsive environment | F57: ='Data for global profile'!G81 -> 2.3 | G57: =VLOOKUP(G$38,'Quali 2'!$A$1:$BP$170,$M57,FALSE) -> 2.583333333 | H57: =IF(VLOOKUP(H$38,'Quali 2'!$A$1:$BP$170,$M57,FALSE)=999,NA(),ROUND(VLOOKUP(H$38,'Quali 2'!$A$1:$BP$170,$M57,FALSE),1)) ->  | I57: 4 | J57: =H57 ->  | K57: =M57 -> 4 | L57: =VLOOKUP("Country",'Quali 2'!$A$1:$BP$170,$M57,FALSE) -> 2.a.3 Gender Environment | M57: =IFERROR(MATCH(C57,'Quali 2'!$A$1:$BO$1,0),"") -> 4 | N57: =E57 -> Gender-responsive environment
C58: 2 a 3 Gender SRGBV | D58: a.3.c SRGBV | E58: SRGBV | F58: ='Data for global profile'!G82 -> 2.2 | G58: =VLOOKUP(G$38,'Quali 2'!$A$1:$BP$170,$M58,FALSE) -> 2.411764706 | H58: =IF(VLOOKUP(H$38,'Quali 2'!$A$1:$BP$170,$M58,FALSE)=999,NA(),ROUND(VLOOKUP(H$38,'Quali 2'!$A$1:$BP$170,$M58,FALSE),1)) ->  | I58: 4 | J58: =H58 ->  | K58: =M58 -> 5 | L58: =VLOOKUP("Country",'Quali 2'!$A$1:$BP$170,$M58,FALSE) -> 2 a 3 Gender SRGBV | M58: =IFERROR(MATCH(C58,'Quali 2'!$A$1:$BO$1,0),"") -> 5 | N58: =E58 -> SRGBV
M59: =IFERROR(MATCH(C59,'Quali 2'!$A$1:$BO$1,0),"") -> 
A60: 2.a.2.a Inclusive education for children with disabilities | C60: 2 a 2 Inclusive Ed Law-Policy | D60: a.2.a.a Law/Policy | E60: =RIGHT(D60,LEN(D60)-8) -> Law/Policy | F60: ='Data for global profile'!G84 -> 3 | G60: =VLOOKUP(G$38,'Quali 2'!$A$1:$BP$170,$M60,FALSE) -> 3.21875 | H60: =IF(VLOOKUP(H$38,'Quali 2'!$A$1:$BP$170,$M60,FALSE)=999,NA(),ROUND(VLOOKUP(H$38,'Quali 2'!$A$1:$BP$170,$M60,FALSE),1)) ->  | I60: 4 | J60: =H60 ->  | K60: =M60 -> 6 | L60: =VLOOKUP("Country",'Quali 2'!$A$1:$BP$170,$M60,FALSE) -> 2 a 2 Inclusive Ed Law-Policy | M60: =IFERROR(MATCH(C60,'Quali 2'!$A$1:$BO$1,0),"") -> 6 | N60: =E60 -> Law/Policy
C61: 2 a 2 Inclusive Ed Environment | D61: a.2.a.b Physical environment | E61: Physical environment | F61: ='Data for global profile'!G85 -> 2 | G61: =VLOOKUP(G$38,'Quali 2'!$A$1:$BP$170,$M61,FALSE) -> 1.9375 | H61: =IF(VLOOKUP(H$38,'Quali 2'!$A$1:$BP$170,$M61,FALSE)=999,NA(),ROUND(VLOOKUP(H$38,'Quali 2'!$A$1:$BP$170,$M61,FALSE),1)) -> 1 | I61: 4 | J61: 1 | K61: 7 | L61: =VLOOKUP("Country",'Quali 2'!$A$1:$BP$170,$M61,FALSE) -> 2 a 2 Inclusive Ed Environment | M61: =IFERROR(MATCH(C61,'Quali 2'!$A$1:$BO$1,0),"") -> 7 | N61: Physical environment | O61: Law/Policy
C62: 2 a 2 Inclusive Ed Materials | D62: a.2.a.c Materials and communication | E62: Materials and communication | F62: ='Data for global profile'!G86 -> 2.3 | G62: =VLOOKUP(G$38,'Quali 2'!$A$1:$BP$170,$M62,FALSE) -> 2.3 | H62: =IF(VLOOKUP(H$38,'Quali 2'!$A$1:$BP$170,$M62,FALSE)=999,NA(),ROUND(VLOOKUP(H$38,'Quali 2'!$A$1:$BP$170,$M62,FALSE),1)) -> 1 | I62: 4 | J62: 1 | K62: 8 | L62: =VLOOKUP("Country",'Quali 2'!$A$1:$BP$170,$M62,FALSE) -> 2 a 2 Inclusive Ed Materials | M62: =IFERROR(MATCH(C62,'Quali 2'!$A$1:$BO$1,0),"") -> 8 | N62: Materials and communication | O62: Physical environment
C63: 2 a 2 Inclusive Ed HR | D63: a.2.a.d Human Resources | E63: Human Resources | F63: ='Data for global profile'!G87 -> 2.1 | G63: =VLOOKUP(G$38,'Quali 2'!$A$1:$BP$170,$M63,FALSE) -> 1.861111111 | H63: =IF(VLOOKUP(H$38,'Quali 2'!$A$1:$BP$170,$M63,FALSE)=999,NA(),ROUND(VLOOKUP(H$38,'Quali 2'!$A$1:$BP$170,$M63,FALSE),1)) -> 1.5 | I63: 4 | J63: 1.5 | K63: 9 | L63: =VLOOKUP("Country",'Quali 2'!$A$1:$BP$170,$M63,FALSE) -> 2 a 2 Inclusive Ed HR | M63: =IFERROR(MATCH(C63,'Quali 2'!$A$1:$BO$1,0),"") -> 9 | N63: Human Resources | O63: Materials and communication
C64: 2 a 2 Inclusive Ed Attitudes | D64: a.2.a.e Attitudes | E64: Attitudes | F64: ='Data for global profile'!G88 -> 2.6 | G64: =VLOOKUP(G$38,'Quali 2'!$A$1:$BP$170,$M64,FALSE) -> 2.53125 | H64: =IF(VLOOKUP(H$38,'Quali 2'!$A$1:$BP$170,$M64,FALSE)=999,NA(),ROUND(VLOOKUP(H$38,'Quali 2'!$A$1:$BP$170,$M64,FALSE),1)) -> 3 | I64: 4 | J64: 3 | K64: 10 | L64: =VLOOKUP("Country",'Quali 2'!$A$1:$BP$170,$M64,FALSE) -> 2 a 2 Inclusive Ed Attitudes | M64: =IFERROR(MATCH(C64,'Quali 2'!$A$1:$BO$1,0),"") -> 10 | N64: Attitudes | O64: Human Resources
C65: 2 a 2 Inclusive Ed EMIS | D65: a.2.a.f EMIS | E65: EMIS | F65: ='Data for global profile'!G89 -> 2.3 | G65: =VLOOKUP(G$38,'Quali 2'!$A$1:$BP$170,$M65,FALSE) -> 2.777777778 | H65: =IF(VLOOKUP(H$38,'Quali 2'!$A$1:$BP$170,$M65,FALSE)=999,NA(),ROUND(VLOOKUP(H$38,'Quali 2'!$A$1:$BP$170,$M65,FALSE),1)) -> 2 | I65: 4 | J65: 2 | K65: 11 | L65: =VLOOKUP("Country",'Quali 2'!$A$1:$BP$170,$M65,FALSE) -> 2 a 2 Inclusive Ed EMIS | M65: =IFERROR(MATCH(C65,'Quali 2'!$A$1:$BO$1,0),"") -> 11 | N65: EMIS | O65: Attitudes
M66: =IFERROR(MATCH(C66,'Quali 2'!$A$1:$BO$1,0),"") ->  | O66: EMIS
A67: 2.a.2.b Education sector plan/strategy addressing equity issues | C67: 2 a 2 Sector Plan Strategy Access | D67: a.2.b.a Equity strategy | E67: Strategy | F67: ='Data for global profile'!G91 -> 2.3 | G67: =VLOOKUP(G$38,'Quali 2'!$A$1:$BP$170,$M67,FALSE) -> 2.684210526 | H67: =IF(VLOOKUP(H$38,'Quali 2'!$A$1:$BP$170,$M67,FALSE)=999,NA(),ROUND(VLOOKUP(H$38,'Quali 2'!$A$1:$BP$170,$M67,FALSE),1)) ->  | I67: 4 | J67: =H67 ->  | K67: =M67 -> 12 | L67: =VLOOKUP("Country",'Quali 2'!$A$1:$BP$170,$M67,FALSE) -> 2 a 2 Sector Plan Strategy Access | M67: =IFERROR(MATCH(C67,'Quali 2'!$A$1:$BO$1,0),"") -> 12 | N67: =E67 -> Strategy | P67: 3.99 | Q67: =I67-P67 -> 0.01
C68: 2 a 2 Sector Plan Strategy Resources | D68: a.2.b.b Equitable resources | E68: Resources | F68: ='Data for global profile'!G92 -> 2.1 | G68: =VLOOKUP(G$38,'Quali 2'!$A$1:$BP$170,$M68,FALSE) -> 2.263157895 | H68: =IF(VLOOKUP(H$38,'Quali 2'!$A$1:$BP$170,$M68,FALSE)=999,NA(),ROUND(VLOOKUP(H$38,'Quali 2'!$A$1:$BP$170,$M68,FALSE),1)) ->  | I68: 4 | J68: =H68 ->  | K68: =M68 -> 13 | L68: =VLOOKUP("Country",'Quali 2'!$A$1:$BP$170,$M68,FALSE) -> 2 a 2 Sector Plan Strategy Resources | M68: =IFERROR(MATCH(C68,'Quali 2'!$A$1:$BO$1,0),"") -> 13 | N68: =E68 -> Resources
M69: =IFERROR(MATCH(C69,'Quali 2'!$A$1:$BO$1,0),"") -> 
A70: 2.a.2.c Emergency preparedness/resilience | C70: 2 a 2 Emergency PrepRes Assessment | D70: a.2.c.a Risk assessment | E70: =RIGHT(D70,LEN(D70)-8) -> Risk assessment | F70: ='Data for global profile'!G94 -> 2.3 | G70: =VLOOKUP(G$38,'Quali 2'!$A$1:$BP$170,$M70,FALSE) -> 2.6 | H70: =IF(VLOOKUP(H$38,'Quali 2'!$A$1:$BP$170,$M70,FALSE)=999,NA(),ROUND(VLOOKUP(H$38,'Quali 2'!$A$1:$BP$170,$M70,FALSE),1)) -> 3 | I70: 4 | J70: =H70 -> 3 | K70: =M70 -> 14 | L70: =VLOOKUP("Country",'Quali 2'!$A$1:$BP$170,$M70,FALSE) -> 2 a 2 Emergency PrepRes Assessment | M70: =IFERROR(MATCH(C70,'Quali 2'!$A$1:$BO$1,0),"") -> 14 | N70: =E70 -> Risk assessment
C71: 2 a 2 Emergency PrepRes Strategies | D71: a.2.c.b Risk reduction strategy | E71: Risk reduction strategy | F71: ='Data for global profile'!G95 -> 2.3 | G71: =VLOOKUP(G$38,'Quali 2'!$A$1:$BP$170,$M71,FALSE) -> 2.625 | H71: =IF(VLOOKUP(H$38,'Quali 2'!$A$1:$BP$170,$M71,FALSE)=999,NA(),ROUND(VLOOKUP(H$38,'Quali 2'!$A$1:$BP$170,$M71,FALSE),1)) -> 3 | I71: 4 | J71: =H71 -> 3 | K71: =M71 -> 15 | L71: =VLOOKUP("Country",'Quali 2'!$A$1:$BP$170,$M71,FALSE) -> 2 a 2 Emergency PrepRes Strategies | M71: =IFERROR(MATCH(C71,'Quali 2'!$A$1:$BO$1,0),"") -> 15 | N71: =E71 -> Risk reduction strategy
C72: 2 a 2 Emergency PrepRes Resources | D72: a.2.c.c Resources | E72: Resources | F72: ='Data for global profile'!G96 -> 2.1 | G72: =VLOOKUP(G$38,'Quali 2'!$A$1:$BP$170,$M72,FALSE) -> 2.071428571 | H72: =IF(VLOOKUP(H$38,'Quali 2'!$A$1:$BP$170,$M72,FALSE)=999,NA(),ROUND(VLOOKUP(H$38,'Quali 2'!$A$1:$BP$170,$M72,FALSE),1)) -> 2 | I72: 4 | J72: =H72 -> 2 | K72: =M72 -> 16 | L72: =VLOOKUP("Country",'Quali 2'!$A$1:$BP$170,$M72,FALSE) -> 2 a 2 Emergency PrepRes Resources | M72: =IFERROR(MATCH(C72,'Quali 2'!$A$1:$BO$1,0),"") -> 16 | N72: =E72 -> Resources
M73: =IFERROR(MATCH(C73,'Quali 2'!$A$1:$BO$1,0),"") -> 
A74: 2.a.2.d EMIS providing disaggregated data | C74: 2 a 2 EMIS Quality Timeliness | D74: a.2.d.a Quality & timeliness | E74: Quality & timeliness | F74: ='Data for global profile'!G98 -> 2.3 | G74: =VLOOKUP(G$38,'Quali 2'!$A$1:$BP$170,$M74,FALSE) -> 2.428571429 | H74: =IF(VLOOKUP(H$38,'Quali 2'!$A$1:$BP$170,$M74,FALSE)=999,NA(),ROUND(VLOOKUP(H$38,'Quali 2'!$A$1:$BP$170,$M74,FALSE),1)) ->  | I74: 4 | J74: =H74 ->  | K74: =M74 -> 17 | L74: =VLOOKUP("Country",'Quali 2'!$A$1:$BP$170,$M74,FALSE) -> 2 a 2 EMIS Quality Timeliness | M74: =IFERROR(MATCH(C74,'Quali 2'!$A$1:$BO$1,0),"") -> 17 | N74: =E74 -> Quality & timeliness
C75: 2 a 2 EMIS Disaggregation | D75: a.2.d.b Disaggregation | E75: Disaggregation | F75: ='Data for global profile'!G99 -> 2.5 | G75: =VLOOKUP(G$38,'Quali 2'!$A$1:$BP$170,$M75,FALSE) -> 2.866666667 | H75: =IF(VLOOKUP(H$38,'Quali 2'!$A$1:$BP$170,$M75,FALSE)=999,NA(),ROUND(VLOOKUP(H$38,'Quali 2'!$A$1:$BP$170,$M75,FALSE),1)) ->  | I75: 4 | K75: 18 | L75: =VLOOKUP("Country",'Quali 2'!$A$1:$BP$170,$M75,FALSE) -> 2 a 2 EMIS Disaggregation | M75: =IFERROR(MATCH(C75,'Quali 2'!$A$1:$BO$1,0),"") -> 18 | N75: =E75 -> Disaggregation
C76: 2 a 2 EMIS Attendance DropOut | D76: a.2.d.c Attendance / Dropout | E76: Attendance / Dropout | F76: ='Data for global profile'!G100 -> 2.1 | G76: =VLOOKUP(G$38,'Quali 2'!$A$1:$BP$170,$M76,FALSE) -> 2.533333333 | H76: =IF(VLOOKUP(H$38,'Quali 2'!$A$1:$BP$170,$M76,FALSE)=999,NA(),ROUND(VLOOKUP(H$38,'Quali 2'!$A$1:$BP$170,$M76,FALSE),1)) -> 2 | I76: 4 | J76: 2 | K76: 19 | L76: =VLOOKUP("Country",'Quali 2'!$A$1:$BP$170,$M76,FALSE) -> 2 a 2 EMIS Attendance DropOut | M76: =IFERROR(MATCH(C76,'Quali 2'!$A$1:$BO$1,0),"") -> 19 | N76: Attendance / Dropout
M77: =IFERROR(MATCH(C77,'Quali 2'!$A$1:$BO$1,0),"") -> 
A78: 2.b.2.a. Gender-responsive teaching and learning | C78: 2 b 4 Gender-responsive teaching and learning | D78: b.2.b.a Gender-responsive teaching and learning | E78: =RIGHT(D78,LEN(D78)-8) -> Gender-responsive teaching and learning | F78: ='Data for global profile'!G101 -> 2.1 | G78: =VLOOKUP(G$38,'Quali 2'!$A$1:$BP$170,$M78,FALSE) -> 2.25 | H78: =IF(VLOOKUP(H$38,'Quali 2'!$A$1:$BP$170,$M78,FALSE)=999,NA(),ROUND(VLOOKUP(H$38,'Quali 2'!$A$1:$BP$170,$M78,FALSE),1)) ->  | I78: 4 | K78: 20 | L78: =VLOOKUP("Country",'Quali 2'!$A$1:$BP$170,$M78,FALSE) -> 2 b 4 Gender-responsive teaching and learning | M78: =IFERROR(MATCH(C78,'Quali 2'!$A$1:$BO$1,0),"") -> 20 | N78: =E78 -> Gender-responsive teaching and learning
M79: =IFERROR(MATCH(C79,'Quali 2'!$A$1:$BO$1,0),"") -> 
A80: 2.b.2.b early learning | C80: 2 b 3 Early Learning Policy | D80: b.2.b.a Policy, leadership & budget | E80: Policy, leadership & budget | F80: ='Data for global profile'!G102 -> 2.5 | G80: =VLOOKUP(G$38,'Quali 2'!$A$1:$BP$170,$M80,FALSE) -> 2.375 | H80: =IF(VLOOKUP(H$38,'Quali 2'!$A$1:$BP$170,$M80,FALSE)=999,NA(),ROUND(VLOOKUP(H$38,'Quali 2'!$A$1:$BP$170,$M80,FALSE),1)) -> 3 | I80: 4 | J80: 3 | K80: 21 | L80: =VLOOKUP("Country",'Quali 2'!$A$1:$BP$170,$M80,FALSE) -> 2 b 3 Early Learning Policy | M80: =IFERROR(MATCH(C80,'Quali 2'!$A$1:$BO$1,0),"") -> 21 | N80: Policy, leadership & budget
C81: 2 b 3 Early Learning Governance | D81: b.2.b.b Governance | E81: Governance | F81: ='Data for global profile'!G103 -> 2.2 | G81: =VLOOKUP(G$38,'Quali 2'!$A$1:$BP$170,$M81,FALSE) -> 2.3 | H81: =IF(VLOOKUP(H$38,'Quali 2'!$A$1:$BP$170,$M81,FALSE)=999,NA(),ROUND(VLOOKUP(H$38,'Quali 2'!$A$1:$BP$170,$M81,FALSE),1)) -> 3 | I81: 4 | J81: 3 | K81: 22 | L81: =VLOOKUP("Country",'Quali 2'!$A$1:$BP$170,$M81,FALSE) -> 2 b 3 Early Learning Governance | M81: =IFERROR(MATCH(C81,'Quali 2'!$A$1:$BO$1,0),"") -> 22 | N81: Governance
C82: 2 b 3 Early Learning Environment | D82: b.2.b.c Teaching and learning environment | E82: Teaching and learning environment | F82: ='Data for global profile'!G104 -> 2.3 | G82: =VLOOKUP(G$38,'Quali 2'!$A$1:$BP$170,$M82,FALSE) -> 2.235294118 | H82: =IF(VLOOKUP(H$38,'Quali 2'!$A$1:$BP$170,$M82,FALSE)=999,NA(),ROUND(VLOOKUP(H$38,'Quali 2'!$A$1:$BP$170,$M82,FALSE),1)) -> 2.5 | I82: 4 | J82: 2.5 | K82: 23 | L82: =VLOOKUP("Country",'Quali 2'!$A$1:$BP$170,$M82,FALSE) -> 2 b 3 Early Learning Environment | M82: =IFERROR(MATCH(C82,'Quali 2'!$A$1:$BO$1,0),"") -> 23 | N82: Teaching and learning environment
M83: =IFERROR(MATCH(C83,'Quali 2'!$A$1:$BO$1,0),"") -> 
A84: 2.b.2.c Learning assessment systems | C84: 2 b 3 Learning Assessments Classroom | D84: b.2.c.a Classroom assessment | E84: =RIGHT(D84,LEN(D84)-8) -> Classroom assessment | F84: ='Data for global profile'!G106 -> 2.3 | G84: =VLOOKUP(G$38,'Quali 2'!$A$1:$BP$170,$M84,FALSE) -> 2.5 | H84: =IF(VLOOKUP(H$38,'Quali 2'!$A$1:$BP$170,$M84,FALSE)=999,NA(),ROUND(VLOOKUP(H$38,'Quali 2'!$A$1:$BP$170,$M84,FALSE),1)) -> 2 | I84: 4 | J84: =H84 -> 2 | K84: =M84 -> 24 | L84: =VLOOKUP("Country",'Quali 2'!$A$1:$BP$170,$M84,FALSE) -> 2 b 3 Learning Assessments Classroom | M84: =IFERROR(MATCH(C84,'Quali 2'!$A$1:$BO$1,0),"") -> 24 | N84: =E84 -> Classroom assessment
C85: 2 b 3 Learning Assessments Exams | D85: b.2.c.b Examinations | E85: =RIGHT(D85,LEN(D85)-8) -> Examinations | F85: ='Data for global profile'!G107 -> 2.5 | G85: =VLOOKUP(G$38,'Quali 2'!$A$1:$BP$170,$M85,FALSE) -> 2.666666667 | H85: =IF(VLOOKUP(H$38,'Quali 2'!$A$1:$BP$170,$M85,FALSE)=999,NA(),ROUND(VLOOKUP(H$38,'Quali 2'!$A$1:$BP$170,$M85,FALSE),1)) -> 2.5 | I85: 4 | J85: =H85 -> 2.5 | K85: =M85 -> 25 | L85: =VLOOKUP("Country",'Quali 2'!$A$1:$BP$170,$M85,FALSE) -> 2 b 3 Learning Assessments Exams | M85: =IFERROR(MATCH(C85,'Quali 2'!$A$1:$BO$1,0),"") -> 25 | N85: =E85 -> Examinations
C86: 2 b 3 Learning Assessments NLSA | D86: b.2.c.c National large-scale assessment | E86: =RIGHT(D86,LEN(D86)-8) -> National large-scale assessment | F86: ='Data for global profile'!G108 -> 2.3 | G86: =VLOOKUP(G$38,'Quali 2'!$A$1:$BP$170,$M86,FALSE) -> 2.708333333 | H86: =IF(VLOOKUP(H$38,'Quali 2'!$A$1:$BP$170,$M86,FALSE)=999,NA(),ROUND(VLOOKUP(H$38,'Quali 2'!$A$1:$BP$170,$M86,FALSE),1)) -> 2.5 | I86: 4 | J86: =H86 -> 2.5 | K86: =M86 -> 26 | L86: =VLOOKUP("Country",'Quali 2'!$A$1:$BP$170,$M86,FALSE) -> 2 b 3 Learning Assessments NLSA | M86: =IFERROR(MATCH(C86,'Quali 2'!$A$1:$BO$1,0),"") -> 26 | N86: =E86 -> National large-scale assessment
M87: =IFERROR(MATCH(C87,'Quali 2'!$A$1:$BO$1,0),"") -> 
A88: 2.b.2.d Mother tongue/multilingual education | C88: 2 b 3 Mother Tongue Multi Policy | D88: b.2.d.a Policy environment | E88: =RIGHT(D88,LEN(D88)-8) -> Policy environment | F88: ='Data for global profile'!G110 -> 2.6 | G88: =VLOOKUP(G$38,'Quali 2'!$A$1:$BP$170,$M88,FALSE) -> 2.833333333 | H88: =IF(VLOOKUP(H$38,'Quali 2'!$A$1:$BP$170,$M88,FALSE)=999,NA(),ROUND(VLOOKUP(H$38,'Quali 2'!$A$1:$BP$170,$M88,FALSE),1)) ->  | I88: 4 | J88: =H88 ->  | K88: =M88 -> 27 | L88: =VLOOKUP("Country",'Quali 2'!$A$1:$BP$170,$M88,FALSE) -> 2 b 3 Mother Tongue Multi Policy | M88: =IFERROR(MATCH(C88,'Quali 2'!$A$1:$BO$1,0),"") -> 27 | N88: =E88 -> Policy environment
C89: 2 b 3 Mother Tongue Multi Resources | D89: b.2.d.b Resources | E89: Resources | F89: ='Data for global profile'!G111 -> 2.2 | G89: =VLOOKUP(G$38,'Quali 2'!$A$1:$BP$170,$M89,FALSE) -> 2.65 | H89: =IF(VLOOKUP(H$38,'Quali 2'!$A$1:$BP$170,$M89,FALSE)=999,NA(),ROUND(VLOOKUP(H$38,'Quali 2'!$A$1:$BP$170,$M89,FALSE),1)) ->  | I89: 4 | J89: =H89 ->  | K89: =M89 -> 28 | L89: =VLOOKUP("Country",'Quali 2'!$A$1:$BP$170,$M89,FALSE) -> 2 b 3 Mother Tongue Multi Resources | M89: =IFERROR(MATCH(C89,'Quali 2'!$A$1:$BO$1,0),"") -> 28 | N89: =E89 -> Resources
C90: 2 b 3 Mother Tongue Multi Community | D90: b.2.d.c Community engagement | E90: Community engagement | F90: ='Data for global profile'!G112 -> 2.6 | G90: =VLOOKUP(G$38,'Quali 2'!$A$1:$BP$170,$M90,FALSE) -> 3 | H90: =IF(VLOOKUP(H$38,'Quali 2'!$A$1:$BP$170,$M90,FALSE)=999,NA(),ROUND(VLOOKUP(H$38,'Quali 2'!$A$1:$BP$170,$M90,FALSE),1)) ->  | I90: 4 | J90: =H90 ->  | K90: =M90 -> 29 | L90: =VLOOKUP("Country",'Quali 2'!$A$1:$BP$170,$M90,FALSE) -> 2 b 3 Mother Tongue Multi Community | M90: =IFERROR(MATCH(C90,'Quali 2'!$A$1:$BO$1,0),"") -> 29 | N90: =E90 -> Community engagement
M91: =IFERROR(MATCH(C91,'Quali 2'!$A$1:$BO$1,0),"") -> 
A92: 2.b.2.e Teachers | C92: 2 b 3 Teachers Prof Dev | D92: b.2.e.a Teacher professional development | E92: Teacher professional development | F92: ='Data for global profile'!G114 -> 2.2 | G92: =VLOOKUP(G$38,'Quali 2'!$A$1:$BP$170,$M92,FALSE) -> 2.323529412 | H92: =IF(VLOOKUP(H$38,'Quali 2'!$A$1:$BP$170,$M92,FALSE)=999,NA(),ROUND(VLOOKUP(H$38,'Quali 2'!$A$1:$BP$170,$M92,FALSE),1)) -> 2 | I92: 4 | J92: =H92 -> 2 | K92: =M92 -> 30 | L92: =VLOOKUP("Country",'Quali 2'!$A$1:$BP$170,$M92,FALSE) -> 2 b 3 Teachers Prof Dev | M92: =IFERROR(MATCH(C92,'Quali 2'!$A$1:$BO$1,0),"") -> 30 | N92: =E92 -> Teacher professional development
C93: 2 b 3 Teachers Leadership | D93: b.2.e.b School leadership | E93: School leadership | F93: ='Data for global profile'!G115 -> 2.2 | G93: =VLOOKUP(G$38,'Quali 2'!$A$1:$BP$170,$M93,FALSE) -> 2.392857143 | H93: =IF(VLOOKUP(H$38,'Quali 2'!$A$1:$BP$170,$M93,FALSE)=999,NA(),ROUND(VLOOKUP(H$38,'Quali 2'!$A$1:$BP$170,$M93,FALSE),1)) ->  | I93: 4 | J93: =H93 ->  | K93: =M93 -> 31 | L93: =VLOOKUP("Country",'Quali 2'!$A$1:$BP$170,$M93,FALSE) -> 2 b 3 Teachers Leadership | M93: =IFERROR(MATCH(C93,'Quali 2'!$A$1:$BO$1,0),"") -> 31 | N93: =E93 -> School leadership
C94: 2 b 3 Teachers Incentive | D94: b.2.e.c Incentives | E94: Teachers deployment | F94: ='Data for global profile'!G116 -> 1.6 | G94: =VLOOKUP(G$38,'Quali 2'!$A$1:$BP$170,$M94,FALSE) -> 1.8125 | H94: =IF(VLOOKUP(H$38,'Quali 2'!$A$1:$BP$170,$M94,FALSE)=999,NA(),ROUND(VLOOKUP(H$38,'Quali 2'!$A$1:$BP$170,$M94,FALSE),1)) ->  | I94: 4 | J94: =H94 ->  | K94: =M94 -> 32 | L94: =VLOOKUP("Country",'Quali 2'!$A$1:$BP$170,$M94,FALSE) -> 2 b 3 Teachers Incentive | M94: =IFERROR(MATCH(C94,'Quali 2'!$A$1:$BO$1,0),"") -> 32 | N94: =E94 -> Teachers deployment
C95: 2 b 3 Teachers Accountability | D95: b.2.e.d Accountability | E95: Accountability | F95: ='Data for global profile'!G117 -> 2 | G95: =VLOOKUP(G$38,'Quali 2'!$A$1:$BP$170,$M95,FALSE) -> 2.038461538 | H95: =IF(VLOOKUP(H$38,'Quali 2'!$A$1:$BP$170,$M95,FALSE)=999,NA(),ROUND(VLOOKUP(H$38,'Quali 2'!$A$1:$BP$170,$M95,FALSE),1)) -> 1 | I95: 4 | J95: =H95 -> 1 | K95: =M95 -> 33 | L95: =VLOOKUP("Country",'Quali 2'!$A$1:$BP$170,$M95,FALSE) -> 2 b 3 Teachers Accountability | M95: =IFERROR(MATCH(C95,'Quali 2'!$A$1:$BO$1,0),"") -> 33 | N95: =E95 -> Accountability
M96: =IFERROR(MATCH(C96,'Quali 2'!$A$1:$BO$1,0),"") -> 
A97: 2.b.2.f Community participation | C97: 2 b 3 Community Participation | D97: b.2.f.a Participation | E97: =RIGHT(D97,LEN(D97)-8) -> Participation | F97: ='Data for global profile'!G119 -> 2.5 | G97: =VLOOKUP(G$38,'Quali 2'!$A$1:$BP$170,$M97,FALSE) -> 2.777777778 | H97: =IF(VLOOKUP(H$38,'Quali 2'!$A$1:$BP$170,$M97,FALSE)=999,NA(),ROUND(VLOOKUP(H$38,'Quali 2'!$A$1:$BP$170,$M97,FALSE),1)) -> 1.5 | I97: 4 | J97: =H97 -> 1.5 | K97: =M97 -> 34 | L97: =VLOOKUP("Country",'Quali 2'!$A$1:$BP$170,$M97,FALSE) -> 2 b 3 Community Participation | M97: =IFERROR(MATCH(C97,'Quali 2'!$A$1:$BO$1,0),"") -> 34 | N97: =E97 -> Participation
C98: 2 b 3 Community Accountability | D98: b.2.f.b Accountability | E98: =RIGHT(D98,LEN(D98)-8) -> Accountability | F98: ='Data for global profile'!G120 -> 2.4 | G98: =VLOOKUP(G$38,'Quali 2'!$A$1:$BP$170,$M98,FALSE) -> 2.65625 | H98: =IF(VLOOKUP(H$38,'Quali 2'!$A$1:$BP$170,$M98,FALSE)=999,NA(),ROUND(VLOOKUP(H$38,'Quali 2'!$A$1:$BP$170,$M98,FALSE),1)) -> 1.5 | I98: 4 | J98: =H98 -> 1.5 | K98: =M98 -> 35 | L98: =VLOOKUP("Country",'Quali 2'!$A$1:$BP$170,$M98,FALSE) -> 2 b 3 Community Accountability | M98: =IFERROR(MATCH(C98,'Quali 2'!$A$1:$BO$1,0),"") -> 35 | N98: =E98 -> Accountability
C99: 2 b 3 Community Monitoring | D99: b.2.f.c Monitoring | E99: =RIGHT(D99,LEN(D99)-8) -> Monitoring | F99: ='Data for global profile'!G121 -> 2.3 | G99: =VLOOKUP(G$38,'Quali 2'!$A$1:$BP$170,$M99,FALSE) -> 2.65625 | H99: =IF(VLOOKUP(H$38,'Quali 2'!$A$1:$BP$170,$M99,FALSE)=999,NA(),ROUND(VLOOKUP(H$38,'Quali 2'!$A$1:$BP$170,$M99,FALSE),1)) -> 1 | I99: 4 | J99: =H99 -> 1 | K99: =M99 -> 36 | L99: =VLOOKUP("Country",'Quali 2'!$A$1:$BP$170,$M99,FALSE) -> 2 b 3 Community Monitoring | M99: =IFERROR(MATCH(C99,'Quali 2'!$A$1:$BO$1,0),"") -> 36 | N99: =E99 -> Monitoring
M100: =IFERROR(MATCH(C100,'Quali 2'!$A$1:$BO$1,0),"") -> 
A101: 2.c.2.a mainstreaming of skills development within the national system | C101: 2 c 2 Mainstreaming Policies Plans | D101: c.2.a.a Policies and plans | E101: =RIGHT(D101,LEN(D101)-8) -> Policies and plans | F101: ='Data for global profile'!G123 -> 2.1 | G101: =VLOOKUP(G$38,'Quali 2'!$A$1:$BP$170,$M101,FALSE) -> 2.35 | H101: =IF(VLOOKUP(H$38,'Quali 2'!$A$1:$BP$170,$M101,FALSE)=999,NA(),ROUND(VLOOKUP(H$38,'Quali 2'!$A$1:$BP$170,$M101,FALSE),1)) ->  | I101: 4 | J101: =H101 ->  | K101: =M101 -> 37 | L101: =VLOOKUP("Country",'Quali 2'!$A$1:$BP$170,$M101,FALSE) -> 2 c 2 Mainstreaming Policies Plans | M101: =IFERROR(MATCH(C101,'Quali 2'!$A$1:$BO$1,0),"") -> 37 | N101: =E101 -> Policies and plans
C102: 2 c 2 Mainstreaming Curricula Training | D102: c.2.a.b Curricula and training | E102: =RIGHT(D102,LEN(D102)-8) -> Curricula and training | F102: ='Data for global profile'!G124 -> 2 | G102: =VLOOKUP(G$38,'Quali 2'!$A$1:$BP$170,$M102,FALSE) -> 2 | H102: =IF(VLOOKUP(H$38,'Quali 2'!$A$1:$BP$170,$M102,FALSE)=999,NA(),ROUND(VLOOKUP(H$38,'Quali 2'!$A$1:$BP$170,$M102,FALSE),1)) ->  | I102: 4 | J102: =H102 ->  | K102: =M102 -> 38 | L102: =VLOOKUP("Country",'Quali 2'!$A$1:$BP$170,$M102,FALSE) -> 2 c 2 Mainstreaming Curricula Training | M102: =IFERROR(MATCH(C102,'Quali 2'!$A$1:$BO$1,0),"") -> 38 | N102: =E102 -> Curricula and training
C103: 2 c 2 Mainstreaming Community Eng | D103: c.2.a.c Community engagement | E103: =RIGHT(D103,LEN(D103)-8) -> Community engagement | F103: ='Data for global profile'!G125 -> 1.8 | G103: =VLOOKUP(G$38,'Quali 2'!$A$1:$BP$170,$M103,FALSE) -> 1.583333333 | H103: =IF(VLOOKUP(H$38,'Quali 2'!$A$1:$BP$170,$M103,FALSE)=999,NA(),ROUND(VLOOKUP(H$38,'Quali 2'!$A$1:$BP$170,$M103,FALSE),1)) ->  | I103: 4 | J103: =H103 ->  | K103: =M103 -> 39 | L103: =VLOOKUP("Country",'Quali 2'!$A$1:$BP$170,$M103,FALSE) -> 2 c 2 Mainstreaming Community Eng | M103: =IFERROR(MATCH(C103,'Quali 2'!$A$1:$BO$1,0),"") -> 39 | N103: =E103 -> Community engagement
M104: =IFERROR(MATCH(C104,'Quali 2'!$A$1:$BO$1,0),"") -> 
A105: 2.c.2.b Responsiveness to the demands of the labour market | C105: 2 c 2 Labour Market | D105: c.2.b.a Responsiveness to demand | E105: =RIGHT(D105,LEN(D105)-8) -> Responsiveness to demand | F105: ='Data for global profile'!G127 -> 1.7 | G105: =VLOOKUP(G$38,'Quali 2'!$A$1:$EK$170,$M105,FALSE) -> 1.5 | H105: =IF(VLOOKUP(H$38,'Quali 2'!$A$1:$BP$170,$M105,FALSE)=999,NA(),ROUND(VLOOKUP(H$38,'Quali 2'!$A$1:$BP$170,$M105,FALSE),1)) ->  | I105: 4 | J105: =H105 ->  | K105: =M105 -> 40 | L105: =VLOOKUP("Country",'Quali 2'!$A$1:$EK$170,$M105,FALSE) -> 2 c 2 Labour Market | M105: =IFERROR(MATCH(C105,'Quali 2'!$A$1:$BO$1,0),"") -> 40 | N105: =E105 -> Responsiveness to demand
A106: 2.c.2.c Responsiveness to the demands of the labour market | C106: 2 c 2 Gender | D106: c.2.b.c Gender equity in opportunities for skills development | E106: Gender equity | F106: ='Data for global profile'!G128 -> 2 | G106: =VLOOKUP(G$38,'Quali 2'!$A$1:$EK$170,$M106,FALSE) -> 2.416666667 | H106: =IF(VLOOKUP(H$38,'Quali 2'!$A$1:$BP$170,$M106,FALSE)=999,NA(),ROUND(VLOOKUP(H$38,'Quali 2'!$A$1:$BP$170,$M106,FALSE),1)) ->  | I106: 4 | J106: =H106 ->  | K106: 70 | L106: =VLOOKUP("Country",'Quali 2'!$A$1:$EK$170,$M106,FALSE) -> 2 c 2 Gender | M106: =IFERROR(MATCH(C106,'Quali 2'!$A$1:$BO$1,0),"") -> 41 | N106: =E106 -> Gender equity
M107: =IFERROR(MATCH(C107,'Quali 2'!$A$1:$BO$1,0),"") -> 
C108: 2.a1 Children enrolled in formal or non-formal education | D108: Total | E108: 2.a1 Children enrolled in formal or non-formal education | F108: =VLOOKUP(F$38,'Quali 2'!$A$1:$BP$170,$M108,FALSE) -> 11968424 | G108: =VLOOKUP(G$38,'Quali 2'!$A$1:$BP$170,$M108,FALSE) -> 4076026 | H108: =IF(VLOOKUP(H$38,'Quali 2'!$A$1:$BP$170,$M108,FALSE)="Not Applicable",NA(),VLOOKUP(H$38,'Quali 2'!$A$1:$BP$170,$M108,FALSE)) -> 4471 | J108: =H108 -> 4471 | K108: =M108 -> 42 | L108: =VLOOKUP("Country",'Quali 2'!$A$1:$BP$170,$M108,FALSE) -> 2.a1 Children enrolled in formal or non-formal education | M108: =IFERROR(MATCH(E108,'Quali 2'!$A$1:$BO$1,0),"") -> 42 | N108: 41
D109: Girls | E109: 2.a1a Girls enrolled in formal or non-formal education | F109: =VLOOKUP(F$38,'Quali 2'!$A$1:$BP$170,$M109,FALSE) -> 4968296 | G109: =VLOOKUP(G$38,'Quali 2'!$A$1:$BP$170,$M109,FALSE) -> 1847220 | H109: =IF(VLOOKUP(H$38,'Quali 2'!$A$1:$BP$170,$M109,FALSE)="Not Applicable",NA(),VLOOKUP(H$38,'Quali 2'!$A$1:$BP$170,$M109,FALSE)) -> 2061 | J109: =H109/H108 -> 0.4609707001 | K109: 43 | L109: =VLOOKUP("Country",'Quali 2'!$A$1:$BP$170,$M109,FALSE) -> 2.a1a Girls enrolled in formal or non-formal education | M109: =IFERROR(MATCH(E109,'Quali 2'!$A$1:$BO$1,0),"") -> 43 | N109: 42
B110: Pre-primary | C110: =H110/$C$114 -> 0 | D110: Pre-primary | E110: 2.a1b Children enrolled in formal or non-formal early learning/pre-primary education | F110: =VLOOKUP(F$38,'Quali 2'!$A$1:$BP$170,$M110,FALSE) -> 1094578 | G110: =VLOOKUP(G$38,'Quali 2'!$A$1:$BP$170,$M110,FALSE) -> 577553 | H110: =IF(VLOOKUP(H$38,'Quali 2'!$A$1:$BP$170,$M110,FALSE)="Not Applicable",NA(),VLOOKUP(H$38,'Quali 2'!$A$1:$BP$170,$M110,FALSE)) -> 0 | J110: =H110 -> 0 | K110: 45 | L110: =VLOOKUP("Country",'Quali 2'!$A$1:$BP$170,$M110,FALSE) -> 2.a1b Children enrolled in formal or non-formal early learning/pre-primary education | M110: =IFERROR(MATCH(E110,'Quali 2'!$A$1:$BO$1,0),"") -> 45 | N110: 43
B111: Primary | C111: =H111/$C$114 -> 1 | D111: Primary | E111: 2.a1c Children enrolled in formal or non-formal primary education | F111: =VLOOKUP(F$38,'Quali 2'!$A$1:$BP$170,$M111,FALSE) -> 6443982 | G111: =VLOOKUP(G$38,'Quali 2'!$A$1:$BP$170,$M111,FALSE) -> 2248470 | H111: =IF(VLOOKUP(H$38,'Quali 2'!$A$1:$BP$170,$M111,FALSE)="Not Applicable",NA(),VLOOKUP(H$38,'Quali 2'!$A$1:$BP$170,$M111,FALSE)) -> 4471 | J111: 4471 | K111: 46 | L111: =VLOOKUP("Country",'Quali 2'!$A$1:$BP$170,$M111,FALSE) -> 2.a1c Children enrolled in formal or non-formal primary education | M111: =IFERROR(MATCH(E111,'Quali 2'!$A$1:$BO$1,0),"") -> 46 | N111: 44
B112: Low. Sec. | C112: 0 | D112: Low. Sec. | E112: 2.a1d Children enrolled in formal or non-formal lower secondary education | F112: =VLOOKUP(F$38,'Quali 2'!$A$1:$BP$170,$M112,FALSE) -> 764392 | G112: =VLOOKUP(G$38,'Quali 2'!$A$1:$BP$170,$M112,FALSE) -> 449753 | H112: =IF(VLOOKUP(H$38,'Quali 2'!$A$1:$BP$170,$M112,FALSE)="Not Applicable",NA(),VLOOKUP(H$38,'Quali 2'!$A$1:$BP$170,$M112,FALSE)) -> 0 | J112: 0 | K112: 47 | L112: =VLOOKUP("Country",'Quali 2'!$A$1:$BP$170,$M112,FALSE) -> 2.a1d Children enrolled in formal or non-formal lower secondary education | M112: =IFERROR(MATCH(E112,'Quali 2'!$A$1:$BO$1,0),"") -> 47 | N112: 45
B113: Up. Sec. | C113: 0 | D113: Up. Sec. | E113: 2.a1e Children enrolled in formal or non-formal upper secondary education | F113: =VLOOKUP(F$38,'Quali 2'!$A$1:$BP$170,$M113,FALSE) -> 342088 | G113: =VLOOKUP(G$38,'Quali 2'!$A$1:$BP$170,$M113,FALSE) -> 240800 | H113: =IF(VLOOKUP(H$38,'Quali 2'!$A$1:$BP$170,$M113,FALSE)="Not Applicable",NA(),VLOOKUP(H$38,'Quali 2'!$A$1:$BP$170,$M113,FALSE)) -> 0 | J113: 0 | K113: 48 | L113: =VLOOKUP("Country",'Quali 2'!$A$1:$BP$170,$M113,FALSE) -> 2.a1e Children enrolled in formal or non-formal upper secondary education | M113: =IFERROR(MATCH(E113,'Quali 2'!$A$1:$BO$1,0),"") -> 48 | N113: 46
B114: Total | C114: =H108 -> 4471 | E114: 2.a.4 Children targeted by UNICEF as share of children targeted by all partners | F114: ='Data for global profile'!F301 -> 54 | G114: =VLOOKUP(G$38,'Quali 2'!$A$1:$DZ$170,$M114,FALSE)*100 -> 35.44225994 | H114: =IF(VLOOKUP(H$38,'Quali 2'!$A$1:$DZ$170,$M114,FALSE)="Not applicable",NA(),VLOOKUP(H$38,'Quali 2'!$A$1:$DZ$170,$M114,FALSE))*100 ->  | J114: =+H114 ->  | K114: 130 | L114: =VLOOKUP("Country",'Quali 2'!$A$1:$EK$170,$M114,FALSE) -> 2.a.4 Children targeted by UNICEF as share of children targeted by all partners | M114: =IFERROR(MATCH(E114,'Quali 2'!$A$1:$DZ$1,0),"") -> 130
C115: =COUNT(H115) -> 1 | D115: Boys | E115: 2.a1a Boys enrolled in formal or non-formal education | F115: =VLOOKUP(F$38,'Quali 2'!$A$1:$BP$170,$M115,FALSE) -> 5277243 | H115: =H108-H109 -> 2410 | J115: =H115/H108 -> 0.5390292999 | M115: =IFERROR(MATCH(E115,'Quali 2'!$A$1:$BO$1,0),"") -> 44
C117: =COUNT(H110:H113) -> 4 | D117: 2.b.1 children provided with individual education/early learning materials | E117: 2.b.1 children provided with individual education/early learning materials | F117: =VLOOKUP(F$38,'Quali 2'!$A$1:$BP$170,$M117,FALSE) -> 11289748 | G117: =VLOOKUP(G$38,'Quali 2'!$A$1:$BP$170,$M117,FALSE) -> 2964990 | H117: =IF(VLOOKUP(H$38,'Quali 2'!$A$1:$DZ$170,$M117,FALSE)="Not applicable",NA(),VLOOKUP(H$38,'Quali 2'!$A$1:$DZ$170,$M117,FALSE)) -> 120629 | J117: 120629 | K117: 49 | L117: =VLOOKUP("Country",'Quali 2'!$A$1:$BP$170,$M117,FALSE) -> 2.b.1 children provided with individual education/early learning materials | M117: =IFERROR(MATCH(D117,'Quali 2'!$A$1:$BO$1,0),"") -> 49 | N117: 48
D118: 2.b.2 school management committees trained | E118: 2.b.2 school management committees trained | F118: =VLOOKUP(F$38,'Quali 2'!$A$1:$BP$170,$M118,FALSE) -> 55639 | G118: =VLOOKUP(G$38,'Quali 2'!$A$1:$BP$170,$M118,FALSE) -> 16188 | H118: =IF(VLOOKUP(H$38,'Quali 2'!$A$1:$DZ$170,$M118,FALSE)="Not applicable",NA(),VLOOKUP(H$38,'Quali 2'!$A$1:$DZ$170,$M118,FALSE)) -> 99 | J118: 99 | K118: 50 | L118: =VLOOKUP("Country",'Quali 2'!$A$1:$BP$170,$M118,FALSE) -> 2.b.2 school management committees trained | M118: =IFERROR(MATCH(D118,'Quali 2'!$A$1:$BO$1,0),"") -> 50 | N118: 49
C120: 2.c.1 0 to 19 years old children in skills development programmes | D120: Total | E120: 2.c.1 0 to 19 years old children in skills development programmes | F120: =VLOOKUP(F$38,'Quali 2'!$A$1:$BP$170,$M120,FALSE) -> 1999442 | G120: =VLOOKUP(G$38,'Quali 2'!$A$1:$BP$170,$M120,FALSE) -> 308615 | H120: =IF(VLOOKUP(H$38,'Quali 2'!$A$1:$DZ$170,$M120,FALSE)="Not applicable",NA(),VLOOKUP(H$38,'Quali 2'!$A$1:$DZ$170,$M120,FALSE)) ->  | K120: 51 | L120: =VLOOKUP("Country",'Quali 2'!$A$1:$BP$170,$M120,FALSE) -> 2.c.1 0 to 19 years old children in skills development programmes | M120: =IFERROR(MATCH(C120,'Quali 2'!$A$1:$DZ$1,0),"") -> 51
C121: 2.c.1 0 to 19 years old Girls in skills development programmes | D121: Girls | E121: 2.c.1 0 to 19 years old Girls in skills development programmes | F121: =VLOOKUP(F$38,'Quali 2'!$A$1:$DY$170,$M121,FALSE) -> 1009059 | G121: =VLOOKUP(G$38,'Quali 2'!$A$1:$DY$170,$M121,FALSE) -> 224136 | H121: =IF(VLOOKUP(H$38,'Quali 2'!$A$1:$DZ$170,$M121,FALSE)="Not applicable",NA(),VLOOKUP(H$38,'Quali 2'!$A$1:$DZ$170,$M121,FALSE)) ->  | J121: =H121/$H$120 ->  | K121: 125 | L121: =VLOOKUP("Country",'Quali 2'!$A$1:$EK$170,$M121,FALSE) -> 2.c.1 0 to 19 years old Girls in skills development programmes | M121: =IFERROR(MATCH(C121,'Quali 2'!$A$1:$DZ$1,0),"") -> 125
C122: 2.c.1 0- 9 years old children in skills development programmes | D122: 0-9 years | E122: 2.c.1 0 to 9 years old children in skills development programmes | F122: =VLOOKUP(F$38,'Quali 2'!$A$1:$DY$170,$M122,FALSE) -> 108544 | G122: =VLOOKUP(G$38,'Quali 2'!$A$1:$DY$170,$M122,FALSE) -> 0 | H122: =IF(VLOOKUP(H$38,'Quali 2'!$A$1:$DZ$170,$M122,FALSE)="Not applicable",NA(),VLOOKUP(H$38,'Quali 2'!$A$1:$DZ$170,$M122,FALSE)) ->  | J122: =H122/$H$120 ->  | K122: 127 | L122: =VLOOKUP("Country",'Quali 2'!$A$1:$EK$170,$M122,FALSE) -> 2.c.1 0- 9 years old children in skills development programmes | M122: =IFERROR(MATCH(C122,'Quali 2'!$A$1:$DZ$1,0),"") -> 127
C123: 2.c.1 10-14 years old children in skills development programmes | D123: 10-14 years | E123: 2.c.1 10 to 14 years old children in skills development programmes | F123: =VLOOKUP(F$38,'Quali 2'!$A$1:$DY$170,$M123,FALSE) -> 788620 | G123: =VLOOKUP(G$38,'Quali 2'!$A$1:$DY$170,$M123,FALSE) -> 101501 | H123: =IF(VLOOKUP(H$38,'Quali 2'!$A$1:$DZ$170,$M123,FALSE)="Not applicable",NA(),VLOOKUP(H$38,'Quali 2'!$A$1:$DZ$170,$M123,FALSE)) ->  | J123: =H123/$H$120 ->  | K123: 128 | L123: =VLOOKUP("Country",'Quali 2'!$A$1:$EK$170,$M123,FALSE) -> 2.c.1 10-14 years old children in skills development programmes | M123: =IFERROR(MATCH(C123,'Quali 2'!$A$1:$DZ$1,0),"") -> 128
C124: 2.c.1 15-19 years old children in skills development programmes | D124: 15-19 years | E124: 2.c.1 15 to 19 years old children in skills development programmes | F124: =VLOOKUP(F$38,'Quali 2'!$A$1:$DY$170,$M124,FALSE) -> 258285 | G124: =VLOOKUP(G$38,'Quali 2'!$A$1:$DY$170,$M124,FALSE) -> 53011 | H124: =IF(VLOOKUP(H$38,'Quali 2'!$A$1:$DZ$170,$M124,FALSE)="Not applicable",NA(),VLOOKUP(H$38,'Quali 2'!$A$1:$DZ$170,$M124,FALSE)) ->  | J124: =H124/$H$120 ->  | L124: =VLOOKUP("Country",'Quali 2'!$A$1:$EK$170,$M124,FALSE) -> 2.c.1 15-19 years old children in skills development programmes | M124: =IFERROR(MATCH(C124,'Quali 2'!$A$1:$DZ$1,0),"") -> 129
C125: =COUNT(H125,H121) -> 0 | D125: Boys | E125: 2.c.1 0 to 19 years old Boys in skills development programmes | F125: =VLOOKUP(F$38,'Quali 2'!$A$1:$DY$170,$M125,FALSE) ->  | G125: =VLOOKUP(G$38,'Quali 2'!$A$1:$DY$170,$M125,FALSE) ->  | H125: =H120-H121 ->  | J125: =1-J121 ->  | M125: =IFERROR(MATCH(C125,'Quali 2'!$A$1:$DZ$1,0),"") -> 
D126: By Age? | H126: =COUNT(H122:H124,J126) -> 0 | I126: Unknown | J126: =IF(1-SUM(J122:J124)=0,NA(),1-SUM(J122:J124)) -> 
D128: 2.a 5. Percentage of UNICEF-targeted girls and boys in humanitarian situations who have participated in early learning, primary or secondary education through UNICEF-supported programmes | M128: =IFERROR(MATCH(E128,'Quali 2'!$A$1:$DZ$1,0),"") -> 
D129: children in humanitarian situations UNICEF plan to enroll in formal or non-formal early learning/pre-primary, primary, general lower secondary or general upper secondary education? | E129: Target | G129: =VLOOKUP(G$38,'Quali 2'!$A$1:$EJ$170,$M129,FALSE) -> 1644540 | H129: =IF(VLOOKUP(H$38,'Quali 2'!$A$1:$EJ$170,$M129,FALSE)="Not applicable",NA(),VLOOKUP(H$38,'Quali 2'!$A$1:$EJ$170,$M129,FALSE)) ->  | J129: =H129/1000 ->  | M129: =IFERROR(MATCH(D129,'Quali 2'!$A$1:$EZ$1,0),"") -> 139
D130: children in humanitarian situations enrolled in formal or non-formal education through UNICEF-supported programmes | E130: Reached | G130: =VLOOKUP(G$38,'Quali 2'!$A$1:$EJ$170,$M130,FALSE) -> 1529349 | H130: =IF(VLOOKUP(H$38,'Quali 2'!$A$1:$EJ$170,$M130,FALSE)="Not applicable",NA(),VLOOKUP(H$38,'Quali 2'!$A$1:$EJ$170,$M130,FALSE)) ->  | J130: =H130/1000 ->  | M130: =IFERROR(MATCH(D130,'Quali 2'!$A$1:$EZ$1,0),"") -> 131
E131: % Reached | F131: ='Data for global profile'!G306 -> 79 | G131: =G130/G129*100 -> 92.99554891 | H131: =MIN(H130/H129*100,100) ->  | I131: ='Data for global profile'!I306 -> 74 | M131: =IFERROR(MATCH(D131,'Quali 2'!$A$1:$EZ$1,0),"") -> 
C132: =COUNT(J132:J133) -> 0 | D132: Girls in humanitarian situations enrolled in formal or non-formal education through UNICEF-supported programmes | E132: Girls | G132: =VLOOKUP(G$38,'Quali 2'!$A$1:$EJ$170,$M132,FALSE) -> 658010 | H132: =IF(VLOOKUP(H$38,'Quali 2'!$A$1:$EJ$170,$M132,FALSE)="Not applicable",NA(),VLOOKUP(H$38,'Quali 2'!$A$1:$EJ$170,$M132,FALSE)) ->  | J132: =H132/$H$130 ->  | M132: =IFERROR(MATCH(D132,'Quali 2'!$A$1:$EZ$1,0),"") -> 132
D133: Boys in humanitarian situations enrolled in formal or non-formal education through UNICEF-supported programmes | E133: Boys | G133: =VLOOKUP(G$38,'Quali 2'!$A$1:$EJ$170,$M133,FALSE) -> 863715 | H133: =IF(VLOOKUP(H$38,'Quali 2'!$A$1:$EJ$170,$M133,FALSE)="Not applicable",NA(),VLOOKUP(H$38,'Quali 2'!$A$1:$EJ$170,$M133,FALSE)) ->  | M133: =IFERROR(MATCH(D133,'Quali 2'!$A$1:$EZ$1,0),"") -> 133
D134: children in humanitarian situations enrolled in formal or non-formal education preprimary through UNICEF-supported programmes | E134: Pre-primary | G134: =VLOOKUP(G$38,'Quali 2'!$A$1:$EJ$170,$M134,FALSE) -> 94797 | H134: =IF(VLOOKUP(H$38,'Quali 2'!$A$1:$EJ$170,$M134,FALSE)="Not applicable",NA(),VLOOKUP(H$38,'Quali 2'!$A$1:$EJ$170,$M134,FALSE)) ->  | M134: =IFERROR(MATCH(D134,'Quali 2'!$A$1:$EZ$1,0),"") -> 134
D135: children in humanitarian situations enrolled in formal or non-formal education primary through UNICEF-supported programmes | E135: Primary | G135: =VLOOKUP(G$38,'Quali 2'!$A$1:$EJ$170,$M135,FALSE) -> 647507 | H135: =IF(VLOOKUP(H$38,'Quali 2'!$A$1:$EJ$170,$M135,FALSE)="Not applicable",NA(),VLOOKUP(H$38,'Quali 2'!$A$1:$EJ$170,$M135,FALSE)) ->  | M135: =IFERROR(MATCH(D135,'Quali 2'!$A$1:$EZ$1,0),"") -> 135
D136: children in humanitarian situations enrolled in formal or non-formal education general lower secondary through UNICEF-supported programmes | E136: Low. Sec. | G136: =VLOOKUP(G$38,'Quali 2'!$A$1:$EJ$170,$M136,FALSE) -> 24973 | H136: =IF(VLOOKUP(H$38,'Quali 2'!$A$1:$EJ$170,$M136,FALSE)="Not applicable",NA(),VLOOKUP(H$38,'Quali 2'!$A$1:$EJ$170,$M136,FALSE)) ->  | M136: =IFERROR(MATCH(D136,'Quali 2'!$A$1:$EZ$1,0),"") -> 136
C137: =COUNT(J133:J138) -> 0 | D137: children in humanitarian situations enrolled in formal or non-formal education general upper secondary through UNICEF-supported programmes | E137: Up. Sec. | G137: =VLOOKUP(G$38,'Quali 2'!$A$1:$EJ$170,$M137,FALSE) -> 7565 | H137: =IF(VLOOKUP(H$38,'Quali 2'!$A$1:$EJ$170,$M137,FALSE)="Not applicable",NA(),VLOOKUP(H$38,'Quali 2'!$A$1:$EJ$170,$M137,FALSE)) ->  | M137: =IFERROR(MATCH(D137,'Quali 2'!$A$1:$EZ$1,0),"") -> 137
E138: Unknown | H138: =E2 -> Comoros | J138: =1-SUM(J134:J137) ->  | M138: =IFERROR(MATCH(D138,'Quali 2'!$A$1:$EZ$1,0),"") -> 
H139: Duration | I139: Compulsory
D140: A/ Context | E140: Data Year | H140: =IF(VLOOKUP($H$2,Master!$A$3:$EK$160,$M140,FALSE)="NA",NA(),VLOOKUP($H$2,Master!$A$3:$EK$160,$M140,FALSE)) -> 2016 | M140: 136
C141: =COUNT(H141:H145) -> 4 | D141: Classification of Education system | E141: Pre primary | H141: =IF(VLOOKUP($H$2,Master!$A$3:$EK$160,$M141,FALSE)="NA",NA(),VLOOKUP($H$2,Master!$A$3:$EK$160,$M141,FALSE)) -> 3 | I141: =IF(VLOOKUP($H$2,Master!$A$3:$FF$160,$N141,FALSE)="NA",NA(),VLOOKUP($H$2,Master!$A$3:$FF$160,$N141,FALSE)) ->  | J141: =E141 -> Pre primary | K141: =I141 ->  | L141: 15. Has the country office/staff authored any paper in peer-reviewed journal on Education issues? (If yes, list the paper and journal in the remarks) | M141: 137 | N141: 159
E142: Primary | H142: =IF(VLOOKUP($H$2,Master!$A$3:$EK$160,$M142,FALSE)="NA",NA(),VLOOKUP($H$2,Master!$A$3:$EK$160,$M142,FALSE)) -> 6 | I142: =IF(VLOOKUP($H$2,Master!$A$3:$FF$160,$N142,FALSE)="NA",NA(),VLOOKUP($H$2,Master!$A$3:$FF$160,$N142,FALSE)) -> 6 | J142: =E142 -> Primary | K142: =I142 -> 6 | L142: 16. What is girls’ secondary school enrolment rate? Please indicate the year for which the data is available in the remarks column. | M142: 138 | N142: 160
E143: Lower secondary | H143: =IF(VLOOKUP($H$2,Master!$A$3:$EK$160,$M143,FALSE)="NA",NA(),VLOOKUP($H$2,Master!$A$3:$EK$160,$M143,FALSE)) -> 4 | I143: =IF(VLOOKUP($H$2,Master!$A$3:$FF$160,$N143,FALSE)="NA",NA(),VLOOKUP($H$2,Master!$A$3:$FF$160,$N143,FALSE)) ->  | J143: =E143 -> Lower secondary | K143: =I143 ->  | L143: 16.a Is girls’ secondary schooling specifically mentioned as a priority in the national strategy/plan on education? | M143: 139 | N143: 161
E144: Upper secondary | H144: =IF(VLOOKUP($H$2,Master!$A$3:$EK$160,$M144,FALSE)="NA",NA(),VLOOKUP($H$2,Master!$A$3:$EK$160,$M144,FALSE)) -> 3 | J144: =E144 -> Upper secondary | L144: 16.b Does the national strategy mention specific targets for at least one of the following: increasing girls’ secondary school enrolment, retention, or completion? | M144: 140
C145: =COUNT(I141:I143) -> 1 | E145: Compulsory education | I145: =IF(VLOOKUP(E2,Master!$A$3:$EK$160,$M145,FALSE)="NA",NA(),VLOOKUP(E2,Master!$A$3:$EK$160,$M145,FALSE)) -> 6 | L145: 16.c Does the national strategy specify a budget line for improving girls’ secondary schooling? | M145: 141
G146: =IF(VLOOKUP($H$2,Master!A$3:EB$160,132,FALSE)="NA","",VLOOKUP($H$2,Master!A$3:EB$160,132,FALSE)) -> 2017 | H146: =IFERROR($H$2&", "&VLOOKUP($H$2,Master!A$3:EB$160,132),$H$2) -> Comoros, 2017 | I146: Income group | L146: =IF(ISERROR(I141),H141,H141-I141) -> 3 | N146: 131
D147: 1. GDP | E147: GDP per capita | F147: =Master!$AQ$179 -> 11302.665 | G147: =VLOOKUP($G$38,Master!$A$172:$BM$178,$M147,FALSE) -> 3972.246466 | H147: =IF(VLOOKUP($H$2,Master!$A$3:$BM$160,$M147,FALSE)="NA",NA(),VLOOKUP($H$2,Master!$A$3:$BM$160,$M147,FALSE)) -> 1413.890036 | I147: =IF(VLOOKUP($H$138,Master!$A$3:$EB$160,$N146,FALSE)="ND",NA(),VLOOKUP($H$138,Master!$A$3:$EB$160,$N146,FALSE)) -> Low income | J147: =VLOOKUP(I147,Master!A$241:AQ$248,M147,FALSE) -> 1829.84474 | L147: =I141 ->  | M147: 43
D148: 2. Population and enrolment by level of education | L148: =I142 -> 6
D149: Pre-primary | E149: 2017 Pop | F149: =Master!$AS$179 -> 311532400 | G149: =VLOOKUP($G$38,Master!$A$172:$BM$178,$M149,FALSE) -> 41627994 | H149: =IF(VLOOKUP($H$2,Master!$A$3:$BM$160,$M149,FALSE)="NA",NA(),VLOOKUP($H$2,Master!$A$3:$BM$160,$M149,FALSE)) -> 69585 | J149: =H149 -> 69585 | L149: =IF($I$143>$H$143,$H$143,I143) ->  | M149: 45 | N149: Level | O149: 2017 Enrolment | P149: 2017 Pop | Q149: 2030 Population
E150: 2030 Pop | F150: =Master!$AV$179 -> 312772007 | G150: =VLOOKUP($G$38,Master!$A$172:$BM$178,$M150,FALSE) -> 50446059 | H150: =IF(VLOOKUP($H$2,Master!$A$3:$BM$160,$M150,FALSE)="NA",NA(),VLOOKUP($H$2,Master!$A$3:$BM$160,$M150,FALSE)) -> 78133 | J150: =H150 -> 78133 | L150: =IF(I143>H143,I143-L149,NA()) ->  | M150: 48 | N150: Pre-primary | O150: =IFERROR(J151/1000,"NA") -> 13.478 | P150: =IFERROR(J149/1000,"NA") -> 69.585 | Q150: =IFERROR(J150/1000,"NA") -> 78.133
E151: Enrolment | F151: =Master!$AY$179 -> 120115374 | G151: =VLOOKUP($G$38,Master!$A$172:$BM$178,$M151,FALSE) -> 10738966 | H151: =IF(VLOOKUP($H$2,Master!$A$3:$BM$160,$M151,FALSE)="NA",NA(),VLOOKUP($H$2,Master!$A$3:$BM$160,$M151,FALSE)) -> 13478 | J151: 13478 | M151: 51 | N151: Primary | O151: =IFERROR(J154/1000,"NA") -> 120.381 | P151: =IFERROR(J152/1000,"NA") -> 124.857 | Q151: =IFERROR(J153/1000,"NA") -> 148.541
D152: Primary | E152: 2017 Pop | F152: =Master!$AT$179 -> 646147578 | G152: =VLOOKUP($G$38,Master!$A$172:$BM$178,$M152,FALSE) -> 86103442 | H152: =IF(VLOOKUP($H$2,Master!$A$3:$BM$160,$M152,FALSE)="NA",NA(),VLOOKUP($H$2,Master!$A$3:$BM$160,$M152,FALSE)) -> 124857 | J152: 124857 | M152: 46 | N152: Secondary | O152: =IFERROR(J155/1000,"NA") -> 124.857 | P152: =IFERROR(J155/1000,"NA") -> 124.857 | Q152: =IFERROR(J156/1000,"NA") -> 159.882
E153: 2030 Pop | F153: =Master!$AW$179 -> 681879974 | G153: =VLOOKUP($G$38,Master!$A$172:$BM$178,$M153,FALSE) -> 108080176 | H153: =IF(VLOOKUP($H$2,Master!$A$3:$BM$160,$M153,FALSE)="NA",NA(),VLOOKUP($H$2,Master!$A$3:$BM$160,$M153,FALSE)) -> 148541 | J153: 148541 | M153: 49 | O153: =COUNT(O150:Q152) -> 9
E154: Enrolment, 2016 | F154: =Master!$AZ$179 -> 629210899 | G154: =VLOOKUP($G$38,Master!$A$172:$BM$178,$M154,FALSE) -> 76574974 | H154: =IF(VLOOKUP($H$2,Master!$A$3:$BM$160,$M154,FALSE)="NA",NA(),VLOOKUP($H$2,Master!$A$3:$BM$160,$M154,FALSE)) -> 120381 | J154: 120381 | M154: 52
D155: Secondary | E155: 2017 Pop | F155: =Master!$AU$179 -> 646147578 | G155: =VLOOKUP($G$38,Master!$A$172:$BM$178,$M155,FALSE) -> 86103442 | H155: =IF(VLOOKUP($H$2,Master!$A$3:$BM$160,$M155,FALSE)="NA",NA(),VLOOKUP($H$2,Master!$A$3:$BM$160,$M155,FALSE)) -> 124857 | J155: 124857 | M155: 47
E156: 2030 Pop | F156: =Master!$AX$179 -> 757657154 | G156: =VLOOKUP($G$38,Master!$A$172:$BM$178,$M156,FALSE) -> 89489193 | H156: =IF(VLOOKUP($H$2,Master!$A$3:$BM$160,$M156,FALSE)="NA",NA(),VLOOKUP($H$2,Master!$A$3:$BM$160,$M156,FALSE)) -> 159882 | J156: 159882 | M156: 50
E157: Enrolment | F157: =Master!$BA$179 -> 464237059 | G157: =VLOOKUP($G$38,Master!$A$172:$BM$178,$M157,FALSE) -> 18429965 | H157: =IF(VLOOKUP($H$2,Master!$A$3:$BM$160,$M157,FALSE)="NA",NA(),VLOOKUP($H$2,Master!$A$3:$BM$160,$M157,FALSE)) -> 70234 | J157: 70234 | M157: 53
D158: Typology of countries | F158: Access and equity | H158: =IF(VLOOKUP($H$2,Master!$A$3:$FJ$160,$M158,FALSE)="NA",NA(),VLOOKUP($H$2,Master!$A$3:$FJ$160,$M158,FALSE)) -> High | I158: Learning | J158: =IF(VLOOKUP($H$2,Master!$A$3:$FJ$160,$N158,FALSE)="NA",NA(),VLOOKUP($H$2,Master!$A$3:$FJ$160,$N158,FALSE)) -> High | M158: 166 | N158: 165
D159: Net Enroment Rate | E159: Pre-primary | F159: =Master!$BN$179 -> 45.91494509 | G159: =VLOOKUP($G$38,Master!$A$172:$BP$178,$M159,FALSE) -> 17.8422775 | H159: =IF(VLOOKUP($H$2,Master!$A$3:$EY$160,$M159,FALSE)="NA",NA(),VLOOKUP($H$2,Master!$A$3:$EY$160,$M159,FALSE)) -> 13.6968 | I159: 100 | J159: =H159 -> 13.6968 | M159: 66
E160: Primary | F160: =Master!$BO$179 -> 87.36889952 | G160: =VLOOKUP($G$38,Master!$A$172:$BP$178,$M160,FALSE) -> 80.35888 | H160: =IF(VLOOKUP($H$2,Master!$A$3:$EY$160,$M160,FALSE)="NA",NA(),VLOOKUP($H$2,Master!$A$3:$EY$160,$M160,FALSE)) -> 79.46213 | I160: 100 | J160: =H160 -> 79.46213 | M160: 67
E161: Secondary | F161: =Master!$BP$179 -> 66.17700153 | G161: =VLOOKUP($G$38,Master!$A$172:$BP$178,$M161,FALSE) -> 32.63675364 | H161: =IF(VLOOKUP($H$2,Master!$A$3:$EY$160,$M161,FALSE)="NA",NA(),VLOOKUP($H$2,Master!$A$3:$EY$160,$M161,FALSE)) -> 43.93447 | I161: 100 | J161: =H161 -> 43.93447 | M161: 68
D162: 3. Poverty | E162: Human Capita index | F162: =Master!EX179 -> 0.4981666983 | G162: =VLOOKUP($G$38,Master!$A$172:$EY$178,$M162,FALSE) -> 0.3965222036 | H162: =IF(VLOOKUP($H$2,Master!$A$3:$EY$160,$M162,FALSE)="NA",NA(),VLOOKUP($H$2,Master!$A$3:$EY$160,$M162,FALSE)) -> 0.4090623856 | I162: =I164 -> Low income | J162: =VLOOKUP(I162,Master!A$241:EY$248,M162,FALSE) -> 0.3800265308 | L162: =Master!AR162 -> 188 | M162: 154
E163: Adjusted-Learning Years of School | F163: =Master!EY179 -> 6.70896687 | G163: =VLOOKUP($G$38,Master!$A$172:$EY$178,$M163,FALSE) -> 5.004380352 | H163: =IF(VLOOKUP($H$2,Master!$A$3:$EY$160,$M163,FALSE)="NA",NA(),VLOOKUP($H$2,Master!$A$3:$EY$160,$M163,FALSE)) -> 5.302313805 | I163: =I165 -> Low income | J163: =VLOOKUP(I163,Master!A$241:EY$248,M163,FALSE) -> 4.528285668 | M163: 155
B164: =IFERROR(VLOOKUP(H138,Master!$A$4:$ED$160,C164,FALSE),"") -> 2013 | C164: 134 | D164: =$M$5&IF(VLOOKUP($H$138,Master!$A$4:$EY$160,C164,FALSE)="N/A","",", "&VLOOKUP($H$138,Master!$A$4:$EY$160,C164,FALSE)) -> Comoros, 2013 | E164: % Children in extreme poverty | F164: =Master!$BE$179 -> 19.55583333 | G164: =VLOOKUP($G$38,Master!$A$172:$BM$178,$M164,FALSE) -> 43.61578947 | H164: =IF(VLOOKUP($H$2,Master!$A$3:$EY$160,$M164,FALSE)="NA",NA(),VLOOKUP($H$2,Master!$A$3:$EY$160,$M164,FALSE)) -> 18.1 | I164: =I147 -> Low income | J164: =VLOOKUP(I164,Master!A$241:BE$248,M164,FALSE) -> 46.9 | M164: 57
B165: =IFERROR(VLOOKUP($H$138,Master!$A$4:$EY$160,C165,FALSE),"") -> 2016 | C165: 135 | D165: =$M$5&IF(VLOOKUP($H$138,Master!$A$4:$EY$160,C165,FALSE)="N/A","",", "&VLOOKUP($H$138,Master!$A$4:$EY$160,C165,FALSE)) -> Comoros, 2016 | E165: Under five mortality rate | F165: =Master!$BF$179 -> 37.94965517 | G165: =VLOOKUP($G$38,Master!$A$172:$BM$178,$M165,FALSE) -> 63.64761905 | H165: =IF(VLOOKUP($H$2,Master!$A$3:$EY$160,$M165,FALSE)="NA",NA(),VLOOKUP($H$2,Master!$A$3:$EY$160,$M165,FALSE)) -> 73.3 | I165: =I164 -> Low income | J165: =VLOOKUP(I165,Master!A$241:BF$248,M165,FALSE) -> 73.1 | M165: 58
E166: HCI Harmonized test scores | F166: =Master!FG179 -> 430.2092126 | G166: =VLOOKUP($G$38,Master!$A$172:$FJ$178,$M166,FALSE) -> 386.1144847 | H166: =IF(VLOOKUP($H$2,Master!$A$3:$FJ$160,$M166,FALSE)="NA",NA(),VLOOKUP($H$2,Master!$A$3:$FJ$160,$M166,FALSE)) -> 392.2255249 | J166: =VLOOKUP(I165,Master!A$241:FJ$248,M166,FALSE) -> 362.9903107 | M166: 163
D167: 4. Fragiliy | E167: Total refugees | F167: =Master!$BF$179 -> 37.94965517 | G167: =VLOOKUP($G$38,Master!$A$172:$BR$178,$M167,FALSE) -> 3017965 | H167: =IF(VLOOKUP($H$2,Master!$A$3:$EY$160,$M167,FALSE)="NA",NA(),VLOOKUP(H2,Master!$A$3:$EY$160,$M167,FALSE)) ->  | J167: =H167 ->  | M167: 69
E168: Of which Child and adolescent refugees | F168: =Master!$BF$179 -> 37.94965517 | G168: =VLOOKUP($G$38,Master!$A$172:$BR$178,$M168,FALSE) -> 4828846 | H168: =IF(VLOOKUP($H$2,Master!$A$3:$EY$160,$M168,FALSE)="NA",NA(),VLOOKUP($H$2,Master!$A$3:$EY$160,$M168,FALSE)) ->  | J168: =H168 ->  | M168: 70
E169: Humanitarian situation | H169: =IF(VLOOKUP($H$2,Master!$A$3:$FJ$160,$M169,FALSE)="NA",NA(),VLOOKUP($H$2,Master!$A$3:$FJ$160,$M169,FALSE)) -> No | M169: 164
C170: Education | D170: 5. government expenditures in education | E170: % of government expenditures for education | F170: =F31 -> 15.33010535 | G170: =VLOOKUP($G$38,Master!$A$172:$BM$178,$M170,FALSE) -> 16.100245 | H170: =IF(VLOOKUP($H$2,Master!$A$3:$FA$160,$M170,FALSE)="NA",NA(),VLOOKUP($H$2,Master!$A$3:$FA$160,$M170,FALSE)) -> 15.27013 | I170: =I31 -> 20 | J170: =J31 -> 29.23312 | M170: 59
C171: Pre-Primary | D171: =IF(VLOOKUP($H$2,Master!$A$3:$EF$160,133,FALSE)="NA",$M$5,$M$5&", "&VLOOKUP($H$2,Master!$A$3:$EF$160,133,FALSE)) -> Comoros, 2015 | E171: % of government expenditures for pre primary education | F171: =Master!$BH$179 -> 6.840898987 | G171: =VLOOKUP($G$38,Master!$A$172:$BM$178,$M171,FALSE) -> 2.4009625 | H171: =IF(VLOOKUP($H$2,Master!$A$3:$FA$160,$M171,FALSE)="NA",NA(),VLOOKUP($H$2,Master!$A$3:$FA$160,$M171,FALSE)) -> 7.07358 | J171: =H171 -> 7.07358 | K171: 8 | M171: 60
B172: =+COUNT(H171:H173) -> 3 | C172: Primary | E172: % of government expenditures for Primary education | F172: =Master!$BJ$179 -> 33.68047144 | G172: =VLOOKUP($G$38,Master!$A$172:$BM$178,$M172,FALSE) -> 43.02748643 | H172: =IF(VLOOKUP($H$2,Master!$A$3:$FA$160,$M172,FALSE)="NA",NA(),VLOOKUP($H$2,Master!$A$3:$FA$160,$M172,FALSE)) -> 54.61209 | J172: =H172 -> 54.61209 | K172: 30 | M172: 61
C173: Secondary | E173: % of government expenditures for secondary education | F173: =Master!$BJ$179 -> 33.68047144 | G173: =VLOOKUP($G$38,Master!$A$172:$BM$178,$M173,FALSE) -> 27.57325571 | H173: =IF(VLOOKUP($H$2,Master!$A$3:$FA$160,$M173,FALSE)="NA",NA(),VLOOKUP($H$2,Master!$A$3:$FA$160,$M173,FALSE)) -> 27.69313 | J173: =H173 -> 27.69313 | K173: 50 | M173: 62
C174: Education | D174: =IF(VLOOKUP($H$138,Master!$A$3:$FA$160,156,FALSE)="NA",$M$5,$M$5&", "&VLOOKUP($H$138,Master!$A$3:$FA$160,156,FALSE)) -> Comoros | E174: % of government expenditures for education | F174: =F170 -> 15.33010535 | G174: =G170 -> 16.100245 | H174: =H170 -> 15.27013 | I174: =I31 -> 20 | J174: =J31 -> 29.23312 | K174: 4
C175: 156 | E175: Public Education spending on richest children / Public Education spending on poorest children | F175: =Master!FA179 -> 2.504457612 | G175: =VLOOKUP($G$38,Master!$A$172:$FA$178,$M175,FALSE) -> 3.649804016 | H175: =IF(VLOOKUP($H$2,Master!$A$3:$FA$160,$M175,FALSE)="NA",NA(),VLOOKUP($H$2,Master!$A$3:$FA$160,$M175,FALSE)) ->  | I175: 1 | M175: 157
D177: B/ Key Outcome / Results indicators
D178: I. Completion rate (gross intake rate to the last grade) in primary and lower secondary education | E178: Primary
C179: 15 | D179: =IF(VLOOKUP($H$138,Master!$A$4:$ED$160,C179,FALSE)="NA",$M$5,$M$5&", "&VLOOKUP($H$138,Master!$A$4:$ED$160,C179,FALSE)) -> Comoros, 2017 | E179: Both | F179: ='Data for global profile'!G203 -> 89.99796033 | G179: =VLOOKUP($G$38,Master!$A$172:$DZ$179,$M180+1,FALSE) -> 66.47759075 | H179: =IF(VLOOKUP($H$2,Master!$A$3:$DZ$160,$M180,FALSE)="NA",NA(),VLOOKUP($H$2,Master!$A$3:$DZ$160,$M180,FALSE)) -> 76.72008 | I179: ='Data for global profile'!J203 -> 92 | J179: =I179*0.95 -> 87.4
E180: Girls | F180: ='Data for global profile'!H203 -> 89.32394 | G180: =VLOOKUP($G$38,Master!$A$172:$DZ$179,$M181+1,FALSE) -> 67.13778298 | H180: =IF(VLOOKUP($H$2,Master!$A$3:$DZ$160,$M181,FALSE)="NA",NA(),VLOOKUP($H$2,Master!$A$3:$DZ$160,$M181,FALSE)) -> 77.23447 | I180: =I179 -> 92 | J180: =I179-J179 -> 4.6 | M180: 14
E181: Boys | F181: ='Data for global profile'!I203 -> 89.90863 | G181: =VLOOKUP($G$38,Master!$A$172:$DZ$179,$M182+1,FALSE) -> 65.81688505 | H181: =IF(VLOOKUP($H$2,Master!$A$3:$DZ$160,$M182,FALSE)="NA",NA(),VLOOKUP($H$2,Master!$A$3:$DZ$160,$M182,FALSE)) -> 76.22284 | I181: =I180 -> 92 | M181: 16
E182: Lower secondary | M182: 18
C183: 87 | D183: =IF(VLOOKUP($H$138,Master!$A$4:$ED$160,C183,FALSE)="NA",$M$5,$M$5&", "&VLOOKUP($H$138,Master!$A$4:$ED$160,C183,FALSE)) -> Comoros, 2014 | E183: Both | F183: ='Data for global profile'!G204 -> 76.56941545 | G183: =VLOOKUP($G$38,Master!$A$172:$DZ$179,$M184,FALSE) -> 46.60082706 | H183: =IF(VLOOKUP($H$2,Master!$A$3:$DZ$160,$M184,FALSE)="NA",NA(),VLOOKUP($H$2,Master!$A$3:$DZ$160,$M184,FALSE)) -> 48.31392 | I183: ='Data for global profile'!J204 -> 83
E184: Girls | F184: ='Data for global profile'!H204 -> 77.07459 | G184: =VLOOKUP($G$38,Master!$A$172:$DZ$179,$M185,FALSE) -> 47.97553412 | H184: =IF(VLOOKUP($H$2,Master!$A$3:$DZ$160,$M185,FALSE)="NA",NA(),VLOOKUP($H$2,Master!$A$3:$DZ$160,$M185,FALSE)) -> 49.52239 | I184: =I183 -> 83 | M184: 86
E185: Boys | F185: ='Data for global profile'!I204 -> 76.48386 | G185: =VLOOKUP($G$38,Master!$A$172:$DZ$179,$M186,FALSE) -> 45.22890294 | H185: =IF(VLOOKUP($H$2,Master!$A$3:$DZ$160,$M186,FALSE)="NA",NA(),VLOOKUP($H$2,Master!$A$3:$DZ$160,$M186,FALSE)) -> 47.1456 | I185: =I184 -> 83 | M185: 88
M186: 90
D187: J. Gross enrolment rate in upper secondary education, Source: UIS
C188: 79 | D188: =IF(VLOOKUP($H$138,Master!$A$4:$ED$160,C188,FALSE)="NA",$M$5,$M$5&", "&VLOOKUP($H$138,Master!$A$4:$ED$160,C188,FALSE)) -> Comoros, 2017 | E188: Both | F188: ='Data for global profile'!G207 -> 64.96190407 | G188: =VLOOKUP($G$38,Master!$A$172:$DZ$179,$M189-1,FALSE) -> 33.17695268 | H188: =IF(VLOOKUP($H$2,Master!$A$3:$DZ$160,$M189,FALSE)="NA",NA(),VLOOKUP($H$2,Master!$A$3:$DZ$160,$M189,FALSE)) -> 45.59712 | I188: ='Data for global profile'!J207 -> 77
E189: Girls | F189: ='Data for global profile'!H207 -> 64.29154501 | G189: =VLOOKUP($G$38,Master!$A$172:$DZ$179,$M190-1,FALSE) -> 32.98020464 | H189: =IF(VLOOKUP($H$2,Master!$A$3:$DZ$160,$M190,FALSE)="NA",NA(),VLOOKUP($H$2,Master!$A$3:$DZ$160,$M190,FALSE)) -> 47.78728 | I189: =I188 -> 77 | M189: 80
E190: Boys | F190: ='Data for global profile'!I207 -> 65.48919328 | G190: =VLOOKUP($G$38,Master!$A$172:$DZ$179,$M191-1,FALSE) -> 33.37422301 | H190: =IF(VLOOKUP($H$2,Master!$A$3:$DZ$160,$M191,FALSE)="NA",NA(),VLOOKUP($H$2,Master!$A$3:$DZ$160,$M191,FALSE)) -> 43.47792 | I190: =I189 -> 77 | M190: 82
M191: 84
D192: J. Gross enrolment rate in pre-primary Source: UIS
C193: 73 | D193: =IF(VLOOKUP($H$138,Master!$A$4:$ED$160,C193,FALSE)="NA",$M$5,$M$5&", "&VLOOKUP($H$138,Master!$A$4:$ED$160,C193,FALSE)) -> Comoros, 2017 | E193: Both | F193: ='Data for global profile'!G222 -> 45.67264097 | G193: =VLOOKUP($G$38,Master!$A$172:$DZ$179,$M194-1,FALSE) -> 34.78004007 | H193: =IF(VLOOKUP($H$2,Master!$A$3:$DZ$160,$M194,FALSE)="NA",NA(),VLOOKUP($H$2,Master!$A$3:$DZ$160,$M194,FALSE)) -> 20.41728 | I193: ='Data for global profile'!J222 -> 50
E194: Girls | F194: ='Data for global profile'!H222 -> 45.14085381 | G194: =VLOOKUP($G$38,Master!$A$172:$DZ$179,$M195-1,FALSE) -> 34.53716745 | H194: =IF(VLOOKUP($H$2,Master!$A$3:$DZ$160,$M195,FALSE)="NA",NA(),VLOOKUP($H$2,Master!$A$3:$DZ$160,$M195,FALSE)) -> 20.77329 | I194: =I193 -> 50 | M194: 74
E195: Boys | F195: ='Data for global profile'!I222 -> 46.16464065 | G195: =VLOOKUP($G$38,Master!$A$172:$DZ$179,$M196-1,FALSE) -> 35.0191431 | H195: =IF(VLOOKUP($H$2,Master!$A$3:$DZ$160,$M196,FALSE)="NA",NA(),VLOOKUP($H$2,Master!$A$3:$DZ$160,$M196,FALSE)) -> 20.07418 | I195: =I194 -> 50 | M195: 76
M196: 78
D197: Gender parity index | E197: Global | F197: =Master!CO179 -> 0.9974189069 | G197: =VLOOKUP($G$38,Master!$A$172:$DZ$179,$M198,FALSE) -> 1.025699984 | H197: =IF(VLOOKUP($H$2,Master!$A$3:$DZ$160,$M198,FALSE)="NA",NA(),VLOOKUP($H$2,Master!$A$3:$DZ$160,$M198,FALSE)) -> 1.054266627 | I197: 1
C198: 34 | D198: =IF(VLOOKUP($H$138,Master!$A$4:$ED$160,C198,FALSE)="NA",$M$5,$M$5&", "&VLOOKUP($H$138,Master!$A$4:$ED$160,C198,FALSE)) -> Comoros, 2017 | E198: Primary | F198: =Master!T179 -> 0.9934968423 | G198: =VLOOKUP($G$38,Master!$A$172:$DZ$179,$M199,FALSE) -> 1.020069287 | H198: =IF(VLOOKUP($H$2,Master!$A$3:$DZ$160,$M199,FALSE)="NA",NA(),VLOOKUP($H$2,Master!$A$3:$DZ$160,$M199,FALSE)) -> 1.01327 | I198: 1 | M198: 93
E199: Lower sec. | F199: =Master!CN179 -> 1.017047602 | G199: =VLOOKUP($G$38,Master!$A$172:$DZ$179,$M200,FALSE) -> 1.068836734 | H199: =IF(VLOOKUP($H$2,Master!$A$3:$DZ$160,$M200,FALSE)="NA",NA(),VLOOKUP($H$2,Master!$A$3:$DZ$160,$M200,FALSE)) -> 1.050413824 | I199: 1 | M199: 20
E200: Upper sec. | F200: =Master!CG179 -> 0.9817122764 | G200: =VLOOKUP($G$38,Master!$A$172:$DZ$179,$M201,FALSE) -> 0.9881939313 | H200: =IF(VLOOKUP($H$2,Master!$A$3:$DZ$160,$M201,FALSE)="NA",NA(),VLOOKUP($H$2,Master!$A$3:$DZ$160,$M201,FALSE)) -> 1.099116057 | I200: 1 | M200: 92
M201: 85
D202: Out of School children
D203: Rates
D204: Primary | E204: Both | F204: =Master!DU179 -> 8.895060917 | G204: =VLOOKUP($G$38,Master!$A$182:$DZ$189,$M204,FALSE) -> 16 | H204: =IF(VLOOKUP($H$2,Master!$A$3:$DZ$160,$M204,FALSE)="NA",NA(),VLOOKUP($H$2,Master!$A$3:$DZ$160,$M204,FALSE)) -> 15.81527 | I204: ='Data for global profile'!J231 -> 7 | M204: 125
C205: 22 | D205: =IF(VLOOKUP($H$138,Master!$A$4:$ED$160,C205,FALSE)="NA",$M$5,$M$5&", "&VLOOKUP($H$138,Master!$A$4:$ED$160,C205,FALSE)) -> Comoros, 2017 | E205: Girls | F205: =Master!DV179 -> 9.243042449 | G205: =VLOOKUP($G$38,Master!$A$182:$DZ$189,$M205,FALSE) -> 16 | H205: =IF(VLOOKUP($H$2,Master!$A$3:$DZ$160,$M205,FALSE)="NA",NA(),VLOOKUP($H$2,Master!$A$3:$DZ$160,$M205,FALSE)) -> 16.40568 | I205: =I204 -> 7 | M205: 126
... 104 more rows

Sheet BL Quali 2 (hidden)
A1: Country | B1: Region | D1: SMQ-22-01-2.a.2-3 | E1: SMQ-22-01-2.a.2-4 | F1: SMQ-22-01-2.a.2-5 | G1: SMQ-22-01-2.a.2-6 | H1: SMQ-22-01-2.a.2-7 | I1: SMQ-22-01-2.a.2-8 | J1: Incusive education | K1: SMQ-22-01-2.a.2-9 | L1: SMQ-22-01-2.a.2-10 | M1: ESP | N1: SMQ-22-01-2.a.2-11 | O1: SMQ-22-01-2.a.2-12 | P1: SMQ-22-01-2.a.2-13 | Q1: Emergency | R1: SMQ-22-01-2.a.2-14 | S1: SMQ-22-01-2.a.2-15 | T1: SMQ-22-01-2.a.2-16 | U1: EMIS | V1: SMQ-22-01-2.a.3-17 | W1: SMQ-22-01-2.a.3-18 | X1: SMQ-22-01-2.a.3-19 | Y1: Gender | Z1: SMQ-22-02-2.b.3-3 | AA1: SMQ-22-02-2.b.3-4 | AB1: SMQ-22-02-2.b.3-5 | AC1: Early Learning | AD1: SMQ-22-02-2.b.3-6 | AE1: SMQ-22-02-2.b.3-7 | AF1: SMQ-22-02-2.b.3-8 | AG1: Learning Assessment | AH1: SMQ-22-02-2.b.3-9 | AI1: SMQ-22-02-2.b.3-10 | AJ1: SMQ-22-02-2.b.3-11 | AK1: Mother Tongue | AL1: SMQ-22-02-2.b.3-12 | AM1: SMQ-22-02-2.b.3-13 | AN1: SMQ-22-02-2.b.3-14 | AO1: SMQ-22-02-2.b.3-15 | AP1: Teachers | AQ1: SMQ-22-02-2.b.3-16 | AR1: SMQ-22-02-2.b.3-17 | AS1: SMQ-22-02-2.b.3-18 | AT1: Community | AU1: SMQ-22-02-2.b.4-19 | AV1: SMQ-22-03-2.c.2-3 | AW1: SMQ-22-03-2.c.2-4 | AX1: SMQ-22-03-2.c.2-5 | AY1: Mainstreaming skills | AZ1: SMQ-22-03-2.c.2-6 | BA1: 2.b.1. # learning materials | BC1: 2.b.2. SMC trained | DF1: Edu 1 | DG1: Edu 2 | DH1: Edu 3 | DI1: Edu 4 | DJ1: Edu 5 | DK1: Edu 6 | DL1: Edu 9 | DM1: Edu 11 | DN1: Edu 12 | DO1: Edu 13 | DP1: Edu 14 | DQ1: Edu8 | DT1: 1a | DU1: 1b | DV1: 1c | DW1: 2 | DX1: 2a | DY1: 2b | DZ1: 2 Avg(b,c) | EA1: 2c | EB1: 3 | EC1: 3a | ED1: 3b | EE1: 3c | EF1: 4 | EG1: 4a | EM1: 5 | EN1: 5a | EO1: 5b | FI1: 8d | FJ1: 8e | FK1: 9 | FL1: 9a | FM1: 9b | FN1: 9c | FO1: 10 | FP1: 11 | FQ1: 11a | FR1: 11b | FS1: 11c | FT1: 12 | FU1: 12a | FV1: 12b | FW1: 12c | FX1: 12d | FY1: 12e | FZ1: 13 | GA1: 13a | GB1: 13b | GC1: 13c | GD1: 13d | GE1: 13e | GF1: 13f | GG1: 14 | GH1: 14a | GI1: 14b | GJ1: 14c | GK1: 14d | GL1: 15
D2: 2 a 2 Inclusive Ed Law-Policy | E2: 2 a 2 Inclusive Ed Environment | F2: 2 a 2 Inclusive Ed Materials | G2: 2 a 2 Inclusive Ed HR | H2: 2 a 2 Inclusive Ed Attitudes | I2: 2 a 2 Inclusive Ed EMIS | K2: 2 a 2 Sector Plan Strategy Access | L2: 2 a 2 Sector Plan Strategy Resources | N2: 2 a 2 Emergency PrepRes Assessment | O2: 2 a 2 Emergency PrepRes Strategies | P2: 2 a 2 Emergency PrepRes Resources | R2: 2 a 2 EMIS Quality Timeliness | S2: 2 a 2 EMIS Disaggregation | T2: 2 a 2 EMIS Attendance DropOut | V2: 2.a.3. Gender Demand | W2: 2.a.3 Gender Environment | X2: 2 a 3 Gender SRGBV | Z2: 2 b 3 Early Learning Policy | AA2: 2 b 3 Early Learning Governance | AB2: 2 b 3 Early Learning Environment | AD2: 2 b 3 Learning Assessments Classroom | AE2: 2 b 3 Learning Assessments Exams | AF2: 2 b 3 Learning Assessments NLSA | AH2: 2 b 3 Mother Tongue Multi Policy | AI2: 2 b 3 Mother Tongue Multi Resources | AJ2: 2 b 3 Mother Tongue Multi Community | AL2: 2 b 3 Teachers Prof Dev | AM2: 2 b 3 Teachers Leadership | AN2: 2 b 3 Teachers Incentive | AO2: 2 b 3 Teachers Accountability | AQ2: 2 b 3 Community Participation | AR2: 2 b 3 Community Accountability | AS2: 2 b 3 Community Monitoring | AU2: 2 b 4 Gender-responsive teaching and learning | AV2: 2 c 2 Mainstreaming Skills - Policies | AW2: 2 c 2 Mainstreaming Skills - Curricula | AX2: 2 c 2 Mainstreaming Skills- Community | AZ2: 2 c 2 Responsiveness Labour Market | BA2: 2016 | BB2: 2017 | BC2: 2016 | BD2: 2017
